Workbook

Sheet NOMBRE (hidden)
A1: DATOS DEL ESTABLECIMIENTO | C1: CÓDIGOS
A2: NOMBRE DE COMUNA | I2: =IF(OR(NOMBRE!C2="",NOMBRE!D2="",NOMBRE!E2="",NOMBRE!F2="",NOMBRE!G2=""),"Falta Cód. Com.","") -> Falta Cód. Com. | AG2: =IF(I2>"",1,0) -> 1
A3: NOMBRE ESTABLECIMIENTO/ESTRATEGIA | I3: =IF(OR(NOMBRE!C3="",NOMBRE!D3="",NOMBRE!E3="",NOMBRE!F3="",NOMBRE!G3="",NOMBRE!H3=""),"Falta Cód. Est.","") -> Falta Cód. Est. | AG3: =IF(I3>"",1,0) -> 1
A4: TIPO DE ESTABLECIMIENTO/ESTRATEGIA | I4: =IF(OR(NOMBRE!B4=""),"Falta Tipo. Est.","") -> Falta Tipo. Est. | AG4: =IF(I4>"",1,0) -> 1
A5: DEPENDENCIA | I5: =IF(OR(NOMBRE!B5=""),"Falta Dependencia. Est.","") -> Falta Dependencia. Est. | AG5: =IF(I5>"",1,0) -> 1
A6: MES: | I6: =IF(OR(NOMBRE!C6="",NOMBRE!D6=""),"Falta Cód. Mes.","") -> Falta Cód. Mes. | AG6: =IF(I6>"",1,0) -> 1
A7: AÑO: | B7: 2023 | AG7: =SUM(AG2:AG6) -> 5
A9: Versión 1.4: Mayo 2023 | G9: Para habilitar el contenido de las celdas "Tipo de Establecimiento", "Dependencia" y "Mes", presione el boton "Verificar Habilitacion de Macros". Para poder tener un 100% de funcionalidad debe hablitar la opcion Macros en esta planilla.
A11: Director Servicio de Salud o Director Establecimiento | AA11: ENERO | AB11: Establecimiento de Mayor Complejidad (EMAYC) | AC11: SERVICIO DE SALUD
A12: Jefe de Estadísticas | AA12: FEBRERO | AB12: Establecimiento de Mediana Complejidad (EMEDC) | AC12: MUNICIPAL
AA13: MARZO | AB13: Establecimiento de Menor Complejidad (EMENC) | AC13: OTRA INSTITUCION (Delegado)
AA14: ABRIL | AB14: Centros de Diagnóstico Terapeutico (CDT)
A15: MINSAL - DEIS | AA15: MAYO | AB15: Centro de Referencia de Salud (CRS)
AA16: JUNIO | AB16: Consultorio General Urbano (CGU)
B17: SERIE A | G17: ESTADO MACROS: | AA17: JULIO | AB17: Consultorio General Urbano (CGU) - CESFAM
I18: HABILITADO | AA18: AGOSTO | AB18: Consultorio General Urbano(CGU) con SAPU/SUR/SAR
AA19: SEPTIEMBRE | AB19: Consultorio General Urbano (CGU) - CESFAM con SAPU/SAR
AA20: OCTUBRE | AB20: Consultorio General Rural (CGR)
AA21: NOVIEMBRE | AB21: Consultorio General Rural (CGR) - CESFAM
AA22: DICIEMBRE | AB22: Consultorio General Rural (CGR) con SAPU/SAR/SUR
AB23: Consultorio General Rural (CGR) - CESFAM con SAPU/SAR/SUR
AB24: Posta de Salud Rural (PSR)
AB25: Centro Comunitario de Salud Familiar (CECOF)
AB26: Consultorio de Salud Mental (COSAM)
AB27: Programa de Reparación y Atención Integral de Salud (PRAIS)
AB28: Centro de Atención Funcionarios (CAF)
AB29: Unidad de Salud de Funcionarios (USF)
AB30: ClÍnica Dental Móvil (CDM)
AB31: Dirección Servicio de Salud (DSS)
AB32: Servicio de Atención Primaria de Urgencia (SAPU)
AB33: Servicio de Atención Primaria de Urgencia de Alta Resolutividad (SAR)
AB34: Servicio de Urgencia Rural (SUR)
AB35: Laboratorio Clínico o Dental
AB36: Servicio de Atención Primaria de Urgencia Dental (SAPUDENT)
AB37: Centro de Rehabilitación (CR)
AB38: Hospital de Campaña
AB39: Centro Oncologico
AB40: SAMU

Sheet Filtro_
A1: Comuna | B1: (Todas)
A2: Establecimiento | B2: (Todas)
A3: Mes | B3: (Todas)
A5: Etiquetas de fila | B5: Suma de Col01 | C5: Suma de Col02 | D5: Suma de Col03 | E5: Suma de Col04 | F5: Suma de Col05 | G5: Suma de Col06 | H5: Suma de Col07 | I5: Suma de Col08 | J5: Suma de Col09 | K5: Suma de Col10 | L5: Suma de Col11 | M5: Suma de Col12 | N5: Suma de Col13 | O5: Suma de Col14 | P5: Suma de Col15 | Q5: Suma de Col16 | R5: Suma de Col17 | S5: Suma de Col18 | T5: Suma de Col19 | U5: Suma de Col20 | V5: Suma de Col21 | W5: Suma de Col22 | X5: Suma de Col23 | Y5: Suma de Col24 | Z5: Suma de Col25 | AA5: Suma de Col26 | AB5: Suma de Col27 | AC5: Suma de Col28 | AD5: Suma de Col29 | AE5: Suma de Col30 | AF5: Suma de Col31 | AG5: Suma de Col32 | AH5: Suma de Col33 | AI5: Suma de Col34 | AJ5: Suma de Col35 | AK5: Suma de Col36 | AL5: Suma de Col37 | AM5: Suma de Col38 | AN5: Suma de Col39 | AO5: Suma de Col40 | AP5: Suma de Col41 | AQ5: Suma de col42 | AR5: Suma de col43 | AS5: Suma de col44 | AT5: Suma de col45 | AU5: Suma de col46 | AV5: Suma de col47 | AW5: Suma de col48
A6: 01010101 | B6: 7 | E6: 0 | F6: 0 | G6: 0 | H6: 4 | I6: 2 | J6: 0 | K6: 1 | L6: 0 | M6: 0 | N6: 0 | T6: 0 | U6: 7 | X6: 0 | Y6: 0 | Z6: 0 | AA6: 0 | AB6: 0
A7: 01010103 | B7: 1134 | E7: 3 | F7: 47 | G7: 182 | H7: 313 | I7: 299 | J7: 197 | K7: 82 | L7: 11 | M7: 0 | N7: 0 | T7: 6 | U7: 1114 | X7: 9 | Y7: 0 | Z7: 0 | AA7: 9 | AB7: 46
A8: 01010201 | B8: 229 | E8: 0 | F8: 14 | G8: 51 | H8: 58 | I8: 55 | J8: 40 | K8: 3 | L8: 3 | M8: 3 | N8: 2 | U8: 231 | V8: 11 | Y8: 0 | Z8: 0 | AA8: 2 | AB8: 0
A9: 01010203 | B9: 27552 | E9: 84 | F9: 1618 | G9: 6155 | H9: 8022 | I9: 7149 | J9: 3479 | K9: 1000 | L9: 42 | M9: 2 | N9: 1 | U9: 27263 | V9: 7827 | Y9: 24 | Z9: 0 | AA9: 281 | AB9: 2004
A10: 01010401 | B10: 1 | E10: 1 | F10: 0 | G10: 0 | H10: 0 | I10: 0 | J10: 0 | K10: 0 | L10: 0 | M10: 0 | N10: 0 | O10: 0 | P10: 0 | Q10: 0 | R10: 0 | S10: 0 | T10: 0 | U10: 8 | X10: 8 | Y10: 8 | Z10: 8 | AA10: 4 | AB10: 8
A11: 01010403 | B11: 53659 | E11: 1222 | F11: 7712 | G11: 9206 | H11: 9541 | I11: 8722 | J11: 6702 | K11: 5283 | L11: 3791 | M11: 1285 | N11: 129 | O11: 44 | P11: 15 | Q11: 4 | R11: 1 | S11: 2 | T11: 328 | U11: 52998 | X11: 1090 | Y11: 41 | Z11: 33 | AA11: 360 | AB11: 1073
A12: 01010601 | B12: 969 | E12: 32 | F12: 61 | G12: 55 | H12: 71 | I12: 122 | J12: 121 | K12: 139 | L12: 99 | M12: 86 | N12: 81 | O12: 29 | P12: 31 | Q12: 23 | R12: 14 | S12: 5 | U12: 1044 | X12: 0 | Y12: 0 | Z12: 0 | AA12: 0 | AB12: 35
A13: 01010603 | B13: 37288 | E13: 230 | F13: 508 | G13: 1661 | H13: 3075 | I13: 3787 | J13: 3923 | K13: 4409 | L13: 4499 | M13: 4594 | N13: 4230 | O13: 3453 | P13: 1762 | Q13: 735 | R13: 295 | S13: 127 | U13: 36899 | X13: 32 | Y13: 7 | Z13: 1 | AA13: 150 | AB13: 1199
A14: 01010901 | B14: 315 | L14: 103 | M14: 99 | N14: 80 | O14: 33 | U14: 315 | AA14: 4 | AB14: 9
A15: 01010903 | B15: 2896 | L15: 762 | M15: 1116 | N15: 657 | O15: 361 | U15: 2913 | AA15: 40 | AB15: 108
A16: 01030100 | B16: 2014 | C16: 7 | D16: 145 | E16: 1539 | F16: 322 | G16: 9 | H16: 10 | I16: 16 | J16: 139 | K16: 1188 | L16: 1384 | M16: 131 | N16: 2 | O16: 10 | P16: 678 | Q16: 565 | R16: 57 | S16: 1716 | T16: 32 | U16: 266 | V16: 1456 | W16: 1 | X16: 73 | Y16: 209 | Z16: 0 | AA16: 0
A17: 01030100A | B17: 35 | C17: 8 | D17: 27 | AE17: 1 | AF17: 5 | AG17: 4 | AH17: 4 | AI17: 0 | AJ17: 11 | AK17: 3 | AL17: 7 | AM17: 0 | AN17: 0
A18: 01030200B | B18: 1172 | C18: 446 | D18: 726 | AE18: 86 | AF18: 178 | AG18: 133 | AH18: 205 | AI18: 111 | AJ18: 166 | AK18: 116 | AL18: 177 | AM18: 1 | AN18: 1
A19: 01030300 | B19: 796 | C19: 0 | D19: 8 | E19: 535 | F19: 234 | G19: 0 | H19: 1 | I19: 2 | J19: 16 | K19: 547 | L19: 759 | M19: 4 | N19: 0 | O19: 17 | P19: 5 | Q19: 14 | R19: 0 | S19: 48 | T19: 15 | U19: 580 | V19: 524 | W19: 0 | X19: 20 | Y19: 62 | Z19: 0 | AA19: 0
A20: 01030300C | B20: 31 | C20: 13 | D20: 18 | AE20: 2 | AF20: 7 | AG20: 4 | AH20: 2 | AI20: 3 | AJ20: 3 | AK20: 4 | AL20: 6 | AM20: 1 | AN20: 0
A21: 01030400 | B21: 416 | C21: 416 | K21: 8 | L21: 231 | M21: 20 | N21: 199 | O21: 295
A22: 01030400D | B22: 506 | C22: 177 | D22: 329 | AE22: 18 | AF22: 30 | AG22: 34 | AH22: 76 | AI22: 35 | AJ22: 65 | AK22: 90 | AL22: 158 | AM22: 5 | AN22: 0
A23: 01030500 | B23: 755 | C23: 283 | D23: 472 | E23: 23 | F23: 20 | G23: 678 | H23: 185 | I23: 493 | J23: 30 | K23: 31 | L23: 9 | M23: 38
A24: 01030600 | B24: 2541 | C24: 1119 | D24: 1422 | E24: 161 | F24: 114 | G24: 1039 | H24: 361 | I24: 678 | J24: 87 | K24: 62 | L24: 47 | M24: 46
A25: 01030700 | B25: 2711 | C25: 1280 | D25: 1431 | E25: 102 | F25: 96 | G25: 662 | H25: 295 | I25: 367 | J25: 38 | K25: 22 | L25: 3 | M25: 1
A26: 01030800 | B26: 231 | C26: 108 | D26: 123 | E26: 7 | F26: 3 | G26: 66 | H26: 42 | I26: 25 | J26: 5 | K26: 0 | L26: 40 | M26: 82
A27: 01031000 | B27: 326 | C27: 142 | D27: 184 | E27: 0 | F27: 1 | G27: 0 | H27: 0
A28: 01031100 | B28: 498 | C28: 246 | D28: 252 | E28: 4 | F28: 5 | G28: 1 | H28: 0
A29: 01031200 | B29: 606 | C29: 279 | D29: 327 | E29: 0 | F29: 5 | G29: 0 | H29: 0
A30: 01031300 | B30: 670 | C30: 320 | D30: 350 | E30: 3 | F30: 2 | G30: 0 | H30: 0
A31: 01031400 | B31: 611 | C31: 287 | D31: 324 | E31: 2 | F31: 0 | G31: 1 | H31: 0
A32: 01031900 | C32: 0 | G32: 1
A33: 01060100 | B33: 4136 | C33: 3 | D33: 14 | E33: 23 | F33: 69 | G33: 201 | H33: 725 | I33: 2758 | J33: 343 | K33: 74
A34: 01080003 | B34: 16 | C34: 1 | D34: 1 | E34: 7 | F34: 7 | G34: 0 | H34: 0 | I34: 0 | J34: 0 | K34: 0 | L34: 0 | M34: 0
A35: 01080004 | B35: 310 | C35: 10 | D35: 62 | E35: 51 | F35: 168 | G35: 0 | H35: 3 | I35: 3 | J35: 13 | K35: 0 | L35: 8 | M35: 10
A36: 01080008 | B36: 4518 | C36: 12 | D36: 264 | E36: 1013 | F36: 1362 | G36: 1103 | H36: 602 | I36: 158 | J36: 5 | K36: 0 | L36: 0 | M36: 91 | N36: 261 | O36: 565 | P36: 211 | Q36: 459
A37: 01080009 | B37: 3828 | C37: 9 | D37: 216 | E37: 858 | F37: 1152 | G37: 953 | H37: 507 | I37: 128 | J37: 5 | K37: 0 | L37: 0 | M37: 62 | N37: 216 | O37: 392 | P37: 139 | Q37: 364
A38: 01080010 | B38: 1573 | C38: 11 | D38: 238 | E38: 569 | F38: 442 | G38: 218 | H38: 84 | I38: 11 | J38: 0 | K38: 0 | L38: 0 | M38: 26 | N38: 100 | O38: 192 | P38: 71 | Q38: 145
A39: 01080011 | B39: 815 | C39: 21 | D39: 105 | E39: 138 | F39: 180 | G39: 167 | H39: 103 | I39: 62 | J39: 26 | K39: 13 | L39: 0 | P39: 12 | Q39: 266 | R39: 1 | S39: 26 | T39: 1
A40: 01080013 | B40: 541 | C40: 24 | D40: 109 | E40: 78 | F40: 101 | G40: 88 | H40: 57 | I40: 38 | J40: 23 | K40: 20 | L40: 3 | P40: 19 | Q40: 110 | R40: 4 | S40: 21 | T40: 1
A41: 01080014 | B41: 306 | C41: 69 | D41: 176 | E41: 14 | F41: 10 | G41: 13 | H41: 10 | I41: 6 | J41: 2 | K41: 4 | L41: 2 | P41: 143 | Q41: 7 | R41: 3 | S41: 12 | T41: 0
A42: 01080016 | B42: 268
A43: 01080017 | B43: 56 | C43: 0 | D43: 1 | E43: 9
A44: 01080018 | B44: 76 | C44: 0 | D44: 0 | E44: 1
A45: 01080019 | B45: 774 | C45: 0 | D45: 29 | E45: 82
A46: 01080020 | B46: 5066
A47: 01080021 | B47: 3250 | C47: 266 | D47: 933 | E47: 650 | F47: 514 | G47: 420 | H47: 284 | I47: 129 | J47: 47 | K47: 7 | L47: 0 | P47: 204 | Q47: 558 | R47: 28 | S47: 120 | T47: 3
A48: 01080022 | B48: 1245 | C48: 6 | D48: 85 | E48: 169 | F48: 227 | G48: 228 | H48: 178 | I48: 166 | J48: 148 | K48: 37 | L48: 1 | P48: 8 | Q48: 312 | R48: 8 | S48: 35 | T48: 2
A49: 01080023 | B49: 1451 | C49: 68 | D49: 411 | E49: 339 | F49: 265 | G49: 186 | H49: 106 | I49: 61 | J49: 15 | K49: 0 | L49: 0 | P49: 91 | Q49: 380 | R49: 12 | S49: 64 | T49: 5
A50: 01080030 | B50: 5 | E50: 0 | F50: 0 | G50: 1 | H50: 2 | I50: 2 | J50: 0 | K50: 0 | L50: 0 | M50: 0 | N50: 0 | U50: 10 | V50: 1 | W50: 8 | Y50: 0 | Z50: 0 | AA50: 0 | AB50: 3
A51: 01080040 | B51: 1191 | E51: 1 | F51: 75 | G51: 233 | H51: 341 | I51: 310 | J51: 172 | K51: 57 | L51: 1 | M51: 0 | N51: 1 | U51: 1157 | V51: 176 | W51: 389 | Y51: 2 | Z51: 0 | AA51: 9 | AB51: 56
A52: 01080090 | B52: 1206
A53: 01090040 | B53: 10 | C53: 0 | D53: 0 | E53: 4
A54: 01090050 | B54: 2461 | C54: 11 | D54: 207 | E54: 641 | F54: 697 | G54: 514 | H54: 294 | I54: 95 | J54: 2 | K54: 0 | L54: 0 | M54: 51 | N54: 136 | O54: 294 | P54: 96 | Q54: 171
A55: 01090060 | B55: 3661 | C55: 127 | D55: 610 | E55: 771 | F55: 741 | G55: 600 | H55: 375 | I55: 259 | J55: 141 | K55: 36 | L55: 1 | P55: 144 | Q55: 644 | R55: 29 | S55: 190 | T55: 2
A56: 01110106 | B56: 38 | F56: 2 | G56: 8 | H56: 10 | I56: 7 | J56: 6 | K56: 5 | U56: 35 | V56: 1 | W56: 19 | Y56: 0 | Z56: 0 | AA56: 1 | AB56: 4
A57: 01110107 | B57: 2332 | E57: 5 | F57: 116 | G57: 461 | H57: 695 | I57: 625 | J57: 326 | K57: 98 | L57: 5 | M57: 0 | N57: 1 | U57: 2294 | V57: 418 | W57: 1068 | Y57: 2 | Z57: 1 | AA57: 20 | AB57: 149
A58: 01200010 | B58: 39 | C58: 13 | D58: 26 | E58: 0 | F58: 0 | G58: 0 | H58: 0 | I58: 0 | J58: 0 | K58: 1 | L58: 1 | M58: 1 | N58: 1 | O58: 1 | P58: 0 | Q58: 1 | R58: 0 | S58: 1 | T58: 0 | U58: 0 | V58: 0 | W58: 0 | X58: 1 | Y58: 0 | Z58: 2 | AA58: 0 | AB58: 3 | AC58: 0 | AD58: 6 | AE58: 2 | AF58: 3 | AG58: 4 | AH58: 3 | AI58: 1 | AJ58: 2 | AK58: 1 | AL58: 4 | AM58: 0 | AN58: 0
A59: 01200020 | B59: 222 | C59: 68 | D59: 154 | E59: 0 | F59: 0 | G59: 2 | H59: 1 | I59: 0 | J59: 4 | K59: 0 | L59: 1 | M59: 0 | N59: 2 | O59: 0 | P59: 4 | Q59: 2 | R59: 4 | S59: 1 | T59: 10 | U59: 0 | V59: 17 | W59: 1 | X59: 7 | Y59: 2 | Z59: 12 | AA59: 8 | AB59: 16 | AC59: 16 | AD59: 12 | AE59: 11 | AF59: 20 | AG59: 10 | AH59: 17 | AI59: 8 | AJ59: 13 | AK59: 7 | AL59: 14 | AM59: 6 | AN59: 2
A60: 01200030 | B60: 195 | C60: 40 | D60: 155 | E60: 0 | F60: 1 | G60: 0 | H60: 0 | I60: 0 | J60: 0 | K60: 2 | L60: 3 | M60: 9 | N60: 44 | O60: 4 | P60: 27 | Q60: 7 | R60: 23 | S60: 7 | T60: 12 | U60: 6 | V60: 15 | W60: 3 | X60: 5 | Y60: 1 | Z60: 10 | AA60: 0 | AB60: 5 | AC60: 0 | AD60: 1 | AE60: 1 | AF60: 2 | AG60: 0 | AH60: 1 | AI60: 0 | AJ60: 5 | AK60: 0 | AL60: 1 | AM60: 1 | AN60: 16
A61: 01200031 | B61: 64 | C61: 44 | D61: 20 | E61: 27 | F61: 12 | G61: 10 | H61: 4 | I61: 5 | J61: 3 | K61: 2 | L61: 1 | AM61: 0 | AN61: 0
A62: 01200032 | B62: 600 | C62: 383 | D62: 217 | E62: 260 | F62: 158 | G62: 91 | H62: 45 | I62: 20 | J62: 9 | K62: 12 | L62: 7 | AM62: 1 | AN62: 0
A63: 01200033 | B63: 6 | C63: 2 | D63: 4 | E63: 1 | F63: 2 | G63: 1 | H63: 1 | I63: 0 | J63: 1 | K63: 0 | L63: 0 | AM63: 0 | AN63: 0
A64: 01200034 | B64: 161 | C64: 111 | D64: 50 | E64: 69 | F64: 32 | G64: 24 | H64: 15 | I64: 15 | J64: 2 | K64: 3 | L64: 1 | AM64: 0 | AN64: 1
A65: 01501010 | B65: 319 | C65: 113 | D65: 206 | E65: 2 | F65: 0 | G65: 2 | H65: 1 | I65: 4 | J65: 1 | K65: 5 | L65: 6 | M65: 1 | N65: 10 | O65: 5 | P65: 12 | Q65: 5 | R65: 15 | S65: 14 | T65: 20 | U65: 15 | V65: 33 | W65: 20 | X65: 30 | Y65: 13 | Z65: 29 | AA65: 8 | AB65: 13 | AC65: 8 | AD65: 18 | AE65: 11 | AF65: 18 | AG65: 0 | AH65: 0
A66: 01501020 | B66: 287 | C66: 97 | D66: 190 | E66: 1 | F66: 0 | G66: 0 | H66: 1 | I66: 3 | J66: 3 | K66: 0 | L66: 0 | M66: 2 | N66: 5 | O66: 2 | P66: 9 | Q66: 8 | R66: 13 | S66: 6 | T66: 7 | U66: 13 | V66: 42 | W66: 14 | X66: 24 | Y66: 16 | Z66: 21 | AA66: 18 | AB66: 21 | AC66: 7 | AD66: 11 | AE66: 7 | AF66: 33 | AG66: 0 | AH66: 0
A67: 01501030 | B67: 1007 | C67: 321 | D67: 686 | E67: 0 | F67: 0 | G67: 0 | H67: 1 | I67: 0 | J67: 1 | K67: 0 | L67: 3 | M67: 5 | N67: 8 | O67: 2 | P67: 12 | Q67: 10 | R67: 22 | S67: 18 | T67: 45 | U67: 22 | V67: 84 | W67: 43 | X67: 96 | Y67: 81 | Z67: 119 | AA67: 47 | AB67: 112 | AC67: 37 | AD67: 87 | AE67: 56 | AF67: 96 | AG67: 2 | AH67: 0
A68: 01501040 | B68: 1305 | C68: 388 | D68: 917 | E68: 0 | F68: 0 | G68: 0 | H68: 4 | I68: 0 | J68: 0 | K68: 2 | L68: 3 | M68: 0 | N68: 11 | O68: 0 | P68: 19 | Q68: 3 | R68: 13 | S68: 10 | T68: 90 | U68: 22 | V68: 125 | W68: 62 | X68: 172 | Y68: 110 | Z68: 187 | AA68: 77 | AB68: 144 | AC68: 44 | AD68: 67 | AE68: 58 | AF68: 82 | AG68: 2 | AH68: 2
A69: 01501050 | B69: 4 | E69: 0 | F69: 0 | G69: 3 | H69: 0 | I69: 0 | J69: 1 | K69: 0 | L69: 0 | M69: 0 | N69: 0 | U69: 4 | Y69: 0 | Z69: 0 | AA69: 0 | AB69: 0
A70: 01501060 | B70: 313 | E70: 0 | F70: 10 | G70: 69 | H70: 80 | I70: 86 | J70: 51 | K70: 15 | L70: 1 | M70: 0 | N70: 1 | U70: 313 | Y70: 1 | Z70: 0 | AA70: 2 | AB70: 21
A71: 01501070 | B71: 3 | E71: 0 | F71: 0 | G71: 0 | H71: 1 | I71: 0 | J71: 2 | K71: 0 | L71: 0 | M71: 0 | N71: 0 | U71: 3 | Y71: 0 | Z71: 0 | AA71: 0 | AB71: 0
A72: 01501080 | B72: 126 | E72: 0 | F72: 7 | G72: 25 | H72: 18 | I72: 38 | J72: 26 | K72: 10 | L72: 2 | M72: 0 | N72: 0 | U72: 120 | Y72: 0 | Z72: 0 | AA72: 3 | AB72: 7
A73: 01502000 | B73: 845 | C73: 845 | T73: 374 | U73: 449 | V73: 202 | W73: 400 | X73: 0 | Y73: 1 | Z73: 0 | AA73: 2 | AB73: 8
A74: 01502010 | B74: 1 | C74: 1 | U74: 1 | V74: 0 | W74: 0 | X74: 0 | Y74: 0 | Z74: 0 | AA74: 0 | AB74: 0
A75: 01502020 | B75: 387 | C75: 387 | T75: 176 | U75: 204 | V75: 62 | W75: 108 | X75: 1 | Y75: 3 | Z75: 1 | AA75: 1 | AB75: 7
A76: 01502040 | B76: 4 | C76: 0 | D76: 4 | E76: 0 | F76: 0 | G76: 0 | H76: 0 | I76: 0 | J76: 1 | K76: 0 | L76: 0 | M76: 0 | N76: 0 | O76: 0 | P76: 0 | Q76: 0 | R76: 0 | S76: 0 | T76: 0 | U76: 0 | V76: 0 | W76: 0 | X76: 0 | Y76: 0 | Z76: 0 | AA76: 0 | AB76: 0 | AC76: 0 | AD76: 3 | AE76: 0 | AF76: 0 | AG76: 0 | AH76: 0
A77: 02010101 | B77: 12226 | C77: 5628 | D77: 6590 | E77: 156 | F77: 3293 | G77: 284 | H77: 3243 | I77: 273 | J77: 58 | K77: 35 | L77: 34 | M77: 40 | N77: 39 | O77: 122 | P77: 113 | Q77: 155 | R77: 856 | S77: 273 | T77: 164 | U77: 37 | V77: 51 | W77: 73 | X77: 85 | Y77: 118 | Z77: 165 | AA77: 176 | AB77: 338 | AC77: 354 | AD77: 513 | AE77: 384 | AF77: 312 | AG77: 482 | AH77: 1593 | AI77: 11 | AJ77: 43 | AK77: 31 | AL77: 53 | AM77: 524
A78: 02010103 | B78: 14519 | C78: 2828 | D78: 11566 | E78: 2752 | S78: 2136 | T78: 1992 | U78: 972 | V78: 1218 | W78: 1191 | X78: 1022 | Y78: 876 | Z78: 788 | AA78: 614 | AB78: 444 | AC78: 320 | AD78: 139 | AE78: 35 | AF78: 12 | AG78: 8 | AH78: 1210 | AJ78: 12 | AK78: 17 | AL78: 90 | AM78: 248
A79: 02010105 | B79: 27 | C79: 16 | D79: 10 | M79: 1 | N79: 1 | O79: 11 | P79: 0 | Q79: 2 | R79: 12 | AI79: 4 | AJ79: 2 | AK79: 0 | AL79: 1 | AM79: 36
A80: 02010201 | B80: 70004 | C80: 32604 | D80: 36783 | E80: 35 | F80: 57 | G80: 3710 | H80: 196 | I80: 3630 | J80: 273 | K80: 3599 | L80: 4288 | M80: 4497 | N80: 3782 | O80: 8612 | P80: 4016 | Q80: 3779 | R80: 9145 | S80: 3935 | T80: 1141 | U80: 451 | V80: 557 | W80: 611 | X80: 619 | Y80: 622 | Z80: 722 | AA80: 775 | AB80: 894 | AC80: 973 | AD80: 2333 | AE80: 2275 | AF80: 1955 | AG80: 2570 | AH80: 3385 | AI80: 2842 | AJ80: 298 | AK80: 164 | AL80: 752 | AM80: 1125
A81: 02010320 | B81: 9361 | C81: 4507 | D81: 4854 | E81: 54 | F81: 40 | G81: 1706 | H81: 1723 | I81: 326 | J81: 330 | K81: 1353 | L81: 1485 | M81: 984 | N81: 1183 | O81: 84 | P81: 93 | Q81: 37 | R81: 50
A82: 02010321 | B82: 939 | C82: 575 | D82: 364 | E82: 10 | F82: 7 | G82: 79 | H82: 64 | I82: 47 | J82: 14 | K82: 218 | L82: 153 | M82: 213 | N82: 122 | O82: 8 | P82: 4 | Q82: 1 | R82: 7
A83: 02010322 | B83: 311 | C83: 217 | D83: 94 | E83: 1 | F83: 1 | G83: 17 | H83: 13 | I83: 10 | J83: 3 | K83: 97 | L83: 42 | M83: 86 | N83: 32 | O83: 6 | P83: 3 | Q83: 0 | R83: 1
A84: 02010420 | B84: 343 | C84: 198 | D84: 145 | E84: 2 | F84: 1 | G84: 19 | H84: 18 | I84: 17 | J84: 12 | K84: 91 | L84: 59 | M84: 58 | N84: 47 | O84: 11 | P84: 8 | Q84: 0 | R84: 1
A85: 02010421 | B85: 82 | C85: 54 | D85: 28 | E85: 0 | F85: 0 | G85: 5 | H85: 1 | I85: 8 | J85: 3 | K85: 22 | L85: 14 | M85: 16 | N85: 10 | O85: 3 | P85: 0 | Q85: 0 | R85: 0
A86: 02010422 | B86: 26 | C86: 22 | D86: 4 | E86: 0 | F86: 0 | G86: 1 | H86: 0 | I86: 0 | J86: 0 | K86: 9 | L86: 3 | M86: 10 | N86: 1 | O86: 2 | P86: 0 | Q86: 0 | R86: 0
A87: 02021730 | B87: 9832 | C87: 4877 | D87: 4955 | E87: 3 | F87: 13 | G87: 55 | H87: 50 | I87: 2 | J87: 9 | K87: 61 | L87: 91 | M87: 1645 | N87: 1733 | O87: 71 | P87: 72 | Q87: 13 | R87: 15 | S87: 59 | T87: 57 | U87: 1666 | V87: 1571 | W87: 1302 | X87: 1354
A88: 02021740 | B88: 12383 | C88: 6366 | D88: 6017 | E88: 75 | F88: 54 | G88: 1930 | H88: 1924 | I88: 473 | J88: 418 | K88: 2041 | L88: 1892 | M88: 1697 | N88: 1626 | O88: 158 | P88: 119 | Q88: 54 | R88: 65
A89: 02021760 | B89: 3275 | C89: 1617 | D89: 1658 | E89: 1338 | F89: 1360 | G89: 279 | H89: 298
A90: 02021790 | B90: 844 | C90: 469 | D90: 375 | E90: 18 | F90: 18 | G90: 60 | H90: 75 | I90: 56 | J90: 32 | K90: 134 | L90: 94 | M90: 190 | N90: 155 | O90: 12 | P90: 1
A91: 02021810 | B91: 876 | C91: 547 | D91: 329 | E91: 8 | F91: 7 | G91: 66 | H91: 60 | I91: 55 | J91: 23 | K91: 195 | L91: 119 | M91: 210 | N91: 116 | O91: 13 | P91: 4
A92: 02021820 | B92: 283 | C92: 205 | D92: 78 | E92: 1 | F92: 1 | G92: 12 | H92: 8 | I92: 14 | J92: 4 | K92: 82 | L92: 37 | M92: 85 | N92: 26 | O92: 11 | P92: 2
A93: 02021830 | B93: 4154 | C93: 1186 | D93: 958 | E93: 95
A94: 02200010 | B94: 11737 | C94: 4470 | D94: 7267 | E94: 16 | F94: 29 | G94: 427 | H94: 744 | I94: 511 | J94: 823 | K94: 521 | L94: 1014 | M94: 497 | N94: 940 | O94: 521 | P94: 844 | Q94: 415 | R94: 788 | S94: 429 | T94: 662 | U94: 368 | V94: 443 | W94: 231 | X94: 308 | Y94: 197 | Z94: 292 | AA94: 156 | AB94: 198 | AC94: 107 | AD94: 100 | AE94: 74 | AF94: 83 | AG94: 21 | AH94: 64
A95: 02200020 | B95: 10667 | C95: 4681 | D95: 5986 | E95: 21 | F95: 27 | G95: 149 | H95: 144 | I95: 168 | J95: 150 | K95: 190 | L95: 230 | M95: 218 | N95: 294 | O95: 265 | P95: 342 | Q95: 304 | R95: 410 | S95: 372 | T95: 459 | U95: 396 | V95: 349 | W95: 305 | X95: 321 | Y95: 609 | Z95: 817 | AA95: 585 | AB95: 773 | AC95: 539 | AD95: 707 | AE95: 560 | AF95: 963 | AG95: 30 | AH95: 71
A96: 02200030 | B96: 9150 | C96: 3192 | D96: 5958 | E96: 9 | F96: 13 | G96: 155 | H96: 404 | I96: 185 | J96: 462 | K96: 239 | L96: 560 | M96: 256 | N96: 608 | O96: 262 | P96: 536 | Q96: 257 | R96: 539 | S96: 297 | T96: 485 | U96: 278 | V96: 422 | W96: 222 | X96: 336 | Y96: 314 | Z96: 500 | AA96: 273 | AB96: 393 | AC96: 210 | AD96: 329 | AE96: 235 | AF96: 371 | AG96: 35 | AH96: 132
A97: 02200040 | B97: 3366 | C97: 1111 | D97: 2255 | E97: 1 | F97: 2 | G97: 20 | H97: 40 | I97: 39 | J97: 68 | K97: 54 | L97: 103 | M97: 49 | N97: 114 | O97: 93 | P97: 168 | Q97: 99 | R97: 208 | S97: 88 | T97: 197 | U97: 102 | V97: 180 | W97: 73 | X97: 139 | Y97: 152 | Z97: 340 | AA97: 135 | AB97: 280 | AC97: 110 | AD97: 193 | AE97: 96 | AF97: 223 | AG97: 13 | AH97: 20
A98: 03010501 | B98: 95264 | C98: 33040 | D98: 62567 | K98: 64 | L98: 102 | M98: 99 | N98: 236 | O98: 165 | P98: 424 | Q98: 266 | R98: 786 | S98: 480 | T98: 1345 | U98: 798 | V98: 2233 | W98: 1313 | X98: 3516 | Y98: 2076 | Z98: 5309 | AA98: 3281 | AB98: 7702 | AC98: 4650 | AD98: 8919 | AE98: 5553 | AF98: 9318 | AG98: 5169 | AH98: 8098 | AI98: 4434 | AJ98: 6756 | AK98: 4879 | AL98: 7823 | AM98: 683 | AN98: 580
A99: 03010502 | B99: 41642 | C99: 15056 | D99: 26586 | K99: 25 | L99: 28 | M99: 44 | N99: 78 | O99: 64 | P99: 174 | Q99: 106 | R99: 309 | S99: 201 | T99: 561 | U99: 357 | V99: 916 | W99: 564 | X99: 1420 | Y99: 894 | Z99: 2175 | AA99: 1523 | AB99: 3142 | AC99: 1962 | AD99: 3673 | AE99: 2569 | AF99: 4075 | AG99: 2397 | AH99: 3517 | AI99: 1977 | AJ99: 2835 | AK99: 2373 | AL99: 3689 | AM99: 307 | AN99: 262
A100: 03010504 | B100: 40099 | C100: 13222 | D100: 26877 | K100: 31 | L100: 36 | M100: 51 | N100: 109 | O100: 71 | P100: 190 | Q100: 149 | R100: 380 | S100: 204 | T100: 661 | U100: 343 | V100: 1087 | W100: 565 | X100: 1629 | Y100: 847 | Z100: 2382 | AA100: 1284 | AB100: 3452 | AC100: 1823 | AD100: 3892 | AE100: 2182 | AF100: 3976 | AG100: 2115 | AH100: 3368 | AI100: 1630 | AJ100: 2741 | AK100: 1927 | AL100: 2974 | AM100: 703 | AN100: 278
A101: 03010505 | B101: 491 | C101: 205 | D101: 286 | K101: 0 | L101: 0 | M101: 0 | N101: 1 | O101: 2 | P101: 1 | Q101: 3 | R101: 8 | S101: 4 | T101: 5 | U101: 8 | V101: 12 | W101: 20 | X101: 20 | Y101: 9 | Z101: 42 | AA101: 30 | AB101: 36 | AC101: 30 | AD101: 35 | AE101: 23 | AF101: 39 | AG101: 22 | AH101: 30 | AI101: 22 | AJ101: 26 | AK101: 32 | AL101: 31 | AM101: 36 | AN101: 0
A102: 03020101 | B102: 7937 | C102: 3345 | D102: 4592 | E102: 200 | F102: 184 | G102: 754 | H102: 656 | I102: 784 | J102: 815 | K102: 429 | L102: 367 | M102: 169 | N102: 203 | O102: 56 | P102: 122 | Q102: 64 | R102: 167 | S102: 64 | T102: 179 | U102: 59 | V102: 205 | W102: 62 | X102: 172 | Y102: 44 | Z102: 181 | AA102: 54 | AB102: 194 | AC102: 78 | AD102: 219 | AE102: 111 | AF102: 236 | AG102: 107 | AH102: 215 | AI102: 84 | AJ102: 193 | AK102: 94 | AL102: 112 | AM102: 132 | AN102: 172 | AO102: 207 | AP102: 62 | AQ102: 15 | AR102: 34 | AS102: 62
A103: 03020201 | B103: 563 | C103: 280 | D103: 283 | E103: 63 | F103: 60 | G103: 136 | H103: 124 | I103: 81 | J103: 99 | AO103: 27 | AP103: 6 | AQ103: 9 | AR103: 2 | AS103: 37
A104: 03020301 | B104: 795 | C104: 299 | D104: 496 | E104: 7 | F104: 10 | G104: 43 | H104: 45 | I104: 42 | J104: 25 | K104: 19 | L104: 9 | M104: 6 | N104: 7 | O104: 2 | P104: 5 | Q104: 4 | R104: 5 | S104: 5 | T104: 9 | U104: 4 | V104: 14 | W104: 2 | X104: 15 | Y104: 4 | Z104: 16 | AA104: 11 | AB104: 28 | AC104: 11 | AD104: 51 | AE104: 17 | AF104: 50 | AG104: 28 | AH104: 51 | AI104: 22 | AJ104: 30 | AK104: 23 | AL104: 45 | AM104: 49 | AN104: 81 | AO104: 6 | AP104: 2 | AQ104: 0 | AR104: 0 | AS104: 16
A105: 03020401 | B105: 6754 | C105: 2735 | D105: 4019 | E105: 193 | F105: 217 | G105: 582 | H105: 557 | I105: 609 | J105: 604 | K105: 296 | L105: 315 | M105: 130 | N105: 166 | O105: 52 | P105: 117 | Q105: 67 | R105: 176 | S105: 64 | T105: 185 | U105: 62 | V105: 185 | W105: 47 | X105: 135 | Y105: 52 | Z105: 167 | AA105: 50 | AB105: 159 | AC105: 83 | AD105: 202 | AE105: 97 | AF105: 195 | AG105: 100 | AH105: 199 | AI105: 93 | AJ105: 174 | AK105: 72 | AL105: 119 | AM105: 86 | AN105: 147 | AO105: 571 | AP105: 49 | AQ105: 18 | AR105: 12 | AS105: 43
A106: 03020402 | B106: 743 | C106: 276 | D106: 467 | I106: 80 | J106: 54 | K106: 51 | L106: 43 | M106: 33 | N106: 29 | O106: 10 | P106: 18 | Q106: 5 | R106: 20 | S106: 7 | T106: 28 | U106: 1 | V106: 30 | W106: 5 | X106: 15 | Y106: 6 | Z106: 26 | AA106: 8 | AB106: 30 | AC106: 10 | AD106: 42 | AE106: 11 | AF106: 31 | AG106: 17 | AH106: 20 | AI106: 12 | AJ106: 34 | AK106: 10 | AL106: 22 | AM106: 10 | AN106: 25 | AO106: 19 | AP106: 2 | AQ106: 1 | AR106: 3 | AS106: 11
A107: 03020403 | B107: 471 | C107: 212 | D107: 259 | U107: 1 | V107: 1 | W107: 5 | X107: 8 | Y107: 3 | Z107: 11 | AA107: 6 | AB107: 12 | AC107: 5 | AD107: 26 | AE107: 18 | AF107: 25 | AG107: 26 | AH107: 33 | AI107: 32 | AJ107: 32 | AK107: 41 | AL107: 34 | AM107: 75 | AN107: 77 | AO107: 1 | AP107: 2 | AQ107: 0 | AR107: 0 | AS107: 8
A108: 03020501 | B108: 253379 | C108: 95135 | D108: 158244 | E108: 2050 | F108: 1950 | G108: 5981 | H108: 5078 | I108: 7531 | J108: 6802 | K108: 6177 | L108: 6139 | M108: 4908 | N108: 6249 | O108: 3020 | P108: 6263 | Q108: 3135 | R108: 6629 | S108: 3424 | T108: 7873 | U108: 3322 | V108: 8194 | W108: 3541 | X108: 9181 | Y108: 4134 | Z108: 10404 | AA108: 5319 | AB108: 12539 | AC108: 6626 | AD108: 13858 | AE108: 7764 | AF108: 14152 | AG108: 8115 | AH108: 13271 | AI108: 7341 | AJ108: 10669 | AK108: 5837 | AL108: 8467 | AM108: 6910 | AN108: 10526 | AO108: 8643 | AP108: 4573 | AQ108: 676 | AR108: 177 | AS108: 42
A109: 03020604 | B109: 16217 | C109: 5816 | D109: 10401 | E109: 2058 | F109: 2249 | G109: 1584 | H109: 1499 | I109: 516 | J109: 634 | K109: 337 | L109: 525 | M109: 257 | N109: 673 | O109: 63 | P109: 836 | Q109: 51 | R109: 908 | S109: 52 | T109: 823 | U109: 45 | V109: 502 | W109: 70 | X109: 295 | Y109: 66 | Z109: 244 | AA109: 64 | AB109: 190 | AC109: 69 | AD109: 204 | AE109: 87 | AF109: 189 | AG109: 126 | AH109: 210 | AI109: 137 | AJ109: 139 | AK109: 106 | AL109: 107 | AM109: 128 | AN109: 174 | AO109: 327 | AP109: 253 | AQ109: 426 | AR109: 70 | AS109: 91
A110: 03020702 | B110: 35327 | C110: 16040 | D110: 19287 | E110: 495 | F110: 566 | G110: 936 | H110: 837 | I110: 450 | J110: 431 | K110: 313 | L110: 339 | M110: 215 | N110: 243 | O110: 151 | P110: 363 | Q110: 226 | R110: 433 | S110: 242 | T110: 588 | U110: 336 | V110: 517 | W110: 302 | X110: 770 | Y110: 528 | Z110: 1024 | AA110: 926 | AB110: 1324 | AC110: 1365 | AD110: 1641 | AE110: 1583 | AF110: 1607 | AG110: 2432 | AH110: 2788 | AI110: 2104 | AJ110: 1941 | AK110: 1520 | AL110: 1403 | AM110: 1916 | AN110: 2472 | AO110: 823 | AP110: 400 | AQ110: 65 | AR110: 65 | AS110: 6
A111: 03020806 | B111: 49075 | C111: 16830 | D111: 32245 | E111: 847 | F111: 954 | G111: 1225 | H111: 882 | I111: 1263 | J111: 1063 | K111: 1032 | L111: 1090 | M111: 811 | N111: 1498 | O111: 701 | P111: 2547 | Q111: 853 | R111: 3162 | S111: 939 | T111: 3277 | U111: 902 | V111: 2542 | W111: 802 | X111: 2110 | Y111: 838 | Z111: 1946 | AA111: 1001 | AB111: 2038 | AC111: 1156 | AD111: 2351 | AE111: 1192 | AF111: 1916 | AG111: 971 | AH111: 1353 | AI111: 733 | AJ111: 949 | AK111: 604 | AL111: 877 | AM111: 960 | AN111: 1690 | AO111: 940 | AP111: 5777 | AQ111: 564 | AR111: 226 | AS111: 418
A112: 03020908 | B112: 10024 | C112: 3261 | D112: 6763 | E112: 50 | F112: 18 | G112: 246 | H112: 130 | I112: 486 | J112: 374 | K112: 673 | L112: 1033 | M112: 486 | N112: 887 | O112: 135 | P112: 397 | Q112: 123 | R112: 477 | S112: 155 | T112: 517 | U112: 135 | V112: 431 | W112: 88 | X112: 377 | Y112: 117 | Z112: 371 | AA112: 77 | AB112: 338 | AC112: 101 | AD112: 333 | AE112: 73 | AF112: 274 | AG112: 80 | AH112: 235 | AI112: 94 | AJ112: 204 | AK112: 63 | AL112: 178 | AM112: 79 | AN112: 189 | AO112: 121 | AP112: 97 | AQ112: 800 | AR112: 46 | AS112: 236
A113: 03021106 | B113: 4322 | C113: 1837 | D113: 2485 | E113: 8 | F113: 4 | G113: 9 | H113: 16 | I113: 21 | J113: 29 | K113: 28 | L113: 60 | M113: 51 | N113: 128 | O113: 80 | P113: 158 | Q113: 99 | R113: 222 | S113: 150 | T113: 251 | U113: 218 | V113: 320 | W113: 268 | X113: 338 | Y113: 327 | Z113: 297 | AA113: 247 | AB113: 257 | AC113: 163 | AD113: 190 | AE113: 168 | AF113: 215 | AG113: 24 | AH113: 59
A114: 03021107 | B114: 2240 | C114: 980 | D114: 1260 | E114: 2 | F114: 2 | G114: 9 | H114: 5 | I114: 11 | J114: 22 | K114: 16 | L114: 43 | M114: 35 | N114: 49 | O114: 63 | P114: 80 | Q114: 61 | R114: 92 | S114: 93 | T114: 158 | U114: 135 | V114: 190 | W114: 169 | X114: 177 | Y114: 140 | Z114: 165 | AA114: 104 | AB114: 126 | AC114: 76 | AD114: 76 | AE114: 66 | AF114: 75 | AG114: 14 | AH114: 17
A115: 03021108 | B115: 3029 | C115: 1135 | D115: 1894 | E115: 5 | F115: 6 | G115: 11 | H115: 21 | I115: 21 | J115: 33 | K115: 29 | L115: 57 | M115: 42 | N115: 79 | O115: 75 | P115: 133 | Q115: 84 | R115: 163 | S115: 108 | T115: 242 | U115: 142 | V115: 276 | W115: 180 | X115: 307 | Y115: 171 | Z115: 224 | AA115: 124 | AB115: 155 | AC115: 78 | AD115: 112 | AE115: 65 | AF115: 86 | AG115: 15 | AH115: 23
A116: 03030101 | B116: 571 | C116: 223 | D116: 348 | E116: 0 | F116: 1
A117: 03030102 | B117: 41805 | C117: 15765 | D117: 26045 | E117: 101 | F117: 402
A118: 03030103 | B118: 2281 | C118: 159 | D118: 2153 | E118: 6 | F118: 35
A119: 03030104 | B119: 4555 | C119: 1529 | D119: 3034 | E119: 3 | F119: 104
A120: 03030110 | B120: 11470 | C120: 3814 | D120: 7656 | E120: 59 | F120: 210
A121: 03030120 | B121: 24149 | C121: 9177 | D121: 14972 | E121: 43 | F121: 99 | G121: 494 | H121: 1015 | I121: 655 | J121: 1214 | K121: 772 | L121: 1404 | M121: 734 | N121: 1416 | O121: 704 | P121: 1259 | Q121: 658 | R121: 1247 | S121: 684 | T121: 1120 | U121: 660 | V121: 874 | W121: 536 | X121: 609 | Y121: 907 | Z121: 1328 | AA121: 884 | AB121: 1193 | AC121: 727 | AD121: 1026 | AE121: 719 | AF121: 1171 | AG121: 57 | AH121: 287
A122: 03030130 | B122: 20358 | C122: 5837 | D122: 14521 | E122: 38 | F122: 106 | G122: 322 | H122: 978 | I122: 447 | J122: 1274 | K122: 536 | L122: 1504 | M122: 483 | N122: 1388 | O122: 519 | P122: 1251 | Q122: 491 | R122: 1125 | S122: 486 | T122: 1041 | U122: 432 | V122: 769 | W122: 311 | X122: 587 | Y122: 594 | Z122: 1491 | AA122: 486 | AB122: 1227 | AC122: 362 | AD122: 869 | AE122: 330 | AF122: 917 | AG122: 58 | AH122: 231
A123: 03030140 | B123: 19781 | C123: 5915 | D123: 13866 | E123: 56 | F123: 49 | G123: 96 | H123: 60 | I123: 83 | J123: 73 | K123: 96 | L123: 165 | M123: 90 | N123: 237 | O123: 88 | P123: 263 | Q123: 97 | R123: 426 | S123: 134 | T123: 530 | U123: 156 | V123: 601 | W123: 155 | X123: 857 | Y123: 310 | Z123: 1077 | AA123: 449 | AB123: 1529 | AC123: 683 | AD123: 1755 | AE123: 747 | AF123: 1697 | AG123: 835 | AH123: 1535 | AI123: 708 | AJ123: 1314 | AK123: 1132 | AL123: 1698 | AM123: 65 | AN123: 88
A124: 03030150 | B124: 1544 | C124: 437 | D124: 1107 | E124: 9 | F124: 4 | G124: 2 | H124: 0 | I124: 6 | J124: 7 | K124: 3 | L124: 6 | M124: 4 | N124: 23 | O124: 4 | P124: 16 | Q124: 1 | R124: 48 | S124: 12 | T124: 55 | U124: 14 | V124: 75 | W124: 15 | X124: 68 | Y124: 26 | Z124: 107 | AA124: 39 | AB124: 116 | AC124: 54 | AD124: 125 | AE124: 65 | AF124: 118 | AG124: 62 | AH124: 120 | AI124: 46 | AJ124: 95 | AK124: 75 | AL124: 124 | AM124: 6 | AN124: 5
A125: 03030160 | B125: 2360 | C125: 644 | D125: 1716 | E125: 154 | F125: 134 | G125: 68 | H125: 68 | I125: 43 | J125: 53 | K125: 25 | L125: 58 | M125: 30 | N125: 121 | O125: 23 | P125: 115 | Q125: 18 | R125: 138 | S125: 22 | T125: 127 | U125: 30 | V125: 130 | W125: 26 | X125: 136 | Y125: 28 | Z125: 149 | AA125: 30 | AB125: 131 | AC125: 27 | AD125: 120 | AE125: 36 | AF125: 83 | AG125: 32 | AH125: 68 | AI125: 27 | AJ125: 50 | AK125: 25 | AL125: 35 | AM125: 25 | AN125: 55
A126: 03030170 | B126: 172 | C126: 11 | D126: 161 | E126: 2 | F126: 1 | G126: 0 | H126: 1 | I126: 0 | J126: 2 | K126: 0 | L126: 13 | M126: 0 | N126: 24 | O126: 2 | P126: 21 | Q126: 0 | R126: 26 | S126: 0 | T126: 19 | U126: 0 | V126: 8 | W126: 0 | X126: 3 | Y126: 0 | Z126: 7 | AA126: 0 | AB126: 10 | AC126: 1 | AD126: 6 | AE126: 0 | AF126: 2 | AG126: 0 | AH126: 4 | AI126: 1 | AJ126: 3 | AK126: 5 | AL126: 11 | AM126: 0 | AN126: 9
A127: 03030180 | B127: 227 | C127: 100 | D127: 127 | E127: 4 | F127: 2 | G127: 3 | H127: 2 | I127: 3 | J127: 2 | K127: 2 | L127: 1 | M127: 6 | N127: 17 | O127: 1 | P127: 9 | Q127: 6 | R127: 20 | S127: 5 | T127: 11 | U127: 15 | V127: 12 | W127: 10 | X127: 2 | Y127: 3 | Z127: 9 | AA127: 8 | AB127: 13 | AC127: 5 | AD127: 5 | AE127: 10 | AF127: 6 | AG127: 9 | AH127: 3 | AI127: 4 | AJ127: 5 | AK127: 6 | AL127: 8 | AM127: 8 | AN127: 0
A128: 03030250 | B128: 11639 | C128: 7289 | D128: 4350 | E128: 144 | F128: 145 | G128: 5071 | H128: 2357 | I128: 1121 | J128: 489 | K128: 174 | L128: 133 | M128: 60 | N128: 43 | O128: 21 | P128: 54 | Q128: 12 | R128: 26 | S128: 18 | T128: 41 | U128: 45 | V128: 45 | W128: 38 | X128: 55 | Y128: 16 | Z128: 52 | AA128: 27 | AB128: 93 | AC128: 45 | AD128: 89 | AE128: 56 | AF128: 114 | AG128: 66 | AH128: 106 | AI128: 108 | AJ128: 166 | AK128: 114 | AL128: 138 | AM128: 167 | AN128: 218 | AO128: 99 | AP128: 37 | AQ128: 8 | AR128: 49 | AS128: 30
A129: 03030270 | B129: 2003 | C129: 993 | D129: 1010 | E129: 72 | F129: 39 | G129: 142 | H129: 43 | I129: 134 | J129: 43 | K129: 84 | L129: 19 | M129: 25 | N129: 30 | O129: 6 | P129: 4 | Q129: 10 | R129: 11 | S129: 3 | T129: 19 | U129: 12 | V129: 26 | W129: 20 | X129: 43 | Y129: 22 | Z129: 32 | AA129: 21 | AB129: 88 | AC129: 57 | AD129: 92 | AE129: 69 | AF129: 100 | AG129: 95 | AH129: 113 | AI129: 103 | AJ129: 67 | AK129: 55 | AL129: 104 | AM129: 63 | AN129: 137 | AO129: 3 | AP129: 27 | AQ129: 0 | AR129: 36 | AS129: 52
A130: 03030280 | B130: 199 | C130: 108 | D130: 91 | E130: 2 | F130: 2 | G130: 37 | H130: 18 | I130: 5 | J130: 4 | K130: 14 | L130: 5 | M130: 13 | N130: 18 | O130: 3 | P130: 4 | Q130: 1 | R130: 4 | S130: 0 | T130: 7 | U130: 5 | V130: 1 | W130: 1 | X130: 9 | Y130: 1 | Z130: 2 | AA130: 3 | AB130: 2 | AC130: 7 | AD130: 6 | AE130: 4 | AF130: 3 | AG130: 1 | AH130: 0 | AI130: 5 | AJ130: 0 | AK130: 0 | AL130: 3 | AM130: 6 | AN130: 3 | AO130: 10 | AP130: 4 | AQ130: 0 | AR130: 5 | AS130: 0
A131: 03030290 | B131: 87092
A132: 03030330 | B132: 20775 | C132: 8032 | D132: 12743 | E132: 97 | F132: 176 | G132: 681 | H132: 1200 | I132: 521 | J132: 1031 | K132: 465 | L132: 1043 | M132: 354 | N132: 823 | O132: 323 | P132: 710 | Q132: 297 | R132: 653 | S132: 279 | T132: 486 | U132: 264 | V132: 463 | W132: 243 | X132: 397 | Y132: 983 | Z132: 1363 | AA132: 1039 | AB132: 1277 | AC132: 1026 | AD132: 1179 | AE132: 1471 | AF132: 1960 | AG132: 49 | AH132: 209
A133: 03030340 | B133: 3040 | C133: 1191 | D133: 1849 | E133: 31 | F133: 8 | G133: 38 | H133: 83 | I133: 25 | J133: 38 | K133: 17 | L133: 33 | M133: 8 | N133: 21 | O133: 7 | P133: 20 | Q133: 9 | R133: 19 | S133: 6 | T133: 17 | U133: 9 | V133: 14 | W133: 14 | X133: 20 | Y133: 146 | Z133: 229 | AA133: 208 | AB133: 266 | AC133: 214 | AD133: 292 | AE133: 459 | AF133: 789 | AG133: 14 | AH133: 50
A134: 03030350 | B134: 7868 | C134: 2928 | D134: 4940 | E134: 17 | F134: 127
A135: 03030360 | B135: 7522 | C135: 3057 | D135: 4465 | E135: 14 | F135: 10 | G135: 27 | H135: 41 | I135: 44 | J135: 69 | K135: 66 | L135: 141 | M135: 105 | N135: 232 | O135: 166 | P135: 324 | Q135: 199 | R135: 388 | S135: 277 | T135: 535 | U135: 379 | V135: 629 | W135: 446 | X135: 627 | Y135: 497 | Z135: 498 | AA135: 357 | AB135: 394 | AC135: 246 | AD135: 293 | AE135: 237 | AF135: 289 | AG135: 41 | AH135: 75
A136: 03040210 | B136: 123 | D136: 123 | L136: 1 | N136: 9 | P136: 30 | R136: 36 | T136: 22 | V136: 12 | X136: 6 | Z136: 5 | AB136: 0 | AD136: 1 | AF136: 1 | AO136: 1 | AP136: 8 | AQ136: 0 | AR136: 0 | AS136: 0
A137: 03040220 | B137: 393 | D137: 393 | F137: 0 | H137: 4 | J137: 5 | L137: 8 | N137: 30 | P137: 30 | R137: 28 | T137: 25 | V137: 45 | X137: 30 | Z137: 43 | AB137: 33 | AD137: 29 | AF137: 21 | AH137: 21 | AJ137: 20 | AL137: 11 | AN137: 10 | AO137: 43 | AP137: 5 | AQ137: 4 | AR137: 0 | AS137: 0
A138: 03050400 | B138: 3487 | C138: 1437 | D138: 2074 | E138: 1028 | F138: 1404 | G138: 409 | H138: 670
A139: 03050500 | B139: 521 | C139: 279 | D139: 242 | E139: 182 | F139: 162 | G139: 97 | H139: 80
A140: 03050600 | B140: 2018 | C140: 776 | D140: 1242 | E140: 596 | F140: 819 | G140: 180 | H140: 423
A141: 03050700 | B141: 1615 | C141: 719 | D141: 896 | E141: 567 | F141: 588 | G141: 152 | H141: 308
A142: 03050710 | B142: 316 | C142: 157 | D142: 159 | E142: 119 | F142: 99 | G142: 38 | H142: 60
A143: 03051000A | B143: 7 | C143: 6 | D143: 1 | E143: 0 | F143: 0 | G143: 0 | H143: 0 | I143: 1 | J143: 0 | K143: 0 | L143: 0 | M143: 0 | N143: 0 | O143: 0 | P143: 0 | Q143: 0 | R143: 0 | S143: 3 | T143: 0 | U143: 1 | V143: 0 | W143: 1 | X143: 1 | Y143: 0 | Z143: 0
A144: 03051100 | B144: 222 | C144: 121 | D144: 101 | E144: 2 | F144: 1 | G144: 0 | H144: 0 | I144: 2 | J144: 0 | K144: 5 | L144: 1 | M144: 5 | N144: 2 | O144: 1 | P144: 2 | Q144: 0 | R144: 5 | S144: 70 | T144: 71 | U144: 17 | V144: 10 | W144: 14 | X144: 8 | Y144: 5 | Z144: 1
A145: 03051200 | B145: 278 | C145: 123 | D145: 155 | E145: 0 | F145: 1 | G145: 0 | H145: 1 | I145: 0 | J145: 1 | K145: 3 | L145: 1 | M145: 1 | N145: 0 | O145: 2 | P145: 1 | Q145: 6 | R145: 3 | S145: 79 | T145: 95 | U145: 13 | V145: 27 | W145: 13 | X145: 18 | Y145: 6 | Z145: 7
A146: 03051300 | B146: 210 | C146: 103 | D146: 107 | E146: 0 | F146: 0 | G146: 2 | H146: 1 | I146: 3 | J146: 1 | K146: 9 | L146: 4 | M146: 4 | N146: 1 | O146: 0 | P146: 0 | Q146: 0 | R146: 3 | S146: 46 | T146: 58 | U146: 7 | V146: 7 | W146: 22 | X146: 15 | Y146: 10 | Z146: 17
A147: 03051400 | B147: 16 | C147: 6 | D147: 10 | E147: 0 | F147: 0 | G147: 0 | H147: 0 | I147: 1 | J147: 1 | K147: 0 | L147: 0 | M147: 0 | N147: 0 | O147: 0 | P147: 0 | Q147: 0 | R147: 0 | S147: 1 | T147: 1 | U147: 0 | V147: 1 | W147: 1 | X147: 3 | Y147: 3 | Z147: 4
A148: 03051500 | B148: 1 | C148: 0 | D148: 1 | E148: 0 | F148: 0 | G148: 0 | H148: 0 | I148: 0 | J148: 0 | K148: 0 | L148: 0 | M148: 0 | N148: 0 | O148: 0 | P148: 0 | Q148: 0 | R148: 0 | S148: 0 | T148: 1 | U148: 0 | V148: 0 | W148: 0 | X148: 0 | Y148: 0 | Z148: 0
A149: 03051600 | B149: 30 | C149: 21 | D149: 9 | E149: 0 | F149: 0 | G149: 0 | H149: 0 | I149: 0 | J149: 0 | K149: 1 | L149: 0 | M149: 0 | N149: 0 | O149: 1 | P149: 1 | Q149: 0 | R149: 0 | S149: 15 | T149: 7 | U149: 4 | V149: 1 | W149: 0 | X149: 0 | Y149: 0 | Z149: 0
A150: 03051700 | B150: 41 | C150: 20 | D150: 21 | E150: 0 | F150: 0 | G150: 1 | H150: 0 | I150: 0 | J150: 0 | K150: 0 | L150: 0 | M150: 1 | N150: 0 | O150: 1 | P150: 1 | Q150: 0 | R150: 2 | S150: 11 | T150: 13 | U150: 5 | V150: 3 | W150: 1 | X150: 2 | Y150: 0 | Z150: 0
A151: 03051800 | B151: 38 | C151: 19 | D151: 19 | E151: 0 | F151: 0 | G151: 0 | H151: 0 | I151: 0 | J151: 1 | K151: 1 | L151: 0 | M151: 2 | N151: 1 | O151: 1 | P151: 0 | Q151: 1 | R151: 0 | S151: 8 | T151: 10 | U151: 4 | V151: 2 | W151: 1 | X151: 2 | Y151: 1 | Z151: 3
A152: 03051900 | B152: 5 | C152: 2 | D152: 3 | E152: 0 | F152: 0 | G152: 0 | H152: 0 | I152: 0 | J152: 0 | K152: 0 | L152: 0 | M152: 0 | N152: 0 | O152: 0 | P152: 0 | Q152: 0 | R152: 0 | S152: 0 | T152: 1 | U152: 0 | V152: 0 | W152: 1 | X152: 1 | Y152: 1 | Z152: 1
A153: 03052100 | B153: 22 | C153: 11 | D153: 11 | E153: 0 | F153: 0 | G153: 0 | H153: 0 | I153: 0 | J153: 1 | K153: 0 | L153: 0 | M153: 0 | N153: 0 | O153: 1 | P153: 0 | Q153: 0 | R153: 0 | S153: 9 | T153: 9 | U153: 1 | V153: 1 | W153: 0 | X153: 0 | Y153: 0 | Z153: 0
A154: 03052200 | B154: 14 | C154: 9 | D154: 5 | E154: 0 | F154: 0 | G154: 0 | H154: 0 | I154: 0 | J154: 0 | K154: 0 | L154: 0 | M154: 0 | N154: 0 | O154: 0 | P154: 0 | Q154: 0 | R154: 0 | S154: 3 | T154: 2 | U154: 0 | V154: 2 | W154: 2 | X154: 0 | Y154: 4 | Z154: 1
A155: 03052300 | B155: 16 | C155: 10 | D155: 6 | E155: 0 | F155: 0 | G155: 0 | H155: 0 | I155: 2 | J155: 0 | K155: 2 | L155: 0 | M155: 0 | N155: 0 | O155: 1 | P155: 0 | Q155: 0 | R155: 0 | S155: 2 | T155: 5 | U155: 1 | V155: 0 | W155: 2 | X155: 1 | Y155: 0 | Z155: 0
A156: 03052400 | B156: 2 | C156: 1 | D156: 1 | E156: 0 | F156: 0 | G156: 0 | H156: 0 | I156: 0 | J156: 0 | K156: 0 | L156: 0 | M156: 0 | N156: 0 | O156: 0 | P156: 0 | Q156: 0 | R156: 0 | S156: 0 | T156: 0 | U156: 1 | V156: 1 | W156: 0 | X156: 0 | Y156: 0 | Z156: 0
A157: 03052500 | B157: 1 | C157: 0 | D157: 1 | T157: 1
A158: 03052600 | B158: 81 | C158: 57 | D158: 24 | E158: 0 | F158: 0 | G158: 0 | H158: 0 | I158: 14 | J158: 1 | K158: 10 | L158: 3 | M158: 10 | N158: 4 | O158: 8 | P158: 1 | Q158: 2 | R158: 2 | S158: 10 | T158: 12 | U158: 2 | V158: 0 | W158: 1 | X158: 0 | Y158: 0 | Z158: 1
A159: 03052700 | B159: 162 | C159: 107 | D159: 55 | E159: 1 | F159: 0 | G159: 2 | H159: 1 | I159: 20 | J159: 6 | K159: 43 | L159: 16 | M159: 20 | N159: 8 | O159: 5 | P159: 6 | Q159: 0 | R159: 2 | S159: 10 | T159: 12 | U159: 1 | V159: 1 | W159: 3 | X159: 1 | Y159: 2 | Z159: 2
A160: 03052800 | B160: 273 | C160: 158 | D160: 115 | E160: 0 | F160: 0 | G160: 1 | H160: 3 | I160: 52 | J160: 15 | K160: 46 | L160: 20 | M160: 20 | N160: 5 | O160: 11 | P160: 7 | Q160: 3 | R160: 2 | S160: 13 | T160: 18 | U160: 2 | V160: 2 | W160: 1 | X160: 8 | Y160: 9 | Z160: 35
A161: 03052900 | B161: 18 | C161: 1 | D161: 17 | E161: 0 | F161: 0 | G161: 0 | H161: 0 | I161: 0 | J161: 1 | K161: 0 | L161: 0 | M161: 0 | N161: 0 | O161: 0 | P161: 0 | Q161: 0 | R161: 0 | S161: 0 | T161: 4 | U161: 0 | V161: 0 | W161: 0 | X161: 3 | Y161: 1 | Z161: 9
A162: 03053100 | B162: 21 | C162: 11 | D162: 10 | E162: 0 | F162: 0 | G162: 1 | H162: 0 | I162: 0 | J162: 0 | K162: 2 | L162: 3 | M162: 1 | N162: 3 | O162: 2 | P162: 3 | Q162: 2 | R162: 0 | S162: 3 | T162: 1 | U162: 0 | V162: 0 | W162: 0 | X162: 0 | Y162: 0 | Z162: 0
A163: 03053200 | B163: 32 | C163: 20 | D163: 12 | E163: 1 | F163: 0 | G163: 0 | H163: 0 | I163: 0 | J163: 3 | K163: 5 | L163: 0 | M163: 7 | N163: 2 | O163: 2 | P163: 2 | Q163: 2 | R163: 1 | S163: 2 | T163: 3 | U163: 1 | V163: 0 | W163: 0 | X163: 0 | Y163: 0 | Z163: 1
A164: 03053300 | B164: 43 | C164: 32 | D164: 11 | E164: 0 | F164: 0 | G164: 0 | H164: 1 | I164: 4 | J164: 0 | K164: 9 | L164: 3 | M164: 5 | N164: 1 | O164: 4 | P164: 1 | Q164: 0 | R164: 0 | S164: 6 | T164: 2 | U164: 3 | V164: 0 | W164: 0 | X164: 1 | Y164: 1 | Z164: 2
A165: 03053400 | B165: 11 | C165: 6 | D165: 5 | E165: 0 | F165: 0 | G165: 0 | H165: 0 | I165: 2 | J165: 1 | K165: 1 | L165: 1 | M165: 0 | N165: 0 | O165: 0 | P165: 0 | Q165: 0 | R165: 0 | S165: 1 | T165: 1 | U165: 1 | V165: 0 | W165: 0 | X165: 1 | Y165: 1 | Z165: 1
A166: 03053500 | B166: 1 | C166: 1 | D166: 0 | S166: 1
A167: 03053600 | B167: 14 | C167: 11 | D167: 3 | E167: 0 | F167: 0 | G167: 0 | H167: 0 | I167: 4 | J167: 0 | K167: 0 | L167: 1 | M167: 1 | N167: 0 | O167: 1 | P167: 0 | Q167: 0 | R167: 0 | S167: 3 | T167: 2 | U167: 1 | V167: 0 | W167: 1 | X167: 0 | Y167: 0 | Z167: 0
A168: 03053700 | B168: 35 | C168: 15 | D168: 20 | E168: 0 | F168: 0 | G168: 1 | H168: 0 | I168: 1 | J168: 1 | K168: 2 | L168: 3 | M168: 1 | N168: 1 | O168: 2 | P168: 0 | Q168: 0 | R168: 0 | S168: 5 | T168: 14 | U168: 2 | V168: 0 | W168: 0 | X168: 1 | Y168: 1 | Z168: 0
A169: 03053800 | B169: 182 | C169: 92 | D169: 90 | E169: 1 | F169: 0 | G169: 0 | H169: 1 | I169: 6 | J169: 2 | K169: 12 | L169: 10 | M169: 6 | N169: 8 | O169: 14 | P169: 7 | Q169: 4 | R169: 2 | S169: 27 | T169: 34 | U169: 14 | V169: 2 | W169: 4 | X169: 10 | Y169: 4 | Z169: 14
A170: 03053900 | B170: 39 | C170: 16 | D170: 23 | E170: 0 | F170: 0 | G170: 0 | H170: 0 | I170: 3 | J170: 1 | K170: 3 | L170: 0 | M170: 0 | N170: 1 | O170: 1 | P170: 1 | Q170: 0 | R170: 0 | S170: 4 | T170: 4 | U170: 1 | V170: 1 | W170: 2 | X170: 2 | Y170: 2 | Z170: 13
A171: 03500020 | B171: 8760 | C171: 4222 | D171: 4538 | E171: 3 | F171: 12 | G171: 55 | H171: 50 | I171: 2 | J171: 9 | K171: 59 | L171: 90 | M171: 1561 | N171: 1672 | O171: 67 | P171: 68 | Q171: 13 | R171: 11 | S171: 53 | T171: 51 | U171: 1447 | V171: 1439 | W171: 962 | X171: 1136
A172: 03500030 | B172: 1067 | C172: 653 | D172: 414 | E172: 0 | F172: 1 | G172: 0 | H172: 0 | I172: 0 | J172: 0 | K172: 2 | L172: 1 | M172: 82 | N172: 58 | O172: 4 | P172: 4 | Q172: 0 | R172: 3 | S172: 6 | T172: 6 | U172: 220 | V172: 126 | W172: 339 | X172: 216
A173: 03500040 | B173: 2744 | C173: 1341 | D173: 1403 | E173: 1125 | F173: 1163 | G173: 216 | H173: 240
A174: 03500050 | B174: 497 | C174: 260 | D174: 237 | E174: 202 | F174: 185 | G174: 58 | H174: 52
A175: 03500060 | B175: 46 | C175: 24 | D175: 22 | E175: 19 | F175: 16 | G175: 5 | H175: 6
A176: 03500120 | B176: 240
A177: 03500130 | B177: 236
A178: 03500140 | B178: 133
A179: 03500150 | B179: 14
A180: 03500160 | B180: 4146 | D180: 388 | E180: 374
A181: 03500170 | B181: 64 | D181: 24 | E181: 12
A182: 03500200 | B182: 3086 | C182: 469 | E182: 353
A183: 03500210 | B183: 2925 | C183: 439 | E183: 313
A184: 03500290 | B184: 2625 | C184: 1084 | D184: 1541 | E184: 26 | F184: 33 | G184: 98 | H184: 110 | I184: 107 | J184: 177 | K184: 390 | L184: 639 | M184: 289 | N184: 388 | O184: 77 | P184: 73 | Q184: 79 | R184: 100 | S184: 18 | T184: 21
A185: 03500300 | B185: 487 | C185: 274 | D185: 213 | E185: 20 | F185: 20 | G185: 53 | H185: 52 | I185: 15 | J185: 13 | K185: 64 | L185: 54 | M185: 86 | N185: 49 | O185: 16 | P185: 17 | Q185: 18 | R185: 5 | S185: 2 | T185: 3
A186: 03500331 | B186: 100 | C186: 66 | D186: 34 | E186: 0 | F186: 0 | G186: 10 | H186: 6 | I186: 8 | J186: 5 | K186: 23 | L186: 12 | M186: 23 | N186: 11 | O186: 3 | P186: 1 | Q186: 0 | R186: 0
A187: 03500332 | B187: 104 | C187: 81 | D187: 23 | E187: 0 | F187: 2 | G187: 2 | H187: 2 | I187: 9 | J187: 1 | K187: 37 | L187: 12 | M187: 29 | N187: 5 | O187: 4 | P187: 2 | Q187: 0 | R187: 1
A188: 03500333 | B188: 3 | C188: 1 | D188: 2 | E188: 0 | F188: 0 | G188: 0 | H188: 1 | I188: 0 | J188: 0 | K188: 1 | L188: 1 | M188: 0 | N188: 0 | O188: 0 | P188: 0 | Q188: 0 | R188: 0
A189: 03500334 | B189: 12 | C189: 9 | D189: 3 | E189: 0 | F189: 0 | G189: 0 | H189: 0 | I189: 3 | J189: 0 | K189: 5 | L189: 1 | M189: 1 | N189: 1 | O189: 0 | P189: 1 | Q189: 0 | R189: 0
A190: 03500335 | B190: 1 | C190: 1 | D190: 0 | G190: 1 | Q190: 0 | R190: 0
A191: 03500336 | B191: 167 | C191: 85 | D191: 82 | E191: 0 | F191: 0 | G191: 0 | H191: 0 | I191: 8 | J191: 2 | K191: 18 | L191: 7 | M191: 9 | N191: 5 | O191: 6 | P191: 1 | Q191: 2 | R191: 2 | S191: 23 | T191: 34 | U191: 9 | V191: 7 | W191: 9 | X191: 11 | Y191: 1 | Z191: 13
A192: 03500337 | B192: 123 | C192: 70 | D192: 53 | E192: 0 | F192: 0 | G192: 0 | H192: 0 | I192: 3 | J192: 0 | K192: 1 | L192: 2 | M192: 3 | N192: 1 | O192: 1 | P192: 1 | Q192: 2 | R192: 5 | S192: 41 | T192: 39 | U192: 11 | V192: 2 | W192: 5 | X192: 3 | Y192: 3 | Z192: 0
A193: 03500338 | B193: 160 | C193: 79 | D193: 81 | E193: 1 | F193: 1 | G193: 1 | H193: 1 | I193: 9 | J193: 5 | K193: 18 | L193: 6 | M193: 6 | N193: 5 | O193: 3 | P193: 5 | Q193: 1 | R193: 1 | S193: 28 | T193: 35 | U193: 5 | V193: 14 | W193: 5 | X193: 3 | Y193: 2 | Z193: 5
A194: 03500339 | B194: 229 | C194: 132 | D194: 97 | E194: 0 | F194: 0 | G194: 1 | H194: 3 | I194: 25 | J194: 6 | K194: 27 | L194: 16 | M194: 12 | N194: 7 | O194: 11 | P194: 4 | Q194: 3 | R194: 1 | S194: 29 | T194: 43 | U194: 5 | V194: 4 | W194: 10 | X194: 4 | Y194: 9 | Z194: 9
A195: 03500340 | B195: 25 | C195: 10 | D195: 15 | E195: 0 | F195: 0 | G195: 0 | H195: 0 | I195: 2 | J195: 1 | K195: 0 | L195: 1 | M195: 0 | N195: 0 | O195: 1 | P195: 0 | Q195: 0 | R195: 0 | S195: 5 | T195: 2 | U195: 0 | V195: 0 | W195: 1 | X195: 2 | Y195: 1 | Z195: 9
A196: 03500341 | B196: 18 | C196: 8 | D196: 10 | E196: 0 | F196: 0 | G196: 0 | H196: 0 | I196: 1 | J196: 2 | K196: 0 | L196: 0 | M196: 0 | N196: 0 | O196: 1 | P196: 1 | Q196: 0 | R196: 0 | S196: 2 | T196: 3 | U196: 3 | V196: 1 | W196: 1 | X196: 2 | Y196: 0 | Z196: 1
A197: 03500342 | B197: 42 | C197: 24 | D197: 18 | E197: 0 | F197: 0 | G197: 0 | H197: 0 | I197: 2 | J197: 2 | K197: 0 | L197: 0 | M197: 1 | N197: 1 | O197: 2 | P197: 1 | Q197: 1 | R197: 0 | S197: 7 | T197: 7 | U197: 7 | V197: 3 | W197: 4 | X197: 3 | Y197: 0 | Z197: 1
A198: 03500343 | B198: 60 | C198: 26 | D198: 34 | E198: 0 | F198: 0 | G198: 0 | H198: 0 | I198: 1 | J198: 1 | K198: 7 | L198: 3 | M198: 1 | N198: 2 | O198: 1 | P198: 0 | Q198: 0 | R198: 1 | S198: 10 | T198: 19 | U198: 2 | V198: 5 | W198: 3 | X198: 3 | Y198: 1 | Z198: 0
A199: 03500344 | B199: 81 | C199: 41 | D199: 40 | E199: 0 | F199: 0 | G199: 0 | H199: 0 | I199: 3 | J199: 1 | K199: 13 | L199: 5 | M199: 4 | N199: 3 | O199: 3 | P199: 1 | Q199: 1 | R199: 1 | S199: 9 | T199: 10 | U199: 3 | V199: 2 | W199: 4 | X199: 7 | Y199: 1 | Z199: 10
A200: 03500345 | B200: 10 | C200: 4 | D200: 6 | E200: 0 | F200: 0 | G200: 0 | H200: 0 | I200: 0 | J200: 1 | K200: 1 | L200: 0 | M200: 3 | N200: 0 | O200: 0 | P200: 0 | Q200: 0 | R200: 0 | S200: 0 | T200: 1 | U200: 0 | V200: 0 | W200: 0 | X200: 1 | Y200: 0 | Z200: 3
A201: 03500346 | B201: 27078 | C201: 9134 | D201: 17944 | G201: 124 | H201: 214 | I201: 544 | J201: 1391 | K201: 2599 | L201: 6205 | M201: 2236 | N201: 4286 | O201: 991 | P201: 1712 | Q201: 1712 | R201: 2594 | S201: 928 | T201: 1542
... 2360 more rows

Sheet A01
B1: SERVICIO DE SALUD
B2: =CONCATENATE("COMUNA: ",NOMBRE!B2," - ","( ",NOMBRE!C2,NOMBRE!D2,NOMBRE!E2,NOMBRE!F2,NOMBRE!G2," )") -> COMUNA: - ( )
B3: =CONCATENATE("ESTABLECIMIENTO/ESTRATEGIA: ",NOMBRE!B3," - ","( ",NOMBRE!C3,NOMBRE!D3,NOMBRE!E3,NOMBRE!F3,NOMBRE!G3,NOMBRE!H3," )") -> ESTABLECIMIENTO/ESTRATEGIA: - ( )
B4: =CONCATENATE("MES: ",NOMBRE!B6," - ","( ",NOMBRE!C6,NOMBRE!D6," )") -> MES: - ( )
B5: =CONCATENATE("AÑO: ",NOMBRE!B7) -> AÑO: 2023
B6: REM-A01. CONTROLES DE SALUD
B9: SECCIÓN A: CONTROLES DE SALUD SEXUAL Y REPRODUCTIVA
B10: TIPO DE CONTROL | C10: PROFESIONAL | D10: TOTAL | E10: POR EDAD | V10: SEXO | X10: Control con pareja familiar u otro | Y10: Control de diada con presencia del padre | Z10: Espacios Amigables/ Adolescentes | AA10: Niños, Niñas, Adolescentes y Jóvenes SENAME | AB10: Niños, Niñas, Adolescentes y Jóvenes Mejor Niñez | AC10: Pueblos Originarios | AD10: Migrantes
E11: Menor de 4 años | F11: 5 - 9 años | G11: 10 - 14 años | H11: 15 a 19 años | I11: 20 - 24 años | J11: 25 - 29 años | K11: 30 - 34 años | L11: 35 - 39 años | M11: 40 - 44 años | N11: 45 - 49 años | O11: 50 - 54 años | P11: 55 - 59 años | Q11: 60 - 64 años | R11: 65 - 69 años | S11: 70 - 74 años | T11: 75 - 79 años | U11: 80 y más años | V11: HOMBRES | W11: MUJERES
A12: 01010101 | B12: PRE- CONCEPCIONAL | C12: MÉDICO/A | D12: =SUM(G12:P12) -> 7 | E12: =IFERROR(VLOOKUP($A12,Filtro_!$A$5:$AW$2561,3,FALSE),0) -> 0 | F12: =IFERROR(VLOOKUP($A12,Filtro_!$A$5:$AW$2561,4,FALSE),0) -> 0 | G12: =IFERROR(VLOOKUP($A12,Filtro_!$A$5:$AW$2561,5,FALSE),0) -> 0 | H12: =IFERROR(VLOOKUP($A12,Filtro_!$A$5:$AW$2561,6,FALSE),0) -> 0 | I12: =IFERROR(VLOOKUP($A12,Filtro_!$A$5:$AW$2561,7,FALSE),0) -> 0 | J12: =IFERROR(VLOOKUP($A12,Filtro_!$A$5:$AW$2561,8,FALSE),0) -> 4 | K12: =IFERROR(VLOOKUP($A12,Filtro_!$A$5:$AW$2561,9,FALSE),0) -> 2 | L12: =IFERROR(VLOOKUP($A12,Filtro_!$A$5:$AW$2561,10,FALSE),0) -> 0 | M12: =IFERROR(VLOOKUP($A12,Filtro_!$A$5:$AW$2561,11,FALSE),0) -> 1 | N12: =IFERROR(VLOOKUP($A12,Filtro_!$A$5:$AW$2561,12,FALSE),0) -> 0 | O12: =IFERROR(VLOOKUP($A12,Filtro_!$A$5:$AW$2561,13,FALSE),0) -> 0 | P12: =IFERROR(VLOOKUP($A12,Filtro_!$A$5:$AW$2561,14,FALSE),0) -> 0 | Q12: =IFERROR(VLOOKUP($A12,Filtro_!$A$5:$AW$2561,15,FALSE),0) -> 0 | R12: =IFERROR(VLOOKUP($A12,Filtro_!$A$5:$AW$2561,16,FALSE),0) -> 0 | S12: =IFERROR(VLOOKUP($A12,Filtro_!$A$5:$AW$2561,17,FALSE),0) -> 0 | T12: =IFERROR(VLOOKUP($A12,Filtro_!$A$5:$AW$2561,18,FALSE),0) -> 0 | U12: =IFERROR(VLOOKUP($A12,Filtro_!$A$5:$AW$2561,19,FALSE),0) -> 0 | V12: =IFERROR(VLOOKUP($A12,Filtro_!$A$5:$AW$2561,20,FALSE),0) -> 0 | W12: =IFERROR(VLOOKUP($A12,Filtro_!$A$5:$AW$2561,21,FALSE),0) -> 7 | X12: =IFERROR(VLOOKUP($A12,Filtro_!$A$5:$AW$2561,22,FALSE),0) -> 0 | Y12: =IFERROR(VLOOKUP($A12,Filtro_!$A$5:$AW$2561,23,FALSE),0) -> 0 | Z12: =IFERROR(VLOOKUP($A12,Filtro_!$A$5:$AW$2561,24,FALSE),0) -> 0 | AA12: =IFERROR(VLOOKUP($A12,Filtro_!$A$5:$AW$2561,25,FALSE),0) -> 0 | AB12: =IFERROR(VLOOKUP($A12,Filtro_!$A$5:$AW$2561,26,FALSE),0) -> 0 | AC12: =IFERROR(VLOOKUP($A12,Filtro_!$A$5:$AW$2561,27,FALSE),0) -> 0 | AD12: =IFERROR(VLOOKUP($A12,Filtro_!$A$5:$AW$2561,28,FALSE),0) -> 0 | CA12: * El número de Sexo Hombres y mujeres debe ser igual al total. | DA12: 1 | DB12: 0 | DE12: 0 | DF12: 0 | DG12: 0 | DH12: 0 | DI12: 0 | DJ12: 0 | DK12: 0 | DL12: 0 | DM12: 0 | DN12: 0 | DO12: 0 | DP12: 0 | DQ12: 0
A13: 01010103 | C13: MATRONA/ÓN | D13: =SUM(G13:P13) -> 1134 | E13: =IFERROR(VLOOKUP($A13,Filtro_!$A$5:$AW$2561,3,FALSE),0) -> 0 | F13: =IFERROR(VLOOKUP($A13,Filtro_!$A$5:$AW$2561,4,FALSE),0) -> 0 | G13: =IFERROR(VLOOKUP($A13,Filtro_!$A$5:$AW$2561,5,FALSE),0) -> 3 | H13: =IFERROR(VLOOKUP($A13,Filtro_!$A$5:$AW$2561,6,FALSE),0) -> 47 | I13: =IFERROR(VLOOKUP($A13,Filtro_!$A$5:$AW$2561,7,FALSE),0) -> 182 | J13: =IFERROR(VLOOKUP($A13,Filtro_!$A$5:$AW$2561,8,FALSE),0) -> 313 | K13: =IFERROR(VLOOKUP($A13,Filtro_!$A$5:$AW$2561,9,FALSE),0) -> 299 | L13: =IFERROR(VLOOKUP($A13,Filtro_!$A$5:$AW$2561,10,FALSE),0) -> 197 | M13: =IFERROR(VLOOKUP($A13,Filtro_!$A$5:$AW$2561,11,FALSE),0) -> 82 | N13: =IFERROR(VLOOKUP($A13,Filtro_!$A$5:$AW$2561,12,FALSE),0) -> 11 | O13: =IFERROR(VLOOKUP($A13,Filtro_!$A$5:$AW$2561,13,FALSE),0) -> 0 | P13: =IFERROR(VLOOKUP($A13,Filtro_!$A$5:$AW$2561,14,FALSE),0) -> 0 | Q13: =IFERROR(VLOOKUP($A13,Filtro_!$A$5:$AW$2561,15,FALSE),0) -> 0 | R13: =IFERROR(VLOOKUP($A13,Filtro_!$A$5:$AW$2561,16,FALSE),0) -> 0 | S13: =IFERROR(VLOOKUP($A13,Filtro_!$A$5:$AW$2561,17,FALSE),0) -> 0 | T13: =IFERROR(VLOOKUP($A13,Filtro_!$A$5:$AW$2561,18,FALSE),0) -> 0 | U13: =IFERROR(VLOOKUP($A13,Filtro_!$A$5:$AW$2561,19,FALSE),0) -> 0 | V13: =IFERROR(VLOOKUP($A13,Filtro_!$A$5:$AW$2561,20,FALSE),0) -> 6 | W13: =IFERROR(VLOOKUP($A13,Filtro_!$A$5:$AW$2561,21,FALSE),0) -> 1114 | X13: =IFERROR(VLOOKUP($A13,Filtro_!$A$5:$AW$2561,22,FALSE),0) -> 0 | Y13: =IFERROR(VLOOKUP($A13,Filtro_!$A$5:$AW$2561,23,FALSE),0) -> 0 | Z13: =IFERROR(VLOOKUP($A13,Filtro_!$A$5:$AW$2561,24,FALSE),0) -> 9 | AA13: =IFERROR(VLOOKUP($A13,Filtro_!$A$5:$AW$2561,25,FALSE),0) -> 0 | AB13: =IFERROR(VLOOKUP($A13,Filtro_!$A$5:$AW$2561,26,FALSE),0) -> 0 | AC13: =IFERROR(VLOOKUP($A13,Filtro_!$A$5:$AW$2561,27,FALSE),0) -> 9 | AD13: =IFERROR(VLOOKUP($A13,Filtro_!$A$5:$AW$2561,28,FALSE),0) -> 46 | CA13: * El número de Sexo Hombres y mujeres debe ser igual al total. | DA13: 1 | DB13: 0 | DE13: 0 | DF13: 0 | DG13: 0 | DH13: 0 | DI13: 0 | DJ13: 0 | DK13: 0 | DL13: 0 | DM13: 0 | DN13: 0 | DO13: 0 | DP13: 0 | DQ13: 0
A14: 01010201 | B14: PRENATAL | C14: MÉDICO/A | D14: =SUM(G14:P14) -> 229 | E14: =IFERROR(VLOOKUP($A14,Filtro_!$A$5:$AW$2561,3,FALSE),0) -> 0 | F14: =IFERROR(VLOOKUP($A14,Filtro_!$A$5:$AW$2561,4,FALSE),0) -> 0 | G14: =IFERROR(VLOOKUP($A14,Filtro_!$A$5:$AW$2561,5,FALSE),0) -> 0 | H14: =IFERROR(VLOOKUP($A14,Filtro_!$A$5:$AW$2561,6,FALSE),0) -> 14 | I14: =IFERROR(VLOOKUP($A14,Filtro_!$A$5:$AW$2561,7,FALSE),0) -> 51 | J14: =IFERROR(VLOOKUP($A14,Filtro_!$A$5:$AW$2561,8,FALSE),0) -> 58 | K14: =IFERROR(VLOOKUP($A14,Filtro_!$A$5:$AW$2561,9,FALSE),0) -> 55 | L14: =IFERROR(VLOOKUP($A14,Filtro_!$A$5:$AW$2561,10,FALSE),0) -> 40 | M14: =IFERROR(VLOOKUP($A14,Filtro_!$A$5:$AW$2561,11,FALSE),0) -> 3 | N14: =IFERROR(VLOOKUP($A14,Filtro_!$A$5:$AW$2561,12,FALSE),0) -> 3 | O14: =IFERROR(VLOOKUP($A14,Filtro_!$A$5:$AW$2561,13,FALSE),0) -> 3 | P14: =IFERROR(VLOOKUP($A14,Filtro_!$A$5:$AW$2561,14,FALSE),0) -> 2 | Q14: =IFERROR(VLOOKUP($A14,Filtro_!$A$5:$AW$2561,15,FALSE),0) -> 0 | R14: =IFERROR(VLOOKUP($A14,Filtro_!$A$5:$AW$2561,16,FALSE),0) -> 0 | S14: =IFERROR(VLOOKUP($A14,Filtro_!$A$5:$AW$2561,17,FALSE),0) -> 0 | T14: =IFERROR(VLOOKUP($A14,Filtro_!$A$5:$AW$2561,18,FALSE),0) -> 0 | U14: =IFERROR(VLOOKUP($A14,Filtro_!$A$5:$AW$2561,19,FALSE),0) -> 0 | V14: =IFERROR(VLOOKUP($A14,Filtro_!$A$5:$AW$2561,20,FALSE),0) -> 0 | W14: =IFERROR(VLOOKUP($A14,Filtro_!$A$5:$AW$2561,21,FALSE),0) -> 231 | X14: =IFERROR(VLOOKUP($A14,Filtro_!$A$5:$AW$2561,22,FALSE),0) -> 11 | Y14: =IFERROR(VLOOKUP($A14,Filtro_!$A$5:$AW$2561,23,FALSE),0) -> 0 | Z14: =IFERROR(VLOOKUP($A14,Filtro_!$A$5:$AW$2561,24,FALSE),0) -> 0 | AA14: =IFERROR(VLOOKUP($A14,Filtro_!$A$5:$AW$2561,25,FALSE),0) -> 0 | AB14: =IFERROR(VLOOKUP($A14,Filtro_!$A$5:$AW$2561,26,FALSE),0) -> 0 | AC14: =IFERROR(VLOOKUP($A14,Filtro_!$A$5:$AW$2561,27,FALSE),0) -> 2 | AD14: =IFERROR(VLOOKUP($A14,Filtro_!$A$5:$AW$2561,28,FALSE),0) -> 0 | DB14: 0 | DC14: 0 | DF14: 0 | DG14: 0 | DH14: 0 | DI14: 0 | DJ14: 0 | DK14: 0 | DL14: 0 | DM14: 0 | DN14: 0 | DO14: 0 | DP14: 0 | DQ14: 0
A15: 01010203 | C15: MATRONA/ÓN | D15: 27552 | E15: =IFERROR(VLOOKUP($A15,Filtro_!$A$5:$AW$2561,3,FALSE),0) -> 0 | F15: =IFERROR(VLOOKUP($A15,Filtro_!$A$5:$AW$2561,4,FALSE),0) -> 0 | G15: =IFERROR(VLOOKUP($A15,Filtro_!$A$5:$AW$2561,5,FALSE),0) -> 84 | H15: =IFERROR(VLOOKUP($A15,Filtro_!$A$5:$AW$2561,6,FALSE),0) -> 1618 | I15: =IFERROR(VLOOKUP($A15,Filtro_!$A$5:$AW$2561,7,FALSE),0) -> 6155 | J15: =IFERROR(VLOOKUP($A15,Filtro_!$A$5:$AW$2561,8,FALSE),0) -> 8022 | K15: =IFERROR(VLOOKUP($A15,Filtro_!$A$5:$AW$2561,9,FALSE),0) -> 7149 | L15: =IFERROR(VLOOKUP($A15,Filtro_!$A$5:$AW$2561,10,FALSE),0) -> 3479 | M15: =IFERROR(VLOOKUP($A15,Filtro_!$A$5:$AW$2561,11,FALSE),0) -> 1000 | N15: =IFERROR(VLOOKUP($A15,Filtro_!$A$5:$AW$2561,12,FALSE),0) -> 42 | O15: =IFERROR(VLOOKUP($A15,Filtro_!$A$5:$AW$2561,13,FALSE),0) -> 2 | P15: =IFERROR(VLOOKUP($A15,Filtro_!$A$5:$AW$2561,14,FALSE),0) -> 1 | Q15: =IFERROR(VLOOKUP($A15,Filtro_!$A$5:$AW$2561,15,FALSE),0) -> 0 | R15: =IFERROR(VLOOKUP($A15,Filtro_!$A$5:$AW$2561,16,FALSE),0) -> 0 | S15: =IFERROR(VLOOKUP($A15,Filtro_!$A$5:$AW$2561,17,FALSE),0) -> 0 | T15: =IFERROR(VLOOKUP($A15,Filtro_!$A$5:$AW$2561,18,FALSE),0) -> 0 | U15: =IFERROR(VLOOKUP($A15,Filtro_!$A$5:$AW$2561,19,FALSE),0) -> 0 | V15: =IFERROR(VLOOKUP($A15,Filtro_!$A$5:$AW$2561,20,FALSE),0) -> 0 | W15: =IFERROR(VLOOKUP($A15,Filtro_!$A$5:$AW$2561,21,FALSE),0) -> 27263 | X15: =IFERROR(VLOOKUP($A15,Filtro_!$A$5:$AW$2561,22,FALSE),0) -> 7827 | Y15: =IFERROR(VLOOKUP($A15,Filtro_!$A$5:$AW$2561,23,FALSE),0) -> 0 | Z15: =IFERROR(VLOOKUP($A15,Filtro_!$A$5:$AW$2561,24,FALSE),0) -> 0 | AA15: =IFERROR(VLOOKUP($A15,Filtro_!$A$5:$AW$2561,25,FALSE),0) -> 24 | AB15: =IFERROR(VLOOKUP($A15,Filtro_!$A$5:$AW$2561,26,FALSE),0) -> 0 | AC15: =IFERROR(VLOOKUP($A15,Filtro_!$A$5:$AW$2561,27,FALSE),0) -> 281 | AD15: =IFERROR(VLOOKUP($A15,Filtro_!$A$5:$AW$2561,28,FALSE),0) -> 2004 | DB15: 0 | DC15: 0 | DF15: 0 | DG15: 0 | DH15: 0 | DI15: 0 | DJ15: 0 | DK15: 0 | DL15: 0 | DM15: 0 | DN15: 0 | DO15: 0 | DP15: 0 | DQ15: 0
A16: 01501050 | B16: POST PARTO | C16: MÉDICO/A | D16: 4 | E16: =IFERROR(VLOOKUP($A16,Filtro_!$A$5:$AW$2561,3,FALSE),0) -> 0 | F16: =IFERROR(VLOOKUP($A16,Filtro_!$A$5:$AW$2561,4,FALSE),0) -> 0 | G16: =IFERROR(VLOOKUP($A16,Filtro_!$A$5:$AW$2561,5,FALSE),0) -> 0 | H16: =IFERROR(VLOOKUP($A16,Filtro_!$A$5:$AW$2561,6,FALSE),0) -> 0 | I16: =IFERROR(VLOOKUP($A16,Filtro_!$A$5:$AW$2561,7,FALSE),0) -> 3 | J16: =IFERROR(VLOOKUP($A16,Filtro_!$A$5:$AW$2561,8,FALSE),0) -> 0 | K16: =IFERROR(VLOOKUP($A16,Filtro_!$A$5:$AW$2561,9,FALSE),0) -> 0 | L16: =IFERROR(VLOOKUP($A16,Filtro_!$A$5:$AW$2561,10,FALSE),0) -> 1 | M16: =IFERROR(VLOOKUP($A16,Filtro_!$A$5:$AW$2561,11,FALSE),0) -> 0 | N16: =IFERROR(VLOOKUP($A16,Filtro_!$A$5:$AW$2561,12,FALSE),0) -> 0 | O16: =IFERROR(VLOOKUP($A16,Filtro_!$A$5:$AW$2561,13,FALSE),0) -> 0 | P16: =IFERROR(VLOOKUP($A16,Filtro_!$A$5:$AW$2561,14,FALSE),0) -> 0 | Q16: =IFERROR(VLOOKUP($A16,Filtro_!$A$5:$AW$2561,15,FALSE),0) -> 0 | R16: =IFERROR(VLOOKUP($A16,Filtro_!$A$5:$AW$2561,16,FALSE),0) -> 0 | S16: =IFERROR(VLOOKUP($A16,Filtro_!$A$5:$AW$2561,17,FALSE),0) -> 0 | T16: =IFERROR(VLOOKUP($A16,Filtro_!$A$5:$AW$2561,18,FALSE),0) -> 0 | U16: =IFERROR(VLOOKUP($A16,Filtro_!$A$5:$AW$2561,19,FALSE),0) -> 0 | V16: =IFERROR(VLOOKUP($A16,Filtro_!$A$5:$AW$2561,20,FALSE),0) -> 0 | W16: =IFERROR(VLOOKUP($A16,Filtro_!$A$5:$AW$2561,21,FALSE),0) -> 4 | X16: =IFERROR(VLOOKUP($A16,Filtro_!$A$5:$AW$2561,22,FALSE),0) -> 0 | Y16: =IFERROR(VLOOKUP($A16,Filtro_!$A$5:$AW$2561,23,FALSE),0) -> 0 | Z16: =IFERROR(VLOOKUP($A16,Filtro_!$A$5:$AW$2561,24,FALSE),0) -> 0 | AA16: =IFERROR(VLOOKUP($A16,Filtro_!$A$5:$AW$2561,25,FALSE),0) -> 0 | AB16: =IFERROR(VLOOKUP($A16,Filtro_!$A$5:$AW$2561,26,FALSE),0) -> 0 | AC16: =IFERROR(VLOOKUP($A16,Filtro_!$A$5:$AW$2561,27,FALSE),0) -> 0 | AD16: =IFERROR(VLOOKUP($A16,Filtro_!$A$5:$AW$2561,28,FALSE),0) -> 0 | DB16: 0 | DF16: 0 | DG16: 0 | DH16: 0 | DI16: 0 | DJ16: 0 | DK16: 0 | DL16: 0 | DM16: 0 | DN16: 0 | DO16: 0 | DP16: 0 | DQ16: 0
A17: 01501060 | C17: MATRONA/ÓN | D17: 313 | E17: =IFERROR(VLOOKUP($A17,Filtro_!$A$5:$AW$2561,3,FALSE),0) -> 0 | F17: =IFERROR(VLOOKUP($A17,Filtro_!$A$5:$AW$2561,4,FALSE),0) -> 0 | G17: =IFERROR(VLOOKUP($A17,Filtro_!$A$5:$AW$2561,5,FALSE),0) -> 0 | H17: =IFERROR(VLOOKUP($A17,Filtro_!$A$5:$AW$2561,6,FALSE),0) -> 10 | I17: =IFERROR(VLOOKUP($A17,Filtro_!$A$5:$AW$2561,7,FALSE),0) -> 69 | J17: =IFERROR(VLOOKUP($A17,Filtro_!$A$5:$AW$2561,8,FALSE),0) -> 80 | K17: =IFERROR(VLOOKUP($A17,Filtro_!$A$5:$AW$2561,9,FALSE),0) -> 86 | L17: =IFERROR(VLOOKUP($A17,Filtro_!$A$5:$AW$2561,10,FALSE),0) -> 51 | M17: =IFERROR(VLOOKUP($A17,Filtro_!$A$5:$AW$2561,11,FALSE),0) -> 15 | N17: =IFERROR(VLOOKUP($A17,Filtro_!$A$5:$AW$2561,12,FALSE),0) -> 1 | O17: =IFERROR(VLOOKUP($A17,Filtro_!$A$5:$AW$2561,13,FALSE),0) -> 0 | P17: =IFERROR(VLOOKUP($A17,Filtro_!$A$5:$AW$2561,14,FALSE),0) -> 1 | Q17: =IFERROR(VLOOKUP($A17,Filtro_!$A$5:$AW$2561,15,FALSE),0) -> 0 | R17: =IFERROR(VLOOKUP($A17,Filtro_!$A$5:$AW$2561,16,FALSE),0) -> 0 | S17: =IFERROR(VLOOKUP($A17,Filtro_!$A$5:$AW$2561,17,FALSE),0) -> 0 | T17: =IFERROR(VLOOKUP($A17,Filtro_!$A$5:$AW$2561,18,FALSE),0) -> 0 | U17: =IFERROR(VLOOKUP($A17,Filtro_!$A$5:$AW$2561,19,FALSE),0) -> 0 | V17: =IFERROR(VLOOKUP($A17,Filtro_!$A$5:$AW$2561,20,FALSE),0) -> 0 | W17: =IFERROR(VLOOKUP($A17,Filtro_!$A$5:$AW$2561,21,FALSE),0) -> 313 | X17: =IFERROR(VLOOKUP($A17,Filtro_!$A$5:$AW$2561,22,FALSE),0) -> 0 | Y17: =IFERROR(VLOOKUP($A17,Filtro_!$A$5:$AW$2561,23,FALSE),0) -> 0 | Z17: =IFERROR(VLOOKUP($A17,Filtro_!$A$5:$AW$2561,24,FALSE),0) -> 0 | AA17: =IFERROR(VLOOKUP($A17,Filtro_!$A$5:$AW$2561,25,FALSE),0) -> 1 | AB17: =IFERROR(VLOOKUP($A17,Filtro_!$A$5:$AW$2561,26,FALSE),0) -> 0 | AC17: =IFERROR(VLOOKUP($A17,Filtro_!$A$5:$AW$2561,27,FALSE),0) -> 2 | AD17: =IFERROR(VLOOKUP($A17,Filtro_!$A$5:$AW$2561,28,FALSE),0) -> 21 | DB17: 0 | DF17: 0 | DG17: 0 | DH17: 0 | DI17: 0 | DJ17: 0 | DK17: 0 | DL17: 0 | DM17: 0 | DN17: 0 | DO17: 0 | DP17: 0 | DQ17: 0
A18: 01501070 | B18: POST ABORTO | C18: MÉDICO/A | D18: 3 | E18: =IFERROR(VLOOKUP($A18,Filtro_!$A$5:$AW$2561,3,FALSE),0) -> 0 | F18: =IFERROR(VLOOKUP($A18,Filtro_!$A$5:$AW$2561,4,FALSE),0) -> 0 | G18: =IFERROR(VLOOKUP($A18,Filtro_!$A$5:$AW$2561,5,FALSE),0) -> 0 | H18: =IFERROR(VLOOKUP($A18,Filtro_!$A$5:$AW$2561,6,FALSE),0) -> 0 | I18: =IFERROR(VLOOKUP($A18,Filtro_!$A$5:$AW$2561,7,FALSE),0) -> 0 | J18: =IFERROR(VLOOKUP($A18,Filtro_!$A$5:$AW$2561,8,FALSE),0) -> 1 | K18: =IFERROR(VLOOKUP($A18,Filtro_!$A$5:$AW$2561,9,FALSE),0) -> 0 | L18: =IFERROR(VLOOKUP($A18,Filtro_!$A$5:$AW$2561,10,FALSE),0) -> 2 | M18: =IFERROR(VLOOKUP($A18,Filtro_!$A$5:$AW$2561,11,FALSE),0) -> 0 | N18: =IFERROR(VLOOKUP($A18,Filtro_!$A$5:$AW$2561,12,FALSE),0) -> 0 | O18: =IFERROR(VLOOKUP($A18,Filtro_!$A$5:$AW$2561,13,FALSE),0) -> 0 | P18: =IFERROR(VLOOKUP($A18,Filtro_!$A$5:$AW$2561,14,FALSE),0) -> 0 | Q18: =IFERROR(VLOOKUP($A18,Filtro_!$A$5:$AW$2561,15,FALSE),0) -> 0 | R18: =IFERROR(VLOOKUP($A18,Filtro_!$A$5:$AW$2561,16,FALSE),0) -> 0 | S18: =IFERROR(VLOOKUP($A18,Filtro_!$A$5:$AW$2561,17,FALSE),0) -> 0 | T18: =IFERROR(VLOOKUP($A18,Filtro_!$A$5:$AW$2561,18,FALSE),0) -> 0 | U18: =IFERROR(VLOOKUP($A18,Filtro_!$A$5:$AW$2561,19,FALSE),0) -> 0 | V18: =IFERROR(VLOOKUP($A18,Filtro_!$A$5:$AW$2561,20,FALSE),0) -> 0 | W18: =IFERROR(VLOOKUP($A18,Filtro_!$A$5:$AW$2561,21,FALSE),0) -> 3 | X18: =IFERROR(VLOOKUP($A18,Filtro_!$A$5:$AW$2561,22,FALSE),0) -> 0 | Y18: =IFERROR(VLOOKUP($A18,Filtro_!$A$5:$AW$2561,23,FALSE),0) -> 0 | Z18: =IFERROR(VLOOKUP($A18,Filtro_!$A$5:$AW$2561,24,FALSE),0) -> 0 | AA18: =IFERROR(VLOOKUP($A18,Filtro_!$A$5:$AW$2561,25,FALSE),0) -> 0 | AB18: =IFERROR(VLOOKUP($A18,Filtro_!$A$5:$AW$2561,26,FALSE),0) -> 0 | AC18: =IFERROR(VLOOKUP($A18,Filtro_!$A$5:$AW$2561,27,FALSE),0) -> 0 | AD18: =IFERROR(VLOOKUP($A18,Filtro_!$A$5:$AW$2561,28,FALSE),0) -> 0 | DB18: 0 | DF18: 0 | DG18: 0 | DH18: 0 | DI18: 0 | DJ18: 0 | DK18: 0 | DL18: 0 | DM18: 0 | DN18: 0 | DO18: 0 | DP18: 0 | DQ18: 0
A19: 01501080 | C19: MATRONA/ÓN | D19: 126 | E19: =IFERROR(VLOOKUP($A19,Filtro_!$A$5:$AW$2561,3,FALSE),0) -> 0 | F19: =IFERROR(VLOOKUP($A19,Filtro_!$A$5:$AW$2561,4,FALSE),0) -> 0 | G19: =IFERROR(VLOOKUP($A19,Filtro_!$A$5:$AW$2561,5,FALSE),0) -> 0 | H19: =IFERROR(VLOOKUP($A19,Filtro_!$A$5:$AW$2561,6,FALSE),0) -> 7 | I19: =IFERROR(VLOOKUP($A19,Filtro_!$A$5:$AW$2561,7,FALSE),0) -> 25 | J19: =IFERROR(VLOOKUP($A19,Filtro_!$A$5:$AW$2561,8,FALSE),0) -> 18 | K19: =IFERROR(VLOOKUP($A19,Filtro_!$A$5:$AW$2561,9,FALSE),0) -> 38 | L19: =IFERROR(VLOOKUP($A19,Filtro_!$A$5:$AW$2561,10,FALSE),0) -> 26 | M19: =IFERROR(VLOOKUP($A19,Filtro_!$A$5:$AW$2561,11,FALSE),0) -> 10 | N19: =IFERROR(VLOOKUP($A19,Filtro_!$A$5:$AW$2561,12,FALSE),0) -> 2 | O19: =IFERROR(VLOOKUP($A19,Filtro_!$A$5:$AW$2561,13,FALSE),0) -> 0 | P19: =IFERROR(VLOOKUP($A19,Filtro_!$A$5:$AW$2561,14,FALSE),0) -> 0 | Q19: =IFERROR(VLOOKUP($A19,Filtro_!$A$5:$AW$2561,15,FALSE),0) -> 0 | R19: =IFERROR(VLOOKUP($A19,Filtro_!$A$5:$AW$2561,16,FALSE),0) -> 0 | S19: =IFERROR(VLOOKUP($A19,Filtro_!$A$5:$AW$2561,17,FALSE),0) -> 0 | T19: =IFERROR(VLOOKUP($A19,Filtro_!$A$5:$AW$2561,18,FALSE),0) -> 0 | U19: =IFERROR(VLOOKUP($A19,Filtro_!$A$5:$AW$2561,19,FALSE),0) -> 0 | V19: =IFERROR(VLOOKUP($A19,Filtro_!$A$5:$AW$2561,20,FALSE),0) -> 0 | W19: =IFERROR(VLOOKUP($A19,Filtro_!$A$5:$AW$2561,21,FALSE),0) -> 120 | X19: =IFERROR(VLOOKUP($A19,Filtro_!$A$5:$AW$2561,22,FALSE),0) -> 0 | Y19: =IFERROR(VLOOKUP($A19,Filtro_!$A$5:$AW$2561,23,FALSE),0) -> 0 | Z19: =IFERROR(VLOOKUP($A19,Filtro_!$A$5:$AW$2561,24,FALSE),0) -> 0 | AA19: =IFERROR(VLOOKUP($A19,Filtro_!$A$5:$AW$2561,25,FALSE),0) -> 0 | AB19: =IFERROR(VLOOKUP($A19,Filtro_!$A$5:$AW$2561,26,FALSE),0) -> 0 | AC19: =IFERROR(VLOOKUP($A19,Filtro_!$A$5:$AW$2561,27,FALSE),0) -> 3 | AD19: =IFERROR(VLOOKUP($A19,Filtro_!$A$5:$AW$2561,28,FALSE),0) -> 7 | DB19: 0 | DF19: 0 | DG19: 0 | DH19: 0 | DI19: 0 | DJ19: 0 | DK19: 0 | DL19: 0 | DM19: 0 | DN19: 0 | DO19: 0 | DP19: 0 | DQ19: 0
A20: 01110106 | B20: PUÉRPERA CON RECIÉN NACIDO HASTA 10 DÍAS DE VIDA | C20: MÉDICO/A | D20: 38 | E20: =IFERROR(VLOOKUP($A20,Filtro_!$A$5:$AW$2561,3,FALSE),0) -> 0 | F20: =IFERROR(VLOOKUP($A20,Filtro_!$A$5:$AW$2561,4,FALSE),0) -> 0 | G20: =IFERROR(VLOOKUP($A20,Filtro_!$A$5:$AW$2561,5,FALSE),0) -> 0 | H20: =IFERROR(VLOOKUP($A20,Filtro_!$A$5:$AW$2561,6,FALSE),0) -> 2 | I20: =IFERROR(VLOOKUP($A20,Filtro_!$A$5:$AW$2561,7,FALSE),0) -> 8 | J20: =IFERROR(VLOOKUP($A20,Filtro_!$A$5:$AW$2561,8,FALSE),0) -> 10 | K20: =IFERROR(VLOOKUP($A20,Filtro_!$A$5:$AW$2561,9,FALSE),0) -> 7 | L20: =IFERROR(VLOOKUP($A20,Filtro_!$A$5:$AW$2561,10,FALSE),0) -> 6 | M20: =IFERROR(VLOOKUP($A20,Filtro_!$A$5:$AW$2561,11,FALSE),0) -> 5 | N20: =IFERROR(VLOOKUP($A20,Filtro_!$A$5:$AW$2561,12,FALSE),0) -> 0 | O20: =IFERROR(VLOOKUP($A20,Filtro_!$A$5:$AW$2561,13,FALSE),0) -> 0 | P20: =IFERROR(VLOOKUP($A20,Filtro_!$A$5:$AW$2561,14,FALSE),0) -> 0 | Q20: =IFERROR(VLOOKUP($A20,Filtro_!$A$5:$AW$2561,15,FALSE),0) -> 0 | R20: =IFERROR(VLOOKUP($A20,Filtro_!$A$5:$AW$2561,16,FALSE),0) -> 0 | S20: =IFERROR(VLOOKUP($A20,Filtro_!$A$5:$AW$2561,17,FALSE),0) -> 0 | T20: =IFERROR(VLOOKUP($A20,Filtro_!$A$5:$AW$2561,18,FALSE),0) -> 0 | U20: =IFERROR(VLOOKUP($A20,Filtro_!$A$5:$AW$2561,19,FALSE),0) -> 0 | V20: =IFERROR(VLOOKUP($A20,Filtro_!$A$5:$AW$2561,20,FALSE),0) -> 0 | W20: =IFERROR(VLOOKUP($A20,Filtro_!$A$5:$AW$2561,21,FALSE),0) -> 35 | X20: =IFERROR(VLOOKUP($A20,Filtro_!$A$5:$AW$2561,22,FALSE),0) -> 1 | Y20: =IFERROR(VLOOKUP($A20,Filtro_!$A$5:$AW$2561,23,FALSE),0) -> 19 | Z20: =IFERROR(VLOOKUP($A20,Filtro_!$A$5:$AW$2561,24,FALSE),0) -> 0 | AA20: =IFERROR(VLOOKUP($A20,Filtro_!$A$5:$AW$2561,25,FALSE),0) -> 0 | AB20: =IFERROR(VLOOKUP($A20,Filtro_!$A$5:$AW$2561,26,FALSE),0) -> 0 | AC20: =IFERROR(VLOOKUP($A20,Filtro_!$A$5:$AW$2561,27,FALSE),0) -> 1 | AD20: =IFERROR(VLOOKUP($A20,Filtro_!$A$5:$AW$2561,28,FALSE),0) -> 4 | CE20: =IF(AND(D20<>0,#REF!=""),"* No olvide registrar ingresos a control de salud de los respectivos RN, en REM A05-sección E. ","") ->  | DB20: 0 | DC20: 0 | DD20: 0 | DF20: 0 | DG20: 0 | DH20: 0 | DI20: 0 | DJ20: 0 | DK20: 0 | DL20: 0 | DM20: 0 | DN20: 0 | DO20: 0 | DP20: 0 | DQ20: 0
A21: 01110107 | C21: MATRONA/ÓN | D21: 2332 | E21: =IFERROR(VLOOKUP($A21,Filtro_!$A$5:$AW$2561,3,FALSE),0) -> 0 | F21: =IFERROR(VLOOKUP($A21,Filtro_!$A$5:$AW$2561,4,FALSE),0) -> 0 | G21: =IFERROR(VLOOKUP($A21,Filtro_!$A$5:$AW$2561,5,FALSE),0) -> 5 | H21: =IFERROR(VLOOKUP($A21,Filtro_!$A$5:$AW$2561,6,FALSE),0) -> 116 | I21: =IFERROR(VLOOKUP($A21,Filtro_!$A$5:$AW$2561,7,FALSE),0) -> 461 | J21: =IFERROR(VLOOKUP($A21,Filtro_!$A$5:$AW$2561,8,FALSE),0) -> 695 | K21: =IFERROR(VLOOKUP($A21,Filtro_!$A$5:$AW$2561,9,FALSE),0) -> 625 | L21: =IFERROR(VLOOKUP($A21,Filtro_!$A$5:$AW$2561,10,FALSE),0) -> 326 | M21: =IFERROR(VLOOKUP($A21,Filtro_!$A$5:$AW$2561,11,FALSE),0) -> 98 | N21: =IFERROR(VLOOKUP($A21,Filtro_!$A$5:$AW$2561,12,FALSE),0) -> 5 | O21: =IFERROR(VLOOKUP($A21,Filtro_!$A$5:$AW$2561,13,FALSE),0) -> 0 | P21: =IFERROR(VLOOKUP($A21,Filtro_!$A$5:$AW$2561,14,FALSE),0) -> 1 | Q21: =IFERROR(VLOOKUP($A21,Filtro_!$A$5:$AW$2561,15,FALSE),0) -> 0 | R21: =IFERROR(VLOOKUP($A21,Filtro_!$A$5:$AW$2561,16,FALSE),0) -> 0 | S21: =IFERROR(VLOOKUP($A21,Filtro_!$A$5:$AW$2561,17,FALSE),0) -> 0 | T21: =IFERROR(VLOOKUP($A21,Filtro_!$A$5:$AW$2561,18,FALSE),0) -> 0 | U21: =IFERROR(VLOOKUP($A21,Filtro_!$A$5:$AW$2561,19,FALSE),0) -> 0 | V21: =IFERROR(VLOOKUP($A21,Filtro_!$A$5:$AW$2561,20,FALSE),0) -> 0 | W21: =IFERROR(VLOOKUP($A21,Filtro_!$A$5:$AW$2561,21,FALSE),0) -> 2294 | X21: =IFERROR(VLOOKUP($A21,Filtro_!$A$5:$AW$2561,22,FALSE),0) -> 418 | Y21: =IFERROR(VLOOKUP($A21,Filtro_!$A$5:$AW$2561,23,FALSE),0) -> 1068 | Z21: =IFERROR(VLOOKUP($A21,Filtro_!$A$5:$AW$2561,24,FALSE),0) -> 0 | AA21: =IFERROR(VLOOKUP($A21,Filtro_!$A$5:$AW$2561,25,FALSE),0) -> 2 | AB21: =IFERROR(VLOOKUP($A21,Filtro_!$A$5:$AW$2561,26,FALSE),0) -> 1 | AC21: =IFERROR(VLOOKUP($A21,Filtro_!$A$5:$AW$2561,27,FALSE),0) -> 20 | AD21: =IFERROR(VLOOKUP($A21,Filtro_!$A$5:$AW$2561,28,FALSE),0) -> 149 | CE21: =IF(AND(D21<>0,#REF!=""),"* No olvide registrar ingresos a control de salud de los respectivos RN, en REM A05-sección E. ","") ->  | DB21: 0 | DC21: 0 | DD21: 0 | DF21: 0 | DG21: 0 | DH21: 0 | DI21: 0 | DJ21: 0 | DK21: 0 | DL21: 0 | DM21: 0 | DN21: 0 | DO21: 0 | DP21: 0 | DQ21: 0
A22: 01080030 | B22: PUÉRPERA CON RECIÉN NACIDO ENTRE 11 y 28 DÍAS | C22: MÉDICO/A | D22: 5 | E22: =IFERROR(VLOOKUP($A22,Filtro_!$A$5:$AW$2561,3,FALSE),0) -> 0 | F22: =IFERROR(VLOOKUP($A22,Filtro_!$A$5:$AW$2561,4,FALSE),0) -> 0 | G22: =IFERROR(VLOOKUP($A22,Filtro_!$A$5:$AW$2561,5,FALSE),0) -> 0 | H22: =IFERROR(VLOOKUP($A22,Filtro_!$A$5:$AW$2561,6,FALSE),0) -> 0 | I22: =IFERROR(VLOOKUP($A22,Filtro_!$A$5:$AW$2561,7,FALSE),0) -> 1 | J22: =IFERROR(VLOOKUP($A22,Filtro_!$A$5:$AW$2561,8,FALSE),0) -> 2 | K22: =IFERROR(VLOOKUP($A22,Filtro_!$A$5:$AW$2561,9,FALSE),0) -> 2 | L22: =IFERROR(VLOOKUP($A22,Filtro_!$A$5:$AW$2561,10,FALSE),0) -> 0 | M22: =IFERROR(VLOOKUP($A22,Filtro_!$A$5:$AW$2561,11,FALSE),0) -> 0 | N22: =IFERROR(VLOOKUP($A22,Filtro_!$A$5:$AW$2561,12,FALSE),0) -> 0 | O22: =IFERROR(VLOOKUP($A22,Filtro_!$A$5:$AW$2561,13,FALSE),0) -> 0 | P22: =IFERROR(VLOOKUP($A22,Filtro_!$A$5:$AW$2561,14,FALSE),0) -> 0 | Q22: =IFERROR(VLOOKUP($A22,Filtro_!$A$5:$AW$2561,15,FALSE),0) -> 0 | R22: =IFERROR(VLOOKUP($A22,Filtro_!$A$5:$AW$2561,16,FALSE),0) -> 0 | S22: =IFERROR(VLOOKUP($A22,Filtro_!$A$5:$AW$2561,17,FALSE),0) -> 0 | T22: =IFERROR(VLOOKUP($A22,Filtro_!$A$5:$AW$2561,18,FALSE),0) -> 0 | U22: =IFERROR(VLOOKUP($A22,Filtro_!$A$5:$AW$2561,19,FALSE),0) -> 0 | V22: =IFERROR(VLOOKUP($A22,Filtro_!$A$5:$AW$2561,20,FALSE),0) -> 0 | W22: =IFERROR(VLOOKUP($A22,Filtro_!$A$5:$AW$2561,21,FALSE),0) -> 10 | X22: =IFERROR(VLOOKUP($A22,Filtro_!$A$5:$AW$2561,22,FALSE),0) -> 1 | Y22: =IFERROR(VLOOKUP($A22,Filtro_!$A$5:$AW$2561,23,FALSE),0) -> 8 | Z22: =IFERROR(VLOOKUP($A22,Filtro_!$A$5:$AW$2561,24,FALSE),0) -> 0 | AA22: =IFERROR(VLOOKUP($A22,Filtro_!$A$5:$AW$2561,25,FALSE),0) -> 0 | AB22: =IFERROR(VLOOKUP($A22,Filtro_!$A$5:$AW$2561,26,FALSE),0) -> 0 | AC22: =IFERROR(VLOOKUP($A22,Filtro_!$A$5:$AW$2561,27,FALSE),0) -> 0 | AD22: =IFERROR(VLOOKUP($A22,Filtro_!$A$5:$AW$2561,28,FALSE),0) -> 3 | CE22: =IF(AND(D22<>0,#REF!=""),"* No olvide registrar ingresos a control de salud de los respectivos RN, en REM A05-sección E. ","") ->  | DB22: 0 | DC22: 0 | DD22: 0 | DF22: 0 | DG22: 0 | DH22: 0 | DI22: 0 | DJ22: 0 | DK22: 0 | DL22: 0 | DM22: 0 | DN22: 0 | DO22: 0 | DP22: 0 | DQ22: 0
A23: 01080040 | C23: MATRONA/ÓN | D23: 1191 | E23: =IFERROR(VLOOKUP($A23,Filtro_!$A$5:$AW$2561,3,FALSE),0) -> 0 | F23: =IFERROR(VLOOKUP($A23,Filtro_!$A$5:$AW$2561,4,FALSE),0) -> 0 | G23: =IFERROR(VLOOKUP($A23,Filtro_!$A$5:$AW$2561,5,FALSE),0) -> 1 | H23: =IFERROR(VLOOKUP($A23,Filtro_!$A$5:$AW$2561,6,FALSE),0) -> 75 | I23: =IFERROR(VLOOKUP($A23,Filtro_!$A$5:$AW$2561,7,FALSE),0) -> 233 | J23: =IFERROR(VLOOKUP($A23,Filtro_!$A$5:$AW$2561,8,FALSE),0) -> 341 | K23: =IFERROR(VLOOKUP($A23,Filtro_!$A$5:$AW$2561,9,FALSE),0) -> 310 | L23: =IFERROR(VLOOKUP($A23,Filtro_!$A$5:$AW$2561,10,FALSE),0) -> 172 | M23: =IFERROR(VLOOKUP($A23,Filtro_!$A$5:$AW$2561,11,FALSE),0) -> 57 | N23: =IFERROR(VLOOKUP($A23,Filtro_!$A$5:$AW$2561,12,FALSE),0) -> 1 | O23: =IFERROR(VLOOKUP($A23,Filtro_!$A$5:$AW$2561,13,FALSE),0) -> 0 | P23: =IFERROR(VLOOKUP($A23,Filtro_!$A$5:$AW$2561,14,FALSE),0) -> 1 | Q23: =IFERROR(VLOOKUP($A23,Filtro_!$A$5:$AW$2561,15,FALSE),0) -> 0 | R23: =IFERROR(VLOOKUP($A23,Filtro_!$A$5:$AW$2561,16,FALSE),0) -> 0 | S23: =IFERROR(VLOOKUP($A23,Filtro_!$A$5:$AW$2561,17,FALSE),0) -> 0 | T23: =IFERROR(VLOOKUP($A23,Filtro_!$A$5:$AW$2561,18,FALSE),0) -> 0 | U23: =IFERROR(VLOOKUP($A23,Filtro_!$A$5:$AW$2561,19,FALSE),0) -> 0 | V23: =IFERROR(VLOOKUP($A23,Filtro_!$A$5:$AW$2561,20,FALSE),0) -> 0 | W23: =IFERROR(VLOOKUP($A23,Filtro_!$A$5:$AW$2561,21,FALSE),0) -> 1157 | X23: =IFERROR(VLOOKUP($A23,Filtro_!$A$5:$AW$2561,22,FALSE),0) -> 176 | Y23: =IFERROR(VLOOKUP($A23,Filtro_!$A$5:$AW$2561,23,FALSE),0) -> 389 | Z23: =IFERROR(VLOOKUP($A23,Filtro_!$A$5:$AW$2561,24,FALSE),0) -> 0 | AA23: =IFERROR(VLOOKUP($A23,Filtro_!$A$5:$AW$2561,25,FALSE),0) -> 2 | AB23: =IFERROR(VLOOKUP($A23,Filtro_!$A$5:$AW$2561,26,FALSE),0) -> 0 | AC23: =IFERROR(VLOOKUP($A23,Filtro_!$A$5:$AW$2561,27,FALSE),0) -> 9 | AD23: =IFERROR(VLOOKUP($A23,Filtro_!$A$5:$AW$2561,28,FALSE),0) -> 56 | CE23: =IF(AND(D23<>0,#REF!=""),"* No olvide registrar ingresos a control de salud de los respectivos RN, en REM A05-sección E. ","") ->  | DB23: 0 | DC23: 0 | DD23: 0 | DF23: 0 | DG23: 0 | DH23: 0 | DI23: 0 | DJ23: 0 | DK23: 0 | DL23: 0 | DM23: 0 | DN23: 0 | DO23: 0 | DP23: 0 | DQ23: 0
A24: 01501090 | B24: RECIÉN NACIDO HASTA 10 DÍAS DE VIDA | C24: MÉDICO | D24: =SUM(E24) -> 0 | E24: =IFERROR(VLOOKUP($A24,Filtro_!$A$5:$AW$2561,3,FALSE),0) -> 0 | F24: =IFERROR(VLOOKUP($A24,Filtro_!$A$5:$AW$2561,4,FALSE),0) -> 0 | G24: =IFERROR(VLOOKUP($A24,Filtro_!$A$5:$AW$2561,5,FALSE),0) -> 0 | H24: =IFERROR(VLOOKUP($A24,Filtro_!$A$5:$AW$2561,6,FALSE),0) -> 0 | I24: =IFERROR(VLOOKUP($A24,Filtro_!$A$5:$AW$2561,7,FALSE),0) -> 0 | J24: =IFERROR(VLOOKUP($A24,Filtro_!$A$5:$AW$2561,8,FALSE),0) -> 0 | K24: =IFERROR(VLOOKUP($A24,Filtro_!$A$5:$AW$2561,9,FALSE),0) -> 0 | L24: =IFERROR(VLOOKUP($A24,Filtro_!$A$5:$AW$2561,10,FALSE),0) -> 0 | M24: =IFERROR(VLOOKUP($A24,Filtro_!$A$5:$AW$2561,11,FALSE),0) -> 0 | N24: =IFERROR(VLOOKUP($A24,Filtro_!$A$5:$AW$2561,12,FALSE),0) -> 0 | O24: =IFERROR(VLOOKUP($A24,Filtro_!$A$5:$AW$2561,13,FALSE),0) -> 0 | P24: =IFERROR(VLOOKUP($A24,Filtro_!$A$5:$AW$2561,14,FALSE),0) -> 0 | Q24: =IFERROR(VLOOKUP($A24,Filtro_!$A$5:$AW$2561,15,FALSE),0) -> 0 | R24: =IFERROR(VLOOKUP($A24,Filtro_!$A$5:$AW$2561,16,FALSE),0) -> 0 | S24: =IFERROR(VLOOKUP($A24,Filtro_!$A$5:$AW$2561,17,FALSE),0) -> 0 | T24: =IFERROR(VLOOKUP($A24,Filtro_!$A$5:$AW$2561,18,FALSE),0) -> 0 | U24: =IFERROR(VLOOKUP($A24,Filtro_!$A$5:$AW$2561,19,FALSE),0) -> 0 | V24: =IFERROR(VLOOKUP($A24,Filtro_!$A$5:$AW$2561,20,FALSE),0) -> 0 | W24: =IFERROR(VLOOKUP($A24,Filtro_!$A$5:$AW$2561,21,FALSE),0) -> 0 | X24: =IFERROR(VLOOKUP($A24,Filtro_!$A$5:$AW$2561,22,FALSE),0) -> 0 | Y24: =IFERROR(VLOOKUP($A24,Filtro_!$A$5:$AW$2561,23,FALSE),0) -> 0 | Z24: =IFERROR(VLOOKUP($A24,Filtro_!$A$5:$AW$2561,24,FALSE),0) -> 0 | AA24: =IFERROR(VLOOKUP($A24,Filtro_!$A$5:$AW$2561,25,FALSE),0) -> 0 | AB24: =IFERROR(VLOOKUP($A24,Filtro_!$A$5:$AW$2561,26,FALSE),0) -> 0 | AC24: =IFERROR(VLOOKUP($A24,Filtro_!$A$5:$AW$2561,27,FALSE),0) -> 0 | AD24: =IFERROR(VLOOKUP($A24,Filtro_!$A$5:$AW$2561,28,FALSE),0) -> 0 | DB24: 0 | DF24: 0 | DG24: 0 | DH24: 0 | DI24: 0 | DJ24: 0 | DK24: 0 | DL24: 0 | DM24: 0 | DN24: 0 | DO24: 0 | DP24: 0 | DQ24: 0
A25: 01502000 | C25: MATRONA /ÓN | D25: =SUM(E25) -> 845 | E25: =IFERROR(VLOOKUP($A25,Filtro_!$A$5:$AW$2561,3,FALSE),0) -> 845 | F25: =IFERROR(VLOOKUP($A25,Filtro_!$A$5:$AW$2561,4,FALSE),0) -> 0 | G25: =IFERROR(VLOOKUP($A25,Filtro_!$A$5:$AW$2561,5,FALSE),0) -> 0 | H25: =IFERROR(VLOOKUP($A25,Filtro_!$A$5:$AW$2561,6,FALSE),0) -> 0 | I25: =IFERROR(VLOOKUP($A25,Filtro_!$A$5:$AW$2561,7,FALSE),0) -> 0 | J25: =IFERROR(VLOOKUP($A25,Filtro_!$A$5:$AW$2561,8,FALSE),0) -> 0 | K25: =IFERROR(VLOOKUP($A25,Filtro_!$A$5:$AW$2561,9,FALSE),0) -> 0 | L25: =IFERROR(VLOOKUP($A25,Filtro_!$A$5:$AW$2561,10,FALSE),0) -> 0 | M25: =IFERROR(VLOOKUP($A25,Filtro_!$A$5:$AW$2561,11,FALSE),0) -> 0 | N25: =IFERROR(VLOOKUP($A25,Filtro_!$A$5:$AW$2561,12,FALSE),0) -> 0 | O25: =IFERROR(VLOOKUP($A25,Filtro_!$A$5:$AW$2561,13,FALSE),0) -> 0 | P25: =IFERROR(VLOOKUP($A25,Filtro_!$A$5:$AW$2561,14,FALSE),0) -> 0 | Q25: =IFERROR(VLOOKUP($A25,Filtro_!$A$5:$AW$2561,15,FALSE),0) -> 0 | R25: =IFERROR(VLOOKUP($A25,Filtro_!$A$5:$AW$2561,16,FALSE),0) -> 0 | S25: =IFERROR(VLOOKUP($A25,Filtro_!$A$5:$AW$2561,17,FALSE),0) -> 0 | T25: =IFERROR(VLOOKUP($A25,Filtro_!$A$5:$AW$2561,18,FALSE),0) -> 0 | U25: =IFERROR(VLOOKUP($A25,Filtro_!$A$5:$AW$2561,19,FALSE),0) -> 0 | V25: =IFERROR(VLOOKUP($A25,Filtro_!$A$5:$AW$2561,20,FALSE),0) -> 374 | W25: =IFERROR(VLOOKUP($A25,Filtro_!$A$5:$AW$2561,21,FALSE),0) -> 449 | X25: =IFERROR(VLOOKUP($A25,Filtro_!$A$5:$AW$2561,22,FALSE),0) -> 202 | Y25: =IFERROR(VLOOKUP($A25,Filtro_!$A$5:$AW$2561,23,FALSE),0) -> 400 | Z25: =IFERROR(VLOOKUP($A25,Filtro_!$A$5:$AW$2561,24,FALSE),0) -> 0 | AA25: =IFERROR(VLOOKUP($A25,Filtro_!$A$5:$AW$2561,25,FALSE),0) -> 1 | AB25: =IFERROR(VLOOKUP($A25,Filtro_!$A$5:$AW$2561,26,FALSE),0) -> 0 | AC25: =IFERROR(VLOOKUP($A25,Filtro_!$A$5:$AW$2561,27,FALSE),0) -> 2 | AD25: =IFERROR(VLOOKUP($A25,Filtro_!$A$5:$AW$2561,28,FALSE),0) -> 8 | DB25: 0 | DF25: 0 | DG25: 0 | DH25: 0 | DI25: 0 | DJ25: 0 | DK25: 0 | DL25: 0 | DM25: 0 | DN25: 0 | DO25: 0 | DP25: 0 | DQ25: 0
A26: 01502010 | B26: RECIÉN NACIDO ENTRE 11 y 28 DÍAS | C26: MÉDICO | D26: =SUM(E26) -> 1 | E26: =IFERROR(VLOOKUP($A26,Filtro_!$A$5:$AW$2561,3,FALSE),0) -> 1 | F26: =IFERROR(VLOOKUP($A26,Filtro_!$A$5:$AW$2561,4,FALSE),0) -> 0 | G26: =IFERROR(VLOOKUP($A26,Filtro_!$A$5:$AW$2561,5,FALSE),0) -> 0 | H26: =IFERROR(VLOOKUP($A26,Filtro_!$A$5:$AW$2561,6,FALSE),0) -> 0 | I26: =IFERROR(VLOOKUP($A26,Filtro_!$A$5:$AW$2561,7,FALSE),0) -> 0 | J26: =IFERROR(VLOOKUP($A26,Filtro_!$A$5:$AW$2561,8,FALSE),0) -> 0 | K26: =IFERROR(VLOOKUP($A26,Filtro_!$A$5:$AW$2561,9,FALSE),0) -> 0 | L26: =IFERROR(VLOOKUP($A26,Filtro_!$A$5:$AW$2561,10,FALSE),0) -> 0 | M26: =IFERROR(VLOOKUP($A26,Filtro_!$A$5:$AW$2561,11,FALSE),0) -> 0 | N26: =IFERROR(VLOOKUP($A26,Filtro_!$A$5:$AW$2561,12,FALSE),0) -> 0 | O26: =IFERROR(VLOOKUP($A26,Filtro_!$A$5:$AW$2561,13,FALSE),0) -> 0 | P26: =IFERROR(VLOOKUP($A26,Filtro_!$A$5:$AW$2561,14,FALSE),0) -> 0 | Q26: =IFERROR(VLOOKUP($A26,Filtro_!$A$5:$AW$2561,15,FALSE),0) -> 0 | R26: =IFERROR(VLOOKUP($A26,Filtro_!$A$5:$AW$2561,16,FALSE),0) -> 0 | S26: =IFERROR(VLOOKUP($A26,Filtro_!$A$5:$AW$2561,17,FALSE),0) -> 0 | T26: =IFERROR(VLOOKUP($A26,Filtro_!$A$5:$AW$2561,18,FALSE),0) -> 0 | U26: =IFERROR(VLOOKUP($A26,Filtro_!$A$5:$AW$2561,19,FALSE),0) -> 0 | V26: =IFERROR(VLOOKUP($A26,Filtro_!$A$5:$AW$2561,20,FALSE),0) -> 0 | W26: =IFERROR(VLOOKUP($A26,Filtro_!$A$5:$AW$2561,21,FALSE),0) -> 1 | X26: =IFERROR(VLOOKUP($A26,Filtro_!$A$5:$AW$2561,22,FALSE),0) -> 0 | Y26: =IFERROR(VLOOKUP($A26,Filtro_!$A$5:$AW$2561,23,FALSE),0) -> 0 | Z26: =IFERROR(VLOOKUP($A26,Filtro_!$A$5:$AW$2561,24,FALSE),0) -> 0 | AA26: =IFERROR(VLOOKUP($A26,Filtro_!$A$5:$AW$2561,25,FALSE),0) -> 0 | AB26: =IFERROR(VLOOKUP($A26,Filtro_!$A$5:$AW$2561,26,FALSE),0) -> 0 | AC26: =IFERROR(VLOOKUP($A26,Filtro_!$A$5:$AW$2561,27,FALSE),0) -> 0 | AD26: =IFERROR(VLOOKUP($A26,Filtro_!$A$5:$AW$2561,28,FALSE),0) -> 0 | DB26: 0 | DF26: 0 | DG26: 0 | DH26: 0 | DI26: 0 | DJ26: 0 | DK26: 0 | DL26: 0 | DM26: 0 | DN26: 0 | DO26: 0 | DP26: 0 | DQ26: 0
A27: 01502020 | C27: MATRONA /ÓN | D27: =SUM(E27) -> 387 | E27: =IFERROR(VLOOKUP($A27,Filtro_!$A$5:$AW$2561,3,FALSE),0) -> 387 | F27: =IFERROR(VLOOKUP($A27,Filtro_!$A$5:$AW$2561,4,FALSE),0) -> 0 | G27: =IFERROR(VLOOKUP($A27,Filtro_!$A$5:$AW$2561,5,FALSE),0) -> 0 | H27: =IFERROR(VLOOKUP($A27,Filtro_!$A$5:$AW$2561,6,FALSE),0) -> 0 | I27: =IFERROR(VLOOKUP($A27,Filtro_!$A$5:$AW$2561,7,FALSE),0) -> 0 | J27: =IFERROR(VLOOKUP($A27,Filtro_!$A$5:$AW$2561,8,FALSE),0) -> 0 | K27: =IFERROR(VLOOKUP($A27,Filtro_!$A$5:$AW$2561,9,FALSE),0) -> 0 | L27: =IFERROR(VLOOKUP($A27,Filtro_!$A$5:$AW$2561,10,FALSE),0) -> 0 | M27: =IFERROR(VLOOKUP($A27,Filtro_!$A$5:$AW$2561,11,FALSE),0) -> 0 | N27: =IFERROR(VLOOKUP($A27,Filtro_!$A$5:$AW$2561,12,FALSE),0) -> 0 | O27: =IFERROR(VLOOKUP($A27,Filtro_!$A$5:$AW$2561,13,FALSE),0) -> 0 | P27: =IFERROR(VLOOKUP($A27,Filtro_!$A$5:$AW$2561,14,FALSE),0) -> 0 | Q27: =IFERROR(VLOOKUP($A27,Filtro_!$A$5:$AW$2561,15,FALSE),0) -> 0 | R27: =IFERROR(VLOOKUP($A27,Filtro_!$A$5:$AW$2561,16,FALSE),0) -> 0 | S27: =IFERROR(VLOOKUP($A27,Filtro_!$A$5:$AW$2561,17,FALSE),0) -> 0 | T27: =IFERROR(VLOOKUP($A27,Filtro_!$A$5:$AW$2561,18,FALSE),0) -> 0 | U27: =IFERROR(VLOOKUP($A27,Filtro_!$A$5:$AW$2561,19,FALSE),0) -> 0 | V27: =IFERROR(VLOOKUP($A27,Filtro_!$A$5:$AW$2561,20,FALSE),0) -> 176 | W27: =IFERROR(VLOOKUP($A27,Filtro_!$A$5:$AW$2561,21,FALSE),0) -> 204 | X27: =IFERROR(VLOOKUP($A27,Filtro_!$A$5:$AW$2561,22,FALSE),0) -> 62 | Y27: =IFERROR(VLOOKUP($A27,Filtro_!$A$5:$AW$2561,23,FALSE),0) -> 108 | Z27: =IFERROR(VLOOKUP($A27,Filtro_!$A$5:$AW$2561,24,FALSE),0) -> 1 | AA27: =IFERROR(VLOOKUP($A27,Filtro_!$A$5:$AW$2561,25,FALSE),0) -> 3 | AB27: =IFERROR(VLOOKUP($A27,Filtro_!$A$5:$AW$2561,26,FALSE),0) -> 1 | AC27: =IFERROR(VLOOKUP($A27,Filtro_!$A$5:$AW$2561,27,FALSE),0) -> 1 | AD27: =IFERROR(VLOOKUP($A27,Filtro_!$A$5:$AW$2561,28,FALSE),0) -> 7 | DB27: 0 | DF27: 0 | DG27: 0 | DH27: 0 | DI27: 0 | DJ27: 0 | DK27: 0 | DL27: 0 | DM27: 0 | DN27: 0 | DO27: 0 | DP27: 0 | DQ27: 0
A28: 01010601 | B28: GINECOLÓGICO | C28: MÉDICO/A | D28: =SUM(G28:U28) -> 969 | E28: =IFERROR(VLOOKUP($A28,Filtro_!$A$5:$AW$2561,3,FALSE),0) -> 0 | F28: =IFERROR(VLOOKUP($A28,Filtro_!$A$5:$AW$2561,4,FALSE),0) -> 0 | G28: =IFERROR(VLOOKUP($A28,Filtro_!$A$5:$AW$2561,5,FALSE),0) -> 32 | H28: =IFERROR(VLOOKUP($A28,Filtro_!$A$5:$AW$2561,6,FALSE),0) -> 61 | I28: =IFERROR(VLOOKUP($A28,Filtro_!$A$5:$AW$2561,7,FALSE),0) -> 55 | J28: =IFERROR(VLOOKUP($A28,Filtro_!$A$5:$AW$2561,8,FALSE),0) -> 71 | K28: =IFERROR(VLOOKUP($A28,Filtro_!$A$5:$AW$2561,9,FALSE),0) -> 122 | L28: =IFERROR(VLOOKUP($A28,Filtro_!$A$5:$AW$2561,10,FALSE),0) -> 121 | M28: =IFERROR(VLOOKUP($A28,Filtro_!$A$5:$AW$2561,11,FALSE),0) -> 139 | N28: =IFERROR(VLOOKUP($A28,Filtro_!$A$5:$AW$2561,12,FALSE),0) -> 99 | O28: =IFERROR(VLOOKUP($A28,Filtro_!$A$5:$AW$2561,13,FALSE),0) -> 86 | P28: =IFERROR(VLOOKUP($A28,Filtro_!$A$5:$AW$2561,14,FALSE),0) -> 81 | Q28: =IFERROR(VLOOKUP($A28,Filtro_!$A$5:$AW$2561,15,FALSE),0) -> 29 | R28: =IFERROR(VLOOKUP($A28,Filtro_!$A$5:$AW$2561,16,FALSE),0) -> 31 | S28: =IFERROR(VLOOKUP($A28,Filtro_!$A$5:$AW$2561,17,FALSE),0) -> 23 | T28: =IFERROR(VLOOKUP($A28,Filtro_!$A$5:$AW$2561,18,FALSE),0) -> 14 | U28: =IFERROR(VLOOKUP($A28,Filtro_!$A$5:$AW$2561,19,FALSE),0) -> 5 | V28: =IFERROR(VLOOKUP($A28,Filtro_!$A$5:$AW$2561,20,FALSE),0) -> 0 | W28: =IFERROR(VLOOKUP($A28,Filtro_!$A$5:$AW$2561,21,FALSE),0) -> 1044 | X28: =IFERROR(VLOOKUP($A28,Filtro_!$A$5:$AW$2561,22,FALSE),0) -> 0 | Y28: =IFERROR(VLOOKUP($A28,Filtro_!$A$5:$AW$2561,23,FALSE),0) -> 0 | Z28: =IFERROR(VLOOKUP($A28,Filtro_!$A$5:$AW$2561,24,FALSE),0) -> 0 | AA28: =IFERROR(VLOOKUP($A28,Filtro_!$A$5:$AW$2561,25,FALSE),0) -> 0 | AB28: =IFERROR(VLOOKUP($A28,Filtro_!$A$5:$AW$2561,26,FALSE),0) -> 0 | AC28: =IFERROR(VLOOKUP($A28,Filtro_!$A$5:$AW$2561,27,FALSE),0) -> 0 | AD28: =IFERROR(VLOOKUP($A28,Filtro_!$A$5:$AW$2561,28,FALSE),0) -> 35 | DB28: 0 | DF28: 0 | DG28: 0 | DH28: 0 | DI28: 0 | DJ28: 0 | DK28: 0 | DL28: 0 | DM28: 0 | DN28: 0 | DO28: 0 | DP28: 0 | DQ28: 0
A29: 01010603 | C29: MATRONA/ÓN | D29: =SUM(G29:U29) -> 37288 | E29: =IFERROR(VLOOKUP($A29,Filtro_!$A$5:$AW$2561,3,FALSE),0) -> 0 | F29: =IFERROR(VLOOKUP($A29,Filtro_!$A$5:$AW$2561,4,FALSE),0) -> 0 | G29: =IFERROR(VLOOKUP($A29,Filtro_!$A$5:$AW$2561,5,FALSE),0) -> 230 | H29: =IFERROR(VLOOKUP($A29,Filtro_!$A$5:$AW$2561,6,FALSE),0) -> 508 | I29: =IFERROR(VLOOKUP($A29,Filtro_!$A$5:$AW$2561,7,FALSE),0) -> 1661 | J29: =IFERROR(VLOOKUP($A29,Filtro_!$A$5:$AW$2561,8,FALSE),0) -> 3075 | K29: =IFERROR(VLOOKUP($A29,Filtro_!$A$5:$AW$2561,9,FALSE),0) -> 3787 | L29: =IFERROR(VLOOKUP($A29,Filtro_!$A$5:$AW$2561,10,FALSE),0) -> 3923 | M29: =IFERROR(VLOOKUP($A29,Filtro_!$A$5:$AW$2561,11,FALSE),0) -> 4409 | N29: =IFERROR(VLOOKUP($A29,Filtro_!$A$5:$AW$2561,12,FALSE),0) -> 4499 | O29: =IFERROR(VLOOKUP($A29,Filtro_!$A$5:$AW$2561,13,FALSE),0) -> 4594 | P29: =IFERROR(VLOOKUP($A29,Filtro_!$A$5:$AW$2561,14,FALSE),0) -> 4230 | Q29: =IFERROR(VLOOKUP($A29,Filtro_!$A$5:$AW$2561,15,FALSE),0) -> 3453 | R29: =IFERROR(VLOOKUP($A29,Filtro_!$A$5:$AW$2561,16,FALSE),0) -> 1762 | S29: =IFERROR(VLOOKUP($A29,Filtro_!$A$5:$AW$2561,17,FALSE),0) -> 735 | T29: =IFERROR(VLOOKUP($A29,Filtro_!$A$5:$AW$2561,18,FALSE),0) -> 295 | U29: =IFERROR(VLOOKUP($A29,Filtro_!$A$5:$AW$2561,19,FALSE),0) -> 127 | V29: =IFERROR(VLOOKUP($A29,Filtro_!$A$5:$AW$2561,20,FALSE),0) -> 0 | W29: =IFERROR(VLOOKUP($A29,Filtro_!$A$5:$AW$2561,21,FALSE),0) -> 36899 | X29: =IFERROR(VLOOKUP($A29,Filtro_!$A$5:$AW$2561,22,FALSE),0) -> 0 | Y29: =IFERROR(VLOOKUP($A29,Filtro_!$A$5:$AW$2561,23,FALSE),0) -> 0 | Z29: =IFERROR(VLOOKUP($A29,Filtro_!$A$5:$AW$2561,24,FALSE),0) -> 32 | AA29: =IFERROR(VLOOKUP($A29,Filtro_!$A$5:$AW$2561,25,FALSE),0) -> 7 | AB29: =IFERROR(VLOOKUP($A29,Filtro_!$A$5:$AW$2561,26,FALSE),0) -> 1 | AC29: =IFERROR(VLOOKUP($A29,Filtro_!$A$5:$AW$2561,27,FALSE),0) -> 150 | AD29: =IFERROR(VLOOKUP($A29,Filtro_!$A$5:$AW$2561,28,FALSE),0) -> 1199 | DB29: 0 | DF29: 0 | DG29: 0 | DH29: 0 | DI29: 0 | DJ29: 0 | DK29: 0 | DL29: 0 | DM29: 0 | DN29: 0 | DO29: 0 | DP29: 0 | DQ29: 0
A30: 01010901 | B30: CLIMATERIO | C30: MÉDICO/A | D30: =SUM(N30:Q30) -> 315 | E30: =IFERROR(VLOOKUP($A30,Filtro_!$A$5:$AW$2561,3,FALSE),0) -> 0 | F30: =IFERROR(VLOOKUP($A30,Filtro_!$A$5:$AW$2561,4,FALSE),0) -> 0 | G30: =IFERROR(VLOOKUP($A30,Filtro_!$A$5:$AW$2561,5,FALSE),0) -> 0 | H30: =IFERROR(VLOOKUP($A30,Filtro_!$A$5:$AW$2561,6,FALSE),0) -> 0 | I30: =IFERROR(VLOOKUP($A30,Filtro_!$A$5:$AW$2561,7,FALSE),0) -> 0 | J30: =IFERROR(VLOOKUP($A30,Filtro_!$A$5:$AW$2561,8,FALSE),0) -> 0 | K30: =IFERROR(VLOOKUP($A30,Filtro_!$A$5:$AW$2561,9,FALSE),0) -> 0 | L30: =IFERROR(VLOOKUP($A30,Filtro_!$A$5:$AW$2561,10,FALSE),0) -> 0 | M30: =IFERROR(VLOOKUP($A30,Filtro_!$A$5:$AW$2561,11,FALSE),0) -> 0 | N30: =IFERROR(VLOOKUP($A30,Filtro_!$A$5:$AW$2561,12,FALSE),0) -> 103 | O30: =IFERROR(VLOOKUP($A30,Filtro_!$A$5:$AW$2561,13,FALSE),0) -> 99 | P30: =IFERROR(VLOOKUP($A30,Filtro_!$A$5:$AW$2561,14,FALSE),0) -> 80 | Q30: =IFERROR(VLOOKUP($A30,Filtro_!$A$5:$AW$2561,15,FALSE),0) -> 33 | R30: =IFERROR(VLOOKUP($A30,Filtro_!$A$5:$AW$2561,16,FALSE),0) -> 0 | S30: =IFERROR(VLOOKUP($A30,Filtro_!$A$5:$AW$2561,17,FALSE),0) -> 0 | T30: =IFERROR(VLOOKUP($A30,Filtro_!$A$5:$AW$2561,18,FALSE),0) -> 0 | U30: =IFERROR(VLOOKUP($A30,Filtro_!$A$5:$AW$2561,19,FALSE),0) -> 0 | V30: =IFERROR(VLOOKUP($A30,Filtro_!$A$5:$AW$2561,20,FALSE),0) -> 0 | W30: =IFERROR(VLOOKUP($A30,Filtro_!$A$5:$AW$2561,21,FALSE),0) -> 315 | X30: =IFERROR(VLOOKUP($A30,Filtro_!$A$5:$AW$2561,22,FALSE),0) -> 0 | Y30: =IFERROR(VLOOKUP($A30,Filtro_!$A$5:$AW$2561,23,FALSE),0) -> 0 | Z30: =IFERROR(VLOOKUP($A30,Filtro_!$A$5:$AW$2561,24,FALSE),0) -> 0 | AA30: =IFERROR(VLOOKUP($A30,Filtro_!$A$5:$AW$2561,25,FALSE),0) -> 0 | AB30: =IFERROR(VLOOKUP($A30,Filtro_!$A$5:$AW$2561,26,FALSE),0) -> 0 | AC30: =IFERROR(VLOOKUP($A30,Filtro_!$A$5:$AW$2561,27,FALSE),0) -> 4 | AD30: =IFERROR(VLOOKUP($A30,Filtro_!$A$5:$AW$2561,28,FALSE),0) -> 9 | DB30: 0 | DF30: 0 | DG30: 0 | DH30: 0 | DI30: 0 | DJ30: 0 | DK30: 0 | DL30: 0 | DM30: 0 | DN30: 0 | DO30: 0 | DP30: 0 | DQ30: 0
A31: 01010903 | C31: MATRONA/ÓN | D31: =SUM(N31:Q31) -> 2896 | E31: =IFERROR(VLOOKUP($A31,Filtro_!$A$5:$AW$2561,3,FALSE),0) -> 0 | F31: =IFERROR(VLOOKUP($A31,Filtro_!$A$5:$AW$2561,4,FALSE),0) -> 0 | G31: =IFERROR(VLOOKUP($A31,Filtro_!$A$5:$AW$2561,5,FALSE),0) -> 0 | H31: =IFERROR(VLOOKUP($A31,Filtro_!$A$5:$AW$2561,6,FALSE),0) -> 0 | I31: =IFERROR(VLOOKUP($A31,Filtro_!$A$5:$AW$2561,7,FALSE),0) -> 0 | J31: =IFERROR(VLOOKUP($A31,Filtro_!$A$5:$AW$2561,8,FALSE),0) -> 0 | K31: =IFERROR(VLOOKUP($A31,Filtro_!$A$5:$AW$2561,9,FALSE),0) -> 0 | L31: =IFERROR(VLOOKUP($A31,Filtro_!$A$5:$AW$2561,10,FALSE),0) -> 0 | M31: =IFERROR(VLOOKUP($A31,Filtro_!$A$5:$AW$2561,11,FALSE),0) -> 0 | N31: =IFERROR(VLOOKUP($A31,Filtro_!$A$5:$AW$2561,12,FALSE),0) -> 762 | O31: =IFERROR(VLOOKUP($A31,Filtro_!$A$5:$AW$2561,13,FALSE),0) -> 1116 | P31: =IFERROR(VLOOKUP($A31,Filtro_!$A$5:$AW$2561,14,FALSE),0) -> 657 | Q31: =IFERROR(VLOOKUP($A31,Filtro_!$A$5:$AW$2561,15,FALSE),0) -> 361 | R31: =IFERROR(VLOOKUP($A31,Filtro_!$A$5:$AW$2561,16,FALSE),0) -> 0 | S31: =IFERROR(VLOOKUP($A31,Filtro_!$A$5:$AW$2561,17,FALSE),0) -> 0 | T31: =IFERROR(VLOOKUP($A31,Filtro_!$A$5:$AW$2561,18,FALSE),0) -> 0 | U31: =IFERROR(VLOOKUP($A31,Filtro_!$A$5:$AW$2561,19,FALSE),0) -> 0 | V31: =IFERROR(VLOOKUP($A31,Filtro_!$A$5:$AW$2561,20,FALSE),0) -> 0 | W31: =IFERROR(VLOOKUP($A31,Filtro_!$A$5:$AW$2561,21,FALSE),0) -> 2913 | X31: =IFERROR(VLOOKUP($A31,Filtro_!$A$5:$AW$2561,22,FALSE),0) -> 0 | Y31: =IFERROR(VLOOKUP($A31,Filtro_!$A$5:$AW$2561,23,FALSE),0) -> 0 | Z31: =IFERROR(VLOOKUP($A31,Filtro_!$A$5:$AW$2561,24,FALSE),0) -> 0 | AA31: =IFERROR(VLOOKUP($A31,Filtro_!$A$5:$AW$2561,25,FALSE),0) -> 0 | AB31: =IFERROR(VLOOKUP($A31,Filtro_!$A$5:$AW$2561,26,FALSE),0) -> 0 | AC31: =IFERROR(VLOOKUP($A31,Filtro_!$A$5:$AW$2561,27,FALSE),0) -> 40 | AD31: =IFERROR(VLOOKUP($A31,Filtro_!$A$5:$AW$2561,28,FALSE),0) -> 108 | DB31: 0 | DF31: 0 | DG31: 0 | DH31: 0 | DI31: 0 | DJ31: 0 | DK31: 0 | DL31: 0 | DM31: 0 | DN31: 0 | DO31: 0 | DP31: 0 | DQ31: 0
A32: 01010401 | B32: REGULACIÓN DE FECUNDIDAD | C32: MÉDICO/A | D32: =SUM(G32:U32) -> 1 | E32: =IFERROR(VLOOKUP($A32,Filtro_!$A$5:$AW$2561,3,FALSE),0) -> 0 | F32: =IFERROR(VLOOKUP($A32,Filtro_!$A$5:$AW$2561,4,FALSE),0) -> 0 | G32: =IFERROR(VLOOKUP($A32,Filtro_!$A$5:$AW$2561,5,FALSE),0) -> 1 | H32: =IFERROR(VLOOKUP($A32,Filtro_!$A$5:$AW$2561,6,FALSE),0) -> 0 | I32: =IFERROR(VLOOKUP($A32,Filtro_!$A$5:$AW$2561,7,FALSE),0) -> 0 | J32: =IFERROR(VLOOKUP($A32,Filtro_!$A$5:$AW$2561,8,FALSE),0) -> 0 | K32: =IFERROR(VLOOKUP($A32,Filtro_!$A$5:$AW$2561,9,FALSE),0) -> 0 | L32: =IFERROR(VLOOKUP($A32,Filtro_!$A$5:$AW$2561,10,FALSE),0) -> 0 | M32: =IFERROR(VLOOKUP($A32,Filtro_!$A$5:$AW$2561,11,FALSE),0) -> 0 | N32: =IFERROR(VLOOKUP($A32,Filtro_!$A$5:$AW$2561,12,FALSE),0) -> 0 | O32: =IFERROR(VLOOKUP($A32,Filtro_!$A$5:$AW$2561,13,FALSE),0) -> 0 | P32: =IFERROR(VLOOKUP($A32,Filtro_!$A$5:$AW$2561,14,FALSE),0) -> 0 | Q32: =IFERROR(VLOOKUP($A32,Filtro_!$A$5:$AW$2561,15,FALSE),0) -> 0 | R32: =IFERROR(VLOOKUP($A32,Filtro_!$A$5:$AW$2561,16,FALSE),0) -> 0 | S32: =IFERROR(VLOOKUP($A32,Filtro_!$A$5:$AW$2561,17,FALSE),0) -> 0 | T32: =IFERROR(VLOOKUP($A32,Filtro_!$A$5:$AW$2561,18,FALSE),0) -> 0 | U32: =IFERROR(VLOOKUP($A32,Filtro_!$A$5:$AW$2561,19,FALSE),0) -> 0 | V32: =IFERROR(VLOOKUP($A32,Filtro_!$A$5:$AW$2561,20,FALSE),0) -> 0 | W32: =IFERROR(VLOOKUP($A32,Filtro_!$A$5:$AW$2561,21,FALSE),0) -> 8 | X32: =IFERROR(VLOOKUP($A32,Filtro_!$A$5:$AW$2561,22,FALSE),0) -> 0 | Y32: =IFERROR(VLOOKUP($A32,Filtro_!$A$5:$AW$2561,23,FALSE),0) -> 0 | Z32: =IFERROR(VLOOKUP($A32,Filtro_!$A$5:$AW$2561,24,FALSE),0) -> 8 | AA32: =IFERROR(VLOOKUP($A32,Filtro_!$A$5:$AW$2561,25,FALSE),0) -> 8 | AB32: =IFERROR(VLOOKUP($A32,Filtro_!$A$5:$AW$2561,26,FALSE),0) -> 8 | AC32: =IFERROR(VLOOKUP($A32,Filtro_!$A$5:$AW$2561,27,FALSE),0) -> 4 | AD32: =IFERROR(VLOOKUP($A32,Filtro_!$A$5:$AW$2561,28,FALSE),0) -> 8 | DB32: 0 | DF32: 0 | DG32: 0 | DH32: 0 | DI32: 0 | DJ32: 0 | DK32: 0 | DL32: 0 | DM32: 0 | DN32: 0 | DO32: 0 | DP32: 0 | DQ32: 0
A33: 01010403 | C33: MATRONA/ÓN | D33: =SUM(G33:U33) -> 53659 | E33: =IFERROR(VLOOKUP($A33,Filtro_!$A$5:$AW$2561,3,FALSE),0) -> 0 | F33: =IFERROR(VLOOKUP($A33,Filtro_!$A$5:$AW$2561,4,FALSE),0) -> 0 | G33: =IFERROR(VLOOKUP($A33,Filtro_!$A$5:$AW$2561,5,FALSE),0) -> 1222 | H33: =IFERROR(VLOOKUP($A33,Filtro_!$A$5:$AW$2561,6,FALSE),0) -> 7712 | I33: =IFERROR(VLOOKUP($A33,Filtro_!$A$5:$AW$2561,7,FALSE),0) -> 9206 | J33: =IFERROR(VLOOKUP($A33,Filtro_!$A$5:$AW$2561,8,FALSE),0) -> 9541 | K33: =IFERROR(VLOOKUP($A33,Filtro_!$A$5:$AW$2561,9,FALSE),0) -> 8722 | L33: =IFERROR(VLOOKUP($A33,Filtro_!$A$5:$AW$2561,10,FALSE),0) -> 6702 | M33: =IFERROR(VLOOKUP($A33,Filtro_!$A$5:$AW$2561,11,FALSE),0) -> 5283 | N33: =IFERROR(VLOOKUP($A33,Filtro_!$A$5:$AW$2561,12,FALSE),0) -> 3791 | O33: =IFERROR(VLOOKUP($A33,Filtro_!$A$5:$AW$2561,13,FALSE),0) -> 1285 | P33: =IFERROR(VLOOKUP($A33,Filtro_!$A$5:$AW$2561,14,FALSE),0) -> 129 | Q33: =IFERROR(VLOOKUP($A33,Filtro_!$A$5:$AW$2561,15,FALSE),0) -> 44 | R33: =IFERROR(VLOOKUP($A33,Filtro_!$A$5:$AW$2561,16,FALSE),0) -> 15 | S33: =IFERROR(VLOOKUP($A33,Filtro_!$A$5:$AW$2561,17,FALSE),0) -> 4 | T33: =IFERROR(VLOOKUP($A33,Filtro_!$A$5:$AW$2561,18,FALSE),0) -> 1 | U33: =IFERROR(VLOOKUP($A33,Filtro_!$A$5:$AW$2561,19,FALSE),0) -> 2 | V33: =IFERROR(VLOOKUP($A33,Filtro_!$A$5:$AW$2561,20,FALSE),0) -> 328 | W33: =IFERROR(VLOOKUP($A33,Filtro_!$A$5:$AW$2561,21,FALSE),0) -> 52998 | X33: =IFERROR(VLOOKUP($A33,Filtro_!$A$5:$AW$2561,22,FALSE),0) -> 0 | Y33: =IFERROR(VLOOKUP($A33,Filtro_!$A$5:$AW$2561,23,FALSE),0) -> 0 | Z33: =IFERROR(VLOOKUP($A33,Filtro_!$A$5:$AW$2561,24,FALSE),0) -> 1090 | AA33: =IFERROR(VLOOKUP($A33,Filtro_!$A$5:$AW$2561,25,FALSE),0) -> 41 | AB33: =IFERROR(VLOOKUP($A33,Filtro_!$A$5:$AW$2561,26,FALSE),0) -> 33 | AC33: =IFERROR(VLOOKUP($A33,Filtro_!$A$5:$AW$2561,27,FALSE),0) -> 360 | AD33: =IFERROR(VLOOKUP($A33,Filtro_!$A$5:$AW$2561,28,FALSE),0) -> 1073 | DB33: 0 | DF33: 0 | DG33: 0 | DH33: 0 | DI33: 0 | DJ33: 0 | DK33: 0 | DL33: 0 | DM33: 0 | DN33: 0 | DO33: 0 | DP33: 0 | DQ33: 0
B34: SECCIÓN B: CONTROLES DE SALUD SEGÚN CICLO VITAL
B35: TIPO DE CONTROL | C35: PROFESIONAL | D35: TOTAL | G35: POR EDAD | AJ35: Control con Presencia del Padre | AL35: Niños, Niñas, Adolescentes y Jóvenes SENAME | AM35: Niños, Niñas, Adolescentes y Jóvenes Mejor Niñez | AN35: Pueblos Originarios | AO35: Migrantes
D36: Ambos Sexos | E36: Hombres | F36: Mujeres | G36: Menor de 1 mes | H36: 1 mes | I36: 2 meses | J36: 3 meses | K36: 4 meses | L36: 5 meses | M36: 6 meses | N36: 7 - 11 meses | O36: 12 a 17 meses | P36: 18 - 23 meses | Q36: 24 - 47 meses | R36: 48 - 59 meses | S36: 60 - 71 meses | T36: 6 - 9 | U36: 10 - 14 | V36: 15 - 19 | W36: 20 - 24 | X36: 25 - 29 | Y36: 30 - 34 | Z36: 35 - 39 | AA36: 40 - 44 | AB36: 45 - 49 | AC36: 50 - 54 | AD36: 55 - 59 | AE36: 60 - 64 | AF36: 65 - 69 | AG36: 70 - 74 | AH36: 75 - 79 | AI36: 80 y mas | AJ36: menor 1 año | AK36: 1 año a 3 años 11 meses 29 días
A37: 02010101 | B37: DE SALUD | C37: MÉDICO/A | D37: =SUM(G37:AI37) -> 12226 | E37: =IFERROR(VLOOKUP($A37,Filtro_!$A$5:$AW$2561,3,FALSE),0) -> 5628 | F37: =IFERROR(VLOOKUP($A37,Filtro_!$A$5:$AW$2561,4,FALSE),0) -> 6590 | G37: =IFERROR(VLOOKUP($A37,Filtro_!$A$5:$AW$2561,5,FALSE),0) -> 156 | H37: =IFERROR(VLOOKUP($A37,Filtro_!$A$5:$AW$2561,6,FALSE),0) -> 3293 | I37: =IFERROR(VLOOKUP($A37,Filtro_!$A$5:$AW$2561,7,FALSE),0) -> 284 | J37: =IFERROR(VLOOKUP($A37,Filtro_!$A$5:$AW$2561,8,FALSE),0) -> 3243 | K37: =IFERROR(VLOOKUP($A37,Filtro_!$A$5:$AW$2561,9,FALSE),0) -> 273 | L37: =IFERROR(VLOOKUP($A37,Filtro_!$A$5:$AW$2561,10,FALSE),0) -> 58 | M37: =IFERROR(VLOOKUP($A37,Filtro_!$A$5:$AW$2561,11,FALSE),0) -> 35 | N37: =IFERROR(VLOOKUP($A37,Filtro_!$A$5:$AW$2561,12,FALSE),0) -> 34 | O37: =IFERROR(VLOOKUP($A37,Filtro_!$A$5:$AW$2561,13,FALSE),0) -> 40 | P37: =IFERROR(VLOOKUP($A37,Filtro_!$A$5:$AW$2561,14,FALSE),0) -> 39 | Q37: =IFERROR(VLOOKUP($A37,Filtro_!$A$5:$AW$2561,15,FALSE),0) -> 122 | R37: =IFERROR(VLOOKUP($A37,Filtro_!$A$5:$AW$2561,16,FALSE),0) -> 113 | S37: =IFERROR(VLOOKUP($A37,Filtro_!$A$5:$AW$2561,17,FALSE),0) -> 155 | T37: =IFERROR(VLOOKUP($A37,Filtro_!$A$5:$AW$2561,18,FALSE),0) -> 856 | U37: =IFERROR(VLOOKUP($A37,Filtro_!$A$5:$AW$2561,19,FALSE),0) -> 273 | V37: =IFERROR(VLOOKUP($A37,Filtro_!$A$5:$AW$2561,20,FALSE),0) -> 164 | W37: =IFERROR(VLOOKUP($A37,Filtro_!$A$5:$AW$2561,21,FALSE),0) -> 37 | X37: =IFERROR(VLOOKUP($A37,Filtro_!$A$5:$AW$2561,22,FALSE),0) -> 51 | Y37: =IFERROR(VLOOKUP($A37,Filtro_!$A$5:$AW$2561,23,FALSE),0) -> 73 | Z37: =IFERROR(VLOOKUP($A37,Filtro_!$A$5:$AW$2561,24,FALSE),0) -> 85 | AA37: =IFERROR(VLOOKUP($A37,Filtro_!$A$5:$AW$2561,25,FALSE),0) -> 118 | AB37: =IFERROR(VLOOKUP($A37,Filtro_!$A$5:$AW$2561,26,FALSE),0) -> 165 | AC37: =IFERROR(VLOOKUP($A37,Filtro_!$A$5:$AW$2561,27,FALSE),0) -> 176 | AD37: =IFERROR(VLOOKUP($A37,Filtro_!$A$5:$AW$2561,28,FALSE),0) -> 338 | AE37: =IFERROR(VLOOKUP($A37,Filtro_!$A$5:$AW$2561,29,FALSE),0) -> 354 | AF37: =IFERROR(VLOOKUP($A37,Filtro_!$A$5:$AW$2561,30,FALSE),0) -> 513 | AG37: =IFERROR(VLOOKUP($A37,Filtro_!$A$5:$AW$2561,31,FALSE),0) -> 384 | AH37: =IFERROR(VLOOKUP($A37,Filtro_!$A$5:$AW$2561,32,FALSE),0) -> 312 | AI37: =IFERROR(VLOOKUP($A37,Filtro_!$A$5:$AW$2561,33,FALSE),0) -> 482 | AJ37: =IFERROR(VLOOKUP($A37,Filtro_!$A$5:$AW$2561,34,FALSE),0) -> 1593 | AK37: =IFERROR(VLOOKUP($A37,Filtro_!$A$5:$AW$2561,35,FALSE),0) -> 11 | AL37: =IFERROR(VLOOKUP($A37,Filtro_!$A$5:$AW$2561,36,FALSE),0) -> 43 | AM37: =IFERROR(VLOOKUP($A37,Filtro_!$A$5:$AW$2561,37,FALSE),0) -> 31 | AN37: =IFERROR(VLOOKUP($A37,Filtro_!$A$5:$AW$2561,38,FALSE),0) -> 53 | AO37: =IFERROR(VLOOKUP($A37,Filtro_!$A$5:$AW$2561,39,FALSE),0) -> 524 | CB37: * El número de controles con presencia de Padre para menor entre 1 año y 3 años NO DEBE ser Mayor a la suma de controles del rango correspondiente. | CC37: * El número de controles según sexo NO DEBE ser diferente al Total. | DA37: 0 | DB37: 1 | DC37: 1 | DD37: 0
A38: 02010201 | C38: ENFERMERA/O | D38: =SUM(G38:AI38) -> 70052 | E38: =IFERROR(VLOOKUP($A38,Filtro_!$A$5:$AW$2561,3,FALSE),0) -> 32604 | F38: =IFERROR(VLOOKUP($A38,Filtro_!$A$5:$AW$2561,4,FALSE),0) -> 36783 | G38: =IFERROR(VLOOKUP($A38,Filtro_!$A$5:$AW$2561,5,FALSE),0) -> 35 | H38: =IFERROR(VLOOKUP($A38,Filtro_!$A$5:$AW$2561,6,FALSE),0) -> 57 | I38: =IFERROR(VLOOKUP($A38,Filtro_!$A$5:$AW$2561,7,FALSE),0) -> 3710 | J38: =IFERROR(VLOOKUP($A38,Filtro_!$A$5:$AW$2561,8,FALSE),0) -> 196 | K38: =IFERROR(VLOOKUP($A38,Filtro_!$A$5:$AW$2561,9,FALSE),0) -> 3630 | L38: =IFERROR(VLOOKUP($A38,Filtro_!$A$5:$AW$2561,10,FALSE),0) -> 273 | M38: =IFERROR(VLOOKUP($A38,Filtro_!$A$5:$AW$2561,11,FALSE),0) -> 3599 | N38: =IFERROR(VLOOKUP($A38,Filtro_!$A$5:$AW$2561,12,FALSE),0) -> 4288 | O38: =IFERROR(VLOOKUP($A38,Filtro_!$A$5:$AW$2561,13,FALSE),0) -> 4497 | P38: =IFERROR(VLOOKUP($A38,Filtro_!$A$5:$AW$2561,14,FALSE),0) -> 3782 | Q38: =IFERROR(VLOOKUP($A38,Filtro_!$A$5:$AW$2561,15,FALSE),0) -> 8612 | R38: =IFERROR(VLOOKUP($A38,Filtro_!$A$5:$AW$2561,16,FALSE),0) -> 4016 | S38: =IFERROR(VLOOKUP($A38,Filtro_!$A$5:$AW$2561,17,FALSE),0) -> 3779 | T38: =IFERROR(VLOOKUP($A38,Filtro_!$A$5:$AW$2561,18,FALSE),0) -> 9145 | U38: =IFERROR(VLOOKUP($A38,Filtro_!$A$5:$AW$2561,19,FALSE),0) -> 3935 | V38: =IFERROR(VLOOKUP($A38,Filtro_!$A$5:$AW$2561,20,FALSE),0) -> 1141 | W38: =IFERROR(VLOOKUP($A38,Filtro_!$A$5:$AW$2561,21,FALSE),0) -> 451 | X38: =IFERROR(VLOOKUP($A38,Filtro_!$A$5:$AW$2561,22,FALSE),0) -> 557 | Y38: =IFERROR(VLOOKUP($A38,Filtro_!$A$5:$AW$2561,23,FALSE),0) -> 611 | Z38: =IFERROR(VLOOKUP($A38,Filtro_!$A$5:$AW$2561,24,FALSE),0) -> 619 | AA38: =IFERROR(VLOOKUP($A38,Filtro_!$A$5:$AW$2561,25,FALSE),0) -> 622 | AB38: =IFERROR(VLOOKUP($A38,Filtro_!$A$5:$AW$2561,26,FALSE),0) -> 722 | AC38: =IFERROR(VLOOKUP($A38,Filtro_!$A$5:$AW$2561,27,FALSE),0) -> 775 | AD38: =IFERROR(VLOOKUP($A38,Filtro_!$A$5:$AW$2561,28,FALSE),0) -> 894 | AE38: =IFERROR(VLOOKUP($A38,Filtro_!$A$5:$AW$2561,29,FALSE),0) -> 973 | AF38: =IFERROR(VLOOKUP($A38,Filtro_!$A$5:$AW$2561,30,FALSE),0) -> 2333 | AG38: =IFERROR(VLOOKUP($A38,Filtro_!$A$5:$AW$2561,31,FALSE),0) -> 2275 | AH38: =IFERROR(VLOOKUP($A38,Filtro_!$A$5:$AW$2561,32,FALSE),0) -> 1955 | AI38: =IFERROR(VLOOKUP($A38,Filtro_!$A$5:$AW$2561,33,FALSE),0) -> 2570 | AJ38: =IFERROR(VLOOKUP($A38,Filtro_!$A$5:$AW$2561,34,FALSE),0) -> 3385 | AK38: =IFERROR(VLOOKUP($A38,Filtro_!$A$5:$AW$2561,35,FALSE),0) -> 2842 | AL38: =IFERROR(VLOOKUP($A38,Filtro_!$A$5:$AW$2561,36,FALSE),0) -> 298 | AM38: =IFERROR(VLOOKUP($A38,Filtro_!$A$5:$AW$2561,37,FALSE),0) -> 164 | AN38: =IFERROR(VLOOKUP($A38,Filtro_!$A$5:$AW$2561,38,FALSE),0) -> 752 | AO38: =IFERROR(VLOOKUP($A38,Filtro_!$A$5:$AW$2561,39,FALSE),0) -> 1125 | CC38: * El número de controles según sexo NO DEBE ser diferente al Total. | DA38: 0 | DB38: 0 | DC38: 1 | DD38: 0
A39: 02010103 | C39: MATRONA/ÓN | D39: =SUM(G39+U39+V39+W39+X39+Y39+Z39+AA39+AB39+AC39+AD39+AE39+AF39+AG39+AH39+AI39) -> 14519 | E39: =IFERROR(VLOOKUP($A39,Filtro_!$A$5:$AW$2561,3,FALSE),0) -> 2828 | F39: =IFERROR(VLOOKUP($A39,Filtro_!$A$5:$AW$2561,4,FALSE),0) -> 11566 | G39: =IFERROR(VLOOKUP($A39,Filtro_!$A$5:$AW$2561,5,FALSE),0) -> 2752 | H39: =IFERROR(VLOOKUP($A39,Filtro_!$A$5:$AW$2561,6,FALSE),0) -> 0 | I39: =IFERROR(VLOOKUP($A39,Filtro_!$A$5:$AW$2561,7,FALSE),0) -> 0 | J39: =IFERROR(VLOOKUP($A39,Filtro_!$A$5:$AW$2561,8,FALSE),0) -> 0 | K39: =IFERROR(VLOOKUP($A39,Filtro_!$A$5:$AW$2561,9,FALSE),0) -> 0 | L39: =IFERROR(VLOOKUP($A39,Filtro_!$A$5:$AW$2561,10,FALSE),0) -> 0 | M39: =IFERROR(VLOOKUP($A39,Filtro_!$A$5:$AW$2561,11,FALSE),0) -> 0 | N39: =IFERROR(VLOOKUP($A39,Filtro_!$A$5:$AW$2561,12,FALSE),0) -> 0 | O39: =IFERROR(VLOOKUP($A39,Filtro_!$A$5:$AW$2561,13,FALSE),0) -> 0 | P39: =IFERROR(VLOOKUP($A39,Filtro_!$A$5:$AW$2561,14,FALSE),0) -> 0 | Q39: =IFERROR(VLOOKUP($A39,Filtro_!$A$5:$AW$2561,15,FALSE),0) -> 0 | R39: =IFERROR(VLOOKUP($A39,Filtro_!$A$5:$AW$2561,16,FALSE),0) -> 0 | S39: =IFERROR(VLOOKUP($A39,Filtro_!$A$5:$AW$2561,17,FALSE),0) -> 0 | T39: =IFERROR(VLOOKUP($A39,Filtro_!$A$5:$AW$2561,18,FALSE),0) -> 0 | U39: =IFERROR(VLOOKUP($A39,Filtro_!$A$5:$AW$2561,19,FALSE),0) -> 2136 | V39: =IFERROR(VLOOKUP($A39,Filtro_!$A$5:$AW$2561,20,FALSE),0) -> 1992 | W39: =IFERROR(VLOOKUP($A39,Filtro_!$A$5:$AW$2561,21,FALSE),0) -> 972 | X39: =IFERROR(VLOOKUP($A39,Filtro_!$A$5:$AW$2561,22,FALSE),0) -> 1218 | Y39: =IFERROR(VLOOKUP($A39,Filtro_!$A$5:$AW$2561,23,FALSE),0) -> 1191 | Z39: =IFERROR(VLOOKUP($A39,Filtro_!$A$5:$AW$2561,24,FALSE),0) -> 1022 | AA39: =IFERROR(VLOOKUP($A39,Filtro_!$A$5:$AW$2561,25,FALSE),0) -> 876 | AB39: =IFERROR(VLOOKUP($A39,Filtro_!$A$5:$AW$2561,26,FALSE),0) -> 788 | AC39: =IFERROR(VLOOKUP($A39,Filtro_!$A$5:$AW$2561,27,FALSE),0) -> 614 | AD39: =IFERROR(VLOOKUP($A39,Filtro_!$A$5:$AW$2561,28,FALSE),0) -> 444 | AE39: =IFERROR(VLOOKUP($A39,Filtro_!$A$5:$AW$2561,29,FALSE),0) -> 320 | AF39: =IFERROR(VLOOKUP($A39,Filtro_!$A$5:$AW$2561,30,FALSE),0) -> 139 | AG39: =IFERROR(VLOOKUP($A39,Filtro_!$A$5:$AW$2561,31,FALSE),0) -> 35 | AH39: =IFERROR(VLOOKUP($A39,Filtro_!$A$5:$AW$2561,32,FALSE),0) -> 12 | AI39: =IFERROR(VLOOKUP($A39,Filtro_!$A$5:$AW$2561,33,FALSE),0) -> 8 | AJ39: =IFERROR(VLOOKUP($A39,Filtro_!$A$5:$AW$2561,34,FALSE),0) -> 1210 | AK39: =IFERROR(VLOOKUP($A39,Filtro_!$A$5:$AW$2561,35,FALSE),0) -> 0 | AL39: =IFERROR(VLOOKUP($A39,Filtro_!$A$5:$AW$2561,36,FALSE),0) -> 12 | AM39: =IFERROR(VLOOKUP($A39,Filtro_!$A$5:$AW$2561,37,FALSE),0) -> 17 | AN39: =IFERROR(VLOOKUP($A39,Filtro_!$A$5:$AW$2561,38,FALSE),0) -> 90 | AO39: =IFERROR(VLOOKUP($A39,Filtro_!$A$5:$AW$2561,39,FALSE),0) -> 248 | CA39: * El número de controles con presencia de Padre para menor 1 año NO DEBE ser Mayor a la suma de controles del rango correspondiente. | CB39: * El número de controles con presencia de Padre para menor entre 1 año y 3 años NO DEBE ser Mayor a la suma de controles del rango correspondiente. | CC39: * El número de controles según sexo NO DEBE ser diferente al Total. | DA39: 1 | DB39: 1 | DC39: 1 | DD39: 0
A40: 02010105 | C40: TÉCNICO EN ENFERMERÍA | D40: =SUM(O40:T40) -> 27 | E40: =IFERROR(VLOOKUP($A40,Filtro_!$A$5:$AW$2561,3,FALSE),0) -> 16 | F40: =IFERROR(VLOOKUP($A40,Filtro_!$A$5:$AW$2561,4,FALSE),0) -> 10 | G40: =IFERROR(VLOOKUP($A40,Filtro_!$A$5:$AW$2561,5,FALSE),0) -> 0 | H40: =IFERROR(VLOOKUP($A40,Filtro_!$A$5:$AW$2561,6,FALSE),0) -> 0 | I40: =IFERROR(VLOOKUP($A40,Filtro_!$A$5:$AW$2561,7,FALSE),0) -> 0 | J40: =IFERROR(VLOOKUP($A40,Filtro_!$A$5:$AW$2561,8,FALSE),0) -> 0 | K40: =IFERROR(VLOOKUP($A40,Filtro_!$A$5:$AW$2561,9,FALSE),0) -> 0 | L40: =IFERROR(VLOOKUP($A40,Filtro_!$A$5:$AW$2561,10,FALSE),0) -> 0 | M40: =IFERROR(VLOOKUP($A40,Filtro_!$A$5:$AW$2561,11,FALSE),0) -> 0 | N40: =IFERROR(VLOOKUP($A40,Filtro_!$A$5:$AW$2561,12,FALSE),0) -> 0 | O40: =IFERROR(VLOOKUP($A40,Filtro_!$A$5:$AW$2561,13,FALSE),0) -> 1 | P40: =IFERROR(VLOOKUP($A40,Filtro_!$A$5:$AW$2561,14,FALSE),0) -> 1 | Q40: =IFERROR(VLOOKUP($A40,Filtro_!$A$5:$AW$2561,15,FALSE),0) -> 11 | R40: =IFERROR(VLOOKUP($A40,Filtro_!$A$5:$AW$2561,16,FALSE),0) -> 0 | S40: =IFERROR(VLOOKUP($A40,Filtro_!$A$5:$AW$2561,17,FALSE),0) -> 2 | T40: =IFERROR(VLOOKUP($A40,Filtro_!$A$5:$AW$2561,18,FALSE),0) -> 12 | U40: =IFERROR(VLOOKUP($A40,Filtro_!$A$5:$AW$2561,19,FALSE),0) -> 0 | V40: =IFERROR(VLOOKUP($A40,Filtro_!$A$5:$AW$2561,20,FALSE),0) -> 0 | W40: =IFERROR(VLOOKUP($A40,Filtro_!$A$5:$AW$2561,21,FALSE),0) -> 0 | X40: =IFERROR(VLOOKUP($A40,Filtro_!$A$5:$AW$2561,22,FALSE),0) -> 0 | Y40: =IFERROR(VLOOKUP($A40,Filtro_!$A$5:$AW$2561,23,FALSE),0) -> 0 | Z40: =IFERROR(VLOOKUP($A40,Filtro_!$A$5:$AW$2561,24,FALSE),0) -> 0 | AA40: =IFERROR(VLOOKUP($A40,Filtro_!$A$5:$AW$2561,25,FALSE),0) -> 0 | AB40: =IFERROR(VLOOKUP($A40,Filtro_!$A$5:$AW$2561,26,FALSE),0) -> 0 | AC40: =IFERROR(VLOOKUP($A40,Filtro_!$A$5:$AW$2561,27,FALSE),0) -> 0 | AD40: =IFERROR(VLOOKUP($A40,Filtro_!$A$5:$AW$2561,28,FALSE),0) -> 0 | AE40: =IFERROR(VLOOKUP($A40,Filtro_!$A$5:$AW$2561,29,FALSE),0) -> 0 | AF40: =IFERROR(VLOOKUP($A40,Filtro_!$A$5:$AW$2561,30,FALSE),0) -> 0 | AG40: =IFERROR(VLOOKUP($A40,Filtro_!$A$5:$AW$2561,31,FALSE),0) -> 0 | AH40: =IFERROR(VLOOKUP($A40,Filtro_!$A$5:$AW$2561,32,FALSE),0) -> 0 | AI40: =IFERROR(VLOOKUP($A40,Filtro_!$A$5:$AW$2561,33,FALSE),0) -> 0 | AJ40: =IFERROR(VLOOKUP($A40,Filtro_!$A$5:$AW$2561,34,FALSE),0) -> 0 | AK40: =IFERROR(VLOOKUP($A40,Filtro_!$A$5:$AW$2561,35,FALSE),0) -> 4 | AL40: =IFERROR(VLOOKUP($A40,Filtro_!$A$5:$AW$2561,36,FALSE),0) -> 2 | AM40: =IFERROR(VLOOKUP($A40,Filtro_!$A$5:$AW$2561,37,FALSE),0) -> 0 | AN40: =IFERROR(VLOOKUP($A40,Filtro_!$A$5:$AW$2561,38,FALSE),0) -> 1 | AO40: =IFERROR(VLOOKUP($A40,Filtro_!$A$5:$AW$2561,39,FALSE),0) -> 36 | CC40: * El número de controles según sexo NO DEBE ser diferente al Total. | CD40: * No olvide digitar el campo Niños, Niñas, Adolescentes y Jóvenes SENAME (Digite CEROS si no tiene). | CF40: * No olvide digitar el campo Niños, Niñas, Adolescentes y Jóvenes Mejor Niñez (Digite CEROS si no tiene). | CH40: * No olvide digitar el campo Pueblos Originarios (Digite CEROS si no tiene). | CJ40: * No olvide digitar el campo Migrantes (Digite CEROS si no tiene). | DC40: 1 | DD40: 0
B41: SECCIÓN C: CONTROLES SEGÚN PROBLEMA DE SALUD
B42: TIPO DE CONTROL | C42: PROFESIONAL | D42: TOTAL | G42: POR EDAD | AO42: Pueblos Originarios | AP42: Migrantes
G43: 0 - 4 años | I43: 5 - 9 años | K43: 10 - 14 años | M43: 15 a 19 años | O43: 20 - 24 años | Q43: 25 - 29 años | S43: 30 - 34 años | U43: 35 - 39 años | W43: 40 - 44 años | Y43: 45 - 49 años | AA43: 50 - 54 años | AC43: 55 - 59 años | AE43: 60 - 64 años | AG43: 65 - 69 años | AI43: 70 - 74 años | AK43: 75 - 79 años | AM43: 80 y más años
D44: Ambos Sexos | E44: Hombres | F44: Mujeres | G44: Hombres | H44: Mujeres | I44: Hombres | J44: Mujeres | K44: Hombres | L44: Mujeres | M44: Hombres | N44: Mujeres | O44: Hombres | P44: Mujeres | Q44: Hombres | R44: Mujeres | S44: Hombres | T44: Mujeres | U44: Hombres | V44: Mujeres | W44: Hombres | X44: Mujeres | Y44: Hombres | Z44: Mujeres | AA44: Hombres | AB44: Mujeres | AC44: Hombres | AD44: Mujeres | AE44: Hombres | AF44: Mujeres | AG44: Hombres | AH44: Mujeres | AI44: Hombres | AJ44: Mujeres | AK44: Hombres | AL44: Mujeres | AM44: Hombres | AN44: Mujeres
A45: 03010501 | B45: DE SALUD CARDIOVASCULAR | C45: MÉDICO/A | D45: =SUM(E45:F45) -> 95794 | E45: =SUM(K45+M45+O45+Q45+S45+U45+W45+Y45+AA45+AC45+AE45+AG45+AI45+AK45+AM45) -> 33227 | F45: 62567 | G45: =IFERROR(VLOOKUP($A45,Filtro_!$A$5:$AW$2561,5,FALSE),0) -> 0 | H45: =IFERROR(VLOOKUP($A45,Filtro_!$A$5:$AW$2561,6,FALSE),0) -> 0 | I45: =IFERROR(VLOOKUP($A45,Filtro_!$A$5:$AW$2561,7,FALSE),0) -> 0 | J45: =IFERROR(VLOOKUP($A45,Filtro_!$A$5:$AW$2561,8,FALSE),0) -> 0 | K45: =IFERROR(VLOOKUP($A45,Filtro_!$A$5:$AW$2561,9,FALSE),0) -> 0 | L45: =IFERROR(VLOOKUP($A45,Filtro_!$A$5:$AW$2561,10,FALSE),0) -> 0 | M45: =IFERROR(VLOOKUP($A45,Filtro_!$A$5:$AW$2561,11,FALSE),0) -> 64 | N45: =IFERROR(VLOOKUP($A45,Filtro_!$A$5:$AW$2561,12,FALSE),0) -> 102 | O45: =IFERROR(VLOOKUP($A45,Filtro_!$A$5:$AW$2561,13,FALSE),0) -> 99 | P45: =IFERROR(VLOOKUP($A45,Filtro_!$A$5:$AW$2561,14,FALSE),0) -> 236 | Q45: =IFERROR(VLOOKUP($A45,Filtro_!$A$5:$AW$2561,15,FALSE),0) -> 165 | R45: =IFERROR(VLOOKUP($A45,Filtro_!$A$5:$AW$2561,16,FALSE),0) -> 424 | S45: =IFERROR(VLOOKUP($A45,Filtro_!$A$5:$AW$2561,17,FALSE),0) -> 266 | T45: =IFERROR(VLOOKUP($A45,Filtro_!$A$5:$AW$2561,18,FALSE),0) -> 786 | U45: =IFERROR(VLOOKUP($A45,Filtro_!$A$5:$AW$2561,19,FALSE),0) -> 480 | V45: =IFERROR(VLOOKUP($A45,Filtro_!$A$5:$AW$2561,20,FALSE),0) -> 1345 | W45: =IFERROR(VLOOKUP($A45,Filtro_!$A$5:$AW$2561,21,FALSE),0) -> 798 | X45: =IFERROR(VLOOKUP($A45,Filtro_!$A$5:$AW$2561,22,FALSE),0) -> 2233 | Y45: =IFERROR(VLOOKUP($A45,Filtro_!$A$5:$AW$2561,23,FALSE),0) -> 1313 | Z45: =IFERROR(VLOOKUP($A45,Filtro_!$A$5:$AW$2561,24,FALSE),0) -> 3516 | AA45: =IFERROR(VLOOKUP($A45,Filtro_!$A$5:$AW$2561,25,FALSE),0) -> 2076 | AB45: =IFERROR(VLOOKUP($A45,Filtro_!$A$5:$AW$2561,26,FALSE),0) -> 5309 | AC45: =IFERROR(VLOOKUP($A45,Filtro_!$A$5:$AW$2561,27,FALSE),0) -> 3281 | AD45: =IFERROR(VLOOKUP($A45,Filtro_!$A$5:$AW$2561,28,FALSE),0) -> 7702 | AE45: =IFERROR(VLOOKUP($A45,Filtro_!$A$5:$AW$2561,29,FALSE),0) -> 4650 | AF45: =IFERROR(VLOOKUP($A45,Filtro_!$A$5:$AW$2561,30,FALSE),0) -> 8919 | AG45: =IFERROR(VLOOKUP($A45,Filtro_!$A$5:$AW$2561,31,FALSE),0) -> 5553 | AH45: =IFERROR(VLOOKUP($A45,Filtro_!$A$5:$AW$2561,32,FALSE),0) -> 9318 | AI45: =IFERROR(VLOOKUP($A45,Filtro_!$A$5:$AW$2561,33,FALSE),0) -> 5169 | AJ45: =IFERROR(VLOOKUP($A45,Filtro_!$A$5:$AW$2561,34,FALSE),0) -> 8098 | AK45: =IFERROR(VLOOKUP($A45,Filtro_!$A$5:$AW$2561,35,FALSE),0) -> 4434 | AL45: =IFERROR(VLOOKUP($A45,Filtro_!$A$5:$AW$2561,36,FALSE),0) -> 6756 | AM45: =IFERROR(VLOOKUP($A45,Filtro_!$A$5:$AW$2561,37,FALSE),0) -> 4879 | AN45: =IFERROR(VLOOKUP($A45,Filtro_!$A$5:$AW$2561,38,FALSE),0) -> 7823 | AO45: =IFERROR(VLOOKUP($A45,Filtro_!$A$5:$AW$2561,39,FALSE),0) -> 683 | AP45: =IFERROR(VLOOKUP($A45,Filtro_!$A$5:$AW$2561,40,FALSE),0) -> 580 | DB45: 0 | DC45: 0 | DD45: 0 | DE45: 0
A46: 03010502 | C46: ENFERMERA/O | D46: =SUM(E46:F46) -> 41648 | E46: 15056 | F46: 26592 | G46: =IFERROR(VLOOKUP($A46,Filtro_!$A$5:$AW$2561,5,FALSE),0) -> 0 | H46: =IFERROR(VLOOKUP($A46,Filtro_!$A$5:$AW$2561,6,FALSE),0) -> 0 | I46: =IFERROR(VLOOKUP($A46,Filtro_!$A$5:$AW$2561,7,FALSE),0) -> 0 | J46: =IFERROR(VLOOKUP($A46,Filtro_!$A$5:$AW$2561,8,FALSE),0) -> 0 | K46: =IFERROR(VLOOKUP($A46,Filtro_!$A$5:$AW$2561,9,FALSE),0) -> 0 | L46: =IFERROR(VLOOKUP($A46,Filtro_!$A$5:$AW$2561,10,FALSE),0) -> 0 | M46: =IFERROR(VLOOKUP($A46,Filtro_!$A$5:$AW$2561,11,FALSE),0) -> 25 | N46: =IFERROR(VLOOKUP($A46,Filtro_!$A$5:$AW$2561,12,FALSE),0) -> 28 | O46: =IFERROR(VLOOKUP($A46,Filtro_!$A$5:$AW$2561,13,FALSE),0) -> 44 | P46: =IFERROR(VLOOKUP($A46,Filtro_!$A$5:$AW$2561,14,FALSE),0) -> 78 | Q46: =IFERROR(VLOOKUP($A46,Filtro_!$A$5:$AW$2561,15,FALSE),0) -> 64 | R46: =IFERROR(VLOOKUP($A46,Filtro_!$A$5:$AW$2561,16,FALSE),0) -> 174 | S46: =IFERROR(VLOOKUP($A46,Filtro_!$A$5:$AW$2561,17,FALSE),0) -> 106 | T46: =IFERROR(VLOOKUP($A46,Filtro_!$A$5:$AW$2561,18,FALSE),0) -> 309 | U46: =IFERROR(VLOOKUP($A46,Filtro_!$A$5:$AW$2561,19,FALSE),0) -> 201 | V46: =IFERROR(VLOOKUP($A46,Filtro_!$A$5:$AW$2561,20,FALSE),0) -> 561 | W46: =IFERROR(VLOOKUP($A46,Filtro_!$A$5:$AW$2561,21,FALSE),0) -> 357 | X46: =IFERROR(VLOOKUP($A46,Filtro_!$A$5:$AW$2561,22,FALSE),0) -> 916 | Y46: =IFERROR(VLOOKUP($A46,Filtro_!$A$5:$AW$2561,23,FALSE),0) -> 564 | Z46: =IFERROR(VLOOKUP($A46,Filtro_!$A$5:$AW$2561,24,FALSE),0) -> 1420 | AA46: =IFERROR(VLOOKUP($A46,Filtro_!$A$5:$AW$2561,25,FALSE),0) -> 894 | AB46: =IFERROR(VLOOKUP($A46,Filtro_!$A$5:$AW$2561,26,FALSE),0) -> 2175 | AC46: =IFERROR(VLOOKUP($A46,Filtro_!$A$5:$AW$2561,27,FALSE),0) -> 1523 | AD46: =IFERROR(VLOOKUP($A46,Filtro_!$A$5:$AW$2561,28,FALSE),0) -> 3142 | AE46: =IFERROR(VLOOKUP($A46,Filtro_!$A$5:$AW$2561,29,FALSE),0) -> 1962 | AF46: =IFERROR(VLOOKUP($A46,Filtro_!$A$5:$AW$2561,30,FALSE),0) -> 3673 | AG46: =IFERROR(VLOOKUP($A46,Filtro_!$A$5:$AW$2561,31,FALSE),0) -> 2569 | AH46: =IFERROR(VLOOKUP($A46,Filtro_!$A$5:$AW$2561,32,FALSE),0) -> 4075 | AI46: =IFERROR(VLOOKUP($A46,Filtro_!$A$5:$AW$2561,33,FALSE),0) -> 2397 | AJ46: =IFERROR(VLOOKUP($A46,Filtro_!$A$5:$AW$2561,34,FALSE),0) -> 3517 | AK46: =IFERROR(VLOOKUP($A46,Filtro_!$A$5:$AW$2561,35,FALSE),0) -> 1977 | AL46: =IFERROR(VLOOKUP($A46,Filtro_!$A$5:$AW$2561,36,FALSE),0) -> 2835 | AM46: =IFERROR(VLOOKUP($A46,Filtro_!$A$5:$AW$2561,37,FALSE),0) -> 2373 | AN46: =IFERROR(VLOOKUP($A46,Filtro_!$A$5:$AW$2561,38,FALSE),0) -> 3689 | AO46: =IFERROR(VLOOKUP($A46,Filtro_!$A$5:$AW$2561,39,FALSE),0) -> 307 | AP46: =IFERROR(VLOOKUP($A46,Filtro_!$A$5:$AW$2561,40,FALSE),0) -> 262 | DB46: 0 | DC46: 0 | DD46: 0 | DE46: 0
A47: 03010504 | C47: NUTRICIONISTA | D47: 40099 | E47: 13222 | F47: 26877 | G47: =IFERROR(VLOOKUP($A47,Filtro_!$A$5:$AW$2561,5,FALSE),0) -> 0 | H47: =IFERROR(VLOOKUP($A47,Filtro_!$A$5:$AW$2561,6,FALSE),0) -> 0 | I47: =IFERROR(VLOOKUP($A47,Filtro_!$A$5:$AW$2561,7,FALSE),0) -> 0 | J47: =IFERROR(VLOOKUP($A47,Filtro_!$A$5:$AW$2561,8,FALSE),0) -> 0 | K47: =IFERROR(VLOOKUP($A47,Filtro_!$A$5:$AW$2561,9,FALSE),0) -> 0 | L47: =IFERROR(VLOOKUP($A47,Filtro_!$A$5:$AW$2561,10,FALSE),0) -> 0 | M47: =IFERROR(VLOOKUP($A47,Filtro_!$A$5:$AW$2561,11,FALSE),0) -> 31 | N47: =IFERROR(VLOOKUP($A47,Filtro_!$A$5:$AW$2561,12,FALSE),0) -> 36 | O47: =IFERROR(VLOOKUP($A47,Filtro_!$A$5:$AW$2561,13,FALSE),0) -> 51 | P47: =IFERROR(VLOOKUP($A47,Filtro_!$A$5:$AW$2561,14,FALSE),0) -> 109 | Q47: =IFERROR(VLOOKUP($A47,Filtro_!$A$5:$AW$2561,15,FALSE),0) -> 71 | R47: =IFERROR(VLOOKUP($A47,Filtro_!$A$5:$AW$2561,16,FALSE),0) -> 190 | S47: =IFERROR(VLOOKUP($A47,Filtro_!$A$5:$AW$2561,17,FALSE),0) -> 149 | T47: =IFERROR(VLOOKUP($A47,Filtro_!$A$5:$AW$2561,18,FALSE),0) -> 380 | U47: =IFERROR(VLOOKUP($A47,Filtro_!$A$5:$AW$2561,19,FALSE),0) -> 204 | V47: =IFERROR(VLOOKUP($A47,Filtro_!$A$5:$AW$2561,20,FALSE),0) -> 661 | W47: =IFERROR(VLOOKUP($A47,Filtro_!$A$5:$AW$2561,21,FALSE),0) -> 343 | X47: =IFERROR(VLOOKUP($A47,Filtro_!$A$5:$AW$2561,22,FALSE),0) -> 1087 | Y47: =IFERROR(VLOOKUP($A47,Filtro_!$A$5:$AW$2561,23,FALSE),0) -> 565 | Z47: =IFERROR(VLOOKUP($A47,Filtro_!$A$5:$AW$2561,24,FALSE),0) -> 1629 | AA47: =IFERROR(VLOOKUP($A47,Filtro_!$A$5:$AW$2561,25,FALSE),0) -> 847 | AB47: =IFERROR(VLOOKUP($A47,Filtro_!$A$5:$AW$2561,26,FALSE),0) -> 2382 | AC47: =IFERROR(VLOOKUP($A47,Filtro_!$A$5:$AW$2561,27,FALSE),0) -> 1284 | AD47: =IFERROR(VLOOKUP($A47,Filtro_!$A$5:$AW$2561,28,FALSE),0) -> 3452 | AE47: =IFERROR(VLOOKUP($A47,Filtro_!$A$5:$AW$2561,29,FALSE),0) -> 1823 | AF47: =IFERROR(VLOOKUP($A47,Filtro_!$A$5:$AW$2561,30,FALSE),0) -> 3892 | AG47: =IFERROR(VLOOKUP($A47,Filtro_!$A$5:$AW$2561,31,FALSE),0) -> 2182 | AH47: =IFERROR(VLOOKUP($A47,Filtro_!$A$5:$AW$2561,32,FALSE),0) -> 3976 | AI47: =IFERROR(VLOOKUP($A47,Filtro_!$A$5:$AW$2561,33,FALSE),0) -> 2115 | AJ47: =IFERROR(VLOOKUP($A47,Filtro_!$A$5:$AW$2561,34,FALSE),0) -> 3368 | AK47: =IFERROR(VLOOKUP($A47,Filtro_!$A$5:$AW$2561,35,FALSE),0) -> 1630 | AL47: =IFERROR(VLOOKUP($A47,Filtro_!$A$5:$AW$2561,36,FALSE),0) -> 2741 | AM47: =IFERROR(VLOOKUP($A47,Filtro_!$A$5:$AW$2561,37,FALSE),0) -> 1927 | AN47: =IFERROR(VLOOKUP($A47,Filtro_!$A$5:$AW$2561,38,FALSE),0) -> 2974 | AO47: =IFERROR(VLOOKUP($A47,Filtro_!$A$5:$AW$2561,39,FALSE),0) -> 703 | AP47: =IFERROR(VLOOKUP($A47,Filtro_!$A$5:$AW$2561,40,FALSE),0) -> 278 | DB47: 0 | DC47: 0 | DD47: 0 | DE47: 0
A48: 03010505 | C48: TÉCNICO EN ENFERMERÍA | D48: 491 | E48: 205 | F48: 286 | G48: =IFERROR(VLOOKUP($A48,Filtro_!$A$5:$AW$2561,5,FALSE),0) -> 0 | H48: =IFERROR(VLOOKUP($A48,Filtro_!$A$5:$AW$2561,6,FALSE),0) -> 0 | I48: =IFERROR(VLOOKUP($A48,Filtro_!$A$5:$AW$2561,7,FALSE),0) -> 0 | J48: =IFERROR(VLOOKUP($A48,Filtro_!$A$5:$AW$2561,8,FALSE),0) -> 0 | K48: =IFERROR(VLOOKUP($A48,Filtro_!$A$5:$AW$2561,9,FALSE),0) -> 0 | L48: =IFERROR(VLOOKUP($A48,Filtro_!$A$5:$AW$2561,10,FALSE),0) -> 0 | M48: =IFERROR(VLOOKUP($A48,Filtro_!$A$5:$AW$2561,11,FALSE),0) -> 0 | N48: =IFERROR(VLOOKUP($A48,Filtro_!$A$5:$AW$2561,12,FALSE),0) -> 0 | O48: =IFERROR(VLOOKUP($A48,Filtro_!$A$5:$AW$2561,13,FALSE),0) -> 0 | P48: =IFERROR(VLOOKUP($A48,Filtro_!$A$5:$AW$2561,14,FALSE),0) -> 1 | Q48: =IFERROR(VLOOKUP($A48,Filtro_!$A$5:$AW$2561,15,FALSE),0) -> 2 | R48: =IFERROR(VLOOKUP($A48,Filtro_!$A$5:$AW$2561,16,FALSE),0) -> 1 | S48: =IFERROR(VLOOKUP($A48,Filtro_!$A$5:$AW$2561,17,FALSE),0) -> 3 | T48: =IFERROR(VLOOKUP($A48,Filtro_!$A$5:$AW$2561,18,FALSE),0) -> 8 | U48: =IFERROR(VLOOKUP($A48,Filtro_!$A$5:$AW$2561,19,FALSE),0) -> 4 | V48: =IFERROR(VLOOKUP($A48,Filtro_!$A$5:$AW$2561,20,FALSE),0) -> 5 | W48: =IFERROR(VLOOKUP($A48,Filtro_!$A$5:$AW$2561,21,FALSE),0) -> 8 | X48: =IFERROR(VLOOKUP($A48,Filtro_!$A$5:$AW$2561,22,FALSE),0) -> 12 | Y48: =IFERROR(VLOOKUP($A48,Filtro_!$A$5:$AW$2561,23,FALSE),0) -> 20 | Z48: =IFERROR(VLOOKUP($A48,Filtro_!$A$5:$AW$2561,24,FALSE),0) -> 20 | AA48: =IFERROR(VLOOKUP($A48,Filtro_!$A$5:$AW$2561,25,FALSE),0) -> 9 | AB48: =IFERROR(VLOOKUP($A48,Filtro_!$A$5:$AW$2561,26,FALSE),0) -> 42 | AC48: =IFERROR(VLOOKUP($A48,Filtro_!$A$5:$AW$2561,27,FALSE),0) -> 30 | AD48: =IFERROR(VLOOKUP($A48,Filtro_!$A$5:$AW$2561,28,FALSE),0) -> 36 | AE48: =IFERROR(VLOOKUP($A48,Filtro_!$A$5:$AW$2561,29,FALSE),0) -> 30 | AF48: =IFERROR(VLOOKUP($A48,Filtro_!$A$5:$AW$2561,30,FALSE),0) -> 35 | AG48: =IFERROR(VLOOKUP($A48,Filtro_!$A$5:$AW$2561,31,FALSE),0) -> 23 | AH48: =IFERROR(VLOOKUP($A48,Filtro_!$A$5:$AW$2561,32,FALSE),0) -> 39 | AI48: =IFERROR(VLOOKUP($A48,Filtro_!$A$5:$AW$2561,33,FALSE),0) -> 22 | AJ48: =IFERROR(VLOOKUP($A48,Filtro_!$A$5:$AW$2561,34,FALSE),0) -> 30 | AK48: =IFERROR(VLOOKUP($A48,Filtro_!$A$5:$AW$2561,35,FALSE),0) -> 22 | AL48: =IFERROR(VLOOKUP($A48,Filtro_!$A$5:$AW$2561,36,FALSE),0) -> 26 | AM48: =IFERROR(VLOOKUP($A48,Filtro_!$A$5:$AW$2561,37,FALSE),0) -> 32 | AN48: =IFERROR(VLOOKUP($A48,Filtro_!$A$5:$AW$2561,38,FALSE),0) -> 31 | AO48: =IFERROR(VLOOKUP($A48,Filtro_!$A$5:$AW$2561,39,FALSE),0) -> 36 | AP48: =IFERROR(VLOOKUP($A48,Filtro_!$A$5:$AW$2561,40,FALSE),0) -> 0 | DB48: 0 | DC48: 0 | DD48: 0 | DE48: 0
A49: 01030100A | B49: SEGUIMIENTO AUTOVALENTE CON RIESGO | C49: MÉDICO/A | D49: 35 | E49: =SUM(AG49+AI49+AK49+AM49) -> 8 | F49: =SUM(AH49+AJ49+AL49+AN49) -> 27 | G49: =IFERROR(VLOOKUP($A49,Filtro_!$A$5:$AW$2561,5,FALSE),0) -> 0 | H49: =IFERROR(VLOOKUP($A49,Filtro_!$A$5:$AW$2561,6,FALSE),0) -> 0 | I49: =IFERROR(VLOOKUP($A49,Filtro_!$A$5:$AW$2561,7,FALSE),0) -> 0 | J49: =IFERROR(VLOOKUP($A49,Filtro_!$A$5:$AW$2561,8,FALSE),0) -> 0 | K49: =IFERROR(VLOOKUP($A49,Filtro_!$A$5:$AW$2561,9,FALSE),0) -> 0 | L49: =IFERROR(VLOOKUP($A49,Filtro_!$A$5:$AW$2561,10,FALSE),0) -> 0 | M49: =IFERROR(VLOOKUP($A49,Filtro_!$A$5:$AW$2561,11,FALSE),0) -> 0 | N49: =IFERROR(VLOOKUP($A49,Filtro_!$A$5:$AW$2561,12,FALSE),0) -> 0 | O49: =IFERROR(VLOOKUP($A49,Filtro_!$A$5:$AW$2561,13,FALSE),0) -> 0 | P49: =IFERROR(VLOOKUP($A49,Filtro_!$A$5:$AW$2561,14,FALSE),0) -> 0 | Q49: =IFERROR(VLOOKUP($A49,Filtro_!$A$5:$AW$2561,15,FALSE),0) -> 0 | R49: =IFERROR(VLOOKUP($A49,Filtro_!$A$5:$AW$2561,16,FALSE),0) -> 0 | S49: =IFERROR(VLOOKUP($A49,Filtro_!$A$5:$AW$2561,17,FALSE),0) -> 0 | T49: =IFERROR(VLOOKUP($A49,Filtro_!$A$5:$AW$2561,18,FALSE),0) -> 0 | U49: =IFERROR(VLOOKUP($A49,Filtro_!$A$5:$AW$2561,19,FALSE),0) -> 0 | V49: =IFERROR(VLOOKUP($A49,Filtro_!$A$5:$AW$2561,20,FALSE),0) -> 0 | W49: =IFERROR(VLOOKUP($A49,Filtro_!$A$5:$AW$2561,21,FALSE),0) -> 0 | X49: =IFERROR(VLOOKUP($A49,Filtro_!$A$5:$AW$2561,22,FALSE),0) -> 0 | Y49: =IFERROR(VLOOKUP($A49,Filtro_!$A$5:$AW$2561,23,FALSE),0) -> 0 | Z49: =IFERROR(VLOOKUP($A49,Filtro_!$A$5:$AW$2561,24,FALSE),0) -> 0 | AA49: =IFERROR(VLOOKUP($A49,Filtro_!$A$5:$AW$2561,25,FALSE),0) -> 0 | AB49: =IFERROR(VLOOKUP($A49,Filtro_!$A$5:$AW$2561,26,FALSE),0) -> 0 | AC49: =IFERROR(VLOOKUP($A49,Filtro_!$A$5:$AW$2561,27,FALSE),0) -> 0 | AD49: =IFERROR(VLOOKUP($A49,Filtro_!$A$5:$AW$2561,28,FALSE),0) -> 0 | AE49: =IFERROR(VLOOKUP($A49,Filtro_!$A$5:$AW$2561,29,FALSE),0) -> 0 | AF49: =IFERROR(VLOOKUP($A49,Filtro_!$A$5:$AW$2561,30,FALSE),0) -> 0 | AG49: =IFERROR(VLOOKUP($A49,Filtro_!$A$5:$AW$2561,31,FALSE),0) -> 1 | AH49: =IFERROR(VLOOKUP($A49,Filtro_!$A$5:$AW$2561,32,FALSE),0) -> 5 | AI49: =IFERROR(VLOOKUP($A49,Filtro_!$A$5:$AW$2561,33,FALSE),0) -> 4 | AJ49: =IFERROR(VLOOKUP($A49,Filtro_!$A$5:$AW$2561,34,FALSE),0) -> 4 | AK49: =IFERROR(VLOOKUP($A49,Filtro_!$A$5:$AW$2561,35,FALSE),0) -> 0 | AL49: =IFERROR(VLOOKUP($A49,Filtro_!$A$5:$AW$2561,36,FALSE),0) -> 11 | AM49: =IFERROR(VLOOKUP($A49,Filtro_!$A$5:$AW$2561,37,FALSE),0) -> 3 | AN49: =IFERROR(VLOOKUP($A49,Filtro_!$A$5:$AW$2561,38,FALSE),0) -> 7 | AO49: =IFERROR(VLOOKUP($A49,Filtro_!$A$5:$AW$2561,39,FALSE),0) -> 0 | AP49: =IFERROR(VLOOKUP($A49,Filtro_!$A$5:$AW$2561,40,FALSE),0) -> 0 | DB49: 0 | DC49: 0 | DD49: 0 | DE49: 0
A50: 01030200B | C50: ENFERMERA/O | D50: 1172 | E50: =SUM(AG50+AI50+AK50+AM50) -> 446 | F50: =SUM(AH50+AJ50+AL50+AN50) -> 726 | G50: =IFERROR(VLOOKUP($A50,Filtro_!$A$5:$AW$2561,5,FALSE),0) -> 0 | H50: =IFERROR(VLOOKUP($A50,Filtro_!$A$5:$AW$2561,6,FALSE),0) -> 0 | I50: =IFERROR(VLOOKUP($A50,Filtro_!$A$5:$AW$2561,7,FALSE),0) -> 0 | J50: =IFERROR(VLOOKUP($A50,Filtro_!$A$5:$AW$2561,8,FALSE),0) -> 0 | K50: =IFERROR(VLOOKUP($A50,Filtro_!$A$5:$AW$2561,9,FALSE),0) -> 0 | L50: =IFERROR(VLOOKUP($A50,Filtro_!$A$5:$AW$2561,10,FALSE),0) -> 0 | M50: =IFERROR(VLOOKUP($A50,Filtro_!$A$5:$AW$2561,11,FALSE),0) -> 0 | N50: =IFERROR(VLOOKUP($A50,Filtro_!$A$5:$AW$2561,12,FALSE),0) -> 0 | O50: =IFERROR(VLOOKUP($A50,Filtro_!$A$5:$AW$2561,13,FALSE),0) -> 0 | P50: =IFERROR(VLOOKUP($A50,Filtro_!$A$5:$AW$2561,14,FALSE),0) -> 0 | Q50: =IFERROR(VLOOKUP($A50,Filtro_!$A$5:$AW$2561,15,FALSE),0) -> 0 | R50: =IFERROR(VLOOKUP($A50,Filtro_!$A$5:$AW$2561,16,FALSE),0) -> 0 | S50: =IFERROR(VLOOKUP($A50,Filtro_!$A$5:$AW$2561,17,FALSE),0) -> 0 | T50: =IFERROR(VLOOKUP($A50,Filtro_!$A$5:$AW$2561,18,FALSE),0) -> 0 | U50: =IFERROR(VLOOKUP($A50,Filtro_!$A$5:$AW$2561,19,FALSE),0) -> 0 | V50: =IFERROR(VLOOKUP($A50,Filtro_!$A$5:$AW$2561,20,FALSE),0) -> 0 | W50: =IFERROR(VLOOKUP($A50,Filtro_!$A$5:$AW$2561,21,FALSE),0) -> 0 | X50: =IFERROR(VLOOKUP($A50,Filtro_!$A$5:$AW$2561,22,FALSE),0) -> 0 | Y50: =IFERROR(VLOOKUP($A50,Filtro_!$A$5:$AW$2561,23,FALSE),0) -> 0 | Z50: =IFERROR(VLOOKUP($A50,Filtro_!$A$5:$AW$2561,24,FALSE),0) -> 0 | AA50: =IFERROR(VLOOKUP($A50,Filtro_!$A$5:$AW$2561,25,FALSE),0) -> 0 | AB50: =IFERROR(VLOOKUP($A50,Filtro_!$A$5:$AW$2561,26,FALSE),0) -> 0 | AC50: =IFERROR(VLOOKUP($A50,Filtro_!$A$5:$AW$2561,27,FALSE),0) -> 0 | AD50: =IFERROR(VLOOKUP($A50,Filtro_!$A$5:$AW$2561,28,FALSE),0) -> 0 | AE50: =IFERROR(VLOOKUP($A50,Filtro_!$A$5:$AW$2561,29,FALSE),0) -> 0 | AF50: =IFERROR(VLOOKUP($A50,Filtro_!$A$5:$AW$2561,30,FALSE),0) -> 0 | AG50: =IFERROR(VLOOKUP($A50,Filtro_!$A$5:$AW$2561,31,FALSE),0) -> 86 | AH50: =IFERROR(VLOOKUP($A50,Filtro_!$A$5:$AW$2561,32,FALSE),0) -> 178 | AI50: =IFERROR(VLOOKUP($A50,Filtro_!$A$5:$AW$2561,33,FALSE),0) -> 133 | AJ50: =IFERROR(VLOOKUP($A50,Filtro_!$A$5:$AW$2561,34,FALSE),0) -> 205 | AK50: =IFERROR(VLOOKUP($A50,Filtro_!$A$5:$AW$2561,35,FALSE),0) -> 111 | AL50: =IFERROR(VLOOKUP($A50,Filtro_!$A$5:$AW$2561,36,FALSE),0) -> 166 | AM50: =IFERROR(VLOOKUP($A50,Filtro_!$A$5:$AW$2561,37,FALSE),0) -> 116 | AN50: =IFERROR(VLOOKUP($A50,Filtro_!$A$5:$AW$2561,38,FALSE),0) -> 177 | AO50: =IFERROR(VLOOKUP($A50,Filtro_!$A$5:$AW$2561,39,FALSE),0) -> 1 | AP50: =IFERROR(VLOOKUP($A50,Filtro_!$A$5:$AW$2561,40,FALSE),0) -> 1 | DB50: 0 | DC50: 0 | DD50: 0 | DE50: 0
A51: 09600204 | C51: OTROS PROFESIONALES DEBIDAMENTE CAPACITADOS | D51: 85 | E51: 30 | F51: 55 | G51: =IFERROR(VLOOKUP($A51,Filtro_!$A$5:$AW$2561,5,FALSE),0) -> 0 | H51: =IFERROR(VLOOKUP($A51,Filtro_!$A$5:$AW$2561,6,FALSE),0) -> 0 | I51: =IFERROR(VLOOKUP($A51,Filtro_!$A$5:$AW$2561,7,FALSE),0) -> 0 | J51: =IFERROR(VLOOKUP($A51,Filtro_!$A$5:$AW$2561,8,FALSE),0) -> 0 | K51: =IFERROR(VLOOKUP($A51,Filtro_!$A$5:$AW$2561,9,FALSE),0) -> 0 | L51: =IFERROR(VLOOKUP($A51,Filtro_!$A$5:$AW$2561,10,FALSE),0) -> 0 | M51: =IFERROR(VLOOKUP($A51,Filtro_!$A$5:$AW$2561,11,FALSE),0) -> 0 | N51: =IFERROR(VLOOKUP($A51,Filtro_!$A$5:$AW$2561,12,FALSE),0) -> 0 | O51: =IFERROR(VLOOKUP($A51,Filtro_!$A$5:$AW$2561,13,FALSE),0) -> 0 | P51: =IFERROR(VLOOKUP($A51,Filtro_!$A$5:$AW$2561,14,FALSE),0) -> 0 | Q51: =IFERROR(VLOOKUP($A51,Filtro_!$A$5:$AW$2561,15,FALSE),0) -> 0 | R51: =IFERROR(VLOOKUP($A51,Filtro_!$A$5:$AW$2561,16,FALSE),0) -> 0 | S51: =IFERROR(VLOOKUP($A51,Filtro_!$A$5:$AW$2561,17,FALSE),0) -> 0 | T51: =IFERROR(VLOOKUP($A51,Filtro_!$A$5:$AW$2561,18,FALSE),0) -> 0 | U51: =IFERROR(VLOOKUP($A51,Filtro_!$A$5:$AW$2561,19,FALSE),0) -> 0 | V51: =IFERROR(VLOOKUP($A51,Filtro_!$A$5:$AW$2561,20,FALSE),0) -> 0 | W51: =IFERROR(VLOOKUP($A51,Filtro_!$A$5:$AW$2561,21,FALSE),0) -> 0 | X51: =IFERROR(VLOOKUP($A51,Filtro_!$A$5:$AW$2561,22,FALSE),0) -> 0 | Y51: =IFERROR(VLOOKUP($A51,Filtro_!$A$5:$AW$2561,23,FALSE),0) -> 0 | Z51: =IFERROR(VLOOKUP($A51,Filtro_!$A$5:$AW$2561,24,FALSE),0) -> 0 | AA51: =IFERROR(VLOOKUP($A51,Filtro_!$A$5:$AW$2561,25,FALSE),0) -> 0 | AB51: =IFERROR(VLOOKUP($A51,Filtro_!$A$5:$AW$2561,26,FALSE),0) -> 0 | AC51: =IFERROR(VLOOKUP($A51,Filtro_!$A$5:$AW$2561,27,FALSE),0) -> 0 | AD51: =IFERROR(VLOOKUP($A51,Filtro_!$A$5:$AW$2561,28,FALSE),0) -> 0 | AE51: =IFERROR(VLOOKUP($A51,Filtro_!$A$5:$AW$2561,29,FALSE),0) -> 0 | AF51: =IFERROR(VLOOKUP($A51,Filtro_!$A$5:$AW$2561,30,FALSE),0) -> 0 | AG51: =IFERROR(VLOOKUP($A51,Filtro_!$A$5:$AW$2561,31,FALSE),0) -> 5 | AH51: =IFERROR(VLOOKUP($A51,Filtro_!$A$5:$AW$2561,32,FALSE),0) -> 16 | AI51: =IFERROR(VLOOKUP($A51,Filtro_!$A$5:$AW$2561,33,FALSE),0) -> 10 | AJ51: =IFERROR(VLOOKUP($A51,Filtro_!$A$5:$AW$2561,34,FALSE),0) -> 23 | AK51: =IFERROR(VLOOKUP($A51,Filtro_!$A$5:$AW$2561,35,FALSE),0) -> 7 | AL51: =IFERROR(VLOOKUP($A51,Filtro_!$A$5:$AW$2561,36,FALSE),0) -> 8 | AM51: =IFERROR(VLOOKUP($A51,Filtro_!$A$5:$AW$2561,37,FALSE),0) -> 8 | AN51: =IFERROR(VLOOKUP($A51,Filtro_!$A$5:$AW$2561,38,FALSE),0) -> 8 | AO51: =IFERROR(VLOOKUP($A51,Filtro_!$A$5:$AW$2561,39,FALSE),0) -> 0 | AP51: =IFERROR(VLOOKUP($A51,Filtro_!$A$5:$AW$2561,40,FALSE),0) -> 0 | DB51: 0 | DC51: 0 | DD51: 0 | DE51: 0
A52: 01030300C | B52: SEGUIMIENTO RIESGO DEPENDENCIA | C52: MÉDICO/A | D52: 31 | E52: 13 | F52: 18 | G52: =IFERROR(VLOOKUP($A52,Filtro_!$A$5:$AW$2561,5,FALSE),0) -> 0 | H52: =IFERROR(VLOOKUP($A52,Filtro_!$A$5:$AW$2561,6,FALSE),0) -> 0 | I52: =IFERROR(VLOOKUP($A52,Filtro_!$A$5:$AW$2561,7,FALSE),0) -> 0 | J52: =IFERROR(VLOOKUP($A52,Filtro_!$A$5:$AW$2561,8,FALSE),0) -> 0 | K52: =IFERROR(VLOOKUP($A52,Filtro_!$A$5:$AW$2561,9,FALSE),0) -> 0 | L52: =IFERROR(VLOOKUP($A52,Filtro_!$A$5:$AW$2561,10,FALSE),0) -> 0 | M52: =IFERROR(VLOOKUP($A52,Filtro_!$A$5:$AW$2561,11,FALSE),0) -> 0 | N52: =IFERROR(VLOOKUP($A52,Filtro_!$A$5:$AW$2561,12,FALSE),0) -> 0 | O52: =IFERROR(VLOOKUP($A52,Filtro_!$A$5:$AW$2561,13,FALSE),0) -> 0 | P52: =IFERROR(VLOOKUP($A52,Filtro_!$A$5:$AW$2561,14,FALSE),0) -> 0 | Q52: =IFERROR(VLOOKUP($A52,Filtro_!$A$5:$AW$2561,15,FALSE),0) -> 0 | R52: =IFERROR(VLOOKUP($A52,Filtro_!$A$5:$AW$2561,16,FALSE),0) -> 0 | S52: =IFERROR(VLOOKUP($A52,Filtro_!$A$5:$AW$2561,17,FALSE),0) -> 0 | T52: =IFERROR(VLOOKUP($A52,Filtro_!$A$5:$AW$2561,18,FALSE),0) -> 0 | U52: =IFERROR(VLOOKUP($A52,Filtro_!$A$5:$AW$2561,19,FALSE),0) -> 0 | V52: =IFERROR(VLOOKUP($A52,Filtro_!$A$5:$AW$2561,20,FALSE),0) -> 0 | W52: =IFERROR(VLOOKUP($A52,Filtro_!$A$5:$AW$2561,21,FALSE),0) -> 0 | X52: =IFERROR(VLOOKUP($A52,Filtro_!$A$5:$AW$2561,22,FALSE),0) -> 0 | Y52: =IFERROR(VLOOKUP($A52,Filtro_!$A$5:$AW$2561,23,FALSE),0) -> 0 | Z52: =IFERROR(VLOOKUP($A52,Filtro_!$A$5:$AW$2561,24,FALSE),0) -> 0 | AA52: =IFERROR(VLOOKUP($A52,Filtro_!$A$5:$AW$2561,25,FALSE),0) -> 0 | AB52: =IFERROR(VLOOKUP($A52,Filtro_!$A$5:$AW$2561,26,FALSE),0) -> 0 | AC52: =IFERROR(VLOOKUP($A52,Filtro_!$A$5:$AW$2561,27,FALSE),0) -> 0 | AD52: =IFERROR(VLOOKUP($A52,Filtro_!$A$5:$AW$2561,28,FALSE),0) -> 0 | AE52: =IFERROR(VLOOKUP($A52,Filtro_!$A$5:$AW$2561,29,FALSE),0) -> 0 | AF52: =IFERROR(VLOOKUP($A52,Filtro_!$A$5:$AW$2561,30,FALSE),0) -> 0 | AG52: =IFERROR(VLOOKUP($A52,Filtro_!$A$5:$AW$2561,31,FALSE),0) -> 2 | AH52: =IFERROR(VLOOKUP($A52,Filtro_!$A$5:$AW$2561,32,FALSE),0) -> 7 | AI52: =IFERROR(VLOOKUP($A52,Filtro_!$A$5:$AW$2561,33,FALSE),0) -> 4 | AJ52: =IFERROR(VLOOKUP($A52,Filtro_!$A$5:$AW$2561,34,FALSE),0) -> 2 | AK52: =IFERROR(VLOOKUP($A52,Filtro_!$A$5:$AW$2561,35,FALSE),0) -> 3 | AL52: =IFERROR(VLOOKUP($A52,Filtro_!$A$5:$AW$2561,36,FALSE),0) -> 3 | AM52: =IFERROR(VLOOKUP($A52,Filtro_!$A$5:$AW$2561,37,FALSE),0) -> 4 | AN52: =IFERROR(VLOOKUP($A52,Filtro_!$A$5:$AW$2561,38,FALSE),0) -> 6 | AO52: =IFERROR(VLOOKUP($A52,Filtro_!$A$5:$AW$2561,39,FALSE),0) -> 1 | AP52: =IFERROR(VLOOKUP($A52,Filtro_!$A$5:$AW$2561,40,FALSE),0) -> 0 | DB52: 0 | DC52: 0 | DD52: 0 | DE52: 0
A53: 01030400D | C53: ENFERMERA/O | D53: 506 | E53: =SUM(AG53+AI53+AK53+AM53) -> 177 | F53: =SUM(AH53+AJ53+AL53+AN53) -> 329 | G53: =IFERROR(VLOOKUP($A53,Filtro_!$A$5:$AW$2561,5,FALSE),0) -> 0 | H53: =IFERROR(VLOOKUP($A53,Filtro_!$A$5:$AW$2561,6,FALSE),0) -> 0 | I53: =IFERROR(VLOOKUP($A53,Filtro_!$A$5:$AW$2561,7,FALSE),0) -> 0 | J53: =IFERROR(VLOOKUP($A53,Filtro_!$A$5:$AW$2561,8,FALSE),0) -> 0 | K53: =IFERROR(VLOOKUP($A53,Filtro_!$A$5:$AW$2561,9,FALSE),0) -> 0 | L53: =IFERROR(VLOOKUP($A53,Filtro_!$A$5:$AW$2561,10,FALSE),0) -> 0 | M53: =IFERROR(VLOOKUP($A53,Filtro_!$A$5:$AW$2561,11,FALSE),0) -> 0 | N53: =IFERROR(VLOOKUP($A53,Filtro_!$A$5:$AW$2561,12,FALSE),0) -> 0 | O53: =IFERROR(VLOOKUP($A53,Filtro_!$A$5:$AW$2561,13,FALSE),0) -> 0 | P53: =IFERROR(VLOOKUP($A53,Filtro_!$A$5:$AW$2561,14,FALSE),0) -> 0 | Q53: =IFERROR(VLOOKUP($A53,Filtro_!$A$5:$AW$2561,15,FALSE),0) -> 0 | R53: =IFERROR(VLOOKUP($A53,Filtro_!$A$5:$AW$2561,16,FALSE),0) -> 0 | S53: =IFERROR(VLOOKUP($A53,Filtro_!$A$5:$AW$2561,17,FALSE),0) -> 0 | T53: =IFERROR(VLOOKUP($A53,Filtro_!$A$5:$AW$2561,18,FALSE),0) -> 0 | U53: =IFERROR(VLOOKUP($A53,Filtro_!$A$5:$AW$2561,19,FALSE),0) -> 0 | V53: =IFERROR(VLOOKUP($A53,Filtro_!$A$5:$AW$2561,20,FALSE),0) -> 0 | W53: =IFERROR(VLOOKUP($A53,Filtro_!$A$5:$AW$2561,21,FALSE),0) -> 0 | X53: =IFERROR(VLOOKUP($A53,Filtro_!$A$5:$AW$2561,22,FALSE),0) -> 0 | Y53: =IFERROR(VLOOKUP($A53,Filtro_!$A$5:$AW$2561,23,FALSE),0) -> 0 | Z53: =IFERROR(VLOOKUP($A53,Filtro_!$A$5:$AW$2561,24,FALSE),0) -> 0 | AA53: =IFERROR(VLOOKUP($A53,Filtro_!$A$5:$AW$2561,25,FALSE),0) -> 0 | AB53: =IFERROR(VLOOKUP($A53,Filtro_!$A$5:$AW$2561,26,FALSE),0) -> 0 | AC53: =IFERROR(VLOOKUP($A53,Filtro_!$A$5:$AW$2561,27,FALSE),0) -> 0 | AD53: =IFERROR(VLOOKUP($A53,Filtro_!$A$5:$AW$2561,28,FALSE),0) -> 0 | AE53: =IFERROR(VLOOKUP($A53,Filtro_!$A$5:$AW$2561,29,FALSE),0) -> 0 | AF53: =IFERROR(VLOOKUP($A53,Filtro_!$A$5:$AW$2561,30,FALSE),0) -> 0 | AG53: =IFERROR(VLOOKUP($A53,Filtro_!$A$5:$AW$2561,31,FALSE),0) -> 18 | AH53: =IFERROR(VLOOKUP($A53,Filtro_!$A$5:$AW$2561,32,FALSE),0) -> 30 | AI53: =IFERROR(VLOOKUP($A53,Filtro_!$A$5:$AW$2561,33,FALSE),0) -> 34 | AJ53: =IFERROR(VLOOKUP($A53,Filtro_!$A$5:$AW$2561,34,FALSE),0) -> 76 | AK53: =IFERROR(VLOOKUP($A53,Filtro_!$A$5:$AW$2561,35,FALSE),0) -> 35 | AL53: =IFERROR(VLOOKUP($A53,Filtro_!$A$5:$AW$2561,36,FALSE),0) -> 65 | AM53: =IFERROR(VLOOKUP($A53,Filtro_!$A$5:$AW$2561,37,FALSE),0) -> 90 | AN53: =IFERROR(VLOOKUP($A53,Filtro_!$A$5:$AW$2561,38,FALSE),0) -> 158 | AO53: =IFERROR(VLOOKUP($A53,Filtro_!$A$5:$AW$2561,39,FALSE),0) -> 5 | AP53: =IFERROR(VLOOKUP($A53,Filtro_!$A$5:$AW$2561,40,FALSE),0) -> 0 | DB53: 0 | DC53: 0 | DD53: 0 | DE53: 0
A54: 09600205 | C54: OTROS PROFESIONALES DEBIDAMENTE CAPACITADOS | D54: 34 | E54: 14 | F54: 20 | G54: =IFERROR(VLOOKUP($A54,Filtro_!$A$5:$AW$2561,5,FALSE),0) -> 0 | H54: =IFERROR(VLOOKUP($A54,Filtro_!$A$5:$AW$2561,6,FALSE),0) -> 0 | I54: =IFERROR(VLOOKUP($A54,Filtro_!$A$5:$AW$2561,7,FALSE),0) -> 0 | J54: =IFERROR(VLOOKUP($A54,Filtro_!$A$5:$AW$2561,8,FALSE),0) -> 0 | K54: =IFERROR(VLOOKUP($A54,Filtro_!$A$5:$AW$2561,9,FALSE),0) -> 0 | L54: =IFERROR(VLOOKUP($A54,Filtro_!$A$5:$AW$2561,10,FALSE),0) -> 0 | M54: =IFERROR(VLOOKUP($A54,Filtro_!$A$5:$AW$2561,11,FALSE),0) -> 0 | N54: =IFERROR(VLOOKUP($A54,Filtro_!$A$5:$AW$2561,12,FALSE),0) -> 0 | O54: =IFERROR(VLOOKUP($A54,Filtro_!$A$5:$AW$2561,13,FALSE),0) -> 0 | P54: =IFERROR(VLOOKUP($A54,Filtro_!$A$5:$AW$2561,14,FALSE),0) -> 0 | Q54: =IFERROR(VLOOKUP($A54,Filtro_!$A$5:$AW$2561,15,FALSE),0) -> 0 | R54: =IFERROR(VLOOKUP($A54,Filtro_!$A$5:$AW$2561,16,FALSE),0) -> 0 | S54: =IFERROR(VLOOKUP($A54,Filtro_!$A$5:$AW$2561,17,FALSE),0) -> 0 | T54: =IFERROR(VLOOKUP($A54,Filtro_!$A$5:$AW$2561,18,FALSE),0) -> 0 | U54: =IFERROR(VLOOKUP($A54,Filtro_!$A$5:$AW$2561,19,FALSE),0) -> 0 | V54: =IFERROR(VLOOKUP($A54,Filtro_!$A$5:$AW$2561,20,FALSE),0) -> 0 | W54: =IFERROR(VLOOKUP($A54,Filtro_!$A$5:$AW$2561,21,FALSE),0) -> 0 | X54: =IFERROR(VLOOKUP($A54,Filtro_!$A$5:$AW$2561,22,FALSE),0) -> 0 | Y54: =IFERROR(VLOOKUP($A54,Filtro_!$A$5:$AW$2561,23,FALSE),0) -> 0 | Z54: =IFERROR(VLOOKUP($A54,Filtro_!$A$5:$AW$2561,24,FALSE),0) -> 0 | AA54: =IFERROR(VLOOKUP($A54,Filtro_!$A$5:$AW$2561,25,FALSE),0) -> 0 | AB54: =IFERROR(VLOOKUP($A54,Filtro_!$A$5:$AW$2561,26,FALSE),0) -> 0 | AC54: =IFERROR(VLOOKUP($A54,Filtro_!$A$5:$AW$2561,27,FALSE),0) -> 0 | AD54: =IFERROR(VLOOKUP($A54,Filtro_!$A$5:$AW$2561,28,FALSE),0) -> 0 | AE54: =IFERROR(VLOOKUP($A54,Filtro_!$A$5:$AW$2561,29,FALSE),0) -> 0 | AF54: =IFERROR(VLOOKUP($A54,Filtro_!$A$5:$AW$2561,30,FALSE),0) -> 0 | AG54: =IFERROR(VLOOKUP($A54,Filtro_!$A$5:$AW$2561,31,FALSE),0) -> 1 | AH54: =IFERROR(VLOOKUP($A54,Filtro_!$A$5:$AW$2561,32,FALSE),0) -> 3 | AI54: =IFERROR(VLOOKUP($A54,Filtro_!$A$5:$AW$2561,33,FALSE),0) -> 3 | AJ54: =IFERROR(VLOOKUP($A54,Filtro_!$A$5:$AW$2561,34,FALSE),0) -> 6 | AK54: =IFERROR(VLOOKUP($A54,Filtro_!$A$5:$AW$2561,35,FALSE),0) -> 6 | AL54: =IFERROR(VLOOKUP($A54,Filtro_!$A$5:$AW$2561,36,FALSE),0) -> 5 | AM54: =IFERROR(VLOOKUP($A54,Filtro_!$A$5:$AW$2561,37,FALSE),0) -> 4 | AN54: =IFERROR(VLOOKUP($A54,Filtro_!$A$5:$AW$2561,38,FALSE),0) -> 6 | AO54: =IFERROR(VLOOKUP($A54,Filtro_!$A$5:$AW$2561,39,FALSE),0) -> 0 | AP54: =IFERROR(VLOOKUP($A54,Filtro_!$A$5:$AW$2561,40,FALSE),0) -> 0 | DB54: 0 | DC54: 0 | DD54: 0 | DE54: 0
A55: 01200010 | B55: DE INFECCIÓN TRANSMISIÓN SEXUAL | C55: MÉDICO/A | D55: 39 | E55: =SUM(G55+I55+K55+M55+O55+Q55+S55+U55+W55+Y55+AA55+AC55+AE55+AG55+AI55+AK55+AM55) -> 13 | F55: =SUM(H55+J55+L55+N55+P55+R55+T55+V55+X55+Z55+AB55+AD55+AF55+AH55+AJ55+AL55+AN55) -> 26 | G55: =IFERROR(VLOOKUP($A55,Filtro_!$A$5:$AW$2561,5,FALSE),0) -> 0 | H55: =IFERROR(VLOOKUP($A55,Filtro_!$A$5:$AW$2561,6,FALSE),0) -> 0 | I55: =IFERROR(VLOOKUP($A55,Filtro_!$A$5:$AW$2561,7,FALSE),0) -> 0 | J55: =IFERROR(VLOOKUP($A55,Filtro_!$A$5:$AW$2561,8,FALSE),0) -> 0 | K55: =IFERROR(VLOOKUP($A55,Filtro_!$A$5:$AW$2561,9,FALSE),0) -> 0 | L55: =IFERROR(VLOOKUP($A55,Filtro_!$A$5:$AW$2561,10,FALSE),0) -> 0 | M55: =IFERROR(VLOOKUP($A55,Filtro_!$A$5:$AW$2561,11,FALSE),0) -> 1 | N55: =IFERROR(VLOOKUP($A55,Filtro_!$A$5:$AW$2561,12,FALSE),0) -> 1 | O55: =IFERROR(VLOOKUP($A55,Filtro_!$A$5:$AW$2561,13,FALSE),0) -> 1 | P55: =IFERROR(VLOOKUP($A55,Filtro_!$A$5:$AW$2561,14,FALSE),0) -> 1 | Q55: =IFERROR(VLOOKUP($A55,Filtro_!$A$5:$AW$2561,15,FALSE),0) -> 1 | R55: =IFERROR(VLOOKUP($A55,Filtro_!$A$5:$AW$2561,16,FALSE),0) -> 0 | S55: =IFERROR(VLOOKUP($A55,Filtro_!$A$5:$AW$2561,17,FALSE),0) -> 1 | T55: =IFERROR(VLOOKUP($A55,Filtro_!$A$5:$AW$2561,18,FALSE),0) -> 0 | U55: =IFERROR(VLOOKUP($A55,Filtro_!$A$5:$AW$2561,19,FALSE),0) -> 1 | V55: =IFERROR(VLOOKUP($A55,Filtro_!$A$5:$AW$2561,20,FALSE),0) -> 0 | W55: =IFERROR(VLOOKUP($A55,Filtro_!$A$5:$AW$2561,21,FALSE),0) -> 0 | X55: =IFERROR(VLOOKUP($A55,Filtro_!$A$5:$AW$2561,22,FALSE),0) -> 0 | Y55: =IFERROR(VLOOKUP($A55,Filtro_!$A$5:$AW$2561,23,FALSE),0) -> 0 | Z55: =IFERROR(VLOOKUP($A55,Filtro_!$A$5:$AW$2561,24,FALSE),0) -> 1 | AA55: =IFERROR(VLOOKUP($A55,Filtro_!$A$5:$AW$2561,25,FALSE),0) -> 0 | AB55: =IFERROR(VLOOKUP($A55,Filtro_!$A$5:$AW$2561,26,FALSE),0) -> 2 | AC55: =IFERROR(VLOOKUP($A55,Filtro_!$A$5:$AW$2561,27,FALSE),0) -> 0 | AD55: =IFERROR(VLOOKUP($A55,Filtro_!$A$5:$AW$2561,28,FALSE),0) -> 3 | AE55: =IFERROR(VLOOKUP($A55,Filtro_!$A$5:$AW$2561,29,FALSE),0) -> 0 | AF55: =IFERROR(VLOOKUP($A55,Filtro_!$A$5:$AW$2561,30,FALSE),0) -> 6 | AG55: =IFERROR(VLOOKUP($A55,Filtro_!$A$5:$AW$2561,31,FALSE),0) -> 2 | AH55: =IFERROR(VLOOKUP($A55,Filtro_!$A$5:$AW$2561,32,FALSE),0) -> 3 | AI55: =IFERROR(VLOOKUP($A55,Filtro_!$A$5:$AW$2561,33,FALSE),0) -> 4 | AJ55: =IFERROR(VLOOKUP($A55,Filtro_!$A$5:$AW$2561,34,FALSE),0) -> 3 | AK55: =IFERROR(VLOOKUP($A55,Filtro_!$A$5:$AW$2561,35,FALSE),0) -> 1 | AL55: =IFERROR(VLOOKUP($A55,Filtro_!$A$5:$AW$2561,36,FALSE),0) -> 2 | AM55: =IFERROR(VLOOKUP($A55,Filtro_!$A$5:$AW$2561,37,FALSE),0) -> 1 | AN55: =IFERROR(VLOOKUP($A55,Filtro_!$A$5:$AW$2561,38,FALSE),0) -> 4 | AO55: =IFERROR(VLOOKUP($A55,Filtro_!$A$5:$AW$2561,39,FALSE),0) -> 0 | AP55: =IFERROR(VLOOKUP($A55,Filtro_!$A$5:$AW$2561,40,FALSE),0) -> 0 | DB55: 0 | DC55: 0 | DD55: 0 | DE55: 0
A56: 01200020 | C56: ENFERMERA/O | D56: 222 | E56: =SUM(G56+I56+K56+M56+O56+Q56+S56+U56+W56+Y56+AA56+AC56+AE56+AG56+AI56+AK56+AM56) -> 68 | F56: 154 | G56: =IFERROR(VLOOKUP($A56,Filtro_!$A$5:$AW$2561,5,FALSE),0) -> 0 | H56: =IFERROR(VLOOKUP($A56,Filtro_!$A$5:$AW$2561,6,FALSE),0) -> 0 | I56: =IFERROR(VLOOKUP($A56,Filtro_!$A$5:$AW$2561,7,FALSE),0) -> 2 | J56: =IFERROR(VLOOKUP($A56,Filtro_!$A$5:$AW$2561,8,FALSE),0) -> 1 | K56: =IFERROR(VLOOKUP($A56,Filtro_!$A$5:$AW$2561,9,FALSE),0) -> 0 | L56: =IFERROR(VLOOKUP($A56,Filtro_!$A$5:$AW$2561,10,FALSE),0) -> 4 | M56: =IFERROR(VLOOKUP($A56,Filtro_!$A$5:$AW$2561,11,FALSE),0) -> 0 | N56: =IFERROR(VLOOKUP($A56,Filtro_!$A$5:$AW$2561,12,FALSE),0) -> 1 | O56: =IFERROR(VLOOKUP($A56,Filtro_!$A$5:$AW$2561,13,FALSE),0) -> 0 | P56: =IFERROR(VLOOKUP($A56,Filtro_!$A$5:$AW$2561,14,FALSE),0) -> 2 | Q56: =IFERROR(VLOOKUP($A56,Filtro_!$A$5:$AW$2561,15,FALSE),0) -> 0 | R56: =IFERROR(VLOOKUP($A56,Filtro_!$A$5:$AW$2561,16,FALSE),0) -> 4 | S56: =IFERROR(VLOOKUP($A56,Filtro_!$A$5:$AW$2561,17,FALSE),0) -> 2 | T56: =IFERROR(VLOOKUP($A56,Filtro_!$A$5:$AW$2561,18,FALSE),0) -> 4 | U56: =IFERROR(VLOOKUP($A56,Filtro_!$A$5:$AW$2561,19,FALSE),0) -> 1 | V56: =IFERROR(VLOOKUP($A56,Filtro_!$A$5:$AW$2561,20,FALSE),0) -> 10 | W56: =IFERROR(VLOOKUP($A56,Filtro_!$A$5:$AW$2561,21,FALSE),0) -> 0 | X56: =IFERROR(VLOOKUP($A56,Filtro_!$A$5:$AW$2561,22,FALSE),0) -> 17 | Y56: =IFERROR(VLOOKUP($A56,Filtro_!$A$5:$AW$2561,23,FALSE),0) -> 1 | Z56: =IFERROR(VLOOKUP($A56,Filtro_!$A$5:$AW$2561,24,FALSE),0) -> 7 | AA56: =IFERROR(VLOOKUP($A56,Filtro_!$A$5:$AW$2561,25,FALSE),0) -> 2 | AB56: =IFERROR(VLOOKUP($A56,Filtro_!$A$5:$AW$2561,26,FALSE),0) -> 12 | AC56: =IFERROR(VLOOKUP($A56,Filtro_!$A$5:$AW$2561,27,FALSE),0) -> 8 | AD56: =IFERROR(VLOOKUP($A56,Filtro_!$A$5:$AW$2561,28,FALSE),0) -> 16 | AE56: =IFERROR(VLOOKUP($A56,Filtro_!$A$5:$AW$2561,29,FALSE),0) -> 16 | AF56: =IFERROR(VLOOKUP($A56,Filtro_!$A$5:$AW$2561,30,FALSE),0) -> 12 | AG56: =IFERROR(VLOOKUP($A56,Filtro_!$A$5:$AW$2561,31,FALSE),0) -> 11 | AH56: =IFERROR(VLOOKUP($A56,Filtro_!$A$5:$AW$2561,32,FALSE),0) -> 20 | AI56: =IFERROR(VLOOKUP($A56,Filtro_!$A$5:$AW$2561,33,FALSE),0) -> 10 | AJ56: =IFERROR(VLOOKUP($A56,Filtro_!$A$5:$AW$2561,34,FALSE),0) -> 17 | AK56: =IFERROR(VLOOKUP($A56,Filtro_!$A$5:$AW$2561,35,FALSE),0) -> 8 | AL56: =IFERROR(VLOOKUP($A56,Filtro_!$A$5:$AW$2561,36,FALSE),0) -> 13 | AM56: =IFERROR(VLOOKUP($A56,Filtro_!$A$5:$AW$2561,37,FALSE),0) -> 7 | AN56: =IFERROR(VLOOKUP($A56,Filtro_!$A$5:$AW$2561,38,FALSE),0) -> 14 | AO56: =IFERROR(VLOOKUP($A56,Filtro_!$A$5:$AW$2561,39,FALSE),0) -> 6 | AP56: =IFERROR(VLOOKUP($A56,Filtro_!$A$5:$AW$2561,40,FALSE),0) -> 2 | DB56: 0 | DC56: 0 | DD56: 0 | DE56: 0
A57: 01200030 | C57: MATRONA/ÓN | D57: 195 | E57: =SUM(G57+I57+K57+M57+O57+Q57+S57+U57+W57+Y57+AA57+AC57+AE57+AG57+AI57+AK57+AM57) -> 40 | F57: 155 | G57: =IFERROR(VLOOKUP($A57,Filtro_!$A$5:$AW$2561,5,FALSE),0) -> 0 | H57: =IFERROR(VLOOKUP($A57,Filtro_!$A$5:$AW$2561,6,FALSE),0) -> 1 | I57: =IFERROR(VLOOKUP($A57,Filtro_!$A$5:$AW$2561,7,FALSE),0) -> 0 | J57: =IFERROR(VLOOKUP($A57,Filtro_!$A$5:$AW$2561,8,FALSE),0) -> 0 | K57: =IFERROR(VLOOKUP($A57,Filtro_!$A$5:$AW$2561,9,FALSE),0) -> 0 | L57: =IFERROR(VLOOKUP($A57,Filtro_!$A$5:$AW$2561,10,FALSE),0) -> 0 | M57: =IFERROR(VLOOKUP($A57,Filtro_!$A$5:$AW$2561,11,FALSE),0) -> 2 | N57: =IFERROR(VLOOKUP($A57,Filtro_!$A$5:$AW$2561,12,FALSE),0) -> 3 | O57: =IFERROR(VLOOKUP($A57,Filtro_!$A$5:$AW$2561,13,FALSE),0) -> 9 | P57: =IFERROR(VLOOKUP($A57,Filtro_!$A$5:$AW$2561,14,FALSE),0) -> 44 | Q57: =IFERROR(VLOOKUP($A57,Filtro_!$A$5:$AW$2561,15,FALSE),0) -> 4 | R57: =IFERROR(VLOOKUP($A57,Filtro_!$A$5:$AW$2561,16,FALSE),0) -> 27 | S57: =IFERROR(VLOOKUP($A57,Filtro_!$A$5:$AW$2561,17,FALSE),0) -> 7 | T57: =IFERROR(VLOOKUP($A57,Filtro_!$A$5:$AW$2561,18,FALSE),0) -> 23 | U57: =IFERROR(VLOOKUP($A57,Filtro_!$A$5:$AW$2561,19,FALSE),0) -> 7 | V57: =IFERROR(VLOOKUP($A57,Filtro_!$A$5:$AW$2561,20,FALSE),0) -> 12 | W57: =IFERROR(VLOOKUP($A57,Filtro_!$A$5:$AW$2561,21,FALSE),0) -> 6 | X57: =IFERROR(VLOOKUP($A57,Filtro_!$A$5:$AW$2561,22,FALSE),0) -> 15 | Y57: =IFERROR(VLOOKUP($A57,Filtro_!$A$5:$AW$2561,23,FALSE),0) -> 3 | Z57: =IFERROR(VLOOKUP($A57,Filtro_!$A$5:$AW$2561,24,FALSE),0) -> 5 | AA57: =IFERROR(VLOOKUP($A57,Filtro_!$A$5:$AW$2561,25,FALSE),0) -> 1 | AB57: =IFERROR(VLOOKUP($A57,Filtro_!$A$5:$AW$2561,26,FALSE),0) -> 10 | AC57: =IFERROR(VLOOKUP($A57,Filtro_!$A$5:$AW$2561,27,FALSE),0) -> 0 | AD57: =IFERROR(VLOOKUP($A57,Filtro_!$A$5:$AW$2561,28,FALSE),0) -> 5 | AE57: =IFERROR(VLOOKUP($A57,Filtro_!$A$5:$AW$2561,29,FALSE),0) -> 0 | AF57: =IFERROR(VLOOKUP($A57,Filtro_!$A$5:$AW$2561,30,FALSE),0) -> 1 | AG57: =IFERROR(VLOOKUP($A57,Filtro_!$A$5:$AW$2561,31,FALSE),0) -> 1 | AH57: =IFERROR(VLOOKUP($A57,Filtro_!$A$5:$AW$2561,32,FALSE),0) -> 2 | AI57: =IFERROR(VLOOKUP($A57,Filtro_!$A$5:$AW$2561,33,FALSE),0) -> 0 | AJ57: =IFERROR(VLOOKUP($A57,Filtro_!$A$5:$AW$2561,34,FALSE),0) -> 1 | AK57: =IFERROR(VLOOKUP($A57,Filtro_!$A$5:$AW$2561,35,FALSE),0) -> 0 | AL57: =IFERROR(VLOOKUP($A57,Filtro_!$A$5:$AW$2561,36,FALSE),0) -> 5 | AM57: =IFERROR(VLOOKUP($A57,Filtro_!$A$5:$AW$2561,37,FALSE),0) -> 0 | AN57: =IFERROR(VLOOKUP($A57,Filtro_!$A$5:$AW$2561,38,FALSE),0) -> 1 | AO57: =IFERROR(VLOOKUP($A57,Filtro_!$A$5:$AW$2561,39,FALSE),0) -> 1 | AP57: =IFERROR(VLOOKUP($A57,Filtro_!$A$5:$AW$2561,40,FALSE),0) -> 16 | DB57: 0 | DC57: 0 | DD57: 0 | DE57: 0
A58: 03030140 | B58: OTROS PROBLEMAS DE SALUD | C58: MÉDICO/A | D58: 19781 | E58: =SUM(G58+I58+K58+M58+O58+Q58+S58+U58+W58+Y58+AA58+AC58+AE58+AG58+AI58+AK58+AM58) -> 5915 | F58: 13866 | G58: =IFERROR(VLOOKUP($A58,Filtro_!$A$5:$AW$2561,5,FALSE),0) -> 56 | H58: =IFERROR(VLOOKUP($A58,Filtro_!$A$5:$AW$2561,6,FALSE),0) -> 49 | I58: =IFERROR(VLOOKUP($A58,Filtro_!$A$5:$AW$2561,7,FALSE),0) -> 96 | J58: =IFERROR(VLOOKUP($A58,Filtro_!$A$5:$AW$2561,8,FALSE),0) -> 60 | K58: =IFERROR(VLOOKUP($A58,Filtro_!$A$5:$AW$2561,9,FALSE),0) -> 83 | L58: =IFERROR(VLOOKUP($A58,Filtro_!$A$5:$AW$2561,10,FALSE),0) -> 73 | M58: =IFERROR(VLOOKUP($A58,Filtro_!$A$5:$AW$2561,11,FALSE),0) -> 96 | N58: =IFERROR(VLOOKUP($A58,Filtro_!$A$5:$AW$2561,12,FALSE),0) -> 165 | O58: =IFERROR(VLOOKUP($A58,Filtro_!$A$5:$AW$2561,13,FALSE),0) -> 90 | P58: =IFERROR(VLOOKUP($A58,Filtro_!$A$5:$AW$2561,14,FALSE),0) -> 237 | Q58: =IFERROR(VLOOKUP($A58,Filtro_!$A$5:$AW$2561,15,FALSE),0) -> 88 | R58: =IFERROR(VLOOKUP($A58,Filtro_!$A$5:$AW$2561,16,FALSE),0) -> 263 | S58: =IFERROR(VLOOKUP($A58,Filtro_!$A$5:$AW$2561,17,FALSE),0) -> 97 | T58: =IFERROR(VLOOKUP($A58,Filtro_!$A$5:$AW$2561,18,FALSE),0) -> 426 | U58: =IFERROR(VLOOKUP($A58,Filtro_!$A$5:$AW$2561,19,FALSE),0) -> 134 | V58: =IFERROR(VLOOKUP($A58,Filtro_!$A$5:$AW$2561,20,FALSE),0) -> 530 | W58: =IFERROR(VLOOKUP($A58,Filtro_!$A$5:$AW$2561,21,FALSE),0) -> 156 | X58: =IFERROR(VLOOKUP($A58,Filtro_!$A$5:$AW$2561,22,FALSE),0) -> 601 | Y58: =IFERROR(VLOOKUP($A58,Filtro_!$A$5:$AW$2561,23,FALSE),0) -> 155 | Z58: =IFERROR(VLOOKUP($A58,Filtro_!$A$5:$AW$2561,24,FALSE),0) -> 857 | AA58: =IFERROR(VLOOKUP($A58,Filtro_!$A$5:$AW$2561,25,FALSE),0) -> 310 | AB58: =IFERROR(VLOOKUP($A58,Filtro_!$A$5:$AW$2561,26,FALSE),0) -> 1077 | AC58: =IFERROR(VLOOKUP($A58,Filtro_!$A$5:$AW$2561,27,FALSE),0) -> 449 | AD58: =IFERROR(VLOOKUP($A58,Filtro_!$A$5:$AW$2561,28,FALSE),0) -> 1529 | AE58: =IFERROR(VLOOKUP($A58,Filtro_!$A$5:$AW$2561,29,FALSE),0) -> 683 | AF58: =IFERROR(VLOOKUP($A58,Filtro_!$A$5:$AW$2561,30,FALSE),0) -> 1755 | AG58: =IFERROR(VLOOKUP($A58,Filtro_!$A$5:$AW$2561,31,FALSE),0) -> 747 | AH58: =IFERROR(VLOOKUP($A58,Filtro_!$A$5:$AW$2561,32,FALSE),0) -> 1697 | AI58: =IFERROR(VLOOKUP($A58,Filtro_!$A$5:$AW$2561,33,FALSE),0) -> 835 | AJ58: =IFERROR(VLOOKUP($A58,Filtro_!$A$5:$AW$2561,34,FALSE),0) -> 1535 | AK58: =IFERROR(VLOOKUP($A58,Filtro_!$A$5:$AW$2561,35,FALSE),0) -> 708 | AL58: =IFERROR(VLOOKUP($A58,Filtro_!$A$5:$AW$2561,36,FALSE),0) -> 1314 | AM58: =IFERROR(VLOOKUP($A58,Filtro_!$A$5:$AW$2561,37,FALSE),0) -> 1132 | AN58: =IFERROR(VLOOKUP($A58,Filtro_!$A$5:$AW$2561,38,FALSE),0) -> 1698 | AO58: =IFERROR(VLOOKUP($A58,Filtro_!$A$5:$AW$2561,39,FALSE),0) -> 65 | AP58: =IFERROR(VLOOKUP($A58,Filtro_!$A$5:$AW$2561,40,FALSE),0) -> 88 | DB58: 0 | DC58: 0 | DD58: 0 | DE58: 0
A59: 03030150 | C59: ENFERMERA/O | D59: 1544 | E59: 437 | F59: 1107 | G59: =IFERROR(VLOOKUP($A59,Filtro_!$A$5:$AW$2561,5,FALSE),0) -> 9 | H59: =IFERROR(VLOOKUP($A59,Filtro_!$A$5:$AW$2561,6,FALSE),0) -> 4 | I59: =IFERROR(VLOOKUP($A59,Filtro_!$A$5:$AW$2561,7,FALSE),0) -> 2 | J59: =IFERROR(VLOOKUP($A59,Filtro_!$A$5:$AW$2561,8,FALSE),0) -> 0 | K59: =IFERROR(VLOOKUP($A59,Filtro_!$A$5:$AW$2561,9,FALSE),0) -> 6 | L59: =IFERROR(VLOOKUP($A59,Filtro_!$A$5:$AW$2561,10,FALSE),0) -> 7 | M59: =IFERROR(VLOOKUP($A59,Filtro_!$A$5:$AW$2561,11,FALSE),0) -> 3 | N59: =IFERROR(VLOOKUP($A59,Filtro_!$A$5:$AW$2561,12,FALSE),0) -> 6 | O59: =IFERROR(VLOOKUP($A59,Filtro_!$A$5:$AW$2561,13,FALSE),0) -> 4 | P59: =IFERROR(VLOOKUP($A59,Filtro_!$A$5:$AW$2561,14,FALSE),0) -> 23 | Q59: =IFERROR(VLOOKUP($A59,Filtro_!$A$5:$AW$2561,15,FALSE),0) -> 4 | R59: =IFERROR(VLOOKUP($A59,Filtro_!$A$5:$AW$2561,16,FALSE),0) -> 16 | S59: =IFERROR(VLOOKUP($A59,Filtro_!$A$5:$AW$2561,17,FALSE),0) -> 1 | T59: =IFERROR(VLOOKUP($A59,Filtro_!$A$5:$AW$2561,18,FALSE),0) -> 48 | U59: =IFERROR(VLOOKUP($A59,Filtro_!$A$5:$AW$2561,19,FALSE),0) -> 12 | V59: =IFERROR(VLOOKUP($A59,Filtro_!$A$5:$AW$2561,20,FALSE),0) -> 55 | W59: =IFERROR(VLOOKUP($A59,Filtro_!$A$5:$AW$2561,21,FALSE),0) -> 14 | X59: =IFERROR(VLOOKUP($A59,Filtro_!$A$5:$AW$2561,22,FALSE),0) -> 75 | Y59: =IFERROR(VLOOKUP($A59,Filtro_!$A$5:$AW$2561,23,FALSE),0) -> 15 | Z59: =IFERROR(VLOOKUP($A59,Filtro_!$A$5:$AW$2561,24,FALSE),0) -> 68 | AA59: =IFERROR(VLOOKUP($A59,Filtro_!$A$5:$AW$2561,25,FALSE),0) -> 26 | AB59: =IFERROR(VLOOKUP($A59,Filtro_!$A$5:$AW$2561,26,FALSE),0) -> 107 | AC59: =IFERROR(VLOOKUP($A59,Filtro_!$A$5:$AW$2561,27,FALSE),0) -> 39 | AD59: =IFERROR(VLOOKUP($A59,Filtro_!$A$5:$AW$2561,28,FALSE),0) -> 116 | AE59: =IFERROR(VLOOKUP($A59,Filtro_!$A$5:$AW$2561,29,FALSE),0) -> 54 | AF59: =IFERROR(VLOOKUP($A59,Filtro_!$A$5:$AW$2561,30,FALSE),0) -> 125 | AG59: =IFERROR(VLOOKUP($A59,Filtro_!$A$5:$AW$2561,31,FALSE),0) -> 65 | AH59: =IFERROR(VLOOKUP($A59,Filtro_!$A$5:$AW$2561,32,FALSE),0) -> 118 | AI59: =IFERROR(VLOOKUP($A59,Filtro_!$A$5:$AW$2561,33,FALSE),0) -> 62 | AJ59: =IFERROR(VLOOKUP($A59,Filtro_!$A$5:$AW$2561,34,FALSE),0) -> 120 | AK59: =IFERROR(VLOOKUP($A59,Filtro_!$A$5:$AW$2561,35,FALSE),0) -> 46 | AL59: =IFERROR(VLOOKUP($A59,Filtro_!$A$5:$AW$2561,36,FALSE),0) -> 95 | AM59: =IFERROR(VLOOKUP($A59,Filtro_!$A$5:$AW$2561,37,FALSE),0) -> 75 | AN59: =IFERROR(VLOOKUP($A59,Filtro_!$A$5:$AW$2561,38,FALSE),0) -> 124 | AO59: =IFERROR(VLOOKUP($A59,Filtro_!$A$5:$AW$2561,39,FALSE),0) -> 6 | AP59: =IFERROR(VLOOKUP($A59,Filtro_!$A$5:$AW$2561,40,FALSE),0) -> 5 | DB59: 0 | DD59: 0
A60: 03030170 | C60: MATRONA/ÓN | D60: 172 | E60: 11 | F60: 161 | G60: =IFERROR(VLOOKUP($A60,Filtro_!$A$5:$AW$2561,5,FALSE),0) -> 2 | H60: =IFERROR(VLOOKUP($A60,Filtro_!$A$5:$AW$2561,6,FALSE),0) -> 1 | I60: =IFERROR(VLOOKUP($A60,Filtro_!$A$5:$AW$2561,7,FALSE),0) -> 0 | J60: =IFERROR(VLOOKUP($A60,Filtro_!$A$5:$AW$2561,8,FALSE),0) -> 1 | K60: =IFERROR(VLOOKUP($A60,Filtro_!$A$5:$AW$2561,9,FALSE),0) -> 0 | L60: =IFERROR(VLOOKUP($A60,Filtro_!$A$5:$AW$2561,10,FALSE),0) -> 2 | M60: =IFERROR(VLOOKUP($A60,Filtro_!$A$5:$AW$2561,11,FALSE),0) -> 0 | N60: =IFERROR(VLOOKUP($A60,Filtro_!$A$5:$AW$2561,12,FALSE),0) -> 13 | O60: =IFERROR(VLOOKUP($A60,Filtro_!$A$5:$AW$2561,13,FALSE),0) -> 0 | P60: =IFERROR(VLOOKUP($A60,Filtro_!$A$5:$AW$2561,14,FALSE),0) -> 24 | Q60: =IFERROR(VLOOKUP($A60,Filtro_!$A$5:$AW$2561,15,FALSE),0) -> 2 | R60: =IFERROR(VLOOKUP($A60,Filtro_!$A$5:$AW$2561,16,FALSE),0) -> 21 | S60: =IFERROR(VLOOKUP($A60,Filtro_!$A$5:$AW$2561,17,FALSE),0) -> 0 | T60: =IFERROR(VLOOKUP($A60,Filtro_!$A$5:$AW$2561,18,FALSE),0) -> 26 | U60: =IFERROR(VLOOKUP($A60,Filtro_!$A$5:$AW$2561,19,FALSE),0) -> 0 | V60: =IFERROR(VLOOKUP($A60,Filtro_!$A$5:$AW$2561,20,FALSE),0) -> 19 | W60: =IFERROR(VLOOKUP($A60,Filtro_!$A$5:$AW$2561,21,FALSE),0) -> 0 | X60: =IFERROR(VLOOKUP($A60,Filtro_!$A$5:$AW$2561,22,FALSE),0) -> 8 | Y60: =IFERROR(VLOOKUP($A60,Filtro_!$A$5:$AW$2561,23,FALSE),0) -> 0 | Z60: =IFERROR(VLOOKUP($A60,Filtro_!$A$5:$AW$2561,24,FALSE),0) -> 3 | AA60: =IFERROR(VLOOKUP($A60,Filtro_!$A$5:$AW$2561,25,FALSE),0) -> 0 | AB60: =IFERROR(VLOOKUP($A60,Filtro_!$A$5:$AW$2561,26,FALSE),0) -> 7 | AC60: =IFERROR(VLOOKUP($A60,Filtro_!$A$5:$AW$2561,27,FALSE),0) -> 0 | AD60: =IFERROR(VLOOKUP($A60,Filtro_!$A$5:$AW$2561,28,FALSE),0) -> 10 | AE60: =IFERROR(VLOOKUP($A60,Filtro_!$A$5:$AW$2561,29,FALSE),0) -> 1 | AF60: =IFERROR(VLOOKUP($A60,Filtro_!$A$5:$AW$2561,30,FALSE),0) -> 6 | AG60: =IFERROR(VLOOKUP($A60,Filtro_!$A$5:$AW$2561,31,FALSE),0) -> 0 | AH60: =IFERROR(VLOOKUP($A60,Filtro_!$A$5:$AW$2561,32,FALSE),0) -> 2 | AI60: =IFERROR(VLOOKUP($A60,Filtro_!$A$5:$AW$2561,33,FALSE),0) -> 0 | AJ60: =IFERROR(VLOOKUP($A60,Filtro_!$A$5:$AW$2561,34,FALSE),0) -> 4 | AK60: =IFERROR(VLOOKUP($A60,Filtro_!$A$5:$AW$2561,35,FALSE),0) -> 1 | AL60: =IFERROR(VLOOKUP($A60,Filtro_!$A$5:$AW$2561,36,FALSE),0) -> 3 | AM60: =IFERROR(VLOOKUP($A60,Filtro_!$A$5:$AW$2561,37,FALSE),0) -> 5 | AN60: =IFERROR(VLOOKUP($A60,Filtro_!$A$5:$AW$2561,38,FALSE),0) -> 11 | AO60: =IFERROR(VLOOKUP($A60,Filtro_!$A$5:$AW$2561,39,FALSE),0) -> 0 | AP60: =IFERROR(VLOOKUP($A60,Filtro_!$A$5:$AW$2561,40,FALSE),0) -> 9 | DB60: 0 | DD60: 0
A61: 03030160 | C61: NUTRICIONISTA | D61: 2360 | E61: 644 | F61: 1716 | G61: =IFERROR(VLOOKUP($A61,Filtro_!$A$5:$AW$2561,5,FALSE),0) -> 154 | H61: =IFERROR(VLOOKUP($A61,Filtro_!$A$5:$AW$2561,6,FALSE),0) -> 134 | I61: =IFERROR(VLOOKUP($A61,Filtro_!$A$5:$AW$2561,7,FALSE),0) -> 68 | J61: =IFERROR(VLOOKUP($A61,Filtro_!$A$5:$AW$2561,8,FALSE),0) -> 68 | K61: =IFERROR(VLOOKUP($A61,Filtro_!$A$5:$AW$2561,9,FALSE),0) -> 43 | L61: =IFERROR(VLOOKUP($A61,Filtro_!$A$5:$AW$2561,10,FALSE),0) -> 53 | M61: =IFERROR(VLOOKUP($A61,Filtro_!$A$5:$AW$2561,11,FALSE),0) -> 25 | N61: =IFERROR(VLOOKUP($A61,Filtro_!$A$5:$AW$2561,12,FALSE),0) -> 58 | O61: =IFERROR(VLOOKUP($A61,Filtro_!$A$5:$AW$2561,13,FALSE),0) -> 30 | P61: =IFERROR(VLOOKUP($A61,Filtro_!$A$5:$AW$2561,14,FALSE),0) -> 121 | Q61: =IFERROR(VLOOKUP($A61,Filtro_!$A$5:$AW$2561,15,FALSE),0) -> 23 | R61: =IFERROR(VLOOKUP($A61,Filtro_!$A$5:$AW$2561,16,FALSE),0) -> 115 | S61: =IFERROR(VLOOKUP($A61,Filtro_!$A$5:$AW$2561,17,FALSE),0) -> 18 | T61: =IFERROR(VLOOKUP($A61,Filtro_!$A$5:$AW$2561,18,FALSE),0) -> 138 | U61: =IFERROR(VLOOKUP($A61,Filtro_!$A$5:$AW$2561,19,FALSE),0) -> 22 | V61: =IFERROR(VLOOKUP($A61,Filtro_!$A$5:$AW$2561,20,FALSE),0) -> 127 | W61: =IFERROR(VLOOKUP($A61,Filtro_!$A$5:$AW$2561,21,FALSE),0) -> 30 | X61: =IFERROR(VLOOKUP($A61,Filtro_!$A$5:$AW$2561,22,FALSE),0) -> 130 | Y61: =IFERROR(VLOOKUP($A61,Filtro_!$A$5:$AW$2561,23,FALSE),0) -> 26 | Z61: =IFERROR(VLOOKUP($A61,Filtro_!$A$5:$AW$2561,24,FALSE),0) -> 136 | AA61: =IFERROR(VLOOKUP($A61,Filtro_!$A$5:$AW$2561,25,FALSE),0) -> 28 | AB61: =IFERROR(VLOOKUP($A61,Filtro_!$A$5:$AW$2561,26,FALSE),0) -> 149 | AC61: =IFERROR(VLOOKUP($A61,Filtro_!$A$5:$AW$2561,27,FALSE),0) -> 30 | AD61: =IFERROR(VLOOKUP($A61,Filtro_!$A$5:$AW$2561,28,FALSE),0) -> 131 | AE61: =IFERROR(VLOOKUP($A61,Filtro_!$A$5:$AW$2561,29,FALSE),0) -> 27 | AF61: =IFERROR(VLOOKUP($A61,Filtro_!$A$5:$AW$2561,30,FALSE),0) -> 120 | AG61: =IFERROR(VLOOKUP($A61,Filtro_!$A$5:$AW$2561,31,FALSE),0) -> 36 | AH61: =IFERROR(VLOOKUP($A61,Filtro_!$A$5:$AW$2561,32,FALSE),0) -> 83 | AI61: =IFERROR(VLOOKUP($A61,Filtro_!$A$5:$AW$2561,33,FALSE),0) -> 32 | AJ61: =IFERROR(VLOOKUP($A61,Filtro_!$A$5:$AW$2561,34,FALSE),0) -> 68 | AK61: =IFERROR(VLOOKUP($A61,Filtro_!$A$5:$AW$2561,35,FALSE),0) -> 27 | AL61: =IFERROR(VLOOKUP($A61,Filtro_!$A$5:$AW$2561,36,FALSE),0) -> 50 | AM61: =IFERROR(VLOOKUP($A61,Filtro_!$A$5:$AW$2561,37,FALSE),0) -> 25 | AN61: =IFERROR(VLOOKUP($A61,Filtro_!$A$5:$AW$2561,38,FALSE),0) -> 35 | AO61: =IFERROR(VLOOKUP($A61,Filtro_!$A$5:$AW$2561,39,FALSE),0) -> 25 | AP61: =IFERROR(VLOOKUP($A61,Filtro_!$A$5:$AW$2561,40,FALSE),0) -> 55 | DB61: 0 | DD61: 0
A62: 03030180 | C62: TÉCNICO EN ENFERMERÍA | D62: 227 | E62: 100 | F62: 127 | G62: =IFERROR(VLOOKUP($A62,Filtro_!$A$5:$AW$2561,5,FALSE),0) -> 4 | H62: =IFERROR(VLOOKUP($A62,Filtro_!$A$5:$AW$2561,6,FALSE),0) -> 2 | I62: =IFERROR(VLOOKUP($A62,Filtro_!$A$5:$AW$2561,7,FALSE),0) -> 3 | J62: =IFERROR(VLOOKUP($A62,Filtro_!$A$5:$AW$2561,8,FALSE),0) -> 2 | K62: =IFERROR(VLOOKUP($A62,Filtro_!$A$5:$AW$2561,9,FALSE),0) -> 3 | L62: =IFERROR(VLOOKUP($A62,Filtro_!$A$5:$AW$2561,10,FALSE),0) -> 2 | M62: =IFERROR(VLOOKUP($A62,Filtro_!$A$5:$AW$2561,11,FALSE),0) -> 2 | N62: =IFERROR(VLOOKUP($A62,Filtro_!$A$5:$AW$2561,12,FALSE),0) -> 1 | O62: =IFERROR(VLOOKUP($A62,Filtro_!$A$5:$AW$2561,13,FALSE),0) -> 6 | P62: =IFERROR(VLOOKUP($A62,Filtro_!$A$5:$AW$2561,14,FALSE),0) -> 17 | Q62: =IFERROR(VLOOKUP($A62,Filtro_!$A$5:$AW$2561,15,FALSE),0) -> 1 | R62: =IFERROR(VLOOKUP($A62,Filtro_!$A$5:$AW$2561,16,FALSE),0) -> 9 | S62: =IFERROR(VLOOKUP($A62,Filtro_!$A$5:$AW$2561,17,FALSE),0) -> 6 | T62: =IFERROR(VLOOKUP($A62,Filtro_!$A$5:$AW$2561,18,FALSE),0) -> 20 | U62: =IFERROR(VLOOKUP($A62,Filtro_!$A$5:$AW$2561,19,FALSE),0) -> 5 | V62: =IFERROR(VLOOKUP($A62,Filtro_!$A$5:$AW$2561,20,FALSE),0) -> 11 | W62: =IFERROR(VLOOKUP($A62,Filtro_!$A$5:$AW$2561,21,FALSE),0) -> 15 | X62: =IFERROR(VLOOKUP($A62,Filtro_!$A$5:$AW$2561,22,FALSE),0) -> 12 | Y62: =IFERROR(VLOOKUP($A62,Filtro_!$A$5:$AW$2561,23,FALSE),0) -> 10 | Z62: =IFERROR(VLOOKUP($A62,Filtro_!$A$5:$AW$2561,24,FALSE),0) -> 2 | AA62: =IFERROR(VLOOKUP($A62,Filtro_!$A$5:$AW$2561,25,FALSE),0) -> 3 | AB62: =IFERROR(VLOOKUP($A62,Filtro_!$A$5:$AW$2561,26,FALSE),0) -> 9 | AC62: =IFERROR(VLOOKUP($A62,Filtro_!$A$5:$AW$2561,27,FALSE),0) -> 8 | AD62: =IFERROR(VLOOKUP($A62,Filtro_!$A$5:$AW$2561,28,FALSE),0) -> 13 | AE62: =IFERROR(VLOOKUP($A62,Filtro_!$A$5:$AW$2561,29,FALSE),0) -> 5 | AF62: =IFERROR(VLOOKUP($A62,Filtro_!$A$5:$AW$2561,30,FALSE),0) -> 5 | AG62: =IFERROR(VLOOKUP($A62,Filtro_!$A$5:$AW$2561,31,FALSE),0) -> 10 | AH62: =IFERROR(VLOOKUP($A62,Filtro_!$A$5:$AW$2561,32,FALSE),0) -> 6 | AI62: =IFERROR(VLOOKUP($A62,Filtro_!$A$5:$AW$2561,33,FALSE),0) -> 9 | AJ62: =IFERROR(VLOOKUP($A62,Filtro_!$A$5:$AW$2561,34,FALSE),0) -> 3 | AK62: =IFERROR(VLOOKUP($A62,Filtro_!$A$5:$AW$2561,35,FALSE),0) -> 4 | AL62: =IFERROR(VLOOKUP($A62,Filtro_!$A$5:$AW$2561,36,FALSE),0) -> 5 | AM62: =IFERROR(VLOOKUP($A62,Filtro_!$A$5:$AW$2561,37,FALSE),0) -> 6 | AN62: =IFERROR(VLOOKUP($A62,Filtro_!$A$5:$AW$2561,38,FALSE),0) -> 8 | AO62: =IFERROR(VLOOKUP($A62,Filtro_!$A$5:$AW$2561,39,FALSE),0) -> 8 | AP62: =IFERROR(VLOOKUP($A62,Filtro_!$A$5:$AW$2561,40,FALSE),0) -> 0 | DB62: 0 | DD62: 0
A63: 09600206 | C63: OTROS PROFESIONALES DEBIDAMENTE CAPACITADOS | D63: =SUM(E63:F63) -> 0 | E63: =SUM(G63+I63+K63+M63+O63+Q63+S63+U63+W63+Y63+AA63+AC63+AE63+AG63+AI63+AK63+AM63) -> 0 | F63: =SUM(H63+J63+L63+N63+P63+R63+T63+V63+X63+Z63+AB63+AD63+AF63+AH63+AJ63+AL63+AN63) -> 0 | G63: =IFERROR(VLOOKUP($A63,Filtro_!$A$5:$AW$2561,5,FALSE),0) -> 0 | H63: =IFERROR(VLOOKUP($A63,Filtro_!$A$5:$AW$2561,6,FALSE),0) -> 0 | I63: =IFERROR(VLOOKUP($A63,Filtro_!$A$5:$AW$2561,7,FALSE),0) -> 0 | J63: =IFERROR(VLOOKUP($A63,Filtro_!$A$5:$AW$2561,8,FALSE),0) -> 0 | K63: =IFERROR(VLOOKUP($A63,Filtro_!$A$5:$AW$2561,9,FALSE),0) -> 0 | L63: =IFERROR(VLOOKUP($A63,Filtro_!$A$5:$AW$2561,10,FALSE),0) -> 0 | M63: =IFERROR(VLOOKUP($A63,Filtro_!$A$5:$AW$2561,11,FALSE),0) -> 0 | N63: =IFERROR(VLOOKUP($A63,Filtro_!$A$5:$AW$2561,12,FALSE),0) -> 0 | O63: =IFERROR(VLOOKUP($A63,Filtro_!$A$5:$AW$2561,13,FALSE),0) -> 0 | P63: =IFERROR(VLOOKUP($A63,Filtro_!$A$5:$AW$2561,14,FALSE),0) -> 0 | Q63: =IFERROR(VLOOKUP($A63,Filtro_!$A$5:$AW$2561,15,FALSE),0) -> 0 | R63: =IFERROR(VLOOKUP($A63,Filtro_!$A$5:$AW$2561,16,FALSE),0) -> 0 | S63: =IFERROR(VLOOKUP($A63,Filtro_!$A$5:$AW$2561,17,FALSE),0) -> 0 | T63: =IFERROR(VLOOKUP($A63,Filtro_!$A$5:$AW$2561,18,FALSE),0) -> 0 | U63: =IFERROR(VLOOKUP($A63,Filtro_!$A$5:$AW$2561,19,FALSE),0) -> 0 | V63: =IFERROR(VLOOKUP($A63,Filtro_!$A$5:$AW$2561,20,FALSE),0) -> 0 | W63: =IFERROR(VLOOKUP($A63,Filtro_!$A$5:$AW$2561,21,FALSE),0) -> 0 | X63: =IFERROR(VLOOKUP($A63,Filtro_!$A$5:$AW$2561,22,FALSE),0) -> 0 | Y63: =IFERROR(VLOOKUP($A63,Filtro_!$A$5:$AW$2561,23,FALSE),0) -> 0 | Z63: =IFERROR(VLOOKUP($A63,Filtro_!$A$5:$AW$2561,24,FALSE),0) -> 0 | AA63: =IFERROR(VLOOKUP($A63,Filtro_!$A$5:$AW$2561,25,FALSE),0) -> 0 | AB63: =IFERROR(VLOOKUP($A63,Filtro_!$A$5:$AW$2561,26,FALSE),0) -> 0 | AC63: =IFERROR(VLOOKUP($A63,Filtro_!$A$5:$AW$2561,27,FALSE),0) -> 0 | AD63: =IFERROR(VLOOKUP($A63,Filtro_!$A$5:$AW$2561,28,FALSE),0) -> 0 | AE63: =IFERROR(VLOOKUP($A63,Filtro_!$A$5:$AW$2561,29,FALSE),0) -> 0 | AF63: =IFERROR(VLOOKUP($A63,Filtro_!$A$5:$AW$2561,30,FALSE),0) -> 0 | AG63: =IFERROR(VLOOKUP($A63,Filtro_!$A$5:$AW$2561,31,FALSE),0) -> 0 | AH63: =IFERROR(VLOOKUP($A63,Filtro_!$A$5:$AW$2561,32,FALSE),0) -> 0 | AI63: =IFERROR(VLOOKUP($A63,Filtro_!$A$5:$AW$2561,33,FALSE),0) -> 0 | AJ63: =IFERROR(VLOOKUP($A63,Filtro_!$A$5:$AW$2561,34,FALSE),0) -> 0 | AK63: =IFERROR(VLOOKUP($A63,Filtro_!$A$5:$AW$2561,35,FALSE),0) -> 0 | AL63: =IFERROR(VLOOKUP($A63,Filtro_!$A$5:$AW$2561,36,FALSE),0) -> 0 | AM63: =IFERROR(VLOOKUP($A63,Filtro_!$A$5:$AW$2561,37,FALSE),0) -> 0 | AN63: =IFERROR(VLOOKUP($A63,Filtro_!$A$5:$AW$2561,38,FALSE),0) -> 0 | AO63: =IFERROR(VLOOKUP($A63,Filtro_!$A$5:$AW$2561,39,FALSE),0) -> 0 | AP63: =IFERROR(VLOOKUP($A63,Filtro_!$A$5:$AW$2561,40,FALSE),0) -> 0 | DB63: 0 | DD63: 0
A64: 01200031 | B64: NIÑOS CON NECESIDADES ESPECIALES | C64: MÉDICO/A | D64: 64 | E64: =SUM(G64+I64+K64+M64) -> 44 | F64: =SUM(H64+J64+L64+N64) -> 20 | G64: =IFERROR(VLOOKUP($A64,Filtro_!$A$5:$AW$2561,5,FALSE),0) -> 27 | H64: =IFERROR(VLOOKUP($A64,Filtro_!$A$5:$AW$2561,6,FALSE),0) -> 12 | I64: =IFERROR(VLOOKUP($A64,Filtro_!$A$5:$AW$2561,7,FALSE),0) -> 10 | J64: =IFERROR(VLOOKUP($A64,Filtro_!$A$5:$AW$2561,8,FALSE),0) -> 4 | K64: =IFERROR(VLOOKUP($A64,Filtro_!$A$5:$AW$2561,9,FALSE),0) -> 5 | L64: =IFERROR(VLOOKUP($A64,Filtro_!$A$5:$AW$2561,10,FALSE),0) -> 3 | M64: =IFERROR(VLOOKUP($A64,Filtro_!$A$5:$AW$2561,11,FALSE),0) -> 2 | N64: =IFERROR(VLOOKUP($A64,Filtro_!$A$5:$AW$2561,12,FALSE),0) -> 1 | O64: =IFERROR(VLOOKUP($A64,Filtro_!$A$5:$AW$2561,13,FALSE),0) -> 0 | P64: =IFERROR(VLOOKUP($A64,Filtro_!$A$5:$AW$2561,14,FALSE),0) -> 0 | Q64: =IFERROR(VLOOKUP($A64,Filtro_!$A$5:$AW$2561,15,FALSE),0) -> 0 | R64: =IFERROR(VLOOKUP($A64,Filtro_!$A$5:$AW$2561,16,FALSE),0) -> 0 | S64: =IFERROR(VLOOKUP($A64,Filtro_!$A$5:$AW$2561,17,FALSE),0) -> 0 | T64: =IFERROR(VLOOKUP($A64,Filtro_!$A$5:$AW$2561,18,FALSE),0) -> 0 | U64: =IFERROR(VLOOKUP($A64,Filtro_!$A$5:$AW$2561,19,FALSE),0) -> 0 | V64: =IFERROR(VLOOKUP($A64,Filtro_!$A$5:$AW$2561,20,FALSE),0) -> 0 | W64: =IFERROR(VLOOKUP($A64,Filtro_!$A$5:$AW$2561,21,FALSE),0) -> 0 | X64: =IFERROR(VLOOKUP($A64,Filtro_!$A$5:$AW$2561,22,FALSE),0) -> 0 | Y64: =IFERROR(VLOOKUP($A64,Filtro_!$A$5:$AW$2561,23,FALSE),0) -> 0 | Z64: =IFERROR(VLOOKUP($A64,Filtro_!$A$5:$AW$2561,24,FALSE),0) -> 0 | AA64: =IFERROR(VLOOKUP($A64,Filtro_!$A$5:$AW$2561,25,FALSE),0) -> 0 | AB64: =IFERROR(VLOOKUP($A64,Filtro_!$A$5:$AW$2561,26,FALSE),0) -> 0 | AC64: =IFERROR(VLOOKUP($A64,Filtro_!$A$5:$AW$2561,27,FALSE),0) -> 0 | AD64: =IFERROR(VLOOKUP($A64,Filtro_!$A$5:$AW$2561,28,FALSE),0) -> 0 | AE64: =IFERROR(VLOOKUP($A64,Filtro_!$A$5:$AW$2561,29,FALSE),0) -> 0 | AF64: =IFERROR(VLOOKUP($A64,Filtro_!$A$5:$AW$2561,30,FALSE),0) -> 0 | AG64: =IFERROR(VLOOKUP($A64,Filtro_!$A$5:$AW$2561,31,FALSE),0) -> 0 | AH64: =IFERROR(VLOOKUP($A64,Filtro_!$A$5:$AW$2561,32,FALSE),0) -> 0 | AI64: =IFERROR(VLOOKUP($A64,Filtro_!$A$5:$AW$2561,33,FALSE),0) -> 0 | AJ64: =IFERROR(VLOOKUP($A64,Filtro_!$A$5:$AW$2561,34,FALSE),0) -> 0 | AK64: =IFERROR(VLOOKUP($A64,Filtro_!$A$5:$AW$2561,35,FALSE),0) -> 0 | AL64: =IFERROR(VLOOKUP($A64,Filtro_!$A$5:$AW$2561,36,FALSE),0) -> 0 | AM64: =IFERROR(VLOOKUP($A64,Filtro_!$A$5:$AW$2561,37,FALSE),0) -> 0 | AN64: =IFERROR(VLOOKUP($A64,Filtro_!$A$5:$AW$2561,38,FALSE),0) -> 0 | AO64: =IFERROR(VLOOKUP($A64,Filtro_!$A$5:$AW$2561,39,FALSE),0) -> 0 | AP64: =IFERROR(VLOOKUP($A64,Filtro_!$A$5:$AW$2561,40,FALSE),0) -> 0 | DB64: 0 | DC64: 0 | DD64: 0 | DE64: 0
A65: 01200032 | C65: ENFERMERA/O | D65: 602 | E65: 383 | F65: =SUM(H65+J65+L65+N65) -> 219 | G65: =IFERROR(VLOOKUP($A65,Filtro_!$A$5:$AW$2561,5,FALSE),0) -> 260 | H65: =IFERROR(VLOOKUP($A65,Filtro_!$A$5:$AW$2561,6,FALSE),0) -> 158 | I65: =IFERROR(VLOOKUP($A65,Filtro_!$A$5:$AW$2561,7,FALSE),0) -> 91 | J65: =IFERROR(VLOOKUP($A65,Filtro_!$A$5:$AW$2561,8,FALSE),0) -> 45 | K65: =IFERROR(VLOOKUP($A65,Filtro_!$A$5:$AW$2561,9,FALSE),0) -> 20 | L65: =IFERROR(VLOOKUP($A65,Filtro_!$A$5:$AW$2561,10,FALSE),0) -> 9 | M65: =IFERROR(VLOOKUP($A65,Filtro_!$A$5:$AW$2561,11,FALSE),0) -> 12 | N65: =IFERROR(VLOOKUP($A65,Filtro_!$A$5:$AW$2561,12,FALSE),0) -> 7 | O65: =IFERROR(VLOOKUP($A65,Filtro_!$A$5:$AW$2561,13,FALSE),0) -> 0 | P65: =IFERROR(VLOOKUP($A65,Filtro_!$A$5:$AW$2561,14,FALSE),0) -> 0 | Q65: =IFERROR(VLOOKUP($A65,Filtro_!$A$5:$AW$2561,15,FALSE),0) -> 0 | R65: =IFERROR(VLOOKUP($A65,Filtro_!$A$5:$AW$2561,16,FALSE),0) -> 0 | S65: =IFERROR(VLOOKUP($A65,Filtro_!$A$5:$AW$2561,17,FALSE),0) -> 0 | T65: =IFERROR(VLOOKUP($A65,Filtro_!$A$5:$AW$2561,18,FALSE),0) -> 0 | U65: =IFERROR(VLOOKUP($A65,Filtro_!$A$5:$AW$2561,19,FALSE),0) -> 0 | V65: =IFERROR(VLOOKUP($A65,Filtro_!$A$5:$AW$2561,20,FALSE),0) -> 0 | W65: =IFERROR(VLOOKUP($A65,Filtro_!$A$5:$AW$2561,21,FALSE),0) -> 0 | X65: =IFERROR(VLOOKUP($A65,Filtro_!$A$5:$AW$2561,22,FALSE),0) -> 0 | Y65: =IFERROR(VLOOKUP($A65,Filtro_!$A$5:$AW$2561,23,FALSE),0) -> 0 | Z65: =IFERROR(VLOOKUP($A65,Filtro_!$A$5:$AW$2561,24,FALSE),0) -> 0 | AA65: =IFERROR(VLOOKUP($A65,Filtro_!$A$5:$AW$2561,25,FALSE),0) -> 0 | AB65: =IFERROR(VLOOKUP($A65,Filtro_!$A$5:$AW$2561,26,FALSE),0) -> 0 | AC65: =IFERROR(VLOOKUP($A65,Filtro_!$A$5:$AW$2561,27,FALSE),0) -> 0 | AD65: =IFERROR(VLOOKUP($A65,Filtro_!$A$5:$AW$2561,28,FALSE),0) -> 0 | AE65: =IFERROR(VLOOKUP($A65,Filtro_!$A$5:$AW$2561,29,FALSE),0) -> 0 | AF65: =IFERROR(VLOOKUP($A65,Filtro_!$A$5:$AW$2561,30,FALSE),0) -> 0 | AG65: =IFERROR(VLOOKUP($A65,Filtro_!$A$5:$AW$2561,31,FALSE),0) -> 0 | AH65: =IFERROR(VLOOKUP($A65,Filtro_!$A$5:$AW$2561,32,FALSE),0) -> 0 | AI65: =IFERROR(VLOOKUP($A65,Filtro_!$A$5:$AW$2561,33,FALSE),0) -> 0 | AJ65: =IFERROR(VLOOKUP($A65,Filtro_!$A$5:$AW$2561,34,FALSE),0) -> 0 | AK65: =IFERROR(VLOOKUP($A65,Filtro_!$A$5:$AW$2561,35,FALSE),0) -> 0 | AL65: =IFERROR(VLOOKUP($A65,Filtro_!$A$5:$AW$2561,36,FALSE),0) -> 0 | AM65: =IFERROR(VLOOKUP($A65,Filtro_!$A$5:$AW$2561,37,FALSE),0) -> 0 | AN65: =IFERROR(VLOOKUP($A65,Filtro_!$A$5:$AW$2561,38,FALSE),0) -> 0 | AO65: =IFERROR(VLOOKUP($A65,Filtro_!$A$5:$AW$2561,39,FALSE),0) -> 1 | AP65: =IFERROR(VLOOKUP($A65,Filtro_!$A$5:$AW$2561,40,FALSE),0) -> 0 | DB65: 0 | DD65: 0
A66: 01200033 | C66: MATRONA/ÓN | D66: 6 | E66: 2 | F66: 4 | G66: =IFERROR(VLOOKUP($A66,Filtro_!$A$5:$AW$2561,5,FALSE),0) -> 1 | H66: =IFERROR(VLOOKUP($A66,Filtro_!$A$5:$AW$2561,6,FALSE),0) -> 2 | I66: =IFERROR(VLOOKUP($A66,Filtro_!$A$5:$AW$2561,7,FALSE),0) -> 1 | J66: =IFERROR(VLOOKUP($A66,Filtro_!$A$5:$AW$2561,8,FALSE),0) -> 1 | K66: =IFERROR(VLOOKUP($A66,Filtro_!$A$5:$AW$2561,9,FALSE),0) -> 0 | L66: =IFERROR(VLOOKUP($A66,Filtro_!$A$5:$AW$2561,10,FALSE),0) -> 1 | M66: =IFERROR(VLOOKUP($A66,Filtro_!$A$5:$AW$2561,11,FALSE),0) -> 0 | N66: =IFERROR(VLOOKUP($A66,Filtro_!$A$5:$AW$2561,12,FALSE),0) -> 0 | O66: =IFERROR(VLOOKUP($A66,Filtro_!$A$5:$AW$2561,13,FALSE),0) -> 0 | P66: =IFERROR(VLOOKUP($A66,Filtro_!$A$5:$AW$2561,14,FALSE),0) -> 0 | Q66: =IFERROR(VLOOKUP($A66,Filtro_!$A$5:$AW$2561,15,FALSE),0) -> 0 | R66: =IFERROR(VLOOKUP($A66,Filtro_!$A$5:$AW$2561,16,FALSE),0) -> 0 | S66: =IFERROR(VLOOKUP($A66,Filtro_!$A$5:$AW$2561,17,FALSE),0) -> 0 | T66: =IFERROR(VLOOKUP($A66,Filtro_!$A$5:$AW$2561,18,FALSE),0) -> 0 | U66: =IFERROR(VLOOKUP($A66,Filtro_!$A$5:$AW$2561,19,FALSE),0) -> 0 | V66: =IFERROR(VLOOKUP($A66,Filtro_!$A$5:$AW$2561,20,FALSE),0) -> 0 | W66: =IFERROR(VLOOKUP($A66,Filtro_!$A$5:$AW$2561,21,FALSE),0) -> 0 | X66: =IFERROR(VLOOKUP($A66,Filtro_!$A$5:$AW$2561,22,FALSE),0) -> 0 | Y66: =IFERROR(VLOOKUP($A66,Filtro_!$A$5:$AW$2561,23,FALSE),0) -> 0 | Z66: =IFERROR(VLOOKUP($A66,Filtro_!$A$5:$AW$2561,24,FALSE),0) -> 0 | AA66: =IFERROR(VLOOKUP($A66,Filtro_!$A$5:$AW$2561,25,FALSE),0) -> 0 | AB66: =IFERROR(VLOOKUP($A66,Filtro_!$A$5:$AW$2561,26,FALSE),0) -> 0 | AC66: =IFERROR(VLOOKUP($A66,Filtro_!$A$5:$AW$2561,27,FALSE),0) -> 0 | AD66: =IFERROR(VLOOKUP($A66,Filtro_!$A$5:$AW$2561,28,FALSE),0) -> 0 | AE66: =IFERROR(VLOOKUP($A66,Filtro_!$A$5:$AW$2561,29,FALSE),0) -> 0 | AF66: =IFERROR(VLOOKUP($A66,Filtro_!$A$5:$AW$2561,30,FALSE),0) -> 0 | AG66: =IFERROR(VLOOKUP($A66,Filtro_!$A$5:$AW$2561,31,FALSE),0) -> 0 | AH66: =IFERROR(VLOOKUP($A66,Filtro_!$A$5:$AW$2561,32,FALSE),0) -> 0 | AI66: =IFERROR(VLOOKUP($A66,Filtro_!$A$5:$AW$2561,33,FALSE),0) -> 0 | AJ66: =IFERROR(VLOOKUP($A66,Filtro_!$A$5:$AW$2561,34,FALSE),0) -> 0 | AK66: =IFERROR(VLOOKUP($A66,Filtro_!$A$5:$AW$2561,35,FALSE),0) -> 0 | AL66: =IFERROR(VLOOKUP($A66,Filtro_!$A$5:$AW$2561,36,FALSE),0) -> 0 | AM66: =IFERROR(VLOOKUP($A66,Filtro_!$A$5:$AW$2561,37,FALSE),0) -> 0 | AN66: =IFERROR(VLOOKUP($A66,Filtro_!$A$5:$AW$2561,38,FALSE),0) -> 0 | AO66: =IFERROR(VLOOKUP($A66,Filtro_!$A$5:$AW$2561,39,FALSE),0) -> 0 | AP66: =IFERROR(VLOOKUP($A66,Filtro_!$A$5:$AW$2561,40,FALSE),0) -> 0 | DB66: 0 | DD66: 0
A67: 01200034 | C67: NUTRICIONISTA | D67: 161 | E67: 111 | F67: 50 | G67: =IFERROR(VLOOKUP($A67,Filtro_!$A$5:$AW$2561,5,FALSE),0) -> 69 | H67: =IFERROR(VLOOKUP($A67,Filtro_!$A$5:$AW$2561,6,FALSE),0) -> 32 | I67: =IFERROR(VLOOKUP($A67,Filtro_!$A$5:$AW$2561,7,FALSE),0) -> 24 | J67: =IFERROR(VLOOKUP($A67,Filtro_!$A$5:$AW$2561,8,FALSE),0) -> 15 | K67: =IFERROR(VLOOKUP($A67,Filtro_!$A$5:$AW$2561,9,FALSE),0) -> 15 | L67: =IFERROR(VLOOKUP($A67,Filtro_!$A$5:$AW$2561,10,FALSE),0) -> 2 | M67: =IFERROR(VLOOKUP($A67,Filtro_!$A$5:$AW$2561,11,FALSE),0) -> 3 | N67: =IFERROR(VLOOKUP($A67,Filtro_!$A$5:$AW$2561,12,FALSE),0) -> 1 | O67: =IFERROR(VLOOKUP($A67,Filtro_!$A$5:$AW$2561,13,FALSE),0) -> 0 | P67: =IFERROR(VLOOKUP($A67,Filtro_!$A$5:$AW$2561,14,FALSE),0) -> 0 | Q67: =IFERROR(VLOOKUP($A67,Filtro_!$A$5:$AW$2561,15,FALSE),0) -> 0 | R67: =IFERROR(VLOOKUP($A67,Filtro_!$A$5:$AW$2561,16,FALSE),0) -> 0 | S67: =IFERROR(VLOOKUP($A67,Filtro_!$A$5:$AW$2561,17,FALSE),0) -> 0 | T67: =IFERROR(VLOOKUP($A67,Filtro_!$A$5:$AW$2561,18,FALSE),0) -> 0 | U67: =IFERROR(VLOOKUP($A67,Filtro_!$A$5:$AW$2561,19,FALSE),0) -> 0 | V67: =IFERROR(VLOOKUP($A67,Filtro_!$A$5:$AW$2561,20,FALSE),0) -> 0 | W67: =IFERROR(VLOOKUP($A67,Filtro_!$A$5:$AW$2561,21,FALSE),0) -> 0 | X67: =IFERROR(VLOOKUP($A67,Filtro_!$A$5:$AW$2561,22,FALSE),0) -> 0 | Y67: =IFERROR(VLOOKUP($A67,Filtro_!$A$5:$AW$2561,23,FALSE),0) -> 0 | Z67: =IFERROR(VLOOKUP($A67,Filtro_!$A$5:$AW$2561,24,FALSE),0) -> 0 | AA67: =IFERROR(VLOOKUP($A67,Filtro_!$A$5:$AW$2561,25,FALSE),0) -> 0 | AB67: =IFERROR(VLOOKUP($A67,Filtro_!$A$5:$AW$2561,26,FALSE),0) -> 0 | AC67: =IFERROR(VLOOKUP($A67,Filtro_!$A$5:$AW$2561,27,FALSE),0) -> 0 | AD67: =IFERROR(VLOOKUP($A67,Filtro_!$A$5:$AW$2561,28,FALSE),0) -> 0 | AE67: =IFERROR(VLOOKUP($A67,Filtro_!$A$5:$AW$2561,29,FALSE),0) -> 0 | AF67: =IFERROR(VLOOKUP($A67,Filtro_!$A$5:$AW$2561,30,FALSE),0) -> 0 | AG67: =IFERROR(VLOOKUP($A67,Filtro_!$A$5:$AW$2561,31,FALSE),0) -> 0 | AH67: =IFERROR(VLOOKUP($A67,Filtro_!$A$5:$AW$2561,32,FALSE),0) -> 0 | AI67: =IFERROR(VLOOKUP($A67,Filtro_!$A$5:$AW$2561,33,FALSE),0) -> 0 | AJ67: =IFERROR(VLOOKUP($A67,Filtro_!$A$5:$AW$2561,34,FALSE),0) -> 0 | AK67: =IFERROR(VLOOKUP($A67,Filtro_!$A$5:$AW$2561,35,FALSE),0) -> 0 | AL67: =IFERROR(VLOOKUP($A67,Filtro_!$A$5:$AW$2561,36,FALSE),0) -> 0 | AM67: =IFERROR(VLOOKUP($A67,Filtro_!$A$5:$AW$2561,37,FALSE),0) -> 0 | AN67: =IFERROR(VLOOKUP($A67,Filtro_!$A$5:$AW$2561,38,FALSE),0) -> 0 | AO67: =IFERROR(VLOOKUP($A67,Filtro_!$A$5:$AW$2561,39,FALSE),0) -> 0 | AP67: =IFERROR(VLOOKUP($A67,Filtro_!$A$5:$AW$2561,40,FALSE),0) -> 1 | DB67: 0 | DD67: 0
B68: SECCIÓN D: CONTROL DE SALUD INTEGRAL DE ADOLESCENTES (incluidos en sección B)
B69: LUGAR DEL CONTROL, SEGÚN EDAD | D69: 10 A 14 AÑOS | I69: 15 A 19 AÑOS | N69: Niños, Niñas, Adolescentes y Jóvenes SENAME | O69: Niños, Niñas, Adolescentes y Jóvenes Mejor Niñez
D70: Ambos Sexos | E70: Hombres | F70: Mujeres | G70: Pueblos Originarios | H70: Migrantes | I70: Ambos Sexos | J70: Hombres | K70: Mujeres | L70: Pueblos Originarios | M70: Migrantes
A71: 01030500 | B71: EN ESPACIO AMIGABLE | D71: =SUM(E71:F71) -> 755 | E71: =IFERROR(VLOOKUP($A71,Filtro_!$A$5:$AW$2561,3,FALSE),0) -> 283 | F71: =IFERROR(VLOOKUP($A71,Filtro_!$A$5:$AW$2561,4,FALSE),0) -> 472 | G71: =IFERROR(VLOOKUP($A71,Filtro_!$A$5:$AW$2561,5,FALSE),0) -> 23 | H71: =IFERROR(VLOOKUP($A71,Filtro_!$A$5:$AW$2561,6,FALSE),0) -> 20 | I71: =SUM(J71:K71) -> 678 | J71: =IFERROR(VLOOKUP($A71,Filtro_!$A$5:$AW$2561,8,FALSE),0) -> 185 | K71: =IFERROR(VLOOKUP($A71,Filtro_!$A$5:$AW$2561,9,FALSE),0) -> 493 | L71: =IFERROR(VLOOKUP($A71,Filtro_!$A$5:$AW$2561,10,FALSE),0) -> 30 | M71: =IFERROR(VLOOKUP($A71,Filtro_!$A$5:$AW$2561,11,FALSE),0) -> 31 | N71: =IFERROR(VLOOKUP($A71,Filtro_!$A$5:$AW$2561,12,FALSE),0) -> 9 | O71: =IFERROR(VLOOKUP($A71,Filtro_!$A$5:$AW$2561,13,FALSE),0) -> 38 | CB71: * Niños, Niñas, Adolescentes y Jóvenes SENAME NO DEBE ser mayor al Total. | CF71: * Pueblos Originarios NO DEBE ser mayor al Total de controles de adolescentes de 10 a 14 años. | CH71: * Migrantes NO DEBE ser mayor al Total de controles de adolescentes de 10 a 14 años. | CJ71: * Pueblos Originarios NO DEBE ser mayor al Total de controles de adolescentes de 15 a 19 años. | CL71: * Migrantes NO DEBE ser mayor al Total de controles de adolescentes de 15 a 19 años. | DB71: 1 | DF71: 1 | DH71: 1 | DJ71: 1 | DL71: 1
A72: 01030600 | B72: EN OTROS ESPACIOS DEL ESTABLECIMIENTO DE SALUD | D72: =SUM(E72:F72) -> 2541 | E72: =IFERROR(VLOOKUP($A72,Filtro_!$A$5:$AW$2561,3,FALSE),0) -> 1119 | F72: =IFERROR(VLOOKUP($A72,Filtro_!$A$5:$AW$2561,4,FALSE),0) -> 1422 | G72: =IFERROR(VLOOKUP($A72,Filtro_!$A$5:$AW$2561,5,FALSE),0) -> 161 | H72: =IFERROR(VLOOKUP($A72,Filtro_!$A$5:$AW$2561,6,FALSE),0) -> 114 | I72: =SUM(J72:K72) -> 1039 | J72: =IFERROR(VLOOKUP($A72,Filtro_!$A$5:$AW$2561,8,FALSE),0) -> 361 | K72: =IFERROR(VLOOKUP($A72,Filtro_!$A$5:$AW$2561,9,FALSE),0) -> 678 | L72: =IFERROR(VLOOKUP($A72,Filtro_!$A$5:$AW$2561,10,FALSE),0) -> 87 | M72: =IFERROR(VLOOKUP($A72,Filtro_!$A$5:$AW$2561,11,FALSE),0) -> 62 | N72: =IFERROR(VLOOKUP($A72,Filtro_!$A$5:$AW$2561,12,FALSE),0) -> 47 | O72: =IFERROR(VLOOKUP($A72,Filtro_!$A$5:$AW$2561,13,FALSE),0) -> 46 | CF72: * Pueblos Originarios NO DEBE ser mayor al Total de controles de adolescentes de 10 a 14 años. | CH72: * Migrantes NO DEBE ser mayor al Total de controles de adolescentes de 10 a 14 años. | CJ72: * Pueblos Originarios NO DEBE ser mayor al Total de controles de adolescentes de 15 a 19 años. | DF72: 1 | DH72: 1 | DJ72: 1
A73: 01030700 | B73: EN ESTABLECIMIENTOS EDUCACIONALES | D73: =SUM(E73:F73) -> 2711 | E73: =IFERROR(VLOOKUP($A73,Filtro_!$A$5:$AW$2561,3,FALSE),0) -> 1280 | F73: =IFERROR(VLOOKUP($A73,Filtro_!$A$5:$AW$2561,4,FALSE),0) -> 1431 | G73: =IFERROR(VLOOKUP($A73,Filtro_!$A$5:$AW$2561,5,FALSE),0) -> 102 | H73: =IFERROR(VLOOKUP($A73,Filtro_!$A$5:$AW$2561,6,FALSE),0) -> 96 | I73: =SUM(J73:K73) -> 662 | J73: =IFERROR(VLOOKUP($A73,Filtro_!$A$5:$AW$2561,8,FALSE),0) -> 295 | K73: =IFERROR(VLOOKUP($A73,Filtro_!$A$5:$AW$2561,9,FALSE),0) -> 367 | L73: =IFERROR(VLOOKUP($A73,Filtro_!$A$5:$AW$2561,10,FALSE),0) -> 38 | M73: =IFERROR(VLOOKUP($A73,Filtro_!$A$5:$AW$2561,11,FALSE),0) -> 22 | N73: =IFERROR(VLOOKUP($A73,Filtro_!$A$5:$AW$2561,12,FALSE),0) -> 3 | O73: =IFERROR(VLOOKUP($A73,Filtro_!$A$5:$AW$2561,13,FALSE),0) -> 1 | CF73: * Pueblos Originarios NO DEBE ser mayor al Total de controles de adolescentes de 10 a 14 años. | CH73: * Migrantes NO DEBE ser mayor al Total de controles de adolescentes de 10 a 14 años. | CJ73: * Pueblos Originarios NO DEBE ser mayor al Total de controles de adolescentes de 15 a 19 años. | DF73: 1 | DH73: 1 | DJ73: 1
A74: 01030800 | B74: EN OTROS LUGARES FUERA DEL ESTABLECIMIENTO DE SALUD | D74: =SUM(E74:F74) -> 231 | E74: =IFERROR(VLOOKUP($A74,Filtro_!$A$5:$AW$2561,3,FALSE),0) -> 108 | F74: =IFERROR(VLOOKUP($A74,Filtro_!$A$5:$AW$2561,4,FALSE),0) -> 123 | G74: =IFERROR(VLOOKUP($A74,Filtro_!$A$5:$AW$2561,5,FALSE),0) -> 7 | H74: =IFERROR(VLOOKUP($A74,Filtro_!$A$5:$AW$2561,6,FALSE),0) -> 3 | I74: =SUM(J74:K74) -> 67 | J74: =IFERROR(VLOOKUP($A74,Filtro_!$A$5:$AW$2561,8,FALSE),0) -> 42 | K74: =IFERROR(VLOOKUP($A74,Filtro_!$A$5:$AW$2561,9,FALSE),0) -> 25 | L74: =IFERROR(VLOOKUP($A74,Filtro_!$A$5:$AW$2561,10,FALSE),0) -> 5 | M74: =IFERROR(VLOOKUP($A74,Filtro_!$A$5:$AW$2561,11,FALSE),0) -> 0 | N74: =IFERROR(VLOOKUP($A74,Filtro_!$A$5:$AW$2561,12,FALSE),0) -> 40 | O74: =IFERROR(VLOOKUP($A74,Filtro_!$A$5:$AW$2561,13,FALSE),0) -> 82 | CD74: * Niños, Niñas, Adolescentes y Jóvenes Mejor Niñez NO DEBE ser mayor al Total. | CF74: * Pueblos Originarios NO DEBE ser mayor al Total de controles de adolescentes de 10 a 14 años. | CH74: * Migrantes NO DEBE ser mayor al Total de controles de adolescentes de 10 a 14 años. | CJ74: * Pueblos Originarios NO DEBE ser mayor al Total de controles de adolescentes de 15 a 19 años. | CL74: * Migrantes NO DEBE ser mayor al Total de controles de adolescentes de 15 a 19 años. | DD74: 1 | DF74: 1 | DH74: 1 | DJ74: 1 | DL74: 1
B75: TOTAL | D75: =SUM(D71:D74) -> 6238 | E75: =SUM(E71:E74) -> 2790 | F75: 3448 | G75: 293 | H75: =SUM(H71:H74) -> 233 | I75: 2446 | J75: 883 | K75: 1563 | L75: 160 | M75: 115 | N75: =SUM(N71:N74) -> 99 | O75: =SUM(O71:O74) -> 167
B76: SECCIÓN E: CONTROLES DE SALUD EN ESTABLECIMIENTOS EDUCACIONALES
B77: SECCIÓN E1: CONTROLES INDIVIDUALES
B78: CURSO | C78: TOTAL | D78: SEXO | F78: Pueblos Originarios | G78: Migrantes | H78: Niños, Niñas, Adolescentes y Jóvenes SENAME | I78: Niños, Niñas, Adolescentes y Jóvenes Mejor Niñez
D79: Hombres | E79: Mujeres
A80: 01031000 | B80: KÍNDER | C80: =SUM(D80:E80) -> 326 | D80: =IFERROR(VLOOKUP($A80,Filtro_!$A$5:$AW$2561,3,FALSE),0) -> 142 | E80: =IFERROR(VLOOKUP($A80,Filtro_!$A$5:$AW$2561,4,FALSE),0) -> 184 | F80: =IFERROR(VLOOKUP($A80,Filtro_!$A$5:$AW$2561,5,FALSE),0) -> 0 | G80: =IFERROR(VLOOKUP($A80,Filtro_!$A$5:$AW$2561,6,FALSE),0) -> 1 | H80: =IFERROR(VLOOKUP($A80,Filtro_!$A$5:$AW$2561,7,FALSE),0) -> 0 | I80: =IFERROR(VLOOKUP($A80,Filtro_!$A$5:$AW$2561,8,FALSE),0) -> 0
A81: 01031100 | B81: PRIMERO BÁSICO | C81: =SUM(D81:E81) -> 498 | D81: =IFERROR(VLOOKUP($A81,Filtro_!$A$5:$AW$2561,3,FALSE),0) -> 246 | E81: =IFERROR(VLOOKUP($A81,Filtro_!$A$5:$AW$2561,4,FALSE),0) -> 252 | F81: =IFERROR(VLOOKUP($A81,Filtro_!$A$5:$AW$2561,5,FALSE),0) -> 4 | G81: =IFERROR(VLOOKUP($A81,Filtro_!$A$5:$AW$2561,6,FALSE),0) -> 5 | H81: =IFERROR(VLOOKUP($A81,Filtro_!$A$5:$AW$2561,7,FALSE),0) -> 1 | I81: =IFERROR(VLOOKUP($A81,Filtro_!$A$5:$AW$2561,8,FALSE),0) -> 0
A82: 01031200 | B82: SEGUNDO BÁSICO | C82: =SUM(D82:E82) -> 606 | D82: =IFERROR(VLOOKUP($A82,Filtro_!$A$5:$AW$2561,3,FALSE),0) -> 279 | E82: =IFERROR(VLOOKUP($A82,Filtro_!$A$5:$AW$2561,4,FALSE),0) -> 327 | F82: =IFERROR(VLOOKUP($A82,Filtro_!$A$5:$AW$2561,5,FALSE),0) -> 0 | G82: =IFERROR(VLOOKUP($A82,Filtro_!$A$5:$AW$2561,6,FALSE),0) -> 5 | H82: =IFERROR(VLOOKUP($A82,Filtro_!$A$5:$AW$2561,7,FALSE),0) -> 0 | I82: =IFERROR(VLOOKUP($A82,Filtro_!$A$5:$AW$2561,8,FALSE),0) -> 0
A83: 01031300 | B83: TERCERO BÁSICO | C83: =SUM(D83:E83) -> 670 | D83: =IFERROR(VLOOKUP($A83,Filtro_!$A$5:$AW$2561,3,FALSE),0) -> 320 | E83: =IFERROR(VLOOKUP($A83,Filtro_!$A$5:$AW$2561,4,FALSE),0) -> 350 | F83: =IFERROR(VLOOKUP($A83,Filtro_!$A$5:$AW$2561,5,FALSE),0) -> 3 | G83: =IFERROR(VLOOKUP($A83,Filtro_!$A$5:$AW$2561,6,FALSE),0) -> 2 | H83: =IFERROR(VLOOKUP($A83,Filtro_!$A$5:$AW$2561,7,FALSE),0) -> 0 | I83: =IFERROR(VLOOKUP($A83,Filtro_!$A$5:$AW$2561,8,FALSE),0) -> 0
A84: 01031400 | B84: CUARTO BÁSICO | C84: =SUM(D84:E84) -> 611 | D84: =IFERROR(VLOOKUP($A84,Filtro_!$A$5:$AW$2561,3,FALSE),0) -> 287 | E84: =IFERROR(VLOOKUP($A84,Filtro_!$A$5:$AW$2561,4,FALSE),0) -> 324 | F84: =IFERROR(VLOOKUP($A84,Filtro_!$A$5:$AW$2561,5,FALSE),0) -> 2 | G84: =IFERROR(VLOOKUP($A84,Filtro_!$A$5:$AW$2561,6,FALSE),0) -> 0 | H84: =IFERROR(VLOOKUP($A84,Filtro_!$A$5:$AW$2561,7,FALSE),0) -> 1 | I84: =IFERROR(VLOOKUP($A84,Filtro_!$A$5:$AW$2561,8,FALSE),0) -> 0
B85: SECCIÓN E2: CONTROLES GRUPALES
B86: CURSO | C86: TOTAL DE GRUPOS | D86: TOTAL | E86: SEXO | G86: Pueblos Originarios | H86: Migrantes | I86: Niños, Niñas, Adolescentes y Jóvenes SENAME | J86: Niños, Niñas, Adolescentes y Jóvenes Mejor Niñez
E87: Hombres | F87: Mujeres
A88: 01031500 | B88: KÍNDER | C88: =IFERROR(VLOOKUP($A88,Filtro_!$A$5:$AW$2561,2,FALSE),0) -> 0 | D88: =SUM(E88:F88) -> 0 | E88: =IFERROR(VLOOKUP($A88,Filtro_!$A$5:$AW$2561,4,FALSE),0) -> 0 | F88: =IFERROR(VLOOKUP($A88,Filtro_!$A$5:$AW$2561,5,FALSE),0) -> 0 | G88: =IFERROR(VLOOKUP($A88,Filtro_!$A$5:$AW$2561,6,FALSE),0) -> 0 | H88: =IFERROR(VLOOKUP($A88,Filtro_!$A$5:$AW$2561,7,FALSE),0) -> 0 | I88: =IFERROR(VLOOKUP($A88,Filtro_!$A$5:$AW$2561,8,FALSE),0) -> 0 | J88: =IFERROR(VLOOKUP($A88,Filtro_!$A$5:$AW$2561,9,FALSE),0) -> 0
A89: 01031600 | B89: PRIMERO BÁSICO | C89: =IFERROR(VLOOKUP($A89,Filtro_!$A$5:$AW$2561,2,FALSE),0) -> 0 | D89: =SUM(E89:F89) -> 0 | E89: =IFERROR(VLOOKUP($A89,Filtro_!$A$5:$AW$2561,4,FALSE),0) -> 0 | F89: =IFERROR(VLOOKUP($A89,Filtro_!$A$5:$AW$2561,5,FALSE),0) -> 0 | G89: =IFERROR(VLOOKUP($A89,Filtro_!$A$5:$AW$2561,6,FALSE),0) -> 0 | H89: =IFERROR(VLOOKUP($A89,Filtro_!$A$5:$AW$2561,7,FALSE),0) -> 0 | I89: =IFERROR(VLOOKUP($A89,Filtro_!$A$5:$AW$2561,8,FALSE),0) -> 0 | J89: =IFERROR(VLOOKUP($A89,Filtro_!$A$5:$AW$2561,9,FALSE),0) -> 0
A90: 01031700 | B90: SEGUNDO BÁSICO | C90: =IFERROR(VLOOKUP($A90,Filtro_!$A$5:$AW$2561,2,FALSE),0) -> 0 | D90: =SUM(E90:F90) -> 0 | E90: =IFERROR(VLOOKUP($A90,Filtro_!$A$5:$AW$2561,4,FALSE),0) -> 0 | F90: =IFERROR(VLOOKUP($A90,Filtro_!$A$5:$AW$2561,5,FALSE),0) -> 0 | G90: =IFERROR(VLOOKUP($A90,Filtro_!$A$5:$AW$2561,6,FALSE),0) -> 0 | H90: =IFERROR(VLOOKUP($A90,Filtro_!$A$5:$AW$2561,7,FALSE),0) -> 0 | I90: =IFERROR(VLOOKUP($A90,Filtro_!$A$5:$AW$2561,8,FALSE),0) -> 0 | J90: =IFERROR(VLOOKUP($A90,Filtro_!$A$5:$AW$2561,9,FALSE),0) -> 0
A91: 01031800 | B91: TERCERO BÁSICO | C91: =IFERROR(VLOOKUP($A91,Filtro_!$A$5:$AW$2561,2,FALSE),0) -> 0 | D91: =SUM(E91:F91) -> 0 | E91: =IFERROR(VLOOKUP($A91,Filtro_!$A$5:$AW$2561,4,FALSE),0) -> 0 | F91: =IFERROR(VLOOKUP($A91,Filtro_!$A$5:$AW$2561,5,FALSE),0) -> 0 | G91: =IFERROR(VLOOKUP($A91,Filtro_!$A$5:$AW$2561,6,FALSE),0) -> 0 | H91: =IFERROR(VLOOKUP($A91,Filtro_!$A$5:$AW$2561,7,FALSE),0) -> 0 | I91: =IFERROR(VLOOKUP($A91,Filtro_!$A$5:$AW$2561,8,FALSE),0) -> 0 | J91: =IFERROR(VLOOKUP($A91,Filtro_!$A$5:$AW$2561,9,FALSE),0) -> 0
A92: 01031900 | B92: CUARTO BÁSICO | C92: =IFERROR(VLOOKUP($A92,Filtro_!$A$5:$AW$2561,2,FALSE),0) -> 0 | D92: =SUM(E92:F92) -> 0 | E92: =IFERROR(VLOOKUP($A92,Filtro_!$A$5:$AW$2561,4,FALSE),0) -> 0 | F92: =IFERROR(VLOOKUP($A92,Filtro_!$A$5:$AW$2561,5,FALSE),0) -> 0 | G92: =IFERROR(VLOOKUP($A92,Filtro_!$A$5:$AW$2561,6,FALSE),0) -> 0 | H92: =IFERROR(VLOOKUP($A92,Filtro_!$A$5:$AW$2561,7,FALSE),0) -> 1 | I92: =IFERROR(VLOOKUP($A92,Filtro_!$A$5:$AW$2561,8,FALSE),0) -> 0 | J92: =IFERROR(VLOOKUP($A92,Filtro_!$A$5:$AW$2561,9,FALSE),0) -> 0
B93: SECCIÓN F: CONTROLES INTEGRALES DE PERSONAS CON CONDICIONES CRÓNICAS (incluidos en Secciones B y C)
B94: TIPO DE CONTROL | C94: TOTAL | F94: POR EDAD | AH94: Migrantes | AI94: Pueblos Originarios
F95: 15 - 19 años | H95: 20 - 24 años | J95: 25 - 29 años | L95: 30 - 34 años | N95: 35 - 39 años | P95: 40 - 44 años | R95: 45 - 49 años | T95: 50 - 54 años | V95: 55 - 59 años | X95: 60 - 64 años | Z95: 65 - 69 años | AB95: 70 - 74 años | AD95: 75 - 79 años | AF95: 80 y más años
C96: Ambos Sexos | D96: Hombres | E96: Mujeres | F96: Hombres | G96: Mujeres | H96: Hombres | I96: Mujeres | J96: Hombres | K96: Mujeres | L96: Hombres | M96: Mujeres | N96: Hombres | O96: Mujeres | P96: Hombres | Q96: Mujeres | R96: Hombres | S96: Mujeres | T96: Hombres | U96: Mujeres | V96: Hombres | W96: Mujeres | X96: Hombres | Y96: Mujeres | Z96: Hombres | AA96: Mujeres | AB96: Hombres | AC96: Mujeres | AD96: Hombres | AE96: Mujeres | AF96: Hombres | AG96: Mujeres
A97: 01501010 | B97: CONTROL INTEGRAL CON RIESGO LEVE (G1) | C97: =SUM(D97:E97) -> 319 | D97: =SUM(F97+H97+J97+L97+N97+P97+R97+T97+V97+X97+Z97+AB97+AD97+AF97) -> 113 | E97: =SUM(+G97+I97+K97+M97+O97+Q97+S97+U97+W97+Y97+AA97+AC97+AE97+AG97) -> 206 | F97: =IFERROR(VLOOKUP($A97,Filtro_!$A$5:$AW$2561,5,FALSE),0) -> 2 | G97: =IFERROR(VLOOKUP($A97,Filtro_!$A$5:$AW$2561,6,FALSE),0) -> 0 | H97: =IFERROR(VLOOKUP($A97,Filtro_!$A$5:$AW$2561,7,FALSE),0) -> 2 | I97: =IFERROR(VLOOKUP($A97,Filtro_!$A$5:$AW$2561,8,FALSE),0) -> 1 | J97: =IFERROR(VLOOKUP($A97,Filtro_!$A$5:$AW$2561,9,FALSE),0) -> 4 | K97: =IFERROR(VLOOKUP($A97,Filtro_!$A$5:$AW$2561,10,FALSE),0) -> 1 | L97: =IFERROR(VLOOKUP($A97,Filtro_!$A$5:$AW$2561,11,FALSE),0) -> 5 | M97: =IFERROR(VLOOKUP($A97,Filtro_!$A$5:$AW$2561,12,FALSE),0) -> 6 | N97: =IFERROR(VLOOKUP($A97,Filtro_!$A$5:$AW$2561,13,FALSE),0) -> 1 | O97: =IFERROR(VLOOKUP($A97,Filtro_!$A$5:$AW$2561,14,FALSE),0) -> 10 | P97: =IFERROR(VLOOKUP($A97,Filtro_!$A$5:$AW$2561,15,FALSE),0) -> 5 | Q97: =IFERROR(VLOOKUP($A97,Filtro_!$A$5:$AW$2561,16,FALSE),0) -> 12 | R97: =IFERROR(VLOOKUP($A97,Filtro_!$A$5:$AW$2561,17,FALSE),0) -> 5 | S97: =IFERROR(VLOOKUP($A97,Filtro_!$A$5:$AW$2561,18,FALSE),0) -> 15 | T97: =IFERROR(VLOOKUP($A97,Filtro_!$A$5:$AW$2561,19,FALSE),0) -> 14 | U97: =IFERROR(VLOOKUP($A97,Filtro_!$A$5:$AW$2561,20,FALSE),0) -> 20 | V97: =IFERROR(VLOOKUP($A97,Filtro_!$A$5:$AW$2561,21,FALSE),0) -> 15 | W97: =IFERROR(VLOOKUP($A97,Filtro_!$A$5:$AW$2561,22,FALSE),0) -> 33 | X97: =IFERROR(VLOOKUP($A97,Filtro_!$A$5:$AW$2561,23,FALSE),0) -> 20 | Y97: =IFERROR(VLOOKUP($A97,Filtro_!$A$5:$AW$2561,24,FALSE),0) -> 30 | Z97: =IFERROR(VLOOKUP($A97,Filtro_!$A$5:$AW$2561,25,FALSE),0) -> 13 | AA97: =IFERROR(VLOOKUP($A97,Filtro_!$A$5:$AW$2561,26,FALSE),0) -> 29 | AB97: =IFERROR(VLOOKUP($A97,Filtro_!$A$5:$AW$2561,27,FALSE),0) -> 8 | AC97: =IFERROR(VLOOKUP($A97,Filtro_!$A$5:$AW$2561,28,FALSE),0) -> 13 | AD97: =IFERROR(VLOOKUP($A97,Filtro_!$A$5:$AW$2561,29,FALSE),0) -> 8 | AE97: =IFERROR(VLOOKUP($A97,Filtro_!$A$5:$AW$2561,30,FALSE),0) -> 18 | AF97: =IFERROR(VLOOKUP($A97,Filtro_!$A$5:$AW$2561,31,FALSE),0) -> 11 | AG97: =IFERROR(VLOOKUP($A97,Filtro_!$A$5:$AW$2561,32,FALSE),0) -> 18 | AH97: =IFERROR(VLOOKUP($A97,Filtro_!$A$5:$AW$2561,33,FALSE),0) -> 0 | AI97: =IFERROR(VLOOKUP($A97,Filtro_!$A$5:$AW$2561,34,FALSE),0) -> 0 | DA97: 0 | DB97: 0
A98: 01501020 | B98: CONTROL INTEGRAL CON RIESGO MODERADO (G2) | C98: 287 | D98: 97 | E98: 190 | F98: =IFERROR(VLOOKUP($A98,Filtro_!$A$5:$AW$2561,5,FALSE),0) -> 1 | G98: =IFERROR(VLOOKUP($A98,Filtro_!$A$5:$AW$2561,6,FALSE),0) -> 0 | H98: =IFERROR(VLOOKUP($A98,Filtro_!$A$5:$AW$2561,7,FALSE),0) -> 0 | I98: =IFERROR(VLOOKUP($A98,Filtro_!$A$5:$AW$2561,8,FALSE),0) -> 1 | J98: =IFERROR(VLOOKUP($A98,Filtro_!$A$5:$AW$2561,9,FALSE),0) -> 3 | K98: =IFERROR(VLOOKUP($A98,Filtro_!$A$5:$AW$2561,10,FALSE),0) -> 3 | L98: =IFERROR(VLOOKUP($A98,Filtro_!$A$5:$AW$2561,11,FALSE),0) -> 0 | M98: =IFERROR(VLOOKUP($A98,Filtro_!$A$5:$AW$2561,12,FALSE),0) -> 0 | N98: =IFERROR(VLOOKUP($A98,Filtro_!$A$5:$AW$2561,13,FALSE),0) -> 2 | O98: =IFERROR(VLOOKUP($A98,Filtro_!$A$5:$AW$2561,14,FALSE),0) -> 5 | P98: =IFERROR(VLOOKUP($A98,Filtro_!$A$5:$AW$2561,15,FALSE),0) -> 2 | Q98: =IFERROR(VLOOKUP($A98,Filtro_!$A$5:$AW$2561,16,FALSE),0) -> 9 | R98: =IFERROR(VLOOKUP($A98,Filtro_!$A$5:$AW$2561,17,FALSE),0) -> 8 | S98: =IFERROR(VLOOKUP($A98,Filtro_!$A$5:$AW$2561,18,FALSE),0) -> 13 | T98: =IFERROR(VLOOKUP($A98,Filtro_!$A$5:$AW$2561,19,FALSE),0) -> 6 | U98: =IFERROR(VLOOKUP($A98,Filtro_!$A$5:$AW$2561,20,FALSE),0) -> 7 | V98: =IFERROR(VLOOKUP($A98,Filtro_!$A$5:$AW$2561,21,FALSE),0) -> 13 | W98: =IFERROR(VLOOKUP($A98,Filtro_!$A$5:$AW$2561,22,FALSE),0) -> 42 | X98: =IFERROR(VLOOKUP($A98,Filtro_!$A$5:$AW$2561,23,FALSE),0) -> 14 | Y98: =IFERROR(VLOOKUP($A98,Filtro_!$A$5:$AW$2561,24,FALSE),0) -> 24 | Z98: =IFERROR(VLOOKUP($A98,Filtro_!$A$5:$AW$2561,25,FALSE),0) -> 16 | AA98: =IFERROR(VLOOKUP($A98,Filtro_!$A$5:$AW$2561,26,FALSE),0) -> 21 | AB98: =IFERROR(VLOOKUP($A98,Filtro_!$A$5:$AW$2561,27,FALSE),0) -> 18 | AC98: =IFERROR(VLOOKUP($A98,Filtro_!$A$5:$AW$2561,28,FALSE),0) -> 21 | AD98: =IFERROR(VLOOKUP($A98,Filtro_!$A$5:$AW$2561,29,FALSE),0) -> 7 | AE98: =IFERROR(VLOOKUP($A98,Filtro_!$A$5:$AW$2561,30,FALSE),0) -> 11 | AF98: =IFERROR(VLOOKUP($A98,Filtro_!$A$5:$AW$2561,31,FALSE),0) -> 7 | AG98: =IFERROR(VLOOKUP($A98,Filtro_!$A$5:$AW$2561,32,FALSE),0) -> 33 | AH98: =IFERROR(VLOOKUP($A98,Filtro_!$A$5:$AW$2561,33,FALSE),0) -> 0 | AI98: =IFERROR(VLOOKUP($A98,Filtro_!$A$5:$AW$2561,34,FALSE),0) -> 0 | DA98: 0 | DB98: 0
A99: 01501030 | B99: CONTROL INTEGRAL CON RIESGO ALTO (G3) | C99: 1007 | D99: 321 | E99: 686 | F99: =IFERROR(VLOOKUP($A99,Filtro_!$A$5:$AW$2561,5,FALSE),0) -> 0 | G99: =IFERROR(VLOOKUP($A99,Filtro_!$A$5:$AW$2561,6,FALSE),0) -> 0 | H99: =IFERROR(VLOOKUP($A99,Filtro_!$A$5:$AW$2561,7,FALSE),0) -> 0 | I99: =IFERROR(VLOOKUP($A99,Filtro_!$A$5:$AW$2561,8,FALSE),0) -> 1 | J99: =IFERROR(VLOOKUP($A99,Filtro_!$A$5:$AW$2561,9,FALSE),0) -> 0 | K99: =IFERROR(VLOOKUP($A99,Filtro_!$A$5:$AW$2561,10,FALSE),0) -> 1 | L99: =IFERROR(VLOOKUP($A99,Filtro_!$A$5:$AW$2561,11,FALSE),0) -> 0 | M99: =IFERROR(VLOOKUP($A99,Filtro_!$A$5:$AW$2561,12,FALSE),0) -> 3 | N99: =IFERROR(VLOOKUP($A99,Filtro_!$A$5:$AW$2561,13,FALSE),0) -> 5 | O99: =IFERROR(VLOOKUP($A99,Filtro_!$A$5:$AW$2561,14,FALSE),0) -> 8 | P99: =IFERROR(VLOOKUP($A99,Filtro_!$A$5:$AW$2561,15,FALSE),0) -> 2 | Q99: =IFERROR(VLOOKUP($A99,Filtro_!$A$5:$AW$2561,16,FALSE),0) -> 12 | R99: =IFERROR(VLOOKUP($A99,Filtro_!$A$5:$AW$2561,17,FALSE),0) -> 10 | S99: =IFERROR(VLOOKUP($A99,Filtro_!$A$5:$AW$2561,18,FALSE),0) -> 22 | T99: =IFERROR(VLOOKUP($A99,Filtro_!$A$5:$AW$2561,19,FALSE),0) -> 18 | U99: =IFERROR(VLOOKUP($A99,Filtro_!$A$5:$AW$2561,20,FALSE),0) -> 45 | V99: =IFERROR(VLOOKUP($A99,Filtro_!$A$5:$AW$2561,21,FALSE),0) -> 22 | W99: =IFERROR(VLOOKUP($A99,Filtro_!$A$5:$AW$2561,22,FALSE),0) -> 84 | X99: =IFERROR(VLOOKUP($A99,Filtro_!$A$5:$AW$2561,23,FALSE),0) -> 43 | Y99: =IFERROR(VLOOKUP($A99,Filtro_!$A$5:$AW$2561,24,FALSE),0) -> 96 | Z99: =IFERROR(VLOOKUP($A99,Filtro_!$A$5:$AW$2561,25,FALSE),0) -> 81 | AA99: =IFERROR(VLOOKUP($A99,Filtro_!$A$5:$AW$2561,26,FALSE),0) -> 119 | AB99: =IFERROR(VLOOKUP($A99,Filtro_!$A$5:$AW$2561,27,FALSE),0) -> 47 | AC99: =IFERROR(VLOOKUP($A99,Filtro_!$A$5:$AW$2561,28,FALSE),0) -> 112 | AD99: =IFERROR(VLOOKUP($A99,Filtro_!$A$5:$AW$2561,29,FALSE),0) -> 37 | AE99: =IFERROR(VLOOKUP($A99,Filtro_!$A$5:$AW$2561,30,FALSE),0) -> 87 | AF99: =IFERROR(VLOOKUP($A99,Filtro_!$A$5:$AW$2561,31,FALSE),0) -> 56 | AG99: =IFERROR(VLOOKUP($A99,Filtro_!$A$5:$AW$2561,32,FALSE),0) -> 96 | AH99: =IFERROR(VLOOKUP($A99,Filtro_!$A$5:$AW$2561,33,FALSE),0) -> 2 | AI99: =IFERROR(VLOOKUP($A99,Filtro_!$A$5:$AW$2561,34,FALSE),0) -> 0 | DB99: 0 | DC99: 0
A100: 01502030 | B100: SEGUIMIENTO A DISTANCIA CON RIESGO LEVE (G1) | C100: 0 | D100: 0 | E100: 0 | F100: =IFERROR(VLOOKUP($A100,Filtro_!$A$5:$AW$2561,5,FALSE),0) -> 0 | G100: =IFERROR(VLOOKUP($A100,Filtro_!$A$5:$AW$2561,6,FALSE),0) -> 0 | H100: =IFERROR(VLOOKUP($A100,Filtro_!$A$5:$AW$2561,7,FALSE),0) -> 0 | I100: =IFERROR(VLOOKUP($A100,Filtro_!$A$5:$AW$2561,8,FALSE),0) -> 0 | J100: =IFERROR(VLOOKUP($A100,Filtro_!$A$5:$AW$2561,9,FALSE),0) -> 0 | K100: =IFERROR(VLOOKUP($A100,Filtro_!$A$5:$AW$2561,10,FALSE),0) -> 0 | L100: =IFERROR(VLOOKUP($A100,Filtro_!$A$5:$AW$2561,11,FALSE),0) -> 0 | M100: =IFERROR(VLOOKUP($A100,Filtro_!$A$5:$AW$2561,12,FALSE),0) -> 0 | N100: =IFERROR(VLOOKUP($A100,Filtro_!$A$5:$AW$2561,13,FALSE),0) -> 0 | O100: =IFERROR(VLOOKUP($A100,Filtro_!$A$5:$AW$2561,14,FALSE),0) -> 0 | P100: =IFERROR(VLOOKUP($A100,Filtro_!$A$5:$AW$2561,15,FALSE),0) -> 0 | Q100: =IFERROR(VLOOKUP($A100,Filtro_!$A$5:$AW$2561,16,FALSE),0) -> 0 | R100: =IFERROR(VLOOKUP($A100,Filtro_!$A$5:$AW$2561,17,FALSE),0) -> 0 | S100: =IFERROR(VLOOKUP($A100,Filtro_!$A$5:$AW$2561,18,FALSE),0) -> 0 | T100: =IFERROR(VLOOKUP($A100,Filtro_!$A$5:$AW$2561,19,FALSE),0) -> 0 | U100: =IFERROR(VLOOKUP($A100,Filtro_!$A$5:$AW$2561,20,FALSE),0) -> 0 | V100: =IFERROR(VLOOKUP($A100,Filtro_!$A$5:$AW$2561,21,FALSE),0) -> 0 | W100: =IFERROR(VLOOKUP($A100,Filtro_!$A$5:$AW$2561,22,FALSE),0) -> 0 | X100: =IFERROR(VLOOKUP($A100,Filtro_!$A$5:$AW$2561,23,FALSE),0) -> 0 | Y100: =IFERROR(VLOOKUP($A100,Filtro_!$A$5:$AW$2561,24,FALSE),0) -> 0 | Z100: =IFERROR(VLOOKUP($A100,Filtro_!$A$5:$AW$2561,25,FALSE),0) -> 0 | AA100: =IFERROR(VLOOKUP($A100,Filtro_!$A$5:$AW$2561,26,FALSE),0) -> 0 | AB100: =IFERROR(VLOOKUP($A100,Filtro_!$A$5:$AW$2561,27,FALSE),0) -> 0 | AC100: =IFERROR(VLOOKUP($A100,Filtro_!$A$5:$AW$2561,28,FALSE),0) -> 0 | AD100: =IFERROR(VLOOKUP($A100,Filtro_!$A$5:$AW$2561,29,FALSE),0) -> 0 | AE100: =IFERROR(VLOOKUP($A100,Filtro_!$A$5:$AW$2561,30,FALSE),0) -> 0 | AF100: =IFERROR(VLOOKUP($A100,Filtro_!$A$5:$AW$2561,31,FALSE),0) -> 0 | AG100: =IFERROR(VLOOKUP($A100,Filtro_!$A$5:$AW$2561,32,FALSE),0) -> 0 | AH100: =IFERROR(VLOOKUP($A100,Filtro_!$A$5:$AW$2561,33,FALSE),0) -> 0 | AI100: =IFERROR(VLOOKUP($A100,Filtro_!$A$5:$AW$2561,34,FALSE),0) -> 0 | DB100: 0 | DC100: 0
A101: 01502040 | B101: SEGUIMIENTO A DISTANCIA CON RIESGO MODERADO (G2) | C101: 4 | D101: 0 | E101: 4 | F101: =IFERROR(VLOOKUP($A101,Filtro_!$A$5:$AW$2561,5,FALSE),0) -> 0 | G101: =IFERROR(VLOOKUP($A101,Filtro_!$A$5:$AW$2561,6,FALSE),0) -> 0 | H101: =IFERROR(VLOOKUP($A101,Filtro_!$A$5:$AW$2561,7,FALSE),0) -> 0 | I101: =IFERROR(VLOOKUP($A101,Filtro_!$A$5:$AW$2561,8,FALSE),0) -> 0 | J101: =IFERROR(VLOOKUP($A101,Filtro_!$A$5:$AW$2561,9,FALSE),0) -> 0 | K101: =IFERROR(VLOOKUP($A101,Filtro_!$A$5:$AW$2561,10,FALSE),0) -> 1 | L101: =IFERROR(VLOOKUP($A101,Filtro_!$A$5:$AW$2561,11,FALSE),0) -> 0 | M101: =IFERROR(VLOOKUP($A101,Filtro_!$A$5:$AW$2561,12,FALSE),0) -> 0 | N101: =IFERROR(VLOOKUP($A101,Filtro_!$A$5:$AW$2561,13,FALSE),0) -> 0 | O101: =IFERROR(VLOOKUP($A101,Filtro_!$A$5:$AW$2561,14,FALSE),0) -> 0 | P101: =IFERROR(VLOOKUP($A101,Filtro_!$A$5:$AW$2561,15,FALSE),0) -> 0 | Q101: =IFERROR(VLOOKUP($A101,Filtro_!$A$5:$AW$2561,16,FALSE),0) -> 0 | R101: =IFERROR(VLOOKUP($A101,Filtro_!$A$5:$AW$2561,17,FALSE),0) -> 0 | S101: =IFERROR(VLOOKUP($A101,Filtro_!$A$5:$AW$2561,18,FALSE),0) -> 0 | T101: =IFERROR(VLOOKUP($A101,Filtro_!$A$5:$AW$2561,19,FALSE),0) -> 0 | U101: =IFERROR(VLOOKUP($A101,Filtro_!$A$5:$AW$2561,20,FALSE),0) -> 0 | V101: =IFERROR(VLOOKUP($A101,Filtro_!$A$5:$AW$2561,21,FALSE),0) -> 0 | W101: =IFERROR(VLOOKUP($A101,Filtro_!$A$5:$AW$2561,22,FALSE),0) -> 0 | X101: =IFERROR(VLOOKUP($A101,Filtro_!$A$5:$AW$2561,23,FALSE),0) -> 0 | Y101: =IFERROR(VLOOKUP($A101,Filtro_!$A$5:$AW$2561,24,FALSE),0) -> 0 | Z101: =IFERROR(VLOOKUP($A101,Filtro_!$A$5:$AW$2561,25,FALSE),0) -> 0 | AA101: =IFERROR(VLOOKUP($A101,Filtro_!$A$5:$AW$2561,26,FALSE),0) -> 0 | AB101: =IFERROR(VLOOKUP($A101,Filtro_!$A$5:$AW$2561,27,FALSE),0) -> 0 | AC101: =IFERROR(VLOOKUP($A101,Filtro_!$A$5:$AW$2561,28,FALSE),0) -> 0 | AD101: =IFERROR(VLOOKUP($A101,Filtro_!$A$5:$AW$2561,29,FALSE),0) -> 0 | AE101: =IFERROR(VLOOKUP($A101,Filtro_!$A$5:$AW$2561,30,FALSE),0) -> 3 | AF101: =IFERROR(VLOOKUP($A101,Filtro_!$A$5:$AW$2561,31,FALSE),0) -> 0 | AG101: =IFERROR(VLOOKUP($A101,Filtro_!$A$5:$AW$2561,32,FALSE),0) -> 0 | AH101: =IFERROR(VLOOKUP($A101,Filtro_!$A$5:$AW$2561,33,FALSE),0) -> 0 | AI101: =IFERROR(VLOOKUP($A101,Filtro_!$A$5:$AW$2561,34,FALSE),0) -> 0 | DB101: 0 | DC101: 0
A102: 01501040 | B102: SEGUIMIENTO A DISTANCIA CON RIESGO ALTO (G3) | C102: 1305 | D102: 388 | E102: 917 | F102: =IFERROR(VLOOKUP($A102,Filtro_!$A$5:$AW$2561,5,FALSE),0) -> 0 | G102: =IFERROR(VLOOKUP($A102,Filtro_!$A$5:$AW$2561,6,FALSE),0) -> 0 | H102: =IFERROR(VLOOKUP($A102,Filtro_!$A$5:$AW$2561,7,FALSE),0) -> 0 | I102: =IFERROR(VLOOKUP($A102,Filtro_!$A$5:$AW$2561,8,FALSE),0) -> 4 | J102: =IFERROR(VLOOKUP($A102,Filtro_!$A$5:$AW$2561,9,FALSE),0) -> 0 | K102: =IFERROR(VLOOKUP($A102,Filtro_!$A$5:$AW$2561,10,FALSE),0) -> 0 | L102: =IFERROR(VLOOKUP($A102,Filtro_!$A$5:$AW$2561,11,FALSE),0) -> 2 | M102: =IFERROR(VLOOKUP($A102,Filtro_!$A$5:$AW$2561,12,FALSE),0) -> 3 | N102: =IFERROR(VLOOKUP($A102,Filtro_!$A$5:$AW$2561,13,FALSE),0) -> 0 | O102: =IFERROR(VLOOKUP($A102,Filtro_!$A$5:$AW$2561,14,FALSE),0) -> 11 | P102: =IFERROR(VLOOKUP($A102,Filtro_!$A$5:$AW$2561,15,FALSE),0) -> 0 | Q102: =IFERROR(VLOOKUP($A102,Filtro_!$A$5:$AW$2561,16,FALSE),0) -> 19 | R102: =IFERROR(VLOOKUP($A102,Filtro_!$A$5:$AW$2561,17,FALSE),0) -> 3 | S102: =IFERROR(VLOOKUP($A102,Filtro_!$A$5:$AW$2561,18,FALSE),0) -> 13 | T102: =IFERROR(VLOOKUP($A102,Filtro_!$A$5:$AW$2561,19,FALSE),0) -> 10 | U102: =IFERROR(VLOOKUP($A102,Filtro_!$A$5:$AW$2561,20,FALSE),0) -> 90 | V102: =IFERROR(VLOOKUP($A102,Filtro_!$A$5:$AW$2561,21,FALSE),0) -> 22 | W102: =IFERROR(VLOOKUP($A102,Filtro_!$A$5:$AW$2561,22,FALSE),0) -> 125 | X102: =IFERROR(VLOOKUP($A102,Filtro_!$A$5:$AW$2561,23,FALSE),0) -> 62 | Y102: =IFERROR(VLOOKUP($A102,Filtro_!$A$5:$AW$2561,24,FALSE),0) -> 172 | Z102: =IFERROR(VLOOKUP($A102,Filtro_!$A$5:$AW$2561,25,FALSE),0) -> 110 | AA102: =IFERROR(VLOOKUP($A102,Filtro_!$A$5:$AW$2561,26,FALSE),0) -> 187 | AB102: =IFERROR(VLOOKUP($A102,Filtro_!$A$5:$AW$2561,27,FALSE),0) -> 77 | AC102: =IFERROR(VLOOKUP($A102,Filtro_!$A$5:$AW$2561,28,FALSE),0) -> 144 | AD102: =IFERROR(VLOOKUP($A102,Filtro_!$A$5:$AW$2561,29,FALSE),0) -> 44 | AE102: =IFERROR(VLOOKUP($A102,Filtro_!$A$5:$AW$2561,30,FALSE),0) -> 67 | AF102: =IFERROR(VLOOKUP($A102,Filtro_!$A$5:$AW$2561,31,FALSE),0) -> 58 | AG102: =IFERROR(VLOOKUP($A102,Filtro_!$A$5:$AW$2561,32,FALSE),0) -> 82 | AH102: =IFERROR(VLOOKUP($A102,Filtro_!$A$5:$AW$2561,33,FALSE),0) -> 2 | AI102: =IFERROR(VLOOKUP($A102,Filtro_!$A$5:$AW$2561,34,FALSE),0) -> 2 | DB102: 0 | DC102: 0
A105: CODIGOS NUEVOS
A106: 09600204
A107: 09600205
A108: 09600206
A109: CODIGOS ELIMINADOS
A110: 01200035
B193: =SUM(D12:D33,V32:W33,Y20:Y23,X14:X15,D37:D40,E37:F40,D45:F67,D71:D75,I71:I75,C80:C84,D88:D92,C97:C99) -> 817028 | C193: =SUM(DB1:EA99) -> 22

Sheet A02
B1: SERVICIO DE SALUD
B2: =CONCATENATE("COMUNA: ",NOMBRE!B2," - ","( ",NOMBRE!C2,NOMBRE!D2,NOMBRE!E2,NOMBRE!F2,NOMBRE!G2," )") -> COMUNA: - ( )
B3: =CONCATENATE("ESTABLECIMIENTO/ESTRATEGIA: ",NOMBRE!B3," - ","( ",NOMBRE!C3,NOMBRE!D3,NOMBRE!E3,NOMBRE!F3,NOMBRE!G3,NOMBRE!H3," )") -> ESTABLECIMIENTO/ESTRATEGIA: - ( )
B4: =CONCATENATE("MES: ",NOMBRE!B6," - ","( ",NOMBRE!C6,NOMBRE!D6," )") -> MES: - ( )
B5: =CONCATENATE("AÑO: ",NOMBRE!B7) -> AÑO: 2023
B6: REM-A02. EXAMEN DE MEDICINA PREVENTIVA EN MAYORES DE 15 AÑOS
B8: SECCIÓN A: EMP REALIZADO POR PROFESIONAL
B9: PROFESIONAL | C9: TOTAL | F9: Pueblos Originarios | G9: Migrantes
C10: Ambos Sexos | D10: Hombres | E10: Mujeres
B11: TOTAL | C11: =SUM(C12:C17) -> 68594 | D11: =SUM(D12:D17) -> 24418 | E11: =SUM(E12:E17) -> 44176 | F11: =SUM(F12:F17) -> 186 | G11: =SUM(G12:G17) -> 879
A12: 03030101 | B12: MÉDICO/A | C12: =SUM(D12:E12) -> 571 | D12: =IFERROR(VLOOKUP($A12,Filtro_!$A$5:$AW$2561,3,FALSE),0) -> 223 | E12: =IFERROR(VLOOKUP($A12,Filtro_!$A$5:$AW$2561,4,FALSE),0) -> 348 | F12: =IFERROR(VLOOKUP($A12,Filtro_!$A$5:$AW$2561,5,FALSE),0) -> 0 | G12: =IFERROR(VLOOKUP($A12,Filtro_!$A$5:$AW$2561,6,FALSE),0) -> 1
A13: 03030102 | B13: ENFERMERA/O | C13: 41810 | D13: =IFERROR(VLOOKUP($A13,Filtro_!$A$5:$AW$2561,3,FALSE),0) -> 15765 | E13: =IFERROR(VLOOKUP($A13,Filtro_!$A$5:$AW$2561,4,FALSE),0) -> 26045 | F13: =IFERROR(VLOOKUP($A13,Filtro_!$A$5:$AW$2561,5,FALSE),0) -> 101 | G13: =IFERROR(VLOOKUP($A13,Filtro_!$A$5:$AW$2561,6,FALSE),0) -> 402
A14: 03030103 | B14: MATRONA/ÓN | C14: 2312 | D14: =IFERROR(VLOOKUP($A14,Filtro_!$A$5:$AW$2561,3,FALSE),0) -> 159 | E14: =IFERROR(VLOOKUP($A14,Filtro_!$A$5:$AW$2561,4,FALSE),0) -> 2153 | F14: =IFERROR(VLOOKUP($A14,Filtro_!$A$5:$AW$2561,5,FALSE),0) -> 6 | G14: =IFERROR(VLOOKUP($A14,Filtro_!$A$5:$AW$2561,6,FALSE),0) -> 35
A15: 03030104 | B15: NUTRICIONISTA | C15: 4563 | D15: =IFERROR(VLOOKUP($A15,Filtro_!$A$5:$AW$2561,3,FALSE),0) -> 1529 | E15: =IFERROR(VLOOKUP($A15,Filtro_!$A$5:$AW$2561,4,FALSE),0) -> 3034 | F15: =IFERROR(VLOOKUP($A15,Filtro_!$A$5:$AW$2561,5,FALSE),0) -> 3 | G15: =IFERROR(VLOOKUP($A15,Filtro_!$A$5:$AW$2561,6,FALSE),0) -> 104
A16: 03030350 | B16: OTRO PROFESIONAL (capacitados en EMP Y EMPAM) | C16: 7868 | D16: =IFERROR(VLOOKUP($A16,Filtro_!$A$5:$AW$2561,3,FALSE),0) -> 2928 | E16: =IFERROR(VLOOKUP($A16,Filtro_!$A$5:$AW$2561,4,FALSE),0) -> 4940 | F16: =IFERROR(VLOOKUP($A16,Filtro_!$A$5:$AW$2561,5,FALSE),0) -> 17 | G16: =IFERROR(VLOOKUP($A16,Filtro_!$A$5:$AW$2561,6,FALSE),0) -> 127
A17: 03030110 | B17: TÉCNICO EN ENFERMERÍA | C17: 11470 | D17: =IFERROR(VLOOKUP($A17,Filtro_!$A$5:$AW$2561,3,FALSE),0) -> 3814 | E17: =IFERROR(VLOOKUP($A17,Filtro_!$A$5:$AW$2561,4,FALSE),0) -> 7656 | F17: =IFERROR(VLOOKUP($A17,Filtro_!$A$5:$AW$2561,5,FALSE),0) -> 59 | G17: =IFERROR(VLOOKUP($A17,Filtro_!$A$5:$AW$2561,6,FALSE),0) -> 210
B18: SECCIÓN B: EMP SEGÚN RESULTADO DEL ESTADO NUTRICIONAL
B19: ESTADO NUTRICIONAL | C19: TOTAL | F19: 15 a 19 años | H19: 20 a 24 años | J19: 25 a 29 años | L19: 30 a 34 años | N19: 35 a 39 años | P19: 40 a 44 años | R19: 45 a 49 años | T19: 50 a 54 años | V19: 55 a 59 años | X19: 60 a 64 años | Z19: 65 a 69 años | AB19: 70 a 74 años | AD19: 75 a 79 años | AF19: 80 y más años | AH19: Pueblos Originarios | AI19: Migrantes
C20: Ambos Sexos | D20: Hombres | E20: Mujeres | F20: Hombres | G20: Mujeres | H20: Hombres | I20: Mujeres | J20: Hombres | K20: Mujeres | L20: Hombres | M20: Mujeres | N20: Hombres | O20: Mujeres | P20: Hombres | Q20: Mujeres | R20: Hombres | S20: Mujeres | T20: Hombres | U20: Mujeres | V20: Hombres | W20: Mujeres | X20: Hombres | Y20: Mujeres | Z20: Hombres | AA20: Mujeres | AB20: Hombres | AC20: Mujeres | AD20: Hombres | AE20: Mujeres | AF20: Hombres | AG20: Mujeres
B21: TOTAL | C21: =SUM(C22:C25) -> 68360 | D21: =SUM(D22:D25) -> 24248 | E21: =SUM(E22:E25) -> 44112 | F21: =SUM(F22:F25) -> 209 | G21: 389 | H21: 1535 | I21: 3276 | J21: 1648 | K21: 3557 | L21: 1790 | M21: 3984 | N21: 1579 | O21: 3648 | P21: 1553 | Q21: 3240 | R21: 1455 | S21: 3044 | T21: 1455 | U21: 2664 | V21: 1365 | W21: 2120 | X21: 1104 | Y21: 1613 | Z21: 2630 | AA21: 4411 | AB21: 2617 | AC21: 3963 | AD21: 2329 | AE21: 3366 | AF21: 2979 | AG21: 4837 | AH21: =SUM(AH22:AH25) -> 178 | AI21: =SUM(AI22:AI25) -> 777 | CA21: * Debe coincidir el total de EMP según Estado Nutricional con EMP realizado según profesional. | DA21: 1
A22: 03030330 | B22: NORMAL | C22: =SUM(D22:E22) -> 20804 | D22: =SUM(F22+H22+J22+L22+N22+P22+R22+T22+V22+X22+Z22+AB22+AD22+AF22) -> 8043 | E22: =SUM(G22+I22+K22+M22+O22+Q22+S22+U22+W22+Y22+AA22+AC22+AE22+AG22) -> 12761 | F22: =IFERROR(VLOOKUP($A22,Filtro_!$A$5:$AW$2561,5,FALSE),0) -> 97 | G22: =IFERROR(VLOOKUP($A22,Filtro_!$A$5:$AW$2561,6,FALSE),0) -> 176 | H22: =IFERROR(VLOOKUP($A22,Filtro_!$A$5:$AW$2561,7,FALSE),0) -> 681 | I22: =IFERROR(VLOOKUP($A22,Filtro_!$A$5:$AW$2561,8,FALSE),0) -> 1200 | J22: =IFERROR(VLOOKUP($A22,Filtro_!$A$5:$AW$2561,9,FALSE),0) -> 521 | K22: =IFERROR(VLOOKUP($A22,Filtro_!$A$5:$AW$2561,10,FALSE),0) -> 1031 | L22: =IFERROR(VLOOKUP($A22,Filtro_!$A$5:$AW$2561,11,FALSE),0) -> 465 | M22: =IFERROR(VLOOKUP($A22,Filtro_!$A$5:$AW$2561,12,FALSE),0) -> 1043 | N22: =IFERROR(VLOOKUP($A22,Filtro_!$A$5:$AW$2561,13,FALSE),0) -> 354 | O22: =IFERROR(VLOOKUP($A22,Filtro_!$A$5:$AW$2561,14,FALSE),0) -> 823 | P22: =IFERROR(VLOOKUP($A22,Filtro_!$A$5:$AW$2561,15,FALSE),0) -> 323 | Q22: =IFERROR(VLOOKUP($A22,Filtro_!$A$5:$AW$2561,16,FALSE),0) -> 710 | R22: =IFERROR(VLOOKUP($A22,Filtro_!$A$5:$AW$2561,17,FALSE),0) -> 297 | S22: =IFERROR(VLOOKUP($A22,Filtro_!$A$5:$AW$2561,18,FALSE),0) -> 653 | T22: =IFERROR(VLOOKUP($A22,Filtro_!$A$5:$AW$2561,19,FALSE),0) -> 279 | U22: =IFERROR(VLOOKUP($A22,Filtro_!$A$5:$AW$2561,20,FALSE),0) -> 486 | V22: =IFERROR(VLOOKUP($A22,Filtro_!$A$5:$AW$2561,21,FALSE),0) -> 264 | W22: =IFERROR(VLOOKUP($A22,Filtro_!$A$5:$AW$2561,22,FALSE),0) -> 463 | X22: =IFERROR(VLOOKUP($A22,Filtro_!$A$5:$AW$2561,23,FALSE),0) -> 243 | Y22: =IFERROR(VLOOKUP($A22,Filtro_!$A$5:$AW$2561,24,FALSE),0) -> 397 | Z22: =IFERROR(VLOOKUP($A22,Filtro_!$A$5:$AW$2561,25,FALSE),0) -> 983 | AA22: =IFERROR(VLOOKUP($A22,Filtro_!$A$5:$AW$2561,26,FALSE),0) -> 1363 | AB22: =IFERROR(VLOOKUP($A22,Filtro_!$A$5:$AW$2561,27,FALSE),0) -> 1039 | AC22: =IFERROR(VLOOKUP($A22,Filtro_!$A$5:$AW$2561,28,FALSE),0) -> 1277 | AD22: =IFERROR(VLOOKUP($A22,Filtro_!$A$5:$AW$2561,29,FALSE),0) -> 1026 | AE22: =IFERROR(VLOOKUP($A22,Filtro_!$A$5:$AW$2561,30,FALSE),0) -> 1179 | AF22: =IFERROR(VLOOKUP($A22,Filtro_!$A$5:$AW$2561,31,FALSE),0) -> 1471 | AG22: =IFERROR(VLOOKUP($A22,Filtro_!$A$5:$AW$2561,32,FALSE),0) -> 1960 | AH22: =IFERROR(VLOOKUP($A22,Filtro_!$A$5:$AW$2561,33,FALSE),0) -> 49 | AI22: =IFERROR(VLOOKUP($A22,Filtro_!$A$5:$AW$2561,34,FALSE),0) -> 209
A23: 03030340 | B23: BAJO PESO | C23: =SUM(D23:E23) -> 3040 | D23: =SUM(F23+H23+J23+L23+N23+P23+R23+T23+V23+X23+Z23+AB23+AD23+AF23) -> 1191 | E23: 1849 | F23: =IFERROR(VLOOKUP($A23,Filtro_!$A$5:$AW$2561,5,FALSE),0) -> 31 | G23: =IFERROR(VLOOKUP($A23,Filtro_!$A$5:$AW$2561,6,FALSE),0) -> 8 | H23: =IFERROR(VLOOKUP($A23,Filtro_!$A$5:$AW$2561,7,FALSE),0) -> 38 | I23: =IFERROR(VLOOKUP($A23,Filtro_!$A$5:$AW$2561,8,FALSE),0) -> 83 | J23: =IFERROR(VLOOKUP($A23,Filtro_!$A$5:$AW$2561,9,FALSE),0) -> 25 | K23: =IFERROR(VLOOKUP($A23,Filtro_!$A$5:$AW$2561,10,FALSE),0) -> 38 | L23: =IFERROR(VLOOKUP($A23,Filtro_!$A$5:$AW$2561,11,FALSE),0) -> 17 | M23: =IFERROR(VLOOKUP($A23,Filtro_!$A$5:$AW$2561,12,FALSE),0) -> 33 | N23: =IFERROR(VLOOKUP($A23,Filtro_!$A$5:$AW$2561,13,FALSE),0) -> 8 | O23: =IFERROR(VLOOKUP($A23,Filtro_!$A$5:$AW$2561,14,FALSE),0) -> 21 | P23: =IFERROR(VLOOKUP($A23,Filtro_!$A$5:$AW$2561,15,FALSE),0) -> 7 | Q23: =IFERROR(VLOOKUP($A23,Filtro_!$A$5:$AW$2561,16,FALSE),0) -> 20 | R23: =IFERROR(VLOOKUP($A23,Filtro_!$A$5:$AW$2561,17,FALSE),0) -> 9 | S23: =IFERROR(VLOOKUP($A23,Filtro_!$A$5:$AW$2561,18,FALSE),0) -> 19 | T23: =IFERROR(VLOOKUP($A23,Filtro_!$A$5:$AW$2561,19,FALSE),0) -> 6 | U23: =IFERROR(VLOOKUP($A23,Filtro_!$A$5:$AW$2561,20,FALSE),0) -> 17 | V23: =IFERROR(VLOOKUP($A23,Filtro_!$A$5:$AW$2561,21,FALSE),0) -> 9 | W23: =IFERROR(VLOOKUP($A23,Filtro_!$A$5:$AW$2561,22,FALSE),0) -> 14 | X23: =IFERROR(VLOOKUP($A23,Filtro_!$A$5:$AW$2561,23,FALSE),0) -> 14 | Y23: =IFERROR(VLOOKUP($A23,Filtro_!$A$5:$AW$2561,24,FALSE),0) -> 20 | Z23: =IFERROR(VLOOKUP($A23,Filtro_!$A$5:$AW$2561,25,FALSE),0) -> 146 | AA23: =IFERROR(VLOOKUP($A23,Filtro_!$A$5:$AW$2561,26,FALSE),0) -> 229 | AB23: =IFERROR(VLOOKUP($A23,Filtro_!$A$5:$AW$2561,27,FALSE),0) -> 208 | AC23: =IFERROR(VLOOKUP($A23,Filtro_!$A$5:$AW$2561,28,FALSE),0) -> 266 | AD23: =IFERROR(VLOOKUP($A23,Filtro_!$A$5:$AW$2561,29,FALSE),0) -> 214 | AE23: =IFERROR(VLOOKUP($A23,Filtro_!$A$5:$AW$2561,30,FALSE),0) -> 292 | AF23: =IFERROR(VLOOKUP($A23,Filtro_!$A$5:$AW$2561,31,FALSE),0) -> 459 | AG23: =IFERROR(VLOOKUP($A23,Filtro_!$A$5:$AW$2561,32,FALSE),0) -> 789 | AH23: =IFERROR(VLOOKUP($A23,Filtro_!$A$5:$AW$2561,33,FALSE),0) -> 14 | AI23: =IFERROR(VLOOKUP($A23,Filtro_!$A$5:$AW$2561,34,FALSE),0) -> 50
A24: 03030120 | B24: SOBREPESO | C24: =SUM(D24:E24) -> 24152 | D24: 9177 | E24: 14975 | F24: =IFERROR(VLOOKUP($A24,Filtro_!$A$5:$AW$2561,5,FALSE),0) -> 43 | G24: =IFERROR(VLOOKUP($A24,Filtro_!$A$5:$AW$2561,6,FALSE),0) -> 99 | H24: =IFERROR(VLOOKUP($A24,Filtro_!$A$5:$AW$2561,7,FALSE),0) -> 494 | I24: =IFERROR(VLOOKUP($A24,Filtro_!$A$5:$AW$2561,8,FALSE),0) -> 1015 | J24: =IFERROR(VLOOKUP($A24,Filtro_!$A$5:$AW$2561,9,FALSE),0) -> 655 | K24: =IFERROR(VLOOKUP($A24,Filtro_!$A$5:$AW$2561,10,FALSE),0) -> 1214 | L24: =IFERROR(VLOOKUP($A24,Filtro_!$A$5:$AW$2561,11,FALSE),0) -> 772 | M24: =IFERROR(VLOOKUP($A24,Filtro_!$A$5:$AW$2561,12,FALSE),0) -> 1404 | N24: =IFERROR(VLOOKUP($A24,Filtro_!$A$5:$AW$2561,13,FALSE),0) -> 734 | O24: =IFERROR(VLOOKUP($A24,Filtro_!$A$5:$AW$2561,14,FALSE),0) -> 1416 | P24: =IFERROR(VLOOKUP($A24,Filtro_!$A$5:$AW$2561,15,FALSE),0) -> 704 | Q24: =IFERROR(VLOOKUP($A24,Filtro_!$A$5:$AW$2561,16,FALSE),0) -> 1259 | R24: =IFERROR(VLOOKUP($A24,Filtro_!$A$5:$AW$2561,17,FALSE),0) -> 658 | S24: =IFERROR(VLOOKUP($A24,Filtro_!$A$5:$AW$2561,18,FALSE),0) -> 1247 | T24: =IFERROR(VLOOKUP($A24,Filtro_!$A$5:$AW$2561,19,FALSE),0) -> 684 | U24: =IFERROR(VLOOKUP($A24,Filtro_!$A$5:$AW$2561,20,FALSE),0) -> 1120 | V24: =IFERROR(VLOOKUP($A24,Filtro_!$A$5:$AW$2561,21,FALSE),0) -> 660 | W24: =IFERROR(VLOOKUP($A24,Filtro_!$A$5:$AW$2561,22,FALSE),0) -> 874 | X24: =IFERROR(VLOOKUP($A24,Filtro_!$A$5:$AW$2561,23,FALSE),0) -> 536 | Y24: =IFERROR(VLOOKUP($A24,Filtro_!$A$5:$AW$2561,24,FALSE),0) -> 609 | Z24: =IFERROR(VLOOKUP($A24,Filtro_!$A$5:$AW$2561,25,FALSE),0) -> 907 | AA24: =IFERROR(VLOOKUP($A24,Filtro_!$A$5:$AW$2561,26,FALSE),0) -> 1328 | AB24: =IFERROR(VLOOKUP($A24,Filtro_!$A$5:$AW$2561,27,FALSE),0) -> 884 | AC24: =IFERROR(VLOOKUP($A24,Filtro_!$A$5:$AW$2561,28,FALSE),0) -> 1193 | AD24: =IFERROR(VLOOKUP($A24,Filtro_!$A$5:$AW$2561,29,FALSE),0) -> 727 | AE24: =IFERROR(VLOOKUP($A24,Filtro_!$A$5:$AW$2561,30,FALSE),0) -> 1026 | AF24: =IFERROR(VLOOKUP($A24,Filtro_!$A$5:$AW$2561,31,FALSE),0) -> 719 | AG24: =IFERROR(VLOOKUP($A24,Filtro_!$A$5:$AW$2561,32,FALSE),0) -> 1171 | AH24: =IFERROR(VLOOKUP($A24,Filtro_!$A$5:$AW$2561,33,FALSE),0) -> 57 | AI24: =IFERROR(VLOOKUP($A24,Filtro_!$A$5:$AW$2561,34,FALSE),0) -> 287
A25: 03030130 | B25: OBESOS | C25: =SUM(D25:E25) -> 20364 | D25: 5837 | E25: 14527 | F25: =IFERROR(VLOOKUP($A25,Filtro_!$A$5:$AW$2561,5,FALSE),0) -> 38 | G25: =IFERROR(VLOOKUP($A25,Filtro_!$A$5:$AW$2561,6,FALSE),0) -> 106 | H25: =IFERROR(VLOOKUP($A25,Filtro_!$A$5:$AW$2561,7,FALSE),0) -> 322 | I25: =IFERROR(VLOOKUP($A25,Filtro_!$A$5:$AW$2561,8,FALSE),0) -> 978 | J25: =IFERROR(VLOOKUP($A25,Filtro_!$A$5:$AW$2561,9,FALSE),0) -> 447 | K25: =IFERROR(VLOOKUP($A25,Filtro_!$A$5:$AW$2561,10,FALSE),0) -> 1274 | L25: =IFERROR(VLOOKUP($A25,Filtro_!$A$5:$AW$2561,11,FALSE),0) -> 536 | M25: =IFERROR(VLOOKUP($A25,Filtro_!$A$5:$AW$2561,12,FALSE),0) -> 1504 | N25: =IFERROR(VLOOKUP($A25,Filtro_!$A$5:$AW$2561,13,FALSE),0) -> 483 | O25: =IFERROR(VLOOKUP($A25,Filtro_!$A$5:$AW$2561,14,FALSE),0) -> 1388 | P25: =IFERROR(VLOOKUP($A25,Filtro_!$A$5:$AW$2561,15,FALSE),0) -> 519 | Q25: =IFERROR(VLOOKUP($A25,Filtro_!$A$5:$AW$2561,16,FALSE),0) -> 1251 | R25: =IFERROR(VLOOKUP($A25,Filtro_!$A$5:$AW$2561,17,FALSE),0) -> 491 | S25: =IFERROR(VLOOKUP($A25,Filtro_!$A$5:$AW$2561,18,FALSE),0) -> 1125 | T25: =IFERROR(VLOOKUP($A25,Filtro_!$A$5:$AW$2561,19,FALSE),0) -> 486 | U25: =IFERROR(VLOOKUP($A25,Filtro_!$A$5:$AW$2561,20,FALSE),0) -> 1041 | V25: =IFERROR(VLOOKUP($A25,Filtro_!$A$5:$AW$2561,21,FALSE),0) -> 432 | W25: =IFERROR(VLOOKUP($A25,Filtro_!$A$5:$AW$2561,22,FALSE),0) -> 769 | X25: =IFERROR(VLOOKUP($A25,Filtro_!$A$5:$AW$2561,23,FALSE),0) -> 311 | Y25: =IFERROR(VLOOKUP($A25,Filtro_!$A$5:$AW$2561,24,FALSE),0) -> 587 | Z25: =IFERROR(VLOOKUP($A25,Filtro_!$A$5:$AW$2561,25,FALSE),0) -> 594 | AA25: =IFERROR(VLOOKUP($A25,Filtro_!$A$5:$AW$2561,26,FALSE),0) -> 1491 | AB25: =IFERROR(VLOOKUP($A25,Filtro_!$A$5:$AW$2561,27,FALSE),0) -> 486 | AC25: =IFERROR(VLOOKUP($A25,Filtro_!$A$5:$AW$2561,28,FALSE),0) -> 1227 | AD25: =IFERROR(VLOOKUP($A25,Filtro_!$A$5:$AW$2561,29,FALSE),0) -> 362 | AE25: =IFERROR(VLOOKUP($A25,Filtro_!$A$5:$AW$2561,30,FALSE),0) -> 869 | AF25: =IFERROR(VLOOKUP($A25,Filtro_!$A$5:$AW$2561,31,FALSE),0) -> 330 | AG25: =IFERROR(VLOOKUP($A25,Filtro_!$A$5:$AW$2561,32,FALSE),0) -> 917 | AH25: =IFERROR(VLOOKUP($A25,Filtro_!$A$5:$AW$2561,33,FALSE),0) -> 58 | AI25: =IFERROR(VLOOKUP($A25,Filtro_!$A$5:$AW$2561,34,FALSE),0) -> 231
B26: SECCIÓN C: RESULTADOS DE EMP SEGÚN ESTADO DE SALUD
B27: ESTADO DE SALUD | C27: TOTAL | F27: 15 a 19 años | H27: 20 a 24 años | J27: 25 a 29 años | L27: 30 a 34 años | N27: 35 a 39 años | P27: 40 a 44 años | R27: 45 a 49 años | T27: 50 a 54 años | V27: 55 a 59 años | X27: 60 a 64 años | Z27: 65 a 69 años | AB27: 70 a 74 años | AD27: 75 a 79 años | AF27: 80 y más años | AH27: Pueblos Originarios | AI27: Migrantes
C28: Ambos Sexos | D28: Hombres | E28: Mujeres | F28: Hombres | G28: Mujeres | H28: Hombres | I28: Mujeres | J28: Hombres | K28: Mujeres | L28: Hombres | M28: Mujeres | N28: Hombres | O28: Mujeres | P28: Hombres | Q28: Mujeres | R28: Hombres | S28: Mujeres | T28: Hombres | U28: Mujeres | V28: Hombres | W28: Mujeres | X28: Hombres | Y28: Mujeres | Z28: Hombres | AA28: Mujeres | AB28: Hombres | AC28: Mujeres | AD28: Hombres | AE28: Mujeres | AF28: Hombres | AG28: Mujeres
A29: 02200010 | B29: TABAQUISMO | C29: =SUM(D29:E29) -> 11738 | D29: =SUM(F29+H29+J29+L29+N29+P29+R29+T29+V29+X29+Z29+AB29+AD29+AF29) -> 4470 | E29: =SUM(G29+I29+K29+M29+O29+Q29+S29+U29+W29+Y29+AA29+AC29+AE29+AG29) -> 7268 | F29: =IFERROR(VLOOKUP($A29,Filtro_!$A$5:$AW$2561,5,FALSE),0) -> 16 | G29: =IFERROR(VLOOKUP($A29,Filtro_!$A$5:$AW$2561,6,FALSE),0) -> 29 | H29: =IFERROR(VLOOKUP($A29,Filtro_!$A$5:$AW$2561,7,FALSE),0) -> 427 | I29: =IFERROR(VLOOKUP($A29,Filtro_!$A$5:$AW$2561,8,FALSE),0) -> 744 | J29: =IFERROR(VLOOKUP($A29,Filtro_!$A$5:$AW$2561,9,FALSE),0) -> 511 | K29: =IFERROR(VLOOKUP($A29,Filtro_!$A$5:$AW$2561,10,FALSE),0) -> 823 | L29: =IFERROR(VLOOKUP($A29,Filtro_!$A$5:$AW$2561,11,FALSE),0) -> 521 | M29: =IFERROR(VLOOKUP($A29,Filtro_!$A$5:$AW$2561,12,FALSE),0) -> 1014 | N29: =IFERROR(VLOOKUP($A29,Filtro_!$A$5:$AW$2561,13,FALSE),0) -> 497 | O29: =IFERROR(VLOOKUP($A29,Filtro_!$A$5:$AW$2561,14,FALSE),0) -> 940 | P29: =IFERROR(VLOOKUP($A29,Filtro_!$A$5:$AW$2561,15,FALSE),0) -> 521 | Q29: =IFERROR(VLOOKUP($A29,Filtro_!$A$5:$AW$2561,16,FALSE),0) -> 844 | R29: =IFERROR(VLOOKUP($A29,Filtro_!$A$5:$AW$2561,17,FALSE),0) -> 415 | S29: =IFERROR(VLOOKUP($A29,Filtro_!$A$5:$AW$2561,18,FALSE),0) -> 788 | T29: =IFERROR(VLOOKUP($A29,Filtro_!$A$5:$AW$2561,19,FALSE),0) -> 429 | U29: =IFERROR(VLOOKUP($A29,Filtro_!$A$5:$AW$2561,20,FALSE),0) -> 662 | V29: =IFERROR(VLOOKUP($A29,Filtro_!$A$5:$AW$2561,21,FALSE),0) -> 368 | W29: =IFERROR(VLOOKUP($A29,Filtro_!$A$5:$AW$2561,22,FALSE),0) -> 443 | X29: =IFERROR(VLOOKUP($A29,Filtro_!$A$5:$AW$2561,23,FALSE),0) -> 231 | Y29: =IFERROR(VLOOKUP($A29,Filtro_!$A$5:$AW$2561,24,FALSE),0) -> 308 | Z29: =IFERROR(VLOOKUP($A29,Filtro_!$A$5:$AW$2561,25,FALSE),0) -> 197 | AA29: =IFERROR(VLOOKUP($A29,Filtro_!$A$5:$AW$2561,26,FALSE),0) -> 292 | AB29: =IFERROR(VLOOKUP($A29,Filtro_!$A$5:$AW$2561,27,FALSE),0) -> 156 | AC29: =IFERROR(VLOOKUP($A29,Filtro_!$A$5:$AW$2561,28,FALSE),0) -> 198 | AD29: =IFERROR(VLOOKUP($A29,Filtro_!$A$5:$AW$2561,29,FALSE),0) -> 107 | AE29: =IFERROR(VLOOKUP($A29,Filtro_!$A$5:$AW$2561,30,FALSE),0) -> 100 | AF29: =IFERROR(VLOOKUP($A29,Filtro_!$A$5:$AW$2561,31,FALSE),0) -> 74 | AG29: =IFERROR(VLOOKUP($A29,Filtro_!$A$5:$AW$2561,32,FALSE),0) -> 83 | AH29: =IFERROR(VLOOKUP($A29,Filtro_!$A$5:$AW$2561,33,FALSE),0) -> 21 | AI29: =IFERROR(VLOOKUP($A29,Filtro_!$A$5:$AW$2561,34,FALSE),0) -> 64
A30: 02200020 | B30: PRESIÓN ARTERIAL ELEVADA (= >140/90 mmHg) | C30: =SUM(D30:E30) -> 10667 | D30: =SUM(F30+H30+J30+L30+N30+P30+R30+T30+V30+X30+Z30+AB30+AD30+AF30) -> 4681 | E30: =SUM(G30+I30+K30+M30+O30+Q30+S30+U30+W30+Y30+AA30+AC30+AE30+AG30) -> 5986 | F30: =IFERROR(VLOOKUP($A30,Filtro_!$A$5:$AW$2561,5,FALSE),0) -> 21 | G30: =IFERROR(VLOOKUP($A30,Filtro_!$A$5:$AW$2561,6,FALSE),0) -> 27 | H30: =IFERROR(VLOOKUP($A30,Filtro_!$A$5:$AW$2561,7,FALSE),0) -> 149 | I30: =IFERROR(VLOOKUP($A30,Filtro_!$A$5:$AW$2561,8,FALSE),0) -> 144 | J30: =IFERROR(VLOOKUP($A30,Filtro_!$A$5:$AW$2561,9,FALSE),0) -> 168 | K30: =IFERROR(VLOOKUP($A30,Filtro_!$A$5:$AW$2561,10,FALSE),0) -> 150 | L30: =IFERROR(VLOOKUP($A30,Filtro_!$A$5:$AW$2561,11,FALSE),0) -> 190 | M30: =IFERROR(VLOOKUP($A30,Filtro_!$A$5:$AW$2561,12,FALSE),0) -> 230 | N30: =IFERROR(VLOOKUP($A30,Filtro_!$A$5:$AW$2561,13,FALSE),0) -> 218 | O30: =IFERROR(VLOOKUP($A30,Filtro_!$A$5:$AW$2561,14,FALSE),0) -> 294 | P30: =IFERROR(VLOOKUP($A30,Filtro_!$A$5:$AW$2561,15,FALSE),0) -> 265 | Q30: =IFERROR(VLOOKUP($A30,Filtro_!$A$5:$AW$2561,16,FALSE),0) -> 342 | R30: =IFERROR(VLOOKUP($A30,Filtro_!$A$5:$AW$2561,17,FALSE),0) -> 304 | S30: =IFERROR(VLOOKUP($A30,Filtro_!$A$5:$AW$2561,18,FALSE),0) -> 410 | T30: =IFERROR(VLOOKUP($A30,Filtro_!$A$5:$AW$2561,19,FALSE),0) -> 372 | U30: =IFERROR(VLOOKUP($A30,Filtro_!$A$5:$AW$2561,20,FALSE),0) -> 459 | V30: =IFERROR(VLOOKUP($A30,Filtro_!$A$5:$AW$2561,21,FALSE),0) -> 396 | W30: =IFERROR(VLOOKUP($A30,Filtro_!$A$5:$AW$2561,22,FALSE),0) -> 349 | X30: =IFERROR(VLOOKUP($A30,Filtro_!$A$5:$AW$2561,23,FALSE),0) -> 305 | Y30: =IFERROR(VLOOKUP($A30,Filtro_!$A$5:$AW$2561,24,FALSE),0) -> 321 | Z30: =IFERROR(VLOOKUP($A30,Filtro_!$A$5:$AW$2561,25,FALSE),0) -> 609 | AA30: =IFERROR(VLOOKUP($A30,Filtro_!$A$5:$AW$2561,26,FALSE),0) -> 817 | AB30: =IFERROR(VLOOKUP($A30,Filtro_!$A$5:$AW$2561,27,FALSE),0) -> 585 | AC30: =IFERROR(VLOOKUP($A30,Filtro_!$A$5:$AW$2561,28,FALSE),0) -> 773 | AD30: =IFERROR(VLOOKUP($A30,Filtro_!$A$5:$AW$2561,29,FALSE),0) -> 539 | AE30: =IFERROR(VLOOKUP($A30,Filtro_!$A$5:$AW$2561,30,FALSE),0) -> 707 | AF30: =IFERROR(VLOOKUP($A30,Filtro_!$A$5:$AW$2561,31,FALSE),0) -> 560 | AG30: =IFERROR(VLOOKUP($A30,Filtro_!$A$5:$AW$2561,32,FALSE),0) -> 963 | AH30: =IFERROR(VLOOKUP($A30,Filtro_!$A$5:$AW$2561,33,FALSE),0) -> 30 | AI30: =IFERROR(VLOOKUP($A30,Filtro_!$A$5:$AW$2561,34,FALSE),0) -> 71
B31: SECCIÓN D: RESULTADOS DE EMP SEGÚN ESTADO DE SALUD (EXÁMENES DE LABORATORIO)
B32: ESTADO DE SALUD | C32: TOTAL | F32: 15 a 19 años | H32: 20 a 24 años | J32: 25 a 29 años | L32: 30 a 34 años | N32: 35 a 39 años | P32: 40 a 44 años | R32: 45 a 49 años | T32: 50 a 54 años | V32: 55 a 59 años | X32: 60 a 64 años | Z32: 65 a 69 años | AB32: 70 a 74 años | AD32: 75 a 79 años | AF32: 80 y más años | AH32: Pueblos Originarios | AI32: Migrantes
C33: Ambos Sexos | D33: Hombres | E33: Mujeres | F33: Hombres | G33: Mujeres | H33: Hombres | I33: Mujeres | J33: Hombres | K33: Mujeres | L33: Hombres | M33: Mujeres | N33: Hombres | O33: Mujeres | P33: Hombres | Q33: Mujeres | R33: Hombres | S33: Mujeres | T33: Hombres | U33: Mujeres | V33: Hombres | W33: Mujeres | X33: Hombres | Y33: Mujeres | Z33: Hombres | AA33: Mujeres | AB33: Hombres | AC33: Mujeres | AD33: Hombres | AE33: Mujeres | AF33: Hombres | AG33: Mujeres
A34: 02200030 | B34: GLICEMIA ALTERADA (= > a 100 mg/dl) | C34: =SUM(D34:E34) -> 9150 | D34: =SUM(F34+H34+J34+L34+N34+P34+R34+T34+V34+X34+Z34+AB34+AD34+AF34) -> 3192 | E34: =SUM(G34+I34+K34+M34+O34+Q34+S34+U34+W34+Y34+AA34+AC34+AE34+AG34) -> 5958 | F34: =IFERROR(VLOOKUP($A34,Filtro_!$A$5:$AW$2561,5,FALSE),0) -> 9 | G34: =IFERROR(VLOOKUP($A34,Filtro_!$A$5:$AW$2561,6,FALSE),0) -> 13 | H34: =IFERROR(VLOOKUP($A34,Filtro_!$A$5:$AW$2561,7,FALSE),0) -> 155 | I34: =IFERROR(VLOOKUP($A34,Filtro_!$A$5:$AW$2561,8,FALSE),0) -> 404 | J34: =IFERROR(VLOOKUP($A34,Filtro_!$A$5:$AW$2561,9,FALSE),0) -> 185 | K34: =IFERROR(VLOOKUP($A34,Filtro_!$A$5:$AW$2561,10,FALSE),0) -> 462 | L34: =IFERROR(VLOOKUP($A34,Filtro_!$A$5:$AW$2561,11,FALSE),0) -> 239 | M34: =IFERROR(VLOOKUP($A34,Filtro_!$A$5:$AW$2561,12,FALSE),0) -> 560 | N34: =IFERROR(VLOOKUP($A34,Filtro_!$A$5:$AW$2561,13,FALSE),0) -> 256 | O34: =IFERROR(VLOOKUP($A34,Filtro_!$A$5:$AW$2561,14,FALSE),0) -> 608 | P34: =IFERROR(VLOOKUP($A34,Filtro_!$A$5:$AW$2561,15,FALSE),0) -> 262 | Q34: =IFERROR(VLOOKUP($A34,Filtro_!$A$5:$AW$2561,16,FALSE),0) -> 536 | R34: =IFERROR(VLOOKUP($A34,Filtro_!$A$5:$AW$2561,17,FALSE),0) -> 257 | S34: =IFERROR(VLOOKUP($A34,Filtro_!$A$5:$AW$2561,18,FALSE),0) -> 539 | T34: =IFERROR(VLOOKUP($A34,Filtro_!$A$5:$AW$2561,19,FALSE),0) -> 297 | U34: =IFERROR(VLOOKUP($A34,Filtro_!$A$5:$AW$2561,20,FALSE),0) -> 485 | V34: =IFERROR(VLOOKUP($A34,Filtro_!$A$5:$AW$2561,21,FALSE),0) -> 278 | W34: =IFERROR(VLOOKUP($A34,Filtro_!$A$5:$AW$2561,22,FALSE),0) -> 422 | X34: =IFERROR(VLOOKUP($A34,Filtro_!$A$5:$AW$2561,23,FALSE),0) -> 222 | Y34: =IFERROR(VLOOKUP($A34,Filtro_!$A$5:$AW$2561,24,FALSE),0) -> 336 | Z34: =IFERROR(VLOOKUP($A34,Filtro_!$A$5:$AW$2561,25,FALSE),0) -> 314 | AA34: =IFERROR(VLOOKUP($A34,Filtro_!$A$5:$AW$2561,26,FALSE),0) -> 500 | AB34: =IFERROR(VLOOKUP($A34,Filtro_!$A$5:$AW$2561,27,FALSE),0) -> 273 | AC34: =IFERROR(VLOOKUP($A34,Filtro_!$A$5:$AW$2561,28,FALSE),0) -> 393 | AD34: =IFERROR(VLOOKUP($A34,Filtro_!$A$5:$AW$2561,29,FALSE),0) -> 210 | AE34: =IFERROR(VLOOKUP($A34,Filtro_!$A$5:$AW$2561,30,FALSE),0) -> 329 | AF34: =IFERROR(VLOOKUP($A34,Filtro_!$A$5:$AW$2561,31,FALSE),0) -> 235 | AG34: =IFERROR(VLOOKUP($A34,Filtro_!$A$5:$AW$2561,32,FALSE),0) -> 371 | AH34: =IFERROR(VLOOKUP($A34,Filtro_!$A$5:$AW$2561,33,FALSE),0) -> 35 | AI34: =IFERROR(VLOOKUP($A34,Filtro_!$A$5:$AW$2561,34,FALSE),0) -> 132
A35: 02200040 | B35: COLESTEROL ELEVADO (= > 200 mg/dl) | C35: =SUM(D35:E35) -> 3366 | D35: =SUM(F35+H35+J35+L35+N35+P35+R35+T35+V35+X35+Z35+AB35+AD35+AF35) -> 1111 | E35: =SUM(G35+I35+K35+M35+O35+Q35+S35+U35+W35+Y35+AA35+AC35+AE35+AG35) -> 2255 | F35: =IFERROR(VLOOKUP($A35,Filtro_!$A$5:$AW$2561,5,FALSE),0) -> 1 | G35: =IFERROR(VLOOKUP($A35,Filtro_!$A$5:$AW$2561,6,FALSE),0) -> 2 | H35: =IFERROR(VLOOKUP($A35,Filtro_!$A$5:$AW$2561,7,FALSE),0) -> 20 | I35: =IFERROR(VLOOKUP($A35,Filtro_!$A$5:$AW$2561,8,FALSE),0) -> 40 | J35: =IFERROR(VLOOKUP($A35,Filtro_!$A$5:$AW$2561,9,FALSE),0) -> 39 | K35: =IFERROR(VLOOKUP($A35,Filtro_!$A$5:$AW$2561,10,FALSE),0) -> 68 | L35: =IFERROR(VLOOKUP($A35,Filtro_!$A$5:$AW$2561,11,FALSE),0) -> 54 | M35: =IFERROR(VLOOKUP($A35,Filtro_!$A$5:$AW$2561,12,FALSE),0) -> 103 | N35: =IFERROR(VLOOKUP($A35,Filtro_!$A$5:$AW$2561,13,FALSE),0) -> 49 | O35: =IFERROR(VLOOKUP($A35,Filtro_!$A$5:$AW$2561,14,FALSE),0) -> 114 | P35: =IFERROR(VLOOKUP($A35,Filtro_!$A$5:$AW$2561,15,FALSE),0) -> 93 | Q35: =IFERROR(VLOOKUP($A35,Filtro_!$A$5:$AW$2561,16,FALSE),0) -> 168 | R35: =IFERROR(VLOOKUP($A35,Filtro_!$A$5:$AW$2561,17,FALSE),0) -> 99 | S35: =IFERROR(VLOOKUP($A35,Filtro_!$A$5:$AW$2561,18,FALSE),0) -> 208 | T35: =IFERROR(VLOOKUP($A35,Filtro_!$A$5:$AW$2561,19,FALSE),0) -> 88 | U35: =IFERROR(VLOOKUP($A35,Filtro_!$A$5:$AW$2561,20,FALSE),0) -> 197 | V35: =IFERROR(VLOOKUP($A35,Filtro_!$A$5:$AW$2561,21,FALSE),0) -> 102 | W35: =IFERROR(VLOOKUP($A35,Filtro_!$A$5:$AW$2561,22,FALSE),0) -> 180 | X35: =IFERROR(VLOOKUP($A35,Filtro_!$A$5:$AW$2561,23,FALSE),0) -> 73 | Y35: =IFERROR(VLOOKUP($A35,Filtro_!$A$5:$AW$2561,24,FALSE),0) -> 139 | Z35: =IFERROR(VLOOKUP($A35,Filtro_!$A$5:$AW$2561,25,FALSE),0) -> 152 | AA35: =IFERROR(VLOOKUP($A35,Filtro_!$A$5:$AW$2561,26,FALSE),0) -> 340 | AB35: =IFERROR(VLOOKUP($A35,Filtro_!$A$5:$AW$2561,27,FALSE),0) -> 135 | AC35: =IFERROR(VLOOKUP($A35,Filtro_!$A$5:$AW$2561,28,FALSE),0) -> 280 | AD35: =IFERROR(VLOOKUP($A35,Filtro_!$A$5:$AW$2561,29,FALSE),0) -> 110 | AE35: =IFERROR(VLOOKUP($A35,Filtro_!$A$5:$AW$2561,30,FALSE),0) -> 193 | AF35: =IFERROR(VLOOKUP($A35,Filtro_!$A$5:$AW$2561,31,FALSE),0) -> 96 | AG35: =IFERROR(VLOOKUP($A35,Filtro_!$A$5:$AW$2561,32,FALSE),0) -> 223 | AH35: =IFERROR(VLOOKUP($A35,Filtro_!$A$5:$AW$2561,33,FALSE),0) -> 13 | AI35: =IFERROR(VLOOKUP($A35,Filtro_!$A$5:$AW$2561,34,FALSE),0) -> 20
B195: =SUM(C12:C17,C21:C25,C29:C30,C34:C35) -> 240235 | C195: =SUM(DB7:EA52) -> 0

Sheet A03
B1: SERVICIO DE SALUD
B2: =CONCATENATE("COMUNA: ",NOMBRE!B2," - ","( ",NOMBRE!C2,NOMBRE!D2,NOMBRE!E2,NOMBRE!F2,NOMBRE!G2," )") -> COMUNA: - ( )
B3: =CONCATENATE("ESTABLECIMIENTO/ESTRATEGIA: ",NOMBRE!B3," - ","( ",NOMBRE!C3,NOMBRE!D3,NOMBRE!E3,NOMBRE!F3,NOMBRE!G3,NOMBRE!H3," )") -> ESTABLECIMIENTO/ESTRATEGIA: - ( )
B4: =CONCATENATE("MES: ",NOMBRE!B6," - ","( ",NOMBRE!C6,NOMBRE!D6," )") -> MES: - ( )
B5: =CONCATENATE("AÑO: ",NOMBRE!B7) -> AÑO: 2023
B6: REM-A03. APLICACIÓN Y RESULTADOS DE ESCALAS DE EVALUACIÓN
B7: SECCIÓN A: APLICACIÓN DE INSTRUMENTO Y RESULTADO EN EL NIÑO (A)
B8: SECCIÓN A.1: APLICACIÓN Y RESULTADOS DE PAUTA BREVE
B9: EVALUACIONES POR EDAD DEL NIÑO | D9: TOTAL | G9: GRUPO DE EDAD
G10: Menor de 1 mes | I10: 1 mes | K10: 2 meses | M10: 3 meses | O10: 4 meses | Q10: 5 meses | S10: 6 meses | U10: 7 - 11 meses | W10: 12 - 17 meses | Y10: 18 - 24 meses
D11: Ambos Sexos | E11: Hombres | F11: Mujeres | G11: Hombres | H11: Mujeres | I11: Hombres | J11: Mujeres | K11: Hombres | L11: Mujeres | M11: Hombres | N11: Mujeres | O11: Hombres | P11: Mujeres | Q11: Hombres | R11: Mujeres | S11: Hombres | T11: Mujeres | U11: Hombres | V11: Mujeres | W11: Hombres | X11: Mujeres | Y11: Hombres | Z11: Mujeres
A12: 02021730 | B12: APLICACIÓN PAUTA BREVE | D12: =SUM(E12+F12) -> 9842 | E12: =SUM(G12+I12+K12+M12+O12+Q12+S12+U12+W12+Y12) -> 4877 | F12: =SUM(H12+J12+L12+N12+P12+R12+T12+V12+X12+Z12) -> 4965 | G12: =IFERROR(VLOOKUP($A12,Filtro_!$A$5:$AW$2561,5,FALSE),0) -> 3 | H12: =IFERROR(VLOOKUP($A12,Filtro_!$A$5:$AW$2561,6,FALSE),0) -> 13 | I12: =IFERROR(VLOOKUP($A12,Filtro_!$A$5:$AW$2561,7,FALSE),0) -> 55 | J12: =IFERROR(VLOOKUP($A12,Filtro_!$A$5:$AW$2561,8,FALSE),0) -> 50 | K12: =IFERROR(VLOOKUP($A12,Filtro_!$A$5:$AW$2561,9,FALSE),0) -> 2 | L12: =IFERROR(VLOOKUP($A12,Filtro_!$A$5:$AW$2561,10,FALSE),0) -> 9 | M12: =IFERROR(VLOOKUP($A12,Filtro_!$A$5:$AW$2561,11,FALSE),0) -> 61 | N12: =IFERROR(VLOOKUP($A12,Filtro_!$A$5:$AW$2561,12,FALSE),0) -> 91 | O12: =IFERROR(VLOOKUP($A12,Filtro_!$A$5:$AW$2561,13,FALSE),0) -> 1645 | P12: =IFERROR(VLOOKUP($A12,Filtro_!$A$5:$AW$2561,14,FALSE),0) -> 1733 | Q12: =IFERROR(VLOOKUP($A12,Filtro_!$A$5:$AW$2561,15,FALSE),0) -> 71 | R12: =IFERROR(VLOOKUP($A12,Filtro_!$A$5:$AW$2561,16,FALSE),0) -> 72 | S12: =IFERROR(VLOOKUP($A12,Filtro_!$A$5:$AW$2561,17,FALSE),0) -> 13 | T12: =IFERROR(VLOOKUP($A12,Filtro_!$A$5:$AW$2561,18,FALSE),0) -> 15 | U12: =IFERROR(VLOOKUP($A12,Filtro_!$A$5:$AW$2561,19,FALSE),0) -> 59 | V12: =IFERROR(VLOOKUP($A12,Filtro_!$A$5:$AW$2561,20,FALSE),0) -> 57 | W12: =IFERROR(VLOOKUP($A12,Filtro_!$A$5:$AW$2561,21,FALSE),0) -> 1666 | X12: =IFERROR(VLOOKUP($A12,Filtro_!$A$5:$AW$2561,22,FALSE),0) -> 1571 | Y12: =IFERROR(VLOOKUP($A12,Filtro_!$A$5:$AW$2561,23,FALSE),0) -> 1302 | Z12: =IFERROR(VLOOKUP($A12,Filtro_!$A$5:$AW$2561,24,FALSE),0) -> 1354
A13: 03500020 | B13: RESULTADOS | C13: NORMAL | D13: =SUM(E13+F13) -> 8760 | E13: 4222 | F13: =SUM(H13+J13+L13+N13+P13+R13+T13+V13+X13+Z13) -> 4538 | G13: =IFERROR(VLOOKUP($A13,Filtro_!$A$5:$AW$2561,5,FALSE),0) -> 3 | H13: =IFERROR(VLOOKUP($A13,Filtro_!$A$5:$AW$2561,6,FALSE),0) -> 12 | I13: =IFERROR(VLOOKUP($A13,Filtro_!$A$5:$AW$2561,7,FALSE),0) -> 55 | J13: =IFERROR(VLOOKUP($A13,Filtro_!$A$5:$AW$2561,8,FALSE),0) -> 50 | K13: =IFERROR(VLOOKUP($A13,Filtro_!$A$5:$AW$2561,9,FALSE),0) -> 2 | L13: =IFERROR(VLOOKUP($A13,Filtro_!$A$5:$AW$2561,10,FALSE),0) -> 9 | M13: =IFERROR(VLOOKUP($A13,Filtro_!$A$5:$AW$2561,11,FALSE),0) -> 59 | N13: =IFERROR(VLOOKUP($A13,Filtro_!$A$5:$AW$2561,12,FALSE),0) -> 90 | O13: =IFERROR(VLOOKUP($A13,Filtro_!$A$5:$AW$2561,13,FALSE),0) -> 1561 | P13: =IFERROR(VLOOKUP($A13,Filtro_!$A$5:$AW$2561,14,FALSE),0) -> 1672 | Q13: =IFERROR(VLOOKUP($A13,Filtro_!$A$5:$AW$2561,15,FALSE),0) -> 67 | R13: =IFERROR(VLOOKUP($A13,Filtro_!$A$5:$AW$2561,16,FALSE),0) -> 68 | S13: =IFERROR(VLOOKUP($A13,Filtro_!$A$5:$AW$2561,17,FALSE),0) -> 13 | T13: =IFERROR(VLOOKUP($A13,Filtro_!$A$5:$AW$2561,18,FALSE),0) -> 11 | U13: =IFERROR(VLOOKUP($A13,Filtro_!$A$5:$AW$2561,19,FALSE),0) -> 53 | V13: =IFERROR(VLOOKUP($A13,Filtro_!$A$5:$AW$2561,20,FALSE),0) -> 51 | W13: =IFERROR(VLOOKUP($A13,Filtro_!$A$5:$AW$2561,21,FALSE),0) -> 1447 | X13: =IFERROR(VLOOKUP($A13,Filtro_!$A$5:$AW$2561,22,FALSE),0) -> 1439 | Y13: =IFERROR(VLOOKUP($A13,Filtro_!$A$5:$AW$2561,23,FALSE),0) -> 962 | Z13: =IFERROR(VLOOKUP($A13,Filtro_!$A$5:$AW$2561,24,FALSE),0) -> 1136 | CF13: * Aplicacion de Pauta Breve en Hombres Menor de 1 mes debe ser igual a la suma de resultados. | CO13: * Aplicacion de Pauta Breve en Mujeres de 4 meses debe ser igual a la suma de resultados. | CP13: * Aplicacion de Pauta Breve en Hombres de 5 meses debe ser igual a la suma de resultados. | CT13: * Aplicacion de Pauta Breve en Hombres de 7 - 11 meses debe ser igual a la suma de resultados. | CW13: * Aplicacion de Pauta Breve en Mujeres de 12 - 17 meses debe ser igual a la suma de resultados. | CX13: * Aplicacion de Pauta Breve en Hombres de 18 - 24 meses debe ser igual a la suma de resultados. | CY13: * Aplicacion de Pauta Breve en Mujeres de 18 - 24 meses debe ser igual a la suma de resultados. | DE13: 0 | DF13: 1 | DG13: 0 | DH13: 0 | DI13: 0 | DJ13: 0 | DK13: 0 | DL13: 0 | DM13: 0 | DN13: 0 | DO13: 1 | DP13: 1 | DQ13: 0 | DR13: 0 | DS13: 0 | DT13: 1 | DU13: 0 | DV13: 0 | DW13: 1 | DX13: 1 | DY13: 1 | DZ13: 0
A14: 03500030 | C14: ALTERADO | D14: =SUM(E14+F14) -> 1068 | E14: 653 | F14: 415 | G14: =IFERROR(VLOOKUP($A14,Filtro_!$A$5:$AW$2561,5,FALSE),0) -> 0 | H14: =IFERROR(VLOOKUP($A14,Filtro_!$A$5:$AW$2561,6,FALSE),0) -> 1 | I14: =IFERROR(VLOOKUP($A14,Filtro_!$A$5:$AW$2561,7,FALSE),0) -> 0 | J14: =IFERROR(VLOOKUP($A14,Filtro_!$A$5:$AW$2561,8,FALSE),0) -> 0 | K14: =IFERROR(VLOOKUP($A14,Filtro_!$A$5:$AW$2561,9,FALSE),0) -> 0 | L14: =IFERROR(VLOOKUP($A14,Filtro_!$A$5:$AW$2561,10,FALSE),0) -> 0 | M14: =IFERROR(VLOOKUP($A14,Filtro_!$A$5:$AW$2561,11,FALSE),0) -> 2 | N14: =IFERROR(VLOOKUP($A14,Filtro_!$A$5:$AW$2561,12,FALSE),0) -> 1 | O14: =IFERROR(VLOOKUP($A14,Filtro_!$A$5:$AW$2561,13,FALSE),0) -> 82 | P14: =IFERROR(VLOOKUP($A14,Filtro_!$A$5:$AW$2561,14,FALSE),0) -> 58 | Q14: =IFERROR(VLOOKUP($A14,Filtro_!$A$5:$AW$2561,15,FALSE),0) -> 4 | R14: =IFERROR(VLOOKUP($A14,Filtro_!$A$5:$AW$2561,16,FALSE),0) -> 4 | S14: =IFERROR(VLOOKUP($A14,Filtro_!$A$5:$AW$2561,17,FALSE),0) -> 0 | T14: =IFERROR(VLOOKUP($A14,Filtro_!$A$5:$AW$2561,18,FALSE),0) -> 3 | U14: =IFERROR(VLOOKUP($A14,Filtro_!$A$5:$AW$2561,19,FALSE),0) -> 6 | V14: =IFERROR(VLOOKUP($A14,Filtro_!$A$5:$AW$2561,20,FALSE),0) -> 6 | W14: =IFERROR(VLOOKUP($A14,Filtro_!$A$5:$AW$2561,21,FALSE),0) -> 220 | X14: =IFERROR(VLOOKUP($A14,Filtro_!$A$5:$AW$2561,22,FALSE),0) -> 126 | Y14: =IFERROR(VLOOKUP($A14,Filtro_!$A$5:$AW$2561,23,FALSE),0) -> 339 | Z14: =IFERROR(VLOOKUP($A14,Filtro_!$A$5:$AW$2561,24,FALSE),0) -> 216
B15: SECCIÓN A.2: RESULTADOS DE LA APLICACIÓN DE ESCALA DE EVALUACIÓN DEL DESARROLLO PSICOMOTOR
B16: ACTIVIDAD | C16: RESULTADO | D16: TOTAL | G16: POR EDAD | S16: Pueblos Originarios | T16: Migrantes
G17: Menor 7 meses | I17: 7 - 11 meses | K17: 12 - 17 meses | M17: 18 - 23 meses | O17: 24 - 47 meses | Q17: 48 - 59 meses
D18: Ambos Sexos | E18: Hombres | F18: Mujeres | G18: Hombres | H18: Mujeres | I18: Hombres | J18: Mujeres | K18: Hombres | L18: Mujeres | M18: Hombres | N18: Mujeres | O18: Hombres | P18: Mujeres | Q18: Hombres | R18: Mujeres
A19: 02021740 | B19: APLICACIÓN TEST DE DESARROLLO PSICOMOTOR | D19: =SUM(E19+F19) -> 12407 | E19: =SUM(G19+I19+K19+M19+O19+Q19) -> 6374 | F19: =SUM(H19+J19+L19+N19+P19+R19) -> 6033 | G19: =IFERROR(VLOOKUP($A19,Filtro_!$A$5:$AW$2561,5,FALSE),0) -> 75 | H19: =IFERROR(VLOOKUP($A19,Filtro_!$A$5:$AW$2561,6,FALSE),0) -> 54 | I19: =IFERROR(VLOOKUP($A19,Filtro_!$A$5:$AW$2561,7,FALSE),0) -> 1930 | J19: =IFERROR(VLOOKUP($A19,Filtro_!$A$5:$AW$2561,8,FALSE),0) -> 1924 | K19: =IFERROR(VLOOKUP($A19,Filtro_!$A$5:$AW$2561,9,FALSE),0) -> 473 | L19: =IFERROR(VLOOKUP($A19,Filtro_!$A$5:$AW$2561,10,FALSE),0) -> 418 | M19: =IFERROR(VLOOKUP($A19,Filtro_!$A$5:$AW$2561,11,FALSE),0) -> 2041 | N19: =IFERROR(VLOOKUP($A19,Filtro_!$A$5:$AW$2561,12,FALSE),0) -> 1892 | O19: =IFERROR(VLOOKUP($A19,Filtro_!$A$5:$AW$2561,13,FALSE),0) -> 1697 | P19: =IFERROR(VLOOKUP($A19,Filtro_!$A$5:$AW$2561,14,FALSE),0) -> 1626 | Q19: =IFERROR(VLOOKUP($A19,Filtro_!$A$5:$AW$2561,15,FALSE),0) -> 158 | R19: =IFERROR(VLOOKUP($A19,Filtro_!$A$5:$AW$2561,16,FALSE),0) -> 119 | S19: =IFERROR(VLOOKUP($A19,Filtro_!$A$5:$AW$2561,17,FALSE),0) -> 54 | T19: =IFERROR(VLOOKUP($A19,Filtro_!$A$5:$AW$2561,18,FALSE),0) -> 65 | CH19: * El total de aplicaciones de Pueblos Originarios debe ser IGUAL a los resultados de la totalidad de las aplicaciones de la primera evaluación y la reevaluación. | CJ19: * El total de aplicaciones de Migrantes debe ser IGUAL a los resultados de la totalidad de las aplicaciones de la primera evaluación y la reevaluación. | CL19: 0 | CM19: 0 | CN19: 0 | CO19: 0 | DB19: 0 | DC19: 0 | DD19: 0 | DE19: 0 | DF19: 0 | DG19: 0 | DI19: 0 | DK19: 0
A20: 02010320 | B20: PRIMERA EVALUACIÓN | C20: NORMAL | D20: =SUM(E20+F20) -> 9361 | E20: =SUM(G20+I20+K20+M20+O20+Q20) -> 4507 | F20: 4854 | G20: =IFERROR(VLOOKUP($A20,Filtro_!$A$5:$AW$2561,5,FALSE),0) -> 54 | H20: =IFERROR(VLOOKUP($A20,Filtro_!$A$5:$AW$2561,6,FALSE),0) -> 40 | I20: =IFERROR(VLOOKUP($A20,Filtro_!$A$5:$AW$2561,7,FALSE),0) -> 1706 | J20: =IFERROR(VLOOKUP($A20,Filtro_!$A$5:$AW$2561,8,FALSE),0) -> 1723 | K20: =IFERROR(VLOOKUP($A20,Filtro_!$A$5:$AW$2561,9,FALSE),0) -> 326 | L20: =IFERROR(VLOOKUP($A20,Filtro_!$A$5:$AW$2561,10,FALSE),0) -> 330 | M20: =IFERROR(VLOOKUP($A20,Filtro_!$A$5:$AW$2561,11,FALSE),0) -> 1353 | N20: =IFERROR(VLOOKUP($A20,Filtro_!$A$5:$AW$2561,12,FALSE),0) -> 1485 | O20: =IFERROR(VLOOKUP($A20,Filtro_!$A$5:$AW$2561,13,FALSE),0) -> 984 | P20: =IFERROR(VLOOKUP($A20,Filtro_!$A$5:$AW$2561,14,FALSE),0) -> 1183 | Q20: =IFERROR(VLOOKUP($A20,Filtro_!$A$5:$AW$2561,15,FALSE),0) -> 84 | R20: =IFERROR(VLOOKUP($A20,Filtro_!$A$5:$AW$2561,16,FALSE),0) -> 93 | S20: =IFERROR(VLOOKUP($A20,Filtro_!$A$5:$AW$2561,17,FALSE),0) -> 37 | T20: =IFERROR(VLOOKUP($A20,Filtro_!$A$5:$AW$2561,18,FALSE),0) -> 50
A21: 05225303 | C21: NORMAL CON REZAGO | D21: =SUM(E21+F21) -> 699 | E21: 402 | F21: 297 | G21: =IFERROR(VLOOKUP($A21,Filtro_!$A$5:$AW$2561,5,FALSE),0) -> 6 | H21: =IFERROR(VLOOKUP($A21,Filtro_!$A$5:$AW$2561,6,FALSE),0) -> 2 | I21: =IFERROR(VLOOKUP($A21,Filtro_!$A$5:$AW$2561,7,FALSE),0) -> 63 | J21: =IFERROR(VLOOKUP($A21,Filtro_!$A$5:$AW$2561,8,FALSE),0) -> 61 | K21: =IFERROR(VLOOKUP($A21,Filtro_!$A$5:$AW$2561,9,FALSE),0) -> 34 | L21: =IFERROR(VLOOKUP($A21,Filtro_!$A$5:$AW$2561,10,FALSE),0) -> 23 | M21: =IFERROR(VLOOKUP($A21,Filtro_!$A$5:$AW$2561,11,FALSE),0) -> 124 | N21: =IFERROR(VLOOKUP($A21,Filtro_!$A$5:$AW$2561,12,FALSE),0) -> 72 | O21: =IFERROR(VLOOKUP($A21,Filtro_!$A$5:$AW$2561,13,FALSE),0) -> 167 | P21: =IFERROR(VLOOKUP($A21,Filtro_!$A$5:$AW$2561,14,FALSE),0) -> 139 | Q21: =IFERROR(VLOOKUP($A21,Filtro_!$A$5:$AW$2561,15,FALSE),0) -> 8 | R21: =IFERROR(VLOOKUP($A21,Filtro_!$A$5:$AW$2561,16,FALSE),0) -> 0 | S21: =IFERROR(VLOOKUP($A21,Filtro_!$A$5:$AW$2561,17,FALSE),0) -> 9 | T21: =IFERROR(VLOOKUP($A21,Filtro_!$A$5:$AW$2561,18,FALSE),0) -> 6
A22: 02010321 | C22: RIESGO | D22: 939 | E22: 575 | F22: 364 | G22: =IFERROR(VLOOKUP($A22,Filtro_!$A$5:$AW$2561,5,FALSE),0) -> 10 | H22: =IFERROR(VLOOKUP($A22,Filtro_!$A$5:$AW$2561,6,FALSE),0) -> 7 | I22: =IFERROR(VLOOKUP($A22,Filtro_!$A$5:$AW$2561,7,FALSE),0) -> 79 | J22: =IFERROR(VLOOKUP($A22,Filtro_!$A$5:$AW$2561,8,FALSE),0) -> 64 | K22: =IFERROR(VLOOKUP($A22,Filtro_!$A$5:$AW$2561,9,FALSE),0) -> 47 | L22: =IFERROR(VLOOKUP($A22,Filtro_!$A$5:$AW$2561,10,FALSE),0) -> 14 | M22: =IFERROR(VLOOKUP($A22,Filtro_!$A$5:$AW$2561,11,FALSE),0) -> 218 | N22: =IFERROR(VLOOKUP($A22,Filtro_!$A$5:$AW$2561,12,FALSE),0) -> 153 | O22: =IFERROR(VLOOKUP($A22,Filtro_!$A$5:$AW$2561,13,FALSE),0) -> 213 | P22: =IFERROR(VLOOKUP($A22,Filtro_!$A$5:$AW$2561,14,FALSE),0) -> 122 | Q22: =IFERROR(VLOOKUP($A22,Filtro_!$A$5:$AW$2561,15,FALSE),0) -> 8 | R22: =IFERROR(VLOOKUP($A22,Filtro_!$A$5:$AW$2561,16,FALSE),0) -> 4 | S22: =IFERROR(VLOOKUP($A22,Filtro_!$A$5:$AW$2561,17,FALSE),0) -> 1 | T22: =IFERROR(VLOOKUP($A22,Filtro_!$A$5:$AW$2561,18,FALSE),0) -> 7
A23: 02010322 | C23: RETRASO | D23: 311 | E23: 217 | F23: 94 | G23: =IFERROR(VLOOKUP($A23,Filtro_!$A$5:$AW$2561,5,FALSE),0) -> 1 | H23: =IFERROR(VLOOKUP($A23,Filtro_!$A$5:$AW$2561,6,FALSE),0) -> 1 | I23: =IFERROR(VLOOKUP($A23,Filtro_!$A$5:$AW$2561,7,FALSE),0) -> 17 | J23: =IFERROR(VLOOKUP($A23,Filtro_!$A$5:$AW$2561,8,FALSE),0) -> 13 | K23: =IFERROR(VLOOKUP($A23,Filtro_!$A$5:$AW$2561,9,FALSE),0) -> 10 | L23: =IFERROR(VLOOKUP($A23,Filtro_!$A$5:$AW$2561,10,FALSE),0) -> 3 | M23: =IFERROR(VLOOKUP($A23,Filtro_!$A$5:$AW$2561,11,FALSE),0) -> 97 | N23: =IFERROR(VLOOKUP($A23,Filtro_!$A$5:$AW$2561,12,FALSE),0) -> 42 | O23: =IFERROR(VLOOKUP($A23,Filtro_!$A$5:$AW$2561,13,FALSE),0) -> 86 | P23: =IFERROR(VLOOKUP($A23,Filtro_!$A$5:$AW$2561,14,FALSE),0) -> 32 | Q23: =IFERROR(VLOOKUP($A23,Filtro_!$A$5:$AW$2561,15,FALSE),0) -> 6 | R23: =IFERROR(VLOOKUP($A23,Filtro_!$A$5:$AW$2561,16,FALSE),0) -> 3 | S23: =IFERROR(VLOOKUP($A23,Filtro_!$A$5:$AW$2561,17,FALSE),0) -> 0 | T23: =IFERROR(VLOOKUP($A23,Filtro_!$A$5:$AW$2561,18,FALSE),0) -> 1
A24: 05225304 | B24: REEVALUACIÓN | C24: NORMAL (desde normal con rezago) | D24: 308 | E24: 170 | F24: 138 | G24: =IFERROR(VLOOKUP($A24,Filtro_!$A$5:$AW$2561,5,FALSE),0) -> 2 | H24: =IFERROR(VLOOKUP($A24,Filtro_!$A$5:$AW$2561,6,FALSE),0) -> 2 | I24: =IFERROR(VLOOKUP($A24,Filtro_!$A$5:$AW$2561,7,FALSE),0) -> 26 | J24: =IFERROR(VLOOKUP($A24,Filtro_!$A$5:$AW$2561,8,FALSE),0) -> 27 | K24: =IFERROR(VLOOKUP($A24,Filtro_!$A$5:$AW$2561,9,FALSE),0) -> 16 | L24: =IFERROR(VLOOKUP($A24,Filtro_!$A$5:$AW$2561,10,FALSE),0) -> 20 | M24: =IFERROR(VLOOKUP($A24,Filtro_!$A$5:$AW$2561,11,FALSE),0) -> 40 | N24: =IFERROR(VLOOKUP($A24,Filtro_!$A$5:$AW$2561,12,FALSE),0) -> 30 | O24: =IFERROR(VLOOKUP($A24,Filtro_!$A$5:$AW$2561,13,FALSE),0) -> 71 | P24: =IFERROR(VLOOKUP($A24,Filtro_!$A$5:$AW$2561,14,FALSE),0) -> 50 | Q24: =IFERROR(VLOOKUP($A24,Filtro_!$A$5:$AW$2561,15,FALSE),0) -> 15 | R24: =IFERROR(VLOOKUP($A24,Filtro_!$A$5:$AW$2561,16,FALSE),0) -> 9 | S24: =IFERROR(VLOOKUP($A24,Filtro_!$A$5:$AW$2561,17,FALSE),0) -> 4 | T24: =IFERROR(VLOOKUP($A24,Filtro_!$A$5:$AW$2561,18,FALSE),0) -> 0
A25: 02010420 | C25: NORMAL (desde riesgo) | D25: 343 | E25: 198 | F25: 145 | G25: =IFERROR(VLOOKUP($A25,Filtro_!$A$5:$AW$2561,5,FALSE),0) -> 2 | H25: =IFERROR(VLOOKUP($A25,Filtro_!$A$5:$AW$2561,6,FALSE),0) -> 1 | I25: =IFERROR(VLOOKUP($A25,Filtro_!$A$5:$AW$2561,7,FALSE),0) -> 19 | J25: =IFERROR(VLOOKUP($A25,Filtro_!$A$5:$AW$2561,8,FALSE),0) -> 18 | K25: =IFERROR(VLOOKUP($A25,Filtro_!$A$5:$AW$2561,9,FALSE),0) -> 17 | L25: =IFERROR(VLOOKUP($A25,Filtro_!$A$5:$AW$2561,10,FALSE),0) -> 12 | M25: =IFERROR(VLOOKUP($A25,Filtro_!$A$5:$AW$2561,11,FALSE),0) -> 91 | N25: =IFERROR(VLOOKUP($A25,Filtro_!$A$5:$AW$2561,12,FALSE),0) -> 59 | O25: =IFERROR(VLOOKUP($A25,Filtro_!$A$5:$AW$2561,13,FALSE),0) -> 58 | P25: =IFERROR(VLOOKUP($A25,Filtro_!$A$5:$AW$2561,14,FALSE),0) -> 47 | Q25: =IFERROR(VLOOKUP($A25,Filtro_!$A$5:$AW$2561,15,FALSE),0) -> 11 | R25: =IFERROR(VLOOKUP($A25,Filtro_!$A$5:$AW$2561,16,FALSE),0) -> 8 | S25: =IFERROR(VLOOKUP($A25,Filtro_!$A$5:$AW$2561,17,FALSE),0) -> 0 | T25: =IFERROR(VLOOKUP($A25,Filtro_!$A$5:$AW$2561,18,FALSE),0) -> 1
A26: 05225305 | C26: NORMAL (desde retraso) | D26: 40 | E26: 23 | F26: 17 | G26: =IFERROR(VLOOKUP($A26,Filtro_!$A$5:$AW$2561,5,FALSE),0) -> 0 | H26: =IFERROR(VLOOKUP($A26,Filtro_!$A$5:$AW$2561,6,FALSE),0) -> 0 | I26: =IFERROR(VLOOKUP($A26,Filtro_!$A$5:$AW$2561,7,FALSE),0) -> 0 | J26: =IFERROR(VLOOKUP($A26,Filtro_!$A$5:$AW$2561,8,FALSE),0) -> 2 | K26: =IFERROR(VLOOKUP($A26,Filtro_!$A$5:$AW$2561,9,FALSE),0) -> 0 | L26: =IFERROR(VLOOKUP($A26,Filtro_!$A$5:$AW$2561,10,FALSE),0) -> 1 | M26: =IFERROR(VLOOKUP($A26,Filtro_!$A$5:$AW$2561,11,FALSE),0) -> 11 | N26: =IFERROR(VLOOKUP($A26,Filtro_!$A$5:$AW$2561,12,FALSE),0) -> 6 | O26: =IFERROR(VLOOKUP($A26,Filtro_!$A$5:$AW$2561,13,FALSE),0) -> 6 | P26: =IFERROR(VLOOKUP($A26,Filtro_!$A$5:$AW$2561,14,FALSE),0) -> 7 | Q26: =IFERROR(VLOOKUP($A26,Filtro_!$A$5:$AW$2561,15,FALSE),0) -> 6 | R26: =IFERROR(VLOOKUP($A26,Filtro_!$A$5:$AW$2561,16,FALSE),0) -> 1 | S26: =IFERROR(VLOOKUP($A26,Filtro_!$A$5:$AW$2561,17,FALSE),0) -> 3 | T26: =IFERROR(VLOOKUP($A26,Filtro_!$A$5:$AW$2561,18,FALSE),0) -> 0
A27: 03500366 | C27: NORMAL CON REZAGO (desde riesgo) | D27: 104 | E27: 69 | F27: 35 | G27: =IFERROR(VLOOKUP($A27,Filtro_!$A$5:$AW$2561,5,FALSE),0) -> 0 | H27: =IFERROR(VLOOKUP($A27,Filtro_!$A$5:$AW$2561,6,FALSE),0) -> 0 | I27: =IFERROR(VLOOKUP($A27,Filtro_!$A$5:$AW$2561,7,FALSE),0) -> 3 | J27: =IFERROR(VLOOKUP($A27,Filtro_!$A$5:$AW$2561,8,FALSE),0) -> 5 | K27: =IFERROR(VLOOKUP($A27,Filtro_!$A$5:$AW$2561,9,FALSE),0) -> 4 | L27: =IFERROR(VLOOKUP($A27,Filtro_!$A$5:$AW$2561,10,FALSE),0) -> 3 | M27: =IFERROR(VLOOKUP($A27,Filtro_!$A$5:$AW$2561,11,FALSE),0) -> 43 | N27: =IFERROR(VLOOKUP($A27,Filtro_!$A$5:$AW$2561,12,FALSE),0) -> 16 | O27: =IFERROR(VLOOKUP($A27,Filtro_!$A$5:$AW$2561,13,FALSE),0) -> 16 | P27: =IFERROR(VLOOKUP($A27,Filtro_!$A$5:$AW$2561,14,FALSE),0) -> 10 | Q27: =IFERROR(VLOOKUP($A27,Filtro_!$A$5:$AW$2561,15,FALSE),0) -> 3 | R27: =IFERROR(VLOOKUP($A27,Filtro_!$A$5:$AW$2561,16,FALSE),0) -> 1 | S27: =IFERROR(VLOOKUP($A27,Filtro_!$A$5:$AW$2561,17,FALSE),0) -> 0 | T27: =IFERROR(VLOOKUP($A27,Filtro_!$A$5:$AW$2561,18,FALSE),0) -> 0
A28: 03500400 | C28: NORMAL CON REZAGO (desde retraso) | D28: 18 | E28: 10 | F28: 8 | G28: =IFERROR(VLOOKUP($A28,Filtro_!$A$5:$AW$2561,5,FALSE),0) -> 0 | H28: =IFERROR(VLOOKUP($A28,Filtro_!$A$5:$AW$2561,6,FALSE),0) -> 0 | I28: =IFERROR(VLOOKUP($A28,Filtro_!$A$5:$AW$2561,7,FALSE),0) -> 1 | J28: =IFERROR(VLOOKUP($A28,Filtro_!$A$5:$AW$2561,8,FALSE),0) -> 0 | K28: =IFERROR(VLOOKUP($A28,Filtro_!$A$5:$AW$2561,9,FALSE),0) -> 0 | L28: =IFERROR(VLOOKUP($A28,Filtro_!$A$5:$AW$2561,10,FALSE),0) -> 1 | M28: =IFERROR(VLOOKUP($A28,Filtro_!$A$5:$AW$2561,11,FALSE),0) -> 2 | N28: =IFERROR(VLOOKUP($A28,Filtro_!$A$5:$AW$2561,12,FALSE),0) -> 4 | O28: =IFERROR(VLOOKUP($A28,Filtro_!$A$5:$AW$2561,13,FALSE),0) -> 5 | P28: =IFERROR(VLOOKUP($A28,Filtro_!$A$5:$AW$2561,14,FALSE),0) -> 3 | Q28: =IFERROR(VLOOKUP($A28,Filtro_!$A$5:$AW$2561,15,FALSE),0) -> 2 | R28: =IFERROR(VLOOKUP($A28,Filtro_!$A$5:$AW$2561,16,FALSE),0) -> 0 | S28: =IFERROR(VLOOKUP($A28,Filtro_!$A$5:$AW$2561,17,FALSE),0) -> 0 | T28: =IFERROR(VLOOKUP($A28,Filtro_!$A$5:$AW$2561,18,FALSE),0) -> 0
A29: 03500401 | C29: RIESGO (desde retraso) | D29: =SUM(E29:F29) -> 25 | E29: 18 | F29: 7 | G29: =IFERROR(VLOOKUP($A29,Filtro_!$A$5:$AW$2561,5,FALSE),0) -> 0 | H29: =IFERROR(VLOOKUP($A29,Filtro_!$A$5:$AW$2561,6,FALSE),0) -> 0 | I29: =IFERROR(VLOOKUP($A29,Filtro_!$A$5:$AW$2561,7,FALSE),0) -> 0 | J29: =IFERROR(VLOOKUP($A29,Filtro_!$A$5:$AW$2561,8,FALSE),0) -> 0 | K29: =IFERROR(VLOOKUP($A29,Filtro_!$A$5:$AW$2561,9,FALSE),0) -> 2 | L29: =IFERROR(VLOOKUP($A29,Filtro_!$A$5:$AW$2561,10,FALSE),0) -> 0 | M29: =IFERROR(VLOOKUP($A29,Filtro_!$A$5:$AW$2561,11,FALSE),0) -> 8 | N29: =IFERROR(VLOOKUP($A29,Filtro_!$A$5:$AW$2561,12,FALSE),0) -> 2 | O29: =IFERROR(VLOOKUP($A29,Filtro_!$A$5:$AW$2561,13,FALSE),0) -> 8 | P29: =IFERROR(VLOOKUP($A29,Filtro_!$A$5:$AW$2561,14,FALSE),0) -> 5 | Q29: =IFERROR(VLOOKUP($A29,Filtro_!$A$5:$AW$2561,15,FALSE),0) -> 0 | R29: =IFERROR(VLOOKUP($A29,Filtro_!$A$5:$AW$2561,16,FALSE),0) -> 0 | S29: =IFERROR(VLOOKUP($A29,Filtro_!$A$5:$AW$2561,17,FALSE),0) -> 0 | T29: =IFERROR(VLOOKUP($A29,Filtro_!$A$5:$AW$2561,18,FALSE),0) -> 0
A30: 05225306 | C30: NORMAL CON REZAGO (desde normal con rezago) | D30: =SUM(E30:F30) -> 73 | E30: 57 | F30: 16 | G30: =IFERROR(VLOOKUP($A30,Filtro_!$A$5:$AW$2561,5,FALSE),0) -> 0 | H30: =IFERROR(VLOOKUP($A30,Filtro_!$A$5:$AW$2561,6,FALSE),0) -> 0 | I30: =IFERROR(VLOOKUP($A30,Filtro_!$A$5:$AW$2561,7,FALSE),0) -> 5 | J30: =IFERROR(VLOOKUP($A30,Filtro_!$A$5:$AW$2561,8,FALSE),0) -> 1 | K30: =IFERROR(VLOOKUP($A30,Filtro_!$A$5:$AW$2561,9,FALSE),0) -> 3 | L30: =IFERROR(VLOOKUP($A30,Filtro_!$A$5:$AW$2561,10,FALSE),0) -> 2 | M30: =IFERROR(VLOOKUP($A30,Filtro_!$A$5:$AW$2561,11,FALSE),0) -> 15 | N30: =IFERROR(VLOOKUP($A30,Filtro_!$A$5:$AW$2561,12,FALSE),0) -> 4 | O30: =IFERROR(VLOOKUP($A30,Filtro_!$A$5:$AW$2561,13,FALSE),0) -> 26 | P30: =IFERROR(VLOOKUP($A30,Filtro_!$A$5:$AW$2561,14,FALSE),0) -> 8 | Q30: =IFERROR(VLOOKUP($A30,Filtro_!$A$5:$AW$2561,15,FALSE),0) -> 8 | R30: =IFERROR(VLOOKUP($A30,Filtro_!$A$5:$AW$2561,16,FALSE),0) -> 1 | S30: =IFERROR(VLOOKUP($A30,Filtro_!$A$5:$AW$2561,17,FALSE),0) -> 1 | T30: =IFERROR(VLOOKUP($A30,Filtro_!$A$5:$AW$2561,18,FALSE),0) -> 0
A31: 02010421 | C31: RIESGO (desde riesgo) | D31: =SUM(E31+F31) -> 82 | E31: 54 | F31: 28 | G31: =IFERROR(VLOOKUP($A31,Filtro_!$A$5:$AW$2561,5,FALSE),0) -> 0 | H31: =IFERROR(VLOOKUP($A31,Filtro_!$A$5:$AW$2561,6,FALSE),0) -> 0 | I31: =IFERROR(VLOOKUP($A31,Filtro_!$A$5:$AW$2561,7,FALSE),0) -> 5 | J31: =IFERROR(VLOOKUP($A31,Filtro_!$A$5:$AW$2561,8,FALSE),0) -> 1 | K31: =IFERROR(VLOOKUP($A31,Filtro_!$A$5:$AW$2561,9,FALSE),0) -> 8 | L31: =IFERROR(VLOOKUP($A31,Filtro_!$A$5:$AW$2561,10,FALSE),0) -> 3 | M31: =IFERROR(VLOOKUP($A31,Filtro_!$A$5:$AW$2561,11,FALSE),0) -> 22 | N31: =IFERROR(VLOOKUP($A31,Filtro_!$A$5:$AW$2561,12,FALSE),0) -> 14 | O31: =IFERROR(VLOOKUP($A31,Filtro_!$A$5:$AW$2561,13,FALSE),0) -> 16 | P31: =IFERROR(VLOOKUP($A31,Filtro_!$A$5:$AW$2561,14,FALSE),0) -> 10 | Q31: =IFERROR(VLOOKUP($A31,Filtro_!$A$5:$AW$2561,15,FALSE),0) -> 3 | R31: =IFERROR(VLOOKUP($A31,Filtro_!$A$5:$AW$2561,16,FALSE),0) -> 0 | S31: =IFERROR(VLOOKUP($A31,Filtro_!$A$5:$AW$2561,17,FALSE),0) -> 0 | T31: =IFERROR(VLOOKUP($A31,Filtro_!$A$5:$AW$2561,18,FALSE),0) -> 0
A32: 03600110 | C32: RIESGO (desde normal con rezago) | D32: =SUM(E32+F32) -> 23 | E32: 18 | F32: 5 | G32: =IFERROR(VLOOKUP($A32,Filtro_!$A$5:$AW$2561,5,FALSE),0) -> 0 | H32: =IFERROR(VLOOKUP($A32,Filtro_!$A$5:$AW$2561,6,FALSE),0) -> 0 | I32: =IFERROR(VLOOKUP($A32,Filtro_!$A$5:$AW$2561,7,FALSE),0) -> 2 | J32: =IFERROR(VLOOKUP($A32,Filtro_!$A$5:$AW$2561,8,FALSE),0) -> 1 | K32: =IFERROR(VLOOKUP($A32,Filtro_!$A$5:$AW$2561,9,FALSE),0) -> 4 | L32: =IFERROR(VLOOKUP($A32,Filtro_!$A$5:$AW$2561,10,FALSE),0) -> 3 | M32: =IFERROR(VLOOKUP($A32,Filtro_!$A$5:$AW$2561,11,FALSE),0) -> 2 | N32: =IFERROR(VLOOKUP($A32,Filtro_!$A$5:$AW$2561,12,FALSE),0) -> 1 | O32: =IFERROR(VLOOKUP($A32,Filtro_!$A$5:$AW$2561,13,FALSE),0) -> 10 | P32: =IFERROR(VLOOKUP($A32,Filtro_!$A$5:$AW$2561,14,FALSE),0) -> 0 | Q32: =IFERROR(VLOOKUP($A32,Filtro_!$A$5:$AW$2561,15,FALSE),0) -> 0 | R32: =IFERROR(VLOOKUP($A32,Filtro_!$A$5:$AW$2561,16,FALSE),0) -> 0 | S32: =IFERROR(VLOOKUP($A32,Filtro_!$A$5:$AW$2561,17,FALSE),0) -> 0 | T32: =IFERROR(VLOOKUP($A32,Filtro_!$A$5:$AW$2561,18,FALSE),0) -> 0
A33: 02010422 | C33: RETRASO (desde retraso) | D33: =SUM(E33+F33) -> 26 | E33: 22 | F33: 4 | G33: =IFERROR(VLOOKUP($A33,Filtro_!$A$5:$AW$2561,5,FALSE),0) -> 0 | H33: =IFERROR(VLOOKUP($A33,Filtro_!$A$5:$AW$2561,6,FALSE),0) -> 0 | I33: =IFERROR(VLOOKUP($A33,Filtro_!$A$5:$AW$2561,7,FALSE),0) -> 1 | J33: =IFERROR(VLOOKUP($A33,Filtro_!$A$5:$AW$2561,8,FALSE),0) -> 0 | K33: =IFERROR(VLOOKUP($A33,Filtro_!$A$5:$AW$2561,9,FALSE),0) -> 0 | L33: =IFERROR(VLOOKUP($A33,Filtro_!$A$5:$AW$2561,10,FALSE),0) -> 0 | M33: =IFERROR(VLOOKUP($A33,Filtro_!$A$5:$AW$2561,11,FALSE),0) -> 9 | N33: =IFERROR(VLOOKUP($A33,Filtro_!$A$5:$AW$2561,12,FALSE),0) -> 3 | O33: =IFERROR(VLOOKUP($A33,Filtro_!$A$5:$AW$2561,13,FALSE),0) -> 10 | P33: =IFERROR(VLOOKUP($A33,Filtro_!$A$5:$AW$2561,14,FALSE),0) -> 1 | Q33: =IFERROR(VLOOKUP($A33,Filtro_!$A$5:$AW$2561,15,FALSE),0) -> 2 | R33: =IFERROR(VLOOKUP($A33,Filtro_!$A$5:$AW$2561,16,FALSE),0) -> 0 | S33: =IFERROR(VLOOKUP($A33,Filtro_!$A$5:$AW$2561,17,FALSE),0) -> 0 | T33: =IFERROR(VLOOKUP($A33,Filtro_!$A$5:$AW$2561,18,FALSE),0) -> 0
A34: 03600120 | C34: RETRASO (desde riesgo) | D34: =SUM(E34+F34) -> 36 | E34: 29 | F34: 7 | G34: =IFERROR(VLOOKUP($A34,Filtro_!$A$5:$AW$2561,5,FALSE),0) -> 0 | H34: =IFERROR(VLOOKUP($A34,Filtro_!$A$5:$AW$2561,6,FALSE),0) -> 0 | I34: =IFERROR(VLOOKUP($A34,Filtro_!$A$5:$AW$2561,7,FALSE),0) -> 0 | J34: =IFERROR(VLOOKUP($A34,Filtro_!$A$5:$AW$2561,8,FALSE),0) -> 0 | K34: =IFERROR(VLOOKUP($A34,Filtro_!$A$5:$AW$2561,9,FALSE),0) -> 5 | L34: =IFERROR(VLOOKUP($A34,Filtro_!$A$5:$AW$2561,10,FALSE),0) -> 1 | M34: =IFERROR(VLOOKUP($A34,Filtro_!$A$5:$AW$2561,11,FALSE),0) -> 4 | N34: =IFERROR(VLOOKUP($A34,Filtro_!$A$5:$AW$2561,12,FALSE),0) -> 3 | O34: =IFERROR(VLOOKUP($A34,Filtro_!$A$5:$AW$2561,13,FALSE),0) -> 16 | P34: =IFERROR(VLOOKUP($A34,Filtro_!$A$5:$AW$2561,14,FALSE),0) -> 3 | Q34: =IFERROR(VLOOKUP($A34,Filtro_!$A$5:$AW$2561,15,FALSE),0) -> 4 | R34: =IFERROR(VLOOKUP($A34,Filtro_!$A$5:$AW$2561,16,FALSE),0) -> 0 | S34: =IFERROR(VLOOKUP($A34,Filtro_!$A$5:$AW$2561,17,FALSE),0) -> 0 | T34: =IFERROR(VLOOKUP($A34,Filtro_!$A$5:$AW$2561,18,FALSE),0) -> 0
A35: 03600130 | C35: RETRASO (desde normal con rezago) | D35: =SUM(E35+F35) -> 9 | E35: 6 | F35: 3 | G35: =IFERROR(VLOOKUP($A35,Filtro_!$A$5:$AW$2561,5,FALSE),0) -> 0 | H35: =IFERROR(VLOOKUP($A35,Filtro_!$A$5:$AW$2561,6,FALSE),0) -> 0 | I35: =IFERROR(VLOOKUP($A35,Filtro_!$A$5:$AW$2561,7,FALSE),0) -> 0 | J35: =IFERROR(VLOOKUP($A35,Filtro_!$A$5:$AW$2561,8,FALSE),0) -> 0 | K35: =IFERROR(VLOOKUP($A35,Filtro_!$A$5:$AW$2561,9,FALSE),0) -> 2 | L35: =IFERROR(VLOOKUP($A35,Filtro_!$A$5:$AW$2561,10,FALSE),0) -> 1 | M35: =IFERROR(VLOOKUP($A35,Filtro_!$A$5:$AW$2561,11,FALSE),0) -> 0 | N35: =IFERROR(VLOOKUP($A35,Filtro_!$A$5:$AW$2561,12,FALSE),0) -> 0 | O35: =IFERROR(VLOOKUP($A35,Filtro_!$A$5:$AW$2561,13,FALSE),0) -> 4 | P35: =IFERROR(VLOOKUP($A35,Filtro_!$A$5:$AW$2561,14,FALSE),0) -> 2 | Q35: =IFERROR(VLOOKUP($A35,Filtro_!$A$5:$AW$2561,15,FALSE),0) -> 0 | R35: =IFERROR(VLOOKUP($A35,Filtro_!$A$5:$AW$2561,16,FALSE),0) -> 0 | S35: =IFERROR(VLOOKUP($A35,Filtro_!$A$5:$AW$2561,17,FALSE),0) -> 0 | T35: =IFERROR(VLOOKUP($A35,Filtro_!$A$5:$AW$2561,18,FALSE),0) -> 0
A36: 03500331 | B36: DERIVADOS A ESPECIALIDAD | C36: RIESGO | D36: 102 | E36: =SUM(G36+I36+K36+M36+O36+Q36) -> 67 | F36: 35 | G36: =IFERROR(VLOOKUP($A36,Filtro_!$A$5:$AW$2561,5,FALSE),0) -> 0 | H36: =IFERROR(VLOOKUP($A36,Filtro_!$A$5:$AW$2561,6,FALSE),0) -> 0 | I36: =IFERROR(VLOOKUP($A36,Filtro_!$A$5:$AW$2561,7,FALSE),0) -> 10 | J36: =IFERROR(VLOOKUP($A36,Filtro_!$A$5:$AW$2561,8,FALSE),0) -> 6 | K36: =IFERROR(VLOOKUP($A36,Filtro_!$A$5:$AW$2561,9,FALSE),0) -> 8 | L36: =IFERROR(VLOOKUP($A36,Filtro_!$A$5:$AW$2561,10,FALSE),0) -> 5 | M36: =IFERROR(VLOOKUP($A36,Filtro_!$A$5:$AW$2561,11,FALSE),0) -> 23 | N36: =IFERROR(VLOOKUP($A36,Filtro_!$A$5:$AW$2561,12,FALSE),0) -> 12 | O36: =IFERROR(VLOOKUP($A36,Filtro_!$A$5:$AW$2561,13,FALSE),0) -> 23 | P36: =IFERROR(VLOOKUP($A36,Filtro_!$A$5:$AW$2561,14,FALSE),0) -> 11 | Q36: =IFERROR(VLOOKUP($A36,Filtro_!$A$5:$AW$2561,15,FALSE),0) -> 3 | R36: =IFERROR(VLOOKUP($A36,Filtro_!$A$5:$AW$2561,16,FALSE),0) -> 1 | S36: =IFERROR(VLOOKUP($A36,Filtro_!$A$5:$AW$2561,17,FALSE),0) -> 0 | T36: =IFERROR(VLOOKUP($A36,Filtro_!$A$5:$AW$2561,18,FALSE),0) -> 0
A37: 03500332 | C37: RETRASO | D37: 105 | E37: 81 | F37: 24 | G37: =IFERROR(VLOOKUP($A37,Filtro_!$A$5:$AW$2561,5,FALSE),0) -> 0 | H37: =IFERROR(VLOOKUP($A37,Filtro_!$A$5:$AW$2561,6,FALSE),0) -> 2 | I37: =IFERROR(VLOOKUP($A37,Filtro_!$A$5:$AW$2561,7,FALSE),0) -> 2 | J37: =IFERROR(VLOOKUP($A37,Filtro_!$A$5:$AW$2561,8,FALSE),0) -> 2 | K37: =IFERROR(VLOOKUP($A37,Filtro_!$A$5:$AW$2561,9,FALSE),0) -> 9 | L37: =IFERROR(VLOOKUP($A37,Filtro_!$A$5:$AW$2561,10,FALSE),0) -> 1 | M37: =IFERROR(VLOOKUP($A37,Filtro_!$A$5:$AW$2561,11,FALSE),0) -> 37 | N37: =IFERROR(VLOOKUP($A37,Filtro_!$A$5:$AW$2561,12,FALSE),0) -> 12 | O37: =IFERROR(VLOOKUP($A37,Filtro_!$A$5:$AW$2561,13,FALSE),0) -> 29 | P37: =IFERROR(VLOOKUP($A37,Filtro_!$A$5:$AW$2561,14,FALSE),0) -> 5 | Q37: =IFERROR(VLOOKUP($A37,Filtro_!$A$5:$AW$2561,15,FALSE),0) -> 4 | R37: =IFERROR(VLOOKUP($A37,Filtro_!$A$5:$AW$2561,16,FALSE),0) -> 2 | S37: =IFERROR(VLOOKUP($A37,Filtro_!$A$5:$AW$2561,17,FALSE),0) -> 0 | T37: =IFERROR(VLOOKUP($A37,Filtro_!$A$5:$AW$2561,18,FALSE),0) -> 1
A38: 03500333 | B38: TRASLADO DE ESTABLECIMIENTO | C38: NORMAL CON REZAGO | D38: 3 | E38: 1 | F38: 2 | G38: =IFERROR(VLOOKUP($A38,Filtro_!$A$5:$AW$2561,5,FALSE),0) -> 0 | H38: =IFERROR(VLOOKUP($A38,Filtro_!$A$5:$AW$2561,6,FALSE),0) -> 0 | I38: =IFERROR(VLOOKUP($A38,Filtro_!$A$5:$AW$2561,7,FALSE),0) -> 0 | J38: =IFERROR(VLOOKUP($A38,Filtro_!$A$5:$AW$2561,8,FALSE),0) -> 1 | K38: =IFERROR(VLOOKUP($A38,Filtro_!$A$5:$AW$2561,9,FALSE),0) -> 0 | L38: =IFERROR(VLOOKUP($A38,Filtro_!$A$5:$AW$2561,10,FALSE),0) -> 0 | M38: =IFERROR(VLOOKUP($A38,Filtro_!$A$5:$AW$2561,11,FALSE),0) -> 1 | N38: =IFERROR(VLOOKUP($A38,Filtro_!$A$5:$AW$2561,12,FALSE),0) -> 1 | O38: =IFERROR(VLOOKUP($A38,Filtro_!$A$5:$AW$2561,13,FALSE),0) -> 0 | P38: =IFERROR(VLOOKUP($A38,Filtro_!$A$5:$AW$2561,14,FALSE),0) -> 0 | Q38: =IFERROR(VLOOKUP($A38,Filtro_!$A$5:$AW$2561,15,FALSE),0) -> 0 | R38: =IFERROR(VLOOKUP($A38,Filtro_!$A$5:$AW$2561,16,FALSE),0) -> 0 | S38: =IFERROR(VLOOKUP($A38,Filtro_!$A$5:$AW$2561,17,FALSE),0) -> 0 | T38: =IFERROR(VLOOKUP($A38,Filtro_!$A$5:$AW$2561,18,FALSE),0) -> 0
A39: 03500334 | C39: RIESGO | D39: 12 | E39: 9 | F39: 3 | G39: =IFERROR(VLOOKUP($A39,Filtro_!$A$5:$AW$2561,5,FALSE),0) -> 0 | H39: =IFERROR(VLOOKUP($A39,Filtro_!$A$5:$AW$2561,6,FALSE),0) -> 0 | I39: =IFERROR(VLOOKUP($A39,Filtro_!$A$5:$AW$2561,7,FALSE),0) -> 0 | J39: =IFERROR(VLOOKUP($A39,Filtro_!$A$5:$AW$2561,8,FALSE),0) -> 0 | K39: =IFERROR(VLOOKUP($A39,Filtro_!$A$5:$AW$2561,9,FALSE),0) -> 3 | L39: =IFERROR(VLOOKUP($A39,Filtro_!$A$5:$AW$2561,10,FALSE),0) -> 0 | M39: =IFERROR(VLOOKUP($A39,Filtro_!$A$5:$AW$2561,11,FALSE),0) -> 5 | N39: =IFERROR(VLOOKUP($A39,Filtro_!$A$5:$AW$2561,12,FALSE),0) -> 1 | O39: =IFERROR(VLOOKUP($A39,Filtro_!$A$5:$AW$2561,13,FALSE),0) -> 1 | P39: =IFERROR(VLOOKUP($A39,Filtro_!$A$5:$AW$2561,14,FALSE),0) -> 1 | Q39: =IFERROR(VLOOKUP($A39,Filtro_!$A$5:$AW$2561,15,FALSE),0) -> 0 | R39: =IFERROR(VLOOKUP($A39,Filtro_!$A$5:$AW$2561,16,FALSE),0) -> 1 | S39: =IFERROR(VLOOKUP($A39,Filtro_!$A$5:$AW$2561,17,FALSE),0) -> 0 | T39: =IFERROR(VLOOKUP($A39,Filtro_!$A$5:$AW$2561,18,FALSE),0) -> 0
A40: 03500335 | C40: RETRASO | D40: 1 | E40: 1 | F40: 0 | G40: =IFERROR(VLOOKUP($A40,Filtro_!$A$5:$AW$2561,5,FALSE),0) -> 0 | H40: =IFERROR(VLOOKUP($A40,Filtro_!$A$5:$AW$2561,6,FALSE),0) -> 0 | I40: =IFERROR(VLOOKUP($A40,Filtro_!$A$5:$AW$2561,7,FALSE),0) -> 1 | J40: =IFERROR(VLOOKUP($A40,Filtro_!$A$5:$AW$2561,8,FALSE),0) -> 0 | K40: =IFERROR(VLOOKUP($A40,Filtro_!$A$5:$AW$2561,9,FALSE),0) -> 0 | L40: =IFERROR(VLOOKUP($A40,Filtro_!$A$5:$AW$2561,10,FALSE),0) -> 0 | M40: =IFERROR(VLOOKUP($A40,Filtro_!$A$5:$AW$2561,11,FALSE),0) -> 0 | N40: =IFERROR(VLOOKUP($A40,Filtro_!$A$5:$AW$2561,12,FALSE),0) -> 0 | O40: =IFERROR(VLOOKUP($A40,Filtro_!$A$5:$AW$2561,13,FALSE),0) -> 0 | P40: =IFERROR(VLOOKUP($A40,Filtro_!$A$5:$AW$2561,14,FALSE),0) -> 0 | Q40: =IFERROR(VLOOKUP($A40,Filtro_!$A$5:$AW$2561,15,FALSE),0) -> 0 | R40: =IFERROR(VLOOKUP($A40,Filtro_!$A$5:$AW$2561,16,FALSE),0) -> 0 | S40: =IFERROR(VLOOKUP($A40,Filtro_!$A$5:$AW$2561,17,FALSE),0) -> 0 | T40: =IFERROR(VLOOKUP($A40,Filtro_!$A$5:$AW$2561,18,FALSE),0) -> 0
B41: SECCIÓN A.3: NIÑOS Y NIÑAS CON REZAGO, DÉFICIT U OTRA VULNERABILIDAD DERIVADOS A ALGUNA MODALIDAD DE ESTIMULACIÓN EN LA PRIMERA EVALUACIÓN
B42: NIÑO / A | C42: TOTAL | F42: POR EDAD
F43: Menor 7 meses | H43: 7 - 11 meses | J43: 12 - 17 meses | L43: 18 - 23 meses | N43: 24 - 47 meses | P43: 48 - 59 meses
C44: Ambos Sexos | D44: Hombres | E44: Mujeres | F44: Hombres | G44: Mujeres | H44: Hombres | I44: Mujeres | J44: Hombres | K44: Mujeres | L44: Hombres | M44: Mujeres | N44: Hombres | O44: Mujeres | P44: Hombres | Q44: Mujeres
A45: 02021790 | B45: NORMAL CON REZAGO | C45: =SUM(D45+E45) -> 845 | D45: =SUM(F45+H45+J45+L45+N45+P45) -> 470 | E45: =SUM(G45+I45+K45+M45+O45+Q45) -> 375 | F45: =IFERROR(VLOOKUP($A45,Filtro_!$A$5:$AW$2561,5,FALSE),0) -> 18 | G45: =IFERROR(VLOOKUP($A45,Filtro_!$A$5:$AW$2561,6,FALSE),0) -> 18 | H45: =IFERROR(VLOOKUP($A45,Filtro_!$A$5:$AW$2561,7,FALSE),0) -> 60 | I45: =IFERROR(VLOOKUP($A45,Filtro_!$A$5:$AW$2561,8,FALSE),0) -> 75 | J45: =IFERROR(VLOOKUP($A45,Filtro_!$A$5:$AW$2561,9,FALSE),0) -> 56 | K45: =IFERROR(VLOOKUP($A45,Filtro_!$A$5:$AW$2561,10,FALSE),0) -> 32 | L45: =IFERROR(VLOOKUP($A45,Filtro_!$A$5:$AW$2561,11,FALSE),0) -> 134 | M45: =IFERROR(VLOOKUP($A45,Filtro_!$A$5:$AW$2561,12,FALSE),0) -> 94 | N45: =IFERROR(VLOOKUP($A45,Filtro_!$A$5:$AW$2561,13,FALSE),0) -> 190 | O45: =IFERROR(VLOOKUP($A45,Filtro_!$A$5:$AW$2561,14,FALSE),0) -> 155 | P45: =IFERROR(VLOOKUP($A45,Filtro_!$A$5:$AW$2561,15,FALSE),0) -> 12 | Q45: =IFERROR(VLOOKUP($A45,Filtro_!$A$5:$AW$2561,16,FALSE),0) -> 1 | R45: =CB45 ->  | CB45: =IF(C45<#REF!,"* Niños derivados deben ser mayores o iguales al ingreso de niños(as) Normal con Rezago a salas de estimulación REM A05 sección F. ","") ->  | DB45: =IF(C45<#REF!,1,0) -> 
A46: 02021810 | B46: RIESGO | C46: =SUM(D46+E46) -> 876 | D46: =SUM(F46+H46+J46+L46+N46+P46) -> 547 | E46: 329 | F46: =IFERROR(VLOOKUP($A46,Filtro_!$A$5:$AW$2561,5,FALSE),0) -> 8 | G46: =IFERROR(VLOOKUP($A46,Filtro_!$A$5:$AW$2561,6,FALSE),0) -> 7 | H46: =IFERROR(VLOOKUP($A46,Filtro_!$A$5:$AW$2561,7,FALSE),0) -> 66 | I46: =IFERROR(VLOOKUP($A46,Filtro_!$A$5:$AW$2561,8,FALSE),0) -> 60 | J46: =IFERROR(VLOOKUP($A46,Filtro_!$A$5:$AW$2561,9,FALSE),0) -> 55 | K46: =IFERROR(VLOOKUP($A46,Filtro_!$A$5:$AW$2561,10,FALSE),0) -> 23 | L46: =IFERROR(VLOOKUP($A46,Filtro_!$A$5:$AW$2561,11,FALSE),0) -> 195 | M46: =IFERROR(VLOOKUP($A46,Filtro_!$A$5:$AW$2561,12,FALSE),0) -> 119 | N46: =IFERROR(VLOOKUP($A46,Filtro_!$A$5:$AW$2561,13,FALSE),0) -> 210 | O46: =IFERROR(VLOOKUP($A46,Filtro_!$A$5:$AW$2561,14,FALSE),0) -> 116 | P46: =IFERROR(VLOOKUP($A46,Filtro_!$A$5:$AW$2561,15,FALSE),0) -> 13 | Q46: =IFERROR(VLOOKUP($A46,Filtro_!$A$5:$AW$2561,16,FALSE),0) -> 4 | CB46: =IF(C46<#REF!,"* Niños derivados deben ser mayores o iguales al ingreso de niños(as) Normal con Rezago a salas de estimulación REM A05 sección F. ","") ->  | DB46: =IF(C46<#REF!,1,0) -> 
A47: 02021820 | B47: RETRASO | C47: =SUM(D47+E47) -> 283 | D47: 205 | E47: 78 | F47: =IFERROR(VLOOKUP($A47,Filtro_!$A$5:$AW$2561,5,FALSE),0) -> 1 | G47: =IFERROR(VLOOKUP($A47,Filtro_!$A$5:$AW$2561,6,FALSE),0) -> 1 | H47: =IFERROR(VLOOKUP($A47,Filtro_!$A$5:$AW$2561,7,FALSE),0) -> 12 | I47: =IFERROR(VLOOKUP($A47,Filtro_!$A$5:$AW$2561,8,FALSE),0) -> 8 | J47: =IFERROR(VLOOKUP($A47,Filtro_!$A$5:$AW$2561,9,FALSE),0) -> 14 | K47: =IFERROR(VLOOKUP($A47,Filtro_!$A$5:$AW$2561,10,FALSE),0) -> 4 | L47: =IFERROR(VLOOKUP($A47,Filtro_!$A$5:$AW$2561,11,FALSE),0) -> 82 | M47: =IFERROR(VLOOKUP($A47,Filtro_!$A$5:$AW$2561,12,FALSE),0) -> 37 | N47: =IFERROR(VLOOKUP($A47,Filtro_!$A$5:$AW$2561,13,FALSE),0) -> 85 | O47: =IFERROR(VLOOKUP($A47,Filtro_!$A$5:$AW$2561,14,FALSE),0) -> 26 | P47: =IFERROR(VLOOKUP($A47,Filtro_!$A$5:$AW$2561,15,FALSE),0) -> 11 | Q47: =IFERROR(VLOOKUP($A47,Filtro_!$A$5:$AW$2561,16,FALSE),0) -> 2 | CB47: =IF(C47<#REF!,"* Niños derivados deben ser mayores o iguales al ingreso de niños(as) Normal con Rezago a salas de estimulación REM A05 sección F. ","") ->  | DB47: =IF(C47<#REF!,1,0) -> 
A48: 05225307 | B48: OTRA VULNERABILIDAD | C48: =SUM(D48:E48) -> 1514 | D48: 861 | E48: 653 | F48: =IFERROR(VLOOKUP($A48,Filtro_!$A$5:$AW$2561,5,FALSE),0) -> 231 | G48: =IFERROR(VLOOKUP($A48,Filtro_!$A$5:$AW$2561,6,FALSE),0) -> 226 | H48: =IFERROR(VLOOKUP($A48,Filtro_!$A$5:$AW$2561,7,FALSE),0) -> 70 | I48: =IFERROR(VLOOKUP($A48,Filtro_!$A$5:$AW$2561,8,FALSE),0) -> 73 | J48: =IFERROR(VLOOKUP($A48,Filtro_!$A$5:$AW$2561,9,FALSE),0) -> 99 | K48: =IFERROR(VLOOKUP($A48,Filtro_!$A$5:$AW$2561,10,FALSE),0) -> 58 | L48: =IFERROR(VLOOKUP($A48,Filtro_!$A$5:$AW$2561,11,FALSE),0) -> 116 | M48: =IFERROR(VLOOKUP($A48,Filtro_!$A$5:$AW$2561,12,FALSE),0) -> 90 | N48: =IFERROR(VLOOKUP($A48,Filtro_!$A$5:$AW$2561,13,FALSE),0) -> 276 | O48: =IFERROR(VLOOKUP($A48,Filtro_!$A$5:$AW$2561,14,FALSE),0) -> 151 | P48: =IFERROR(VLOOKUP($A48,Filtro_!$A$5:$AW$2561,15,FALSE),0) -> 69 | Q48: =IFERROR(VLOOKUP($A48,Filtro_!$A$5:$AW$2561,16,FALSE),0) -> 55 | CB48: =IF(C48<#REF!,"* Niños derivados deben ser mayores o iguales al ingreso de niños(as) Normal con Rezago a salas de estimulación REM A05 sección F. ","") ->  | DB48: =IF(C48<#REF!,1,0) -> 
B49: SECCIÓN A.4: RESULTADOS DE LA APLICACIÓN DE PROTOCOLO NEUROSENSORIAL
B50: RESULTADOS | C50: TOTAL | F50: POR EDAD
F51: 1 mes | H51: 2 meses
C52: Ambos Sexos | D52: Hombres | E52: Mujeres | F52: Hombres | G52: Mujeres | H52: Hombres | I52: Mujeres
A53: 02021760 | B53: APLICACIÓN DE PROTOCOLO NEUROSENSORIAL (1-2 MESES) | C53: =SUM(D53+E53) -> 3275 | D53: =SUM(F53+H53) -> 1617 | E53: =SUM(G53+I53) -> 1658 | F53: =IFERROR(VLOOKUP($A53,Filtro_!$A$5:$AW$2561,5,FALSE),0) -> 1338 | G53: =IFERROR(VLOOKUP($A53,Filtro_!$A$5:$AW$2561,6,FALSE),0) -> 1360 | H53: =IFERROR(VLOOKUP($A53,Filtro_!$A$5:$AW$2561,7,FALSE),0) -> 279 | I53: =IFERROR(VLOOKUP($A53,Filtro_!$A$5:$AW$2561,8,FALSE),0) -> 298
A54: 03500040 | B54: NORMAL | C54: =SUM(D54+E54) -> 2744 | D54: =SUM(F54+H54) -> 1341 | E54: 1403 | F54: =IFERROR(VLOOKUP($A54,Filtro_!$A$5:$AW$2561,5,FALSE),0) -> 1125 | G54: =IFERROR(VLOOKUP($A54,Filtro_!$A$5:$AW$2561,6,FALSE),0) -> 1163 | H54: =IFERROR(VLOOKUP($A54,Filtro_!$A$5:$AW$2561,7,FALSE),0) -> 216 | I54: =IFERROR(VLOOKUP($A54,Filtro_!$A$5:$AW$2561,8,FALSE),0) -> 240
A55: 03500050 | B55: ANORMAL | C55: =SUM(D55+E55) -> 497 | D55: =SUM(F55+H55) -> 260 | E55: =SUM(G55+I55) -> 237 | F55: =IFERROR(VLOOKUP($A55,Filtro_!$A$5:$AW$2561,5,FALSE),0) -> 202 | G55: =IFERROR(VLOOKUP($A55,Filtro_!$A$5:$AW$2561,6,FALSE),0) -> 185 | H55: =IFERROR(VLOOKUP($A55,Filtro_!$A$5:$AW$2561,7,FALSE),0) -> 58 | I55: =IFERROR(VLOOKUP($A55,Filtro_!$A$5:$AW$2561,8,FALSE),0) -> 52
A56: 03500060 | B56: MUY ANORMAL | C56: =SUM(D56+E56) -> 46 | D56: 24 | E56: 22 | F56: =IFERROR(VLOOKUP($A56,Filtro_!$A$5:$AW$2561,5,FALSE),0) -> 19 | G56: =IFERROR(VLOOKUP($A56,Filtro_!$A$5:$AW$2561,6,FALSE),0) -> 16 | H56: =IFERROR(VLOOKUP($A56,Filtro_!$A$5:$AW$2561,7,FALSE),0) -> 5 | I56: =IFERROR(VLOOKUP($A56,Filtro_!$A$5:$AW$2561,8,FALSE),0) -> 6
B57: SECCIÓN A.5: LACTANCIA EN NIÑOS Y NIÑAS CONTROLADOS
B58: TIPO DE ALIMENTACIÓN | D58: TOTAL | E58: SEGÚN CONTROL PROGRAMÁTICO | K58: Pueblos Originarios | L58: Migrantes
E59: Diada | F59: Del 1° mes | G59: Del 3° mes | H59: Del 6° mes | I59: Del 12° mes | J59: Del 24° mes | CB59: 0 | CC59: 0 | CD59: 0 | CE59: 0 | CF59: 0
A60: A0200002 | B60: LACTANCIA MATERNA EXCLUSIVA | D60: =SUM(E60:H60) -> 8524 | E60: =IFERROR(VLOOKUP($A60,Filtro_!$A$5:$AW$2561,3,FALSE),0) -> 2296 | F60: =IFERROR(VLOOKUP($A60,Filtro_!$A$5:$AW$2561,4,FALSE),0) -> 2150 | G60: =IFERROR(VLOOKUP($A60,Filtro_!$A$5:$AW$2561,5,FALSE),0) -> 2126 | H60: =IFERROR(VLOOKUP($A60,Filtro_!$A$5:$AW$2561,6,FALSE),0) -> 1952 | I60: =IFERROR(VLOOKUP($A60,Filtro_!$A$5:$AW$2561,7,FALSE),0) -> 0 | J60: =IFERROR(VLOOKUP($A60,Filtro_!$A$5:$AW$2561,8,FALSE),0) -> 0 | K60: =IFERROR(VLOOKUP($A60,Filtro_!$A$5:$AW$2561,9,FALSE),0) -> 30 | L60: =IFERROR(VLOOKUP($A60,Filtro_!$A$5:$AW$2561,10,FALSE),0) -> 57 | CD60: * * El campo Migrantes NO PUEDE ser mayor al Total. | CF60: 0 | CG60: 0 | CH60: 0 | DA60: 0 | DB60: 0 | DC60: 0 | DD60: 1 | DE60: 0
A61: 03500359 | B61: LACTANCIA MATERNA / FORMULA LÁCTEA | D61: =SUM(E61:H61) -> 2571 | E61: =IFERROR(VLOOKUP($A61,Filtro_!$A$5:$AW$2561,3,FALSE),0) -> 543 | F61: =IFERROR(VLOOKUP($A61,Filtro_!$A$5:$AW$2561,4,FALSE),0) -> 826 | G61: =IFERROR(VLOOKUP($A61,Filtro_!$A$5:$AW$2561,5,FALSE),0) -> 717 | H61: =IFERROR(VLOOKUP($A61,Filtro_!$A$5:$AW$2561,6,FALSE),0) -> 485 | I61: =IFERROR(VLOOKUP($A61,Filtro_!$A$5:$AW$2561,7,FALSE),0) -> 0 | J61: =IFERROR(VLOOKUP($A61,Filtro_!$A$5:$AW$2561,8,FALSE),0) -> 0 | K61: =IFERROR(VLOOKUP($A61,Filtro_!$A$5:$AW$2561,9,FALSE),0) -> 6 | L61: =IFERROR(VLOOKUP($A61,Filtro_!$A$5:$AW$2561,10,FALSE),0) -> 17 | DB61: 0 | DC61: 0 | DD61: 0 | DE61: 0
A62: 03500360 | B62: FORMULA LÁCTEA | D62: =SUM(E62:H62) -> 972 | E62: =IFERROR(VLOOKUP($A62,Filtro_!$A$5:$AW$2561,3,FALSE),0) -> 39 | F62: =IFERROR(VLOOKUP($A62,Filtro_!$A$5:$AW$2561,4,FALSE),0) -> 204 | G62: =IFERROR(VLOOKUP($A62,Filtro_!$A$5:$AW$2561,5,FALSE),0) -> 358 | H62: =IFERROR(VLOOKUP($A62,Filtro_!$A$5:$AW$2561,6,FALSE),0) -> 371 | I62: =IFERROR(VLOOKUP($A62,Filtro_!$A$5:$AW$2561,7,FALSE),0) -> 0 | J62: =IFERROR(VLOOKUP($A62,Filtro_!$A$5:$AW$2561,8,FALSE),0) -> 0 | K62: =IFERROR(VLOOKUP($A62,Filtro_!$A$5:$AW$2561,9,FALSE),0) -> 2 | L62: =IFERROR(VLOOKUP($A62,Filtro_!$A$5:$AW$2561,10,FALSE),0) -> 5 | DB62: 0 | DC62: 0 | DD62: 0 | DE62: 0
A63: A0200003 | B63: LACTANCIA MATERNA MAS ALIMENTACIÓN COMPLEMENTARIA | D63: =SUM(E63:J63) -> 1520 | E63: =IFERROR(VLOOKUP($A63,Filtro_!$A$5:$AW$2561,3,FALSE),0) -> 4 | F63: =IFERROR(VLOOKUP($A63,Filtro_!$A$5:$AW$2561,4,FALSE),0) -> 5 | G63: =IFERROR(VLOOKUP($A63,Filtro_!$A$5:$AW$2561,5,FALSE),0) -> 9 | H63: =IFERROR(VLOOKUP($A63,Filtro_!$A$5:$AW$2561,6,FALSE),0) -> 263 | I63: =IFERROR(VLOOKUP($A63,Filtro_!$A$5:$AW$2561,7,FALSE),0) -> 923 | J63: =IFERROR(VLOOKUP($A63,Filtro_!$A$5:$AW$2561,8,FALSE),0) -> 316 | K63: =IFERROR(VLOOKUP($A63,Filtro_!$A$5:$AW$2561,9,FALSE),0) -> 13 | L63: =IFERROR(VLOOKUP($A63,Filtro_!$A$5:$AW$2561,10,FALSE),0) -> 13 | DB63: 0 | DC63: 0 | DD63: 0 | DE63: 0
A64: 03600140 | B64: LACTANCIA MATERNA/ FÓRMULA LÁCTEA/ ALIMENTACIÓN COMPLEMENTARIA | D64: =SUM(H64:J64)+E64 -> 1807 | E64: =IFERROR(VLOOKUP($A64,Filtro_!$A$5:$AW$2561,3,FALSE),0) -> 9 | F64: =IFERROR(VLOOKUP($A64,Filtro_!$A$5:$AW$2561,4,FALSE),0) -> 0 | G64: =IFERROR(VLOOKUP($A64,Filtro_!$A$5:$AW$2561,5,FALSE),0) -> 0 | H64: =IFERROR(VLOOKUP($A64,Filtro_!$A$5:$AW$2561,6,FALSE),0) -> 263 | I64: =IFERROR(VLOOKUP($A64,Filtro_!$A$5:$AW$2561,7,FALSE),0) -> 928 | J64: =IFERROR(VLOOKUP($A64,Filtro_!$A$5:$AW$2561,8,FALSE),0) -> 607 | K64: =IFERROR(VLOOKUP($A64,Filtro_!$A$5:$AW$2561,9,FALSE),0) -> 8 | L64: =IFERROR(VLOOKUP($A64,Filtro_!$A$5:$AW$2561,10,FALSE),0) -> 7 | DA64: 0 | DB64: 0 | DC64: 0 | DD64: 0 | DE64: 0
A65: 03600150 | B65: FORMULA LÁCTEA ALIMENTACIÓN COMPLEMENTARIA | D65: =SUM(H65:J65)+E65 -> 2819 | E65: =IFERROR(VLOOKUP($A65,Filtro_!$A$5:$AW$2561,3,FALSE),0) -> 9 | F65: =IFERROR(VLOOKUP($A65,Filtro_!$A$5:$AW$2561,4,FALSE),0) -> 0 | G65: =IFERROR(VLOOKUP($A65,Filtro_!$A$5:$AW$2561,5,FALSE),0) -> 0 | H65: =IFERROR(VLOOKUP($A65,Filtro_!$A$5:$AW$2561,6,FALSE),0) -> 249 | I65: =IFERROR(VLOOKUP($A65,Filtro_!$A$5:$AW$2561,7,FALSE),0) -> 1075 | J65: =IFERROR(VLOOKUP($A65,Filtro_!$A$5:$AW$2561,8,FALSE),0) -> 1486 | K65: =IFERROR(VLOOKUP($A65,Filtro_!$A$5:$AW$2561,9,FALSE),0) -> 7 | L65: =IFERROR(VLOOKUP($A65,Filtro_!$A$5:$AW$2561,10,FALSE),0) -> 24 | DA65: 0 | DB65: 0 | DC65: 0 | DD65: 0 | DE65: 0
A66: A0200001 | B66: NÚMERO DE NIÑOS Y NIÑAS CONTROLADOS | D66: =SUM(E66:J66) -> 17270 | E66: =IFERROR(VLOOKUP($A66,Filtro_!$A$5:$AW$2561,3,FALSE),0) -> 2335 | F66: =IFERROR(VLOOKUP($A66,Filtro_!$A$5:$AW$2561,4,FALSE),0) -> 2923 | G66: =IFERROR(VLOOKUP($A66,Filtro_!$A$5:$AW$2561,5,FALSE),0) -> 3029 | H66: =IFERROR(VLOOKUP($A66,Filtro_!$A$5:$AW$2561,6,FALSE),0) -> 3581 | I66: =IFERROR(VLOOKUP($A66,Filtro_!$A$5:$AW$2561,7,FALSE),0) -> 2900 | J66: =IFERROR(VLOOKUP($A66,Filtro_!$A$5:$AW$2561,8,FALSE),0) -> 2502 | K66: =IFERROR(VLOOKUP($A66,Filtro_!$A$5:$AW$2561,9,FALSE),0) -> 37 | L66: =IFERROR(VLOOKUP($A66,Filtro_!$A$5:$AW$2561,10,FALSE),0) -> 66 | CE66: * El número de menores con lactancia materna Exclusiva o Artificial al control del 6er mes NO debe ser MAYOR al número de menores controlados. | CG66: * El número de menores con lactancia Materna o Artificial mas Solidos al control del 24 meses NO debe ser MAYOR al número de menores controlados. | DA66: 0 | DB66: 0 | DC66: 0 | DD66: 0 | DE66: 1 | DF66: 0 | DG66: 1 | DH66: 0
B67: SECCIÓN A.6: RESULTADOS RADIOGRAFÍA DE PELVIS (CADERA)
B68: RESULTADO | C68: TOTAL | F68: POR EDAD | J68: 3 MESES | L68: 4 MESES
F69: 3 MESES | H69: 4 MESES | J69: Pueblos Originarios | K69: Migrantes | L69: Pueblos Originarios | M69: Migrantes
C70: Ambos Sexos | D70: Hombres | E70: Mujeres | F70: Hombres | G70: Mujeres | H70: Hombres | I70: Mujeres
A71: 09600207 | B71: NORMAL | C71: =SUM(D71:E71) -> 2276 | D71: =+F71+H71 -> 1192 | E71: 1084 | F71: =IFERROR(VLOOKUP($A71,Filtro_!$A$5:$AW$2561,5,FALSE),0) -> 861 | G71: =IFERROR(VLOOKUP($A71,Filtro_!$A$5:$AW$2561,6,FALSE),0) -> 818 | H71: =IFERROR(VLOOKUP($A71,Filtro_!$A$5:$AW$2561,7,FALSE),0) -> 331 | I71: =IFERROR(VLOOKUP($A71,Filtro_!$A$5:$AW$2561,8,FALSE),0) -> 266 | J71: =IFERROR(VLOOKUP($A71,Filtro_!$A$5:$AW$2561,9,FALSE),0) -> 8 | K71: =IFERROR(VLOOKUP($A71,Filtro_!$A$5:$AW$2561,10,FALSE),0) -> 7 | L71: =IFERROR(VLOOKUP($A71,Filtro_!$A$5:$AW$2561,11,FALSE),0) -> 2 | M71: =IFERROR(VLOOKUP($A71,Filtro_!$A$5:$AW$2561,12,FALSE),0) -> 10 | DA71: 0 | DB71: 0 | DC71: 0 | DD71: 0 | DE71: 0 | DF71: 0 | DG71: 0 | DH71: 0 | DI71: 0
A72: 09600208 | B72: ANORMAL | C72: =SUM(D72:E72) -> 439 | D72: 172 | E72: 267 | F72: =IFERROR(VLOOKUP($A72,Filtro_!$A$5:$AW$2561,5,FALSE),0) -> 110 | G72: =IFERROR(VLOOKUP($A72,Filtro_!$A$5:$AW$2561,6,FALSE),0) -> 171 | H72: =IFERROR(VLOOKUP($A72,Filtro_!$A$5:$AW$2561,7,FALSE),0) -> 62 | I72: =IFERROR(VLOOKUP($A72,Filtro_!$A$5:$AW$2561,8,FALSE),0) -> 96 | J72: =IFERROR(VLOOKUP($A72,Filtro_!$A$5:$AW$2561,9,FALSE),0) -> 1 | K72: =IFERROR(VLOOKUP($A72,Filtro_!$A$5:$AW$2561,10,FALSE),0) -> 1 | L72: =IFERROR(VLOOKUP($A72,Filtro_!$A$5:$AW$2561,11,FALSE),0) -> 0 | M72: =IFERROR(VLOOKUP($A72,Filtro_!$A$5:$AW$2561,12,FALSE),0) -> 1 | CF72: * * No olvide digitar el campo Pueblos Originarios (4 MESES) (Digite CEROS si no tiene). | CG72: * * No olvide digitar el campo Migrantes (4 MESES) (Digite CEROS si no tiene). | DB72: 0 | DC72: 0 | DD72: 0 | DE72: 0 | DF72: 0 | DG72: 0 | DH72: 0 | DI72: 0
A73: 09600209 | B73: INMADURA | C73: =SUM(D73:E73) -> 502 | D73: 191 | E73: 311 | F73: =IFERROR(VLOOKUP($A73,Filtro_!$A$5:$AW$2561,5,FALSE),0) -> 152 | G73: =IFERROR(VLOOKUP($A73,Filtro_!$A$5:$AW$2561,6,FALSE),0) -> 235 | H73: =IFERROR(VLOOKUP($A73,Filtro_!$A$5:$AW$2561,7,FALSE),0) -> 39 | I73: =IFERROR(VLOOKUP($A73,Filtro_!$A$5:$AW$2561,8,FALSE),0) -> 76 | J73: =IFERROR(VLOOKUP($A73,Filtro_!$A$5:$AW$2561,9,FALSE),0) -> 3 | K73: =IFERROR(VLOOKUP($A73,Filtro_!$A$5:$AW$2561,10,FALSE),0) -> 5 | L73: =IFERROR(VLOOKUP($A73,Filtro_!$A$5:$AW$2561,11,FALSE),0) -> 0 | M73: =IFERROR(VLOOKUP($A73,Filtro_!$A$5:$AW$2561,12,FALSE),0) -> 4 | CF73: * * No olvide digitar el campo Pueblos Originarios (4 MESES) (Digite CEROS si no tiene). | CG73: * * No olvide digitar el campo Migrantes (4 MESES) (Digite CEROS si no tiene). | DB73: 0 | DC73: 0 | DD73: 0 | DE73: 0 | DF73: 0 | DG73: 0 | DH73: 0 | DI73: 0
B74: SECCION B: EVALUACIÓN, APLICACIÓN Y RESULTADOS DE ESCALAS EN LA MUJER
B75: SECCIÓN B.1: EVALUACIÓN DEL ESTADO NUTRICIONAL A MUJERES CONTROLADAS AL OCTAVO MES POST PARTO
B76: ESTADO NUTRICIONAL | C76: TOTAL
B78: TOTAL | C78: =SUM(C79:C82) -> 623
A79: 03500120 | B79: OBESA | C79: =IFERROR(VLOOKUP($A79,Filtro_!$A$5:$AW$2561,2,FALSE),0) -> 240
A80: 03500130 | B80: SOBREPESO | C80: =IFERROR(VLOOKUP($A80,Filtro_!$A$5:$AW$2561,2,FALSE),0) -> 236
A81: 03500140 | B81: NORMAL | C81: =IFERROR(VLOOKUP($A81,Filtro_!$A$5:$AW$2561,2,FALSE),0) -> 133
A82: 03500150 | B82: BAJO PESO | C82: =IFERROR(VLOOKUP($A82,Filtro_!$A$5:$AW$2561,2,FALSE),0) -> 14
B83: SECCIÓN B.2: APLICACIÓN DE ESCALA SEGÚN EVALUACIÓN DE RIESGO PSICOSOCIAL ABREVIADA A GESTANTES
B84: TIPO | C84: Total de Aplicaciones | D84: Riesgo | E84: Derivadas a equipo de cabecera | F84: Violencia Intrafamiliar | CG84: 0
A85: 02021830 | B85: EVALUACIÓN AL INGRESO | C85: =IFERROR(VLOOKUP($A85,Filtro_!$A$5:$AW$2561,2,FALSE),0) -> 4154 | D85: =IFERROR(VLOOKUP($A85,Filtro_!$A$5:$AW$2561,3,FALSE),0) -> 1186 | E85: =IFERROR(VLOOKUP($A85,Filtro_!$A$5:$AW$2561,4,FALSE),0) -> 958 | F85: =IFERROR(VLOOKUP($A85,Filtro_!$A$5:$AW$2561,5,FALSE),0) -> 95 | G85: =CA85&CB85&CC85 ->  | BU85: =IF(CA85=1,"* Las Aplicaciones de EPSA con resultado de Riesgo NO DEBE ser MAYOR que el Total de las aplicaciones. ","") ->  | CA85: =IF(CG85=1,"* Las Aplicaciones de EPSA con resultado de Riesgo NO DEBE ser MAYOR que el Total de las aplicaciones. ","") ->  | CB85: =IF(CH85=1,"* Las Aplicaciones de EPSA con resultado de Riesgo NO DEBE ser MENOR que las Derivaciones a equipo de cabecera. ","") ->  | CC85: =IF(CI85=1,"* Las Aplicaciones de EPSA asociadas a Violencia Intrafamiliar NO DEBEN ser MAYOR al Total de las aplicaciones. ","") ->  | CG85: =IF(C85<D85,1,0) -> 0 | CH85: =IF(D85<E85,1,0) -> 0 | CI85: =IF(F85>C85,1,0) -> 0
A86: 03600160 | B86: EVALUACIÓN AL TERCER TRIMESTRE | C86: =IFERROR(VLOOKUP($A86,Filtro_!$A$5:$AW$2561,2,FALSE),0) -> 264 | D86: =IFERROR(VLOOKUP($A86,Filtro_!$A$5:$AW$2561,3,FALSE),0) -> 36 | E86: =IFERROR(VLOOKUP($A86,Filtro_!$A$5:$AW$2561,4,FALSE),0) -> 29 | F86: =IFERROR(VLOOKUP($A86,Filtro_!$A$5:$AW$2561,5,FALSE),0) -> 1 | G86: =CA86&CB86&CC86 ->  | CA86: =IF(CG86=1,"* Las Aplicaciones de EPSA con resultado de Riesgo NO DEBE ser MAYOR que el Total de las aplicaciones. ","") ->  | CB86: =IF(CH86=1,"* Las Aplicaciones de EPSA con resultado de Riesgo NO DEBE ser MENOR que las Derivaciones a equipo de cabecera. ","") ->  | CC86: =IF(CI86=1,"* Las Aplicaciones de EPSA asociadas a Violencia Intrafamiliar NO DEBEN ser MAYOR al Total de las aplicaciones. ","") ->  | CG86: =IF(C86<D86,1,0) -> 0 | CH86: =IF(D86<E86,1,0) -> 0 | CI86: =IF(F86>C86,1,0) -> 0
B87: SECCIÓN B.3: APLICACIÓN DE ESCALA DE EDIMBURGO A GESTANTES Y MUJERES POST PARTO | CH87: 0
B88: CONCEPTO | D88: TOTAL DE APLICACIONES | E88: RESULTADOS 10 O MÁS PTOS. O RESULTADO DISTINTO DE 0 EN PREG 10 . (PUERPERAS) | F88: RESULTADOS 13 O MÁS PTOS O RESULTADO DISTINTO DE 0 EN PREG 10. (GESTANTES) | G88: TOTAL DE CASOS ALTERADOS DERIVADOS A SALUD MENTAL | CH88: 0
A89: 03500160 | B89: EVALUACIÓN A GESTANTES | C89: PRIMERA EVALUACIÓN (2º control prenatal) | D89: =IFERROR(VLOOKUP($A89,Filtro_!$A$5:$AW$2561,2,FALSE),0) -> 4146 | E89: =IFERROR(VLOOKUP($A89,Filtro_!$A$5:$AW$2561,3,FALSE),0) -> 0 | F89: =IFERROR(VLOOKUP($A89,Filtro_!$A$5:$AW$2561,4,FALSE),0) -> 388 | G89: =IFERROR(VLOOKUP($A89,Filtro_!$A$5:$AW$2561,5,FALSE),0) -> 374 | CH89: 0 | DA89: 0 | DC89: 0
A90: 03500170 | C90: REEVALUACIÓN (con puntaje elevado en la primera evaluación) | D90: =IFERROR(VLOOKUP($A90,Filtro_!$A$5:$AW$2561,2,FALSE),0) -> 64 | E90: =IFERROR(VLOOKUP($A90,Filtro_!$A$5:$AW$2561,3,FALSE),0) -> 0 | F90: =IFERROR(VLOOKUP($A90,Filtro_!$A$5:$AW$2561,4,FALSE),0) -> 24 | G90: =IFERROR(VLOOKUP($A90,Filtro_!$A$5:$AW$2561,5,FALSE),0) -> 12 | CH90: 0 | DC90: 0
A91: 03500200 | B91: EVALUACIÓN A MUJERES POST PARTO O SÍNTOMAS DE DEPRESIÓN | C91: A los 2 meses | D91: =IFERROR(VLOOKUP($A91,Filtro_!$A$5:$AW$2561,2,FALSE),0) -> 3086 | E91: =IFERROR(VLOOKUP($A91,Filtro_!$A$5:$AW$2561,3,FALSE),0) -> 469 | F91: =IFERROR(VLOOKUP($A91,Filtro_!$A$5:$AW$2561,4,FALSE),0) -> 0 | G91: =IFERROR(VLOOKUP($A91,Filtro_!$A$5:$AW$2561,5,FALSE),0) -> 353 | CH91: 0 | DB91: 0
A92: 03500210 | C92: A los 6 meses | D92: =IFERROR(VLOOKUP($A92,Filtro_!$A$5:$AW$2561,2,FALSE),0) -> 2925 | E92: =IFERROR(VLOOKUP($A92,Filtro_!$A$5:$AW$2561,3,FALSE),0) -> 439 | F92: =IFERROR(VLOOKUP($A92,Filtro_!$A$5:$AW$2561,4,FALSE),0) -> 0 | G92: =IFERROR(VLOOKUP($A92,Filtro_!$A$5:$AW$2561,5,FALSE),0) -> 313 | CH92: 0 | DB92: 0
B93: SECCIÓN C: RESULTADOS DE LA EVALUACIÓN DEL ESTADO NUTRICIONAL DEL ADOLESCENTE CON CONTROL SALUD INTEGRAL
B94: ESTADO NUTRICIONAL | D94: TOTAL | G94: 10 A 14 años | I94: 15 A 19 años
D95: Ambos Sexos | E95: Hombres | F95: Mujeres | G95: Hombres | H95: Mujeres | I95: Hombres | J95: Mujeres
B96: TOTAL | D96: =SUM(D97:D101) -> 7981 | E96: =SUM(E97:E101) -> 3368 | F96: 4613 | G96: =SUM(G97:G101) -> 2492 | H96: =SUM(H97:H101) -> 3072 | I96: 876 | J96: 1541
A97: 03050400 | B97: NORMAL | D97: =SUM(E97+F97) -> 3511 | E97: =SUM(G97+I97) -> 1437 | F97: =SUM(H97+J97) -> 2074 | G97: =IFERROR(VLOOKUP($A97,Filtro_!$A$5:$AW$2561,5,FALSE),0) -> 1028 | H97: =IFERROR(VLOOKUP($A97,Filtro_!$A$5:$AW$2561,6,FALSE),0) -> 1404 | I97: =IFERROR(VLOOKUP($A97,Filtro_!$A$5:$AW$2561,7,FALSE),0) -> 409 | J97: =IFERROR(VLOOKUP($A97,Filtro_!$A$5:$AW$2561,8,FALSE),0) -> 670
A98: 03050500 | B98: BAJO PESO | D98: =SUM(E98+F98) -> 521 | E98: 279 | F98: 242 | G98: =IFERROR(VLOOKUP($A98,Filtro_!$A$5:$AW$2561,5,FALSE),0) -> 182 | H98: =IFERROR(VLOOKUP($A98,Filtro_!$A$5:$AW$2561,6,FALSE),0) -> 162 | I98: =IFERROR(VLOOKUP($A98,Filtro_!$A$5:$AW$2561,7,FALSE),0) -> 97 | J98: =IFERROR(VLOOKUP($A98,Filtro_!$A$5:$AW$2561,8,FALSE),0) -> 80
A99: 03050600 | B99: SOBREPESO | D99: =SUM(E99+F99) -> 2018 | E99: 776 | F99: 1242 | G99: =IFERROR(VLOOKUP($A99,Filtro_!$A$5:$AW$2561,5,FALSE),0) -> 596 | H99: =IFERROR(VLOOKUP($A99,Filtro_!$A$5:$AW$2561,6,FALSE),0) -> 819 | I99: =IFERROR(VLOOKUP($A99,Filtro_!$A$5:$AW$2561,7,FALSE),0) -> 180 | J99: =IFERROR(VLOOKUP($A99,Filtro_!$A$5:$AW$2561,8,FALSE),0) -> 423
A100: 03050700 | B100: OBESOS | D100: =SUM(E100+F100) -> 1615 | E100: 719 | F100: 896 | G100: =IFERROR(VLOOKUP($A100,Filtro_!$A$5:$AW$2561,5,FALSE),0) -> 567 | H100: =IFERROR(VLOOKUP($A100,Filtro_!$A$5:$AW$2561,6,FALSE),0) -> 588 | I100: =IFERROR(VLOOKUP($A100,Filtro_!$A$5:$AW$2561,7,FALSE),0) -> 152 | J100: =IFERROR(VLOOKUP($A100,Filtro_!$A$5:$AW$2561,8,FALSE),0) -> 308
A101: 03050710 | B101: OBESOS SEVEROS | D101: =SUM(E101+F101) -> 316 | E101: 157 | F101: 159 | G101: =IFERROR(VLOOKUP($A101,Filtro_!$A$5:$AW$2561,5,FALSE),0) -> 119 | H101: =IFERROR(VLOOKUP($A101,Filtro_!$A$5:$AW$2561,6,FALSE),0) -> 99 | I101: =IFERROR(VLOOKUP($A101,Filtro_!$A$5:$AW$2561,7,FALSE),0) -> 38 | J101: =IFERROR(VLOOKUP($A101,Filtro_!$A$5:$AW$2561,8,FALSE),0) -> 60
B102: SECCIÓN D: OTRAS EVALUACIONES, APLICACIONES Y RESULTADOS DE ESCALAS EN TODAS LAS EDADES
B103: SECCIÓN D.1: APLICACIÓN DE TAMIZAJE PARA EVALUAR EL NIVEL DE RIESGO DE CONSUMO DE ALCOHOL, TABACO Y OTRAS DROGAS
B104: COMPONENTE | D104: TOTAL | G104: POR EDAD
G105: 10-14 años | I105: 15-19 años | K105: 20-24 años | M105: 25-44 años | O105: 45-64 años | Q105: 65-69 años | S105: 70-79 años | U105: 80 y más años
D106: Ambos Sexos | E106: Hombres | F106: Mujeres | G106: Hombres | H106: Mujeres | I106: Hombres | J106: Mujeres | K106: Hombres | L106: Mujeres | M106: Hombres | N106: Mujeres | O106: Hombres | P106: Mujeres | Q106: Hombres | R106: Mujeres | S106: Hombres | T106: Mujeres | U106: Hombres | V106: Mujeres
A107: 03500346 | B107: Nº DE AUDIT (EMP/EMPAM) | D107: =SUM(E107+F107) -> 27078 | E107: =+I107+K107+M107+O107+Q107+S107+U107 -> 9134 | F107: =+J107+L107+N107+P107+R107+T107+V107 -> 17944 | G107: =IFERROR(VLOOKUP($A107,Filtro_!$A$5:$AW$2561,5,FALSE),0) -> 0 | H107: =IFERROR(VLOOKUP($A107,Filtro_!$A$5:$AW$2561,6,FALSE),0) -> 0 | I107: =IFERROR(VLOOKUP($A107,Filtro_!$A$5:$AW$2561,7,FALSE),0) -> 124 | J107: =IFERROR(VLOOKUP($A107,Filtro_!$A$5:$AW$2561,8,FALSE),0) -> 214 | K107: =IFERROR(VLOOKUP($A107,Filtro_!$A$5:$AW$2561,9,FALSE),0) -> 544 | L107: =IFERROR(VLOOKUP($A107,Filtro_!$A$5:$AW$2561,10,FALSE),0) -> 1391 | M107: =IFERROR(VLOOKUP($A107,Filtro_!$A$5:$AW$2561,11,FALSE),0) -> 2599 | N107: =IFERROR(VLOOKUP($A107,Filtro_!$A$5:$AW$2561,12,FALSE),0) -> 6205 | O107: =IFERROR(VLOOKUP($A107,Filtro_!$A$5:$AW$2561,13,FALSE),0) -> 2236 | P107: =IFERROR(VLOOKUP($A107,Filtro_!$A$5:$AW$2561,14,FALSE),0) -> 4286 | Q107: =IFERROR(VLOOKUP($A107,Filtro_!$A$5:$AW$2561,15,FALSE),0) -> 991 | R107: =IFERROR(VLOOKUP($A107,Filtro_!$A$5:$AW$2561,16,FALSE),0) -> 1712 | S107: =IFERROR(VLOOKUP($A107,Filtro_!$A$5:$AW$2561,17,FALSE),0) -> 1712 | T107: =IFERROR(VLOOKUP($A107,Filtro_!$A$5:$AW$2561,18,FALSE),0) -> 2594 | U107: =IFERROR(VLOOKUP($A107,Filtro_!$A$5:$AW$2561,19,FALSE),0) -> 928 | V107: =IFERROR(VLOOKUP($A107,Filtro_!$A$5:$AW$2561,20,FALSE),0) -> 1542
A108: 03500347 | B108: Nº DE AUDIT APLICADO | D108: =SUM(E108+F108) -> 19486 | E108: =SUM(K108+M108+O108+Q108+S108+U108) -> 6922 | F108: 12564 | G108: =IFERROR(VLOOKUP($A108,Filtro_!$A$5:$AW$2561,5,FALSE),0) -> 0 | H108: =IFERROR(VLOOKUP($A108,Filtro_!$A$5:$AW$2561,6,FALSE),0) -> 0 | I108: =IFERROR(VLOOKUP($A108,Filtro_!$A$5:$AW$2561,7,FALSE),0) -> 0 | J108: =IFERROR(VLOOKUP($A108,Filtro_!$A$5:$AW$2561,8,FALSE),0) -> 0 | K108: =IFERROR(VLOOKUP($A108,Filtro_!$A$5:$AW$2561,9,FALSE),0) -> 846 | L108: =IFERROR(VLOOKUP($A108,Filtro_!$A$5:$AW$2561,10,FALSE),0) -> 1418 | M108: =IFERROR(VLOOKUP($A108,Filtro_!$A$5:$AW$2561,11,FALSE),0) -> 2139 | N108: =IFERROR(VLOOKUP($A108,Filtro_!$A$5:$AW$2561,12,FALSE),0) -> 4640 | O108: =IFERROR(VLOOKUP($A108,Filtro_!$A$5:$AW$2561,13,FALSE),0) -> 1954 | P108: =IFERROR(VLOOKUP($A108,Filtro_!$A$5:$AW$2561,14,FALSE),0) -> 3815 | Q108: =IFERROR(VLOOKUP($A108,Filtro_!$A$5:$AW$2561,15,FALSE),0) -> 768 | R108: =IFERROR(VLOOKUP($A108,Filtro_!$A$5:$AW$2561,16,FALSE),0) -> 1132 | S108: =IFERROR(VLOOKUP($A108,Filtro_!$A$5:$AW$2561,17,FALSE),0) -> 835 | T108: =IFERROR(VLOOKUP($A108,Filtro_!$A$5:$AW$2561,18,FALSE),0) -> 1143 | U108: =IFERROR(VLOOKUP($A108,Filtro_!$A$5:$AW$2561,19,FALSE),0) -> 380 | V108: =IFERROR(VLOOKUP($A108,Filtro_!$A$5:$AW$2561,20,FALSE),0) -> 416
A109: 03500402 | B109: Nº DE ASSIST (EMP/EMPAM) | D109: 1565 | E109: 549 | F109: 1016 | G109: =IFERROR(VLOOKUP($A109,Filtro_!$A$5:$AW$2561,5,FALSE),0) -> 0 | H109: =IFERROR(VLOOKUP($A109,Filtro_!$A$5:$AW$2561,6,FALSE),0) -> 0 | I109: =IFERROR(VLOOKUP($A109,Filtro_!$A$5:$AW$2561,7,FALSE),0) -> 0 | J109: =IFERROR(VLOOKUP($A109,Filtro_!$A$5:$AW$2561,8,FALSE),0) -> 0 | K109: =IFERROR(VLOOKUP($A109,Filtro_!$A$5:$AW$2561,9,FALSE),0) -> 41 | L109: =IFERROR(VLOOKUP($A109,Filtro_!$A$5:$AW$2561,10,FALSE),0) -> 75 | M109: =IFERROR(VLOOKUP($A109,Filtro_!$A$5:$AW$2561,11,FALSE),0) -> 150 | N109: =IFERROR(VLOOKUP($A109,Filtro_!$A$5:$AW$2561,12,FALSE),0) -> 346 | O109: =IFERROR(VLOOKUP($A109,Filtro_!$A$5:$AW$2561,13,FALSE),0) -> 99 | P109: =IFERROR(VLOOKUP($A109,Filtro_!$A$5:$AW$2561,14,FALSE),0) -> 254 | Q109: =IFERROR(VLOOKUP($A109,Filtro_!$A$5:$AW$2561,15,FALSE),0) -> 101 | R109: =IFERROR(VLOOKUP($A109,Filtro_!$A$5:$AW$2561,16,FALSE),0) -> 111 | S109: =IFERROR(VLOOKUP($A109,Filtro_!$A$5:$AW$2561,17,FALSE),0) -> 104 | T109: =IFERROR(VLOOKUP($A109,Filtro_!$A$5:$AW$2561,18,FALSE),0) -> 156 | U109: =IFERROR(VLOOKUP($A109,Filtro_!$A$5:$AW$2561,19,FALSE),0) -> 54 | V109: =IFERROR(VLOOKUP($A109,Filtro_!$A$5:$AW$2561,20,FALSE),0) -> 74
A110: 03500348 | B110: N° DE ASSIST APLICADO | D110: 1928 | E110: 499 | F110: 1429 | G110: =IFERROR(VLOOKUP($A110,Filtro_!$A$5:$AW$2561,5,FALSE),0) -> 0 | H110: =IFERROR(VLOOKUP($A110,Filtro_!$A$5:$AW$2561,6,FALSE),0) -> 0 | I110: =IFERROR(VLOOKUP($A110,Filtro_!$A$5:$AW$2561,7,FALSE),0) -> 0 | J110: =IFERROR(VLOOKUP($A110,Filtro_!$A$5:$AW$2561,8,FALSE),0) -> 0 | K110: =IFERROR(VLOOKUP($A110,Filtro_!$A$5:$AW$2561,9,FALSE),0) -> 42 | L110: =IFERROR(VLOOKUP($A110,Filtro_!$A$5:$AW$2561,10,FALSE),0) -> 117 | M110: =IFERROR(VLOOKUP($A110,Filtro_!$A$5:$AW$2561,11,FALSE),0) -> 191 | N110: =IFERROR(VLOOKUP($A110,Filtro_!$A$5:$AW$2561,12,FALSE),0) -> 559 | O110: =IFERROR(VLOOKUP($A110,Filtro_!$A$5:$AW$2561,13,FALSE),0) -> 175 | P110: =IFERROR(VLOOKUP($A110,Filtro_!$A$5:$AW$2561,14,FALSE),0) -> 572 | Q110: =IFERROR(VLOOKUP($A110,Filtro_!$A$5:$AW$2561,15,FALSE),0) -> 41 | R110: =IFERROR(VLOOKUP($A110,Filtro_!$A$5:$AW$2561,16,FALSE),0) -> 80 | S110: =IFERROR(VLOOKUP($A110,Filtro_!$A$5:$AW$2561,17,FALSE),0) -> 38 | T110: =IFERROR(VLOOKUP($A110,Filtro_!$A$5:$AW$2561,18,FALSE),0) -> 78 | U110: =IFERROR(VLOOKUP($A110,Filtro_!$A$5:$AW$2561,19,FALSE),0) -> 12 | V110: =IFERROR(VLOOKUP($A110,Filtro_!$A$5:$AW$2561,20,FALSE),0) -> 23
A111: 03600100 | B111: N° DE CRAFFT EN CONTROL DE SALUD INTEGRAL DEL ADOLESCENTE | D111: 3223 | E111: =+G111+I111 -> 1410 | F111: =+H111+J111 -> 1813 | G111: =IFERROR(VLOOKUP($A111,Filtro_!$A$5:$AW$2561,5,FALSE),0) -> 925 | H111: =IFERROR(VLOOKUP($A111,Filtro_!$A$5:$AW$2561,6,FALSE),0) -> 1104 | I111: =IFERROR(VLOOKUP($A111,Filtro_!$A$5:$AW$2561,7,FALSE),0) -> 485 | J111: =IFERROR(VLOOKUP($A111,Filtro_!$A$5:$AW$2561,8,FALSE),0) -> 709 | K111: =IFERROR(VLOOKUP($A111,Filtro_!$A$5:$AW$2561,9,FALSE),0) -> 0 | L111: =IFERROR(VLOOKUP($A111,Filtro_!$A$5:$AW$2561,10,FALSE),0) -> 0 | M111: =IFERROR(VLOOKUP($A111,Filtro_!$A$5:$AW$2561,11,FALSE),0) -> 0 | N111: =IFERROR(VLOOKUP($A111,Filtro_!$A$5:$AW$2561,12,FALSE),0) -> 0 | O111: =IFERROR(VLOOKUP($A111,Filtro_!$A$5:$AW$2561,13,FALSE),0) -> 0 | P111: =IFERROR(VLOOKUP($A111,Filtro_!$A$5:$AW$2561,14,FALSE),0) -> 0 | Q111: =IFERROR(VLOOKUP($A111,Filtro_!$A$5:$AW$2561,15,FALSE),0) -> 0 | R111: =IFERROR(VLOOKUP($A111,Filtro_!$A$5:$AW$2561,16,FALSE),0) -> 0 | S111: =IFERROR(VLOOKUP($A111,Filtro_!$A$5:$AW$2561,17,FALSE),0) -> 0 | T111: =IFERROR(VLOOKUP($A111,Filtro_!$A$5:$AW$2561,18,FALSE),0) -> 0 | U111: =IFERROR(VLOOKUP($A111,Filtro_!$A$5:$AW$2561,19,FALSE),0) -> 0 | V111: =IFERROR(VLOOKUP($A111,Filtro_!$A$5:$AW$2561,20,FALSE),0) -> 0
A112: 03500367 | B112: N° DE CRAFFT APLICADO | D112: 3213 | E112: =+G112+I112 -> 1382 | F112: =+H112+J112 -> 1831 | G112: =IFERROR(VLOOKUP($A112,Filtro_!$A$5:$AW$2561,5,FALSE),0) -> 828 | H112: =IFERROR(VLOOKUP($A112,Filtro_!$A$5:$AW$2561,6,FALSE),0) -> 1011 | I112: =IFERROR(VLOOKUP($A112,Filtro_!$A$5:$AW$2561,7,FALSE),0) -> 554 | J112: =IFERROR(VLOOKUP($A112,Filtro_!$A$5:$AW$2561,8,FALSE),0) -> 820 | K112: =IFERROR(VLOOKUP($A112,Filtro_!$A$5:$AW$2561,9,FALSE),0) -> 0 | L112: =IFERROR(VLOOKUP($A112,Filtro_!$A$5:$AW$2561,10,FALSE),0) -> 0 | M112: =IFERROR(VLOOKUP($A112,Filtro_!$A$5:$AW$2561,11,FALSE),0) -> 0 | N112: =IFERROR(VLOOKUP($A112,Filtro_!$A$5:$AW$2561,12,FALSE),0) -> 0 | O112: =IFERROR(VLOOKUP($A112,Filtro_!$A$5:$AW$2561,13,FALSE),0) -> 0 | P112: =IFERROR(VLOOKUP($A112,Filtro_!$A$5:$AW$2561,14,FALSE),0) -> 0 | Q112: =IFERROR(VLOOKUP($A112,Filtro_!$A$5:$AW$2561,15,FALSE),0) -> 0 | R112: =IFERROR(VLOOKUP($A112,Filtro_!$A$5:$AW$2561,16,FALSE),0) -> 0 | S112: =IFERROR(VLOOKUP($A112,Filtro_!$A$5:$AW$2561,17,FALSE),0) -> 0 | T112: =IFERROR(VLOOKUP($A112,Filtro_!$A$5:$AW$2561,18,FALSE),0) -> 0 | U112: =IFERROR(VLOOKUP($A112,Filtro_!$A$5:$AW$2561,19,FALSE),0) -> 0 | V112: =IFERROR(VLOOKUP($A112,Filtro_!$A$5:$AW$2561,20,FALSE),0) -> 0
A113: 03500349 | B113: RESULTADOS DE EVALUACIÓN | C113: BAJO RIESGO | D113: 50519 | E113: =SUM(G113+I113+K113+M113+O113+Q113+S113+U113) -> 17573 | F113: 32946 | G113: =IFERROR(VLOOKUP($A113,Filtro_!$A$5:$AW$2561,5,FALSE),0) -> 1538 | H113: =IFERROR(VLOOKUP($A113,Filtro_!$A$5:$AW$2561,6,FALSE),0) -> 1827 | I113: =IFERROR(VLOOKUP($A113,Filtro_!$A$5:$AW$2561,7,FALSE),0) -> 895 | J113: =IFERROR(VLOOKUP($A113,Filtro_!$A$5:$AW$2561,8,FALSE),0) -> 1413 | K113: =IFERROR(VLOOKUP($A113,Filtro_!$A$5:$AW$2561,9,FALSE),0) -> 1307 | L113: =IFERROR(VLOOKUP($A113,Filtro_!$A$5:$AW$2561,10,FALSE),0) -> 2725 | M113: =IFERROR(VLOOKUP($A113,Filtro_!$A$5:$AW$2561,11,FALSE),0) -> 4436 | N113: =IFERROR(VLOOKUP($A113,Filtro_!$A$5:$AW$2561,12,FALSE),0) -> 10458 | O113: =IFERROR(VLOOKUP($A113,Filtro_!$A$5:$AW$2561,13,FALSE),0) -> 3893 | P113: =IFERROR(VLOOKUP($A113,Filtro_!$A$5:$AW$2561,14,FALSE),0) -> 7995 | Q113: =IFERROR(VLOOKUP($A113,Filtro_!$A$5:$AW$2561,15,FALSE),0) -> 1759 | R113: =IFERROR(VLOOKUP($A113,Filtro_!$A$5:$AW$2561,16,FALSE),0) -> 2864 | S113: =IFERROR(VLOOKUP($A113,Filtro_!$A$5:$AW$2561,17,FALSE),0) -> 2457 | T113: =IFERROR(VLOOKUP($A113,Filtro_!$A$5:$AW$2561,18,FALSE),0) -> 3728 | U113: =IFERROR(VLOOKUP($A113,Filtro_!$A$5:$AW$2561,19,FALSE),0) -> 1288 | V113: =IFERROR(VLOOKUP($A113,Filtro_!$A$5:$AW$2561,20,FALSE),0) -> 1936
A114: 03500290 | C114: CONSUMO RIESGOSO / INTERMEDIO | D114: 2625 | E114: 1084 | F114: 1541 | G114: =IFERROR(VLOOKUP($A114,Filtro_!$A$5:$AW$2561,5,FALSE),0) -> 26 | H114: =IFERROR(VLOOKUP($A114,Filtro_!$A$5:$AW$2561,6,FALSE),0) -> 33 | I114: =IFERROR(VLOOKUP($A114,Filtro_!$A$5:$AW$2561,7,FALSE),0) -> 98 | J114: =IFERROR(VLOOKUP($A114,Filtro_!$A$5:$AW$2561,8,FALSE),0) -> 110 | K114: =IFERROR(VLOOKUP($A114,Filtro_!$A$5:$AW$2561,9,FALSE),0) -> 107 | L114: =IFERROR(VLOOKUP($A114,Filtro_!$A$5:$AW$2561,10,FALSE),0) -> 177 | M114: =IFERROR(VLOOKUP($A114,Filtro_!$A$5:$AW$2561,11,FALSE),0) -> 390 | N114: =IFERROR(VLOOKUP($A114,Filtro_!$A$5:$AW$2561,12,FALSE),0) -> 639 | O114: =IFERROR(VLOOKUP($A114,Filtro_!$A$5:$AW$2561,13,FALSE),0) -> 289 | P114: =IFERROR(VLOOKUP($A114,Filtro_!$A$5:$AW$2561,14,FALSE),0) -> 388 | Q114: =IFERROR(VLOOKUP($A114,Filtro_!$A$5:$AW$2561,15,FALSE),0) -> 77 | R114: =IFERROR(VLOOKUP($A114,Filtro_!$A$5:$AW$2561,16,FALSE),0) -> 73 | S114: =IFERROR(VLOOKUP($A114,Filtro_!$A$5:$AW$2561,17,FALSE),0) -> 79 | T114: =IFERROR(VLOOKUP($A114,Filtro_!$A$5:$AW$2561,18,FALSE),0) -> 100 | U114: =IFERROR(VLOOKUP($A114,Filtro_!$A$5:$AW$2561,19,FALSE),0) -> 18 | V114: =IFERROR(VLOOKUP($A114,Filtro_!$A$5:$AW$2561,20,FALSE),0) -> 21
A115: 03500300 | C115: POSIBLE CONSUMO PERJUDICIAL O DEPENDENCIA | D115: 487 | E115: 274 | F115: 213 | G115: =IFERROR(VLOOKUP($A115,Filtro_!$A$5:$AW$2561,5,FALSE),0) -> 20 | H115: =IFERROR(VLOOKUP($A115,Filtro_!$A$5:$AW$2561,6,FALSE),0) -> 20 | I115: =IFERROR(VLOOKUP($A115,Filtro_!$A$5:$AW$2561,7,FALSE),0) -> 53 | J115: =IFERROR(VLOOKUP($A115,Filtro_!$A$5:$AW$2561,8,FALSE),0) -> 52 | K115: =IFERROR(VLOOKUP($A115,Filtro_!$A$5:$AW$2561,9,FALSE),0) -> 15 | L115: =IFERROR(VLOOKUP($A115,Filtro_!$A$5:$AW$2561,10,FALSE),0) -> 13 | M115: =IFERROR(VLOOKUP($A115,Filtro_!$A$5:$AW$2561,11,FALSE),0) -> 64 | N115: =IFERROR(VLOOKUP($A115,Filtro_!$A$5:$AW$2561,12,FALSE),0) -> 54 | O115: =IFERROR(VLOOKUP($A115,Filtro_!$A$5:$AW$2561,13,FALSE),0) -> 86 | P115: =IFERROR(VLOOKUP($A115,Filtro_!$A$5:$AW$2561,14,FALSE),0) -> 49 | Q115: =IFERROR(VLOOKUP($A115,Filtro_!$A$5:$AW$2561,15,FALSE),0) -> 16 | R115: =IFERROR(VLOOKUP($A115,Filtro_!$A$5:$AW$2561,16,FALSE),0) -> 17 | S115: =IFERROR(VLOOKUP($A115,Filtro_!$A$5:$AW$2561,17,FALSE),0) -> 18 | T115: =IFERROR(VLOOKUP($A115,Filtro_!$A$5:$AW$2561,18,FALSE),0) -> 5 | U115: =IFERROR(VLOOKUP($A115,Filtro_!$A$5:$AW$2561,19,FALSE),0) -> 2 | V115: =IFERROR(VLOOKUP($A115,Filtro_!$A$5:$AW$2561,20,FALSE),0) -> 3
B116: SECCIÓN D.2: RESULTADOS DE LA APLICACIÓN DE INSTRUMENTO DE VALORACIÓN DE DESEMPEÑO EN COMUNIDAD (IVADEC-CIF)
B117: ACTIVIDAD | C117: RESULTADO | D117: TOTAL | G117: POR EDAD
G118: 6 -11 meses | I118: 12 - 23 meses | K118: 2 - 4 años | M118: 5 - 9 años | O118: 10 a 14 años | Q118: 15 a 19 años | S118: 20 a 24 años | U118: 25 a 64 años | W118: 65 a 69 años | Y118: 70 a 79 años | AA118: 80 y más años
D119: Ambos Sexos | E119: Hombres | F119: Mujeres | G119: Hombres | H119: Mujeres | I119: Hombres | J119: Mujeres | K119: Hombres | L119: Mujeres | M119: Hombres | N119: Mujeres | O119: Hombres | P119: Mujeres | Q119: Hombres | R119: Mujeres | S119: Hombres | T119: Mujeres | U119: Hombres | V119: Mujeres | W119: Hombres | X119: Mujeres | Y119: Hombres | Z119: Mujeres | AA119: Hombres | AB119: Mujeres
A120: 03051000A | B120: ORIGEN FÍSICO | C120: SIN DISCAPACIDAD | D120: =SUM(E120+F120) -> 7 | E120: =SUM(G120+I120+K120+M120+O120+Q120+S120+U120+W120+Y120+AA120) -> 6 | F120: =SUM(H120+J120+L120+N120+P120+R120+T120+V120+X120+Z120+AB120) -> 1 | G120: =IFERROR(VLOOKUP($A120,Filtro_!$A$5:$AW$2561,5,FALSE),0) -> 0 | H120: =IFERROR(VLOOKUP($A120,Filtro_!$A$5:$AW$2561,6,FALSE),0) -> 0 | I120: =IFERROR(VLOOKUP($A120,Filtro_!$A$5:$AW$2561,7,FALSE),0) -> 0 | J120: =IFERROR(VLOOKUP($A120,Filtro_!$A$5:$AW$2561,8,FALSE),0) -> 0 | K120: =IFERROR(VLOOKUP($A120,Filtro_!$A$5:$AW$2561,9,FALSE),0) -> 1 | L120: =IFERROR(VLOOKUP($A120,Filtro_!$A$5:$AW$2561,10,FALSE),0) -> 0 | M120: =IFERROR(VLOOKUP($A120,Filtro_!$A$5:$AW$2561,11,FALSE),0) -> 0 | N120: =IFERROR(VLOOKUP($A120,Filtro_!$A$5:$AW$2561,12,FALSE),0) -> 0 | O120: =IFERROR(VLOOKUP($A120,Filtro_!$A$5:$AW$2561,13,FALSE),0) -> 0 | P120: =IFERROR(VLOOKUP($A120,Filtro_!$A$5:$AW$2561,14,FALSE),0) -> 0 | Q120: =IFERROR(VLOOKUP($A120,Filtro_!$A$5:$AW$2561,15,FALSE),0) -> 0 | R120: =IFERROR(VLOOKUP($A120,Filtro_!$A$5:$AW$2561,16,FALSE),0) -> 0 | S120: =IFERROR(VLOOKUP($A120,Filtro_!$A$5:$AW$2561,17,FALSE),0) -> 0 | T120: =IFERROR(VLOOKUP($A120,Filtro_!$A$5:$AW$2561,18,FALSE),0) -> 0 | U120: =IFERROR(VLOOKUP($A120,Filtro_!$A$5:$AW$2561,19,FALSE),0) -> 3 | V120: =IFERROR(VLOOKUP($A120,Filtro_!$A$5:$AW$2561,20,FALSE),0) -> 0 | W120: =IFERROR(VLOOKUP($A120,Filtro_!$A$5:$AW$2561,21,FALSE),0) -> 1 | X120: =IFERROR(VLOOKUP($A120,Filtro_!$A$5:$AW$2561,22,FALSE),0) -> 0 | Y120: =IFERROR(VLOOKUP($A120,Filtro_!$A$5:$AW$2561,23,FALSE),0) -> 1 | Z120: =IFERROR(VLOOKUP($A120,Filtro_!$A$5:$AW$2561,24,FALSE),0) -> 1 | AA120: =IFERROR(VLOOKUP($A120,Filtro_!$A$5:$AW$2561,25,FALSE),0) -> 0 | AB120: =IFERROR(VLOOKUP($A120,Filtro_!$A$5:$AW$2561,26,FALSE),0) -> 0
A121: 03051100 | C121: DISCAPACIDAD LEVE | D121: 222 | E121: =SUM(G121+I121+K121+M121+O121+Q121+S121+U121+W121+Y121+AA121) -> 121 | F121: 101 | G121: =IFERROR(VLOOKUP($A121,Filtro_!$A$5:$AW$2561,5,FALSE),0) -> 2 | H121: =IFERROR(VLOOKUP($A121,Filtro_!$A$5:$AW$2561,6,FALSE),0) -> 1 | I121: =IFERROR(VLOOKUP($A121,Filtro_!$A$5:$AW$2561,7,FALSE),0) -> 0 | J121: =IFERROR(VLOOKUP($A121,Filtro_!$A$5:$AW$2561,8,FALSE),0) -> 0 | K121: =IFERROR(VLOOKUP($A121,Filtro_!$A$5:$AW$2561,9,FALSE),0) -> 2 | L121: =IFERROR(VLOOKUP($A121,Filtro_!$A$5:$AW$2561,10,FALSE),0) -> 0 | M121: =IFERROR(VLOOKUP($A121,Filtro_!$A$5:$AW$2561,11,FALSE),0) -> 5 | N121: =IFERROR(VLOOKUP($A121,Filtro_!$A$5:$AW$2561,12,FALSE),0) -> 1 | O121: =IFERROR(VLOOKUP($A121,Filtro_!$A$5:$AW$2561,13,FALSE),0) -> 5 | P121: =IFERROR(VLOOKUP($A121,Filtro_!$A$5:$AW$2561,14,FALSE),0) -> 2 | Q121: =IFERROR(VLOOKUP($A121,Filtro_!$A$5:$AW$2561,15,FALSE),0) -> 1 | R121: =IFERROR(VLOOKUP($A121,Filtro_!$A$5:$AW$2561,16,FALSE),0) -> 2 | S121: =IFERROR(VLOOKUP($A121,Filtro_!$A$5:$AW$2561,17,FALSE),0) -> 0 | T121: =IFERROR(VLOOKUP($A121,Filtro_!$A$5:$AW$2561,18,FALSE),0) -> 5 | U121: =IFERROR(VLOOKUP($A121,Filtro_!$A$5:$AW$2561,19,FALSE),0) -> 70 | V121: =IFERROR(VLOOKUP($A121,Filtro_!$A$5:$AW$2561,20,FALSE),0) -> 71 | W121: =IFERROR(VLOOKUP($A121,Filtro_!$A$5:$AW$2561,21,FALSE),0) -> 17 | X121: =IFERROR(VLOOKUP($A121,Filtro_!$A$5:$AW$2561,22,FALSE),0) -> 10 | Y121: =IFERROR(VLOOKUP($A121,Filtro_!$A$5:$AW$2561,23,FALSE),0) -> 14 | Z121: =IFERROR(VLOOKUP($A121,Filtro_!$A$5:$AW$2561,24,FALSE),0) -> 8 | AA121: =IFERROR(VLOOKUP($A121,Filtro_!$A$5:$AW$2561,25,FALSE),0) -> 5 | AB121: =IFERROR(VLOOKUP($A121,Filtro_!$A$5:$AW$2561,26,FALSE),0) -> 1
A122: 03051200 | C122: DISCAPACIDAD MODERADA | D122: 278 | E122: 123 | F122: 155 | G122: =IFERROR(VLOOKUP($A122,Filtro_!$A$5:$AW$2561,5,FALSE),0) -> 0 | H122: =IFERROR(VLOOKUP($A122,Filtro_!$A$5:$AW$2561,6,FALSE),0) -> 1 | I122: =IFERROR(VLOOKUP($A122,Filtro_!$A$5:$AW$2561,7,FALSE),0) -> 0 | J122: =IFERROR(VLOOKUP($A122,Filtro_!$A$5:$AW$2561,8,FALSE),0) -> 1 | K122: =IFERROR(VLOOKUP($A122,Filtro_!$A$5:$AW$2561,9,FALSE),0) -> 0 | L122: =IFERROR(VLOOKUP($A122,Filtro_!$A$5:$AW$2561,10,FALSE),0) -> 1 | M122: =IFERROR(VLOOKUP($A122,Filtro_!$A$5:$AW$2561,11,FALSE),0) -> 3 | N122: =IFERROR(VLOOKUP($A122,Filtro_!$A$5:$AW$2561,12,FALSE),0) -> 1 | O122: =IFERROR(VLOOKUP($A122,Filtro_!$A$5:$AW$2561,13,FALSE),0) -> 1 | P122: =IFERROR(VLOOKUP($A122,Filtro_!$A$5:$AW$2561,14,FALSE),0) -> 0 | Q122: =IFERROR(VLOOKUP($A122,Filtro_!$A$5:$AW$2561,15,FALSE),0) -> 2 | R122: =IFERROR(VLOOKUP($A122,Filtro_!$A$5:$AW$2561,16,FALSE),0) -> 1 | S122: =IFERROR(VLOOKUP($A122,Filtro_!$A$5:$AW$2561,17,FALSE),0) -> 6 | T122: =IFERROR(VLOOKUP($A122,Filtro_!$A$5:$AW$2561,18,FALSE),0) -> 3 | U122: =IFERROR(VLOOKUP($A122,Filtro_!$A$5:$AW$2561,19,FALSE),0) -> 79 | V122: =IFERROR(VLOOKUP($A122,Filtro_!$A$5:$AW$2561,20,FALSE),0) -> 95 | W122: =IFERROR(VLOOKUP($A122,Filtro_!$A$5:$AW$2561,21,FALSE),0) -> 13 | X122: =IFERROR(VLOOKUP($A122,Filtro_!$A$5:$AW$2561,22,FALSE),0) -> 27 | Y122: =IFERROR(VLOOKUP($A122,Filtro_!$A$5:$AW$2561,23,FALSE),0) -> 13 | Z122: =IFERROR(VLOOKUP($A122,Filtro_!$A$5:$AW$2561,24,FALSE),0) -> 18 | AA122: =IFERROR(VLOOKUP($A122,Filtro_!$A$5:$AW$2561,25,FALSE),0) -> 6 | AB122: =IFERROR(VLOOKUP($A122,Filtro_!$A$5:$AW$2561,26,FALSE),0) -> 7
A123: 03051300 | C123: DISCAPACIDAD SEVERA | D123: 210 | E123: 103 | F123: 107 | G123: =IFERROR(VLOOKUP($A123,Filtro_!$A$5:$AW$2561,5,FALSE),0) -> 0 | H123: =IFERROR(VLOOKUP($A123,Filtro_!$A$5:$AW$2561,6,FALSE),0) -> 0 | I123: =IFERROR(VLOOKUP($A123,Filtro_!$A$5:$AW$2561,7,FALSE),0) -> 2 | J123: =IFERROR(VLOOKUP($A123,Filtro_!$A$5:$AW$2561,8,FALSE),0) -> 1 | K123: =IFERROR(VLOOKUP($A123,Filtro_!$A$5:$AW$2561,9,FALSE),0) -> 3 | L123: =IFERROR(VLOOKUP($A123,Filtro_!$A$5:$AW$2561,10,FALSE),0) -> 1 | M123: =IFERROR(VLOOKUP($A123,Filtro_!$A$5:$AW$2561,11,FALSE),0) -> 9 | N123: =IFERROR(VLOOKUP($A123,Filtro_!$A$5:$AW$2561,12,FALSE),0) -> 4 | O123: =IFERROR(VLOOKUP($A123,Filtro_!$A$5:$AW$2561,13,FALSE),0) -> 4 | P123: =IFERROR(VLOOKUP($A123,Filtro_!$A$5:$AW$2561,14,FALSE),0) -> 1 | Q123: =IFERROR(VLOOKUP($A123,Filtro_!$A$5:$AW$2561,15,FALSE),0) -> 0 | R123: =IFERROR(VLOOKUP($A123,Filtro_!$A$5:$AW$2561,16,FALSE),0) -> 0 | S123: =IFERROR(VLOOKUP($A123,Filtro_!$A$5:$AW$2561,17,FALSE),0) -> 0 | T123: =IFERROR(VLOOKUP($A123,Filtro_!$A$5:$AW$2561,18,FALSE),0) -> 3 | U123: =IFERROR(VLOOKUP($A123,Filtro_!$A$5:$AW$2561,19,FALSE),0) -> 46 | V123: =IFERROR(VLOOKUP($A123,Filtro_!$A$5:$AW$2561,20,FALSE),0) -> 58 | W123: =IFERROR(VLOOKUP($A123,Filtro_!$A$5:$AW$2561,21,FALSE),0) -> 7 | X123: =IFERROR(VLOOKUP($A123,Filtro_!$A$5:$AW$2561,22,FALSE),0) -> 7 | Y123: =IFERROR(VLOOKUP($A123,Filtro_!$A$5:$AW$2561,23,FALSE),0) -> 22 | Z123: =IFERROR(VLOOKUP($A123,Filtro_!$A$5:$AW$2561,24,FALSE),0) -> 15 | AA123: =IFERROR(VLOOKUP($A123,Filtro_!$A$5:$AW$2561,25,FALSE),0) -> 10 | AB123: =IFERROR(VLOOKUP($A123,Filtro_!$A$5:$AW$2561,26,FALSE),0) -> 17
A124: 03051400 | C124: DISCAPACIDAD PROFUNDA | D124: 16 | E124: 6 | F124: 10 | G124: =IFERROR(VLOOKUP($A124,Filtro_!$A$5:$AW$2561,5,FALSE),0) -> 0 | H124: =IFERROR(VLOOKUP($A124,Filtro_!$A$5:$AW$2561,6,FALSE),0) -> 0 | I124: =IFERROR(VLOOKUP($A124,Filtro_!$A$5:$AW$2561,7,FALSE),0) -> 0 | J124: =IFERROR(VLOOKUP($A124,Filtro_!$A$5:$AW$2561,8,FALSE),0) -> 0 | K124: =IFERROR(VLOOKUP($A124,Filtro_!$A$5:$AW$2561,9,FALSE),0) -> 1 | L124: =IFERROR(VLOOKUP($A124,Filtro_!$A$5:$AW$2561,10,FALSE),0) -> 1 | M124: =IFERROR(VLOOKUP($A124,Filtro_!$A$5:$AW$2561,11,FALSE),0) -> 0 | N124: =IFERROR(VLOOKUP($A124,Filtro_!$A$5:$AW$2561,12,FALSE),0) -> 0 | O124: =IFERROR(VLOOKUP($A124,Filtro_!$A$5:$AW$2561,13,FALSE),0) -> 0 | P124: =IFERROR(VLOOKUP($A124,Filtro_!$A$5:$AW$2561,14,FALSE),0) -> 0 | Q124: =IFERROR(VLOOKUP($A124,Filtro_!$A$5:$AW$2561,15,FALSE),0) -> 0 | R124: =IFERROR(VLOOKUP($A124,Filtro_!$A$5:$AW$2561,16,FALSE),0) -> 0 | S124: =IFERROR(VLOOKUP($A124,Filtro_!$A$5:$AW$2561,17,FALSE),0) -> 0 | T124: =IFERROR(VLOOKUP($A124,Filtro_!$A$5:$AW$2561,18,FALSE),0) -> 0 | U124: =IFERROR(VLOOKUP($A124,Filtro_!$A$5:$AW$2561,19,FALSE),0) -> 1 | V124: =IFERROR(VLOOKUP($A124,Filtro_!$A$5:$AW$2561,20,FALSE),0) -> 1 | W124: =IFERROR(VLOOKUP($A124,Filtro_!$A$5:$AW$2561,21,FALSE),0) -> 0 | X124: =IFERROR(VLOOKUP($A124,Filtro_!$A$5:$AW$2561,22,FALSE),0) -> 1 | Y124: =IFERROR(VLOOKUP($A124,Filtro_!$A$5:$AW$2561,23,FALSE),0) -> 1 | Z124: =IFERROR(VLOOKUP($A124,Filtro_!$A$5:$AW$2561,24,FALSE),0) -> 3 | AA124: =IFERROR(VLOOKUP($A124,Filtro_!$A$5:$AW$2561,25,FALSE),0) -> 3 | AB124: =IFERROR(VLOOKUP($A124,Filtro_!$A$5:$AW$2561,26,FALSE),0) -> 4
A125: 03051500 | B125: ORIGEN SENSORIAL VISUAL | C125: SIN DISCAPACIDAD | D125: 1 | E125: 0 | F125: 1 | G125: =IFERROR(VLOOKUP($A125,Filtro_!$A$5:$AW$2561,5,FALSE),0) -> 0 | H125: =IFERROR(VLOOKUP($A125,Filtro_!$A$5:$AW$2561,6,FALSE),0) -> 0 | I125: =IFERROR(VLOOKUP($A125,Filtro_!$A$5:$AW$2561,7,FALSE),0) -> 0 | J125: =IFERROR(VLOOKUP($A125,Filtro_!$A$5:$AW$2561,8,FALSE),0) -> 0 | K125: =IFERROR(VLOOKUP($A125,Filtro_!$A$5:$AW$2561,9,FALSE),0) -> 0 | L125: =IFERROR(VLOOKUP($A125,Filtro_!$A$5:$AW$2561,10,FALSE),0) -> 0 | M125: =IFERROR(VLOOKUP($A125,Filtro_!$A$5:$AW$2561,11,FALSE),0) -> 0 | N125: =IFERROR(VLOOKUP($A125,Filtro_!$A$5:$AW$2561,12,FALSE),0) -> 0 | O125: =IFERROR(VLOOKUP($A125,Filtro_!$A$5:$AW$2561,13,FALSE),0) -> 0 | P125: =IFERROR(VLOOKUP($A125,Filtro_!$A$5:$AW$2561,14,FALSE),0) -> 0 | Q125: =IFERROR(VLOOKUP($A125,Filtro_!$A$5:$AW$2561,15,FALSE),0) -> 0 | R125: =IFERROR(VLOOKUP($A125,Filtro_!$A$5:$AW$2561,16,FALSE),0) -> 0 | S125: =IFERROR(VLOOKUP($A125,Filtro_!$A$5:$AW$2561,17,FALSE),0) -> 0 | T125: =IFERROR(VLOOKUP($A125,Filtro_!$A$5:$AW$2561,18,FALSE),0) -> 0 | U125: =IFERROR(VLOOKUP($A125,Filtro_!$A$5:$AW$2561,19,FALSE),0) -> 0 | V125: =IFERROR(VLOOKUP($A125,Filtro_!$A$5:$AW$2561,20,FALSE),0) -> 1 | W125: =IFERROR(VLOOKUP($A125,Filtro_!$A$5:$AW$2561,21,FALSE),0) -> 0 | X125: =IFERROR(VLOOKUP($A125,Filtro_!$A$5:$AW$2561,22,FALSE),0) -> 0 | Y125: =IFERROR(VLOOKUP($A125,Filtro_!$A$5:$AW$2561,23,FALSE),0) -> 0 | Z125: =IFERROR(VLOOKUP($A125,Filtro_!$A$5:$AW$2561,24,FALSE),0) -> 0 | AA125: =IFERROR(VLOOKUP($A125,Filtro_!$A$5:$AW$2561,25,FALSE),0) -> 0 | AB125: =IFERROR(VLOOKUP($A125,Filtro_!$A$5:$AW$2561,26,FALSE),0) -> 0
